Workbook

Sheet Wycena
B3: POZYCJA | C3: ZAMÓWIENIE | E3: SZCZEGÓŁY | F3: CENA NETTO
B4: Podstawy | G4: =TODAY() -> 2024-02-05
B5: Model drzwi | C5: - | E5: Tu wpisz uwagi | F5: =IFERROR(VLOOKUP(C5,SKU!$B$1:$C$1030,2,0),0) -> 0
B6: Szklenie | C6: - | E6: Tu wpisz uwagi | F6: =IFERROR(VLOOKUP(C6,Mapping!$M$3:$O$10,2,0),0) -> 0
B7: Wykończenie | C7: Dab prosty podluzny | F7: =IFERROR(VLOOKUP(C7,Mapping!$Q$3:$R$8,2,0),0) -> 0
B8: Ilość kolorów | C8: Jeden (standard) | F8: =IFERROR(VLOOKUP(C8,Mapping!$V$3:$W$6,2,0),0) -> 0
B9: Kolor | C9: - | E9: - | F9: =MAX(IFERROR(VLOOKUP(E9,Mapping!$Y$3:$Z$229,2,0),0),IFERROR((VLOOKUP(C9,Mapping!$Y$3:$Z$229,2,0)),0)) -> 0
B10: Inox dustronny | C10: - | F10: =IFERROR(VLOOKUP(C10,Mapping!$AE$3:$AF$4,2,0),0) -> 0
B11: Rodzaj kamienia | C11: - | F11: =IFERROR(VLOOKUP(C11,Mapping!$AI$3:$AJ$7,2,0)*IFERROR((VLOOKUP(C42,Mapping!$ET$3:$EU$8,2,1)+1),1),0) -> 0
B13: Konstrukcja drzwi
B14: Przylgowość | C14: Przylgowe | F14: =IFERROR(VLOOKUP($C$14,Mapping!$AN$3:$AO$5,2,0),0) -> 0
B15: Kolor zawiasów | C15: Inox | F15: =IFERROR(VLOOKUP(C15,Mapping!$JD$3:$JE$4,2,0),0) -> 0
B16: Grubość drzwi [mm] | C16: -
B17: Szerokość drzwi [cm] | C17: 102 | E17: ="Standard do: "&IF(C16="-",102,IF(C16=78, 102,106)) -> Standard do: 102
B18: Wysokość drzwi [cm] | C18: 210 | E18: ="Standard do: "&IF(C16="-",212,IF(C16=78, 212,214)) -> Standard do: 212
B19: Kierunek otwierania | C19: -
B20: Dostawka od strony zawias | C20: - | E20: =IF((VLOOKUP(VLOOKUP(C17,Mapping!$AX$2:$BA$230,4,0),Mapping!$BB$3:$BC$5,2,0))="Konieczna dostawka",IF(OR(C20<>"-",C21<>"-"),"","Konieczna dostawka"),IF((VLOOKUP(VLOOKUP(C17,Mapping!$AX$2:$BA$230,4,0),Mapping!$BB$3:$BC$5,2,0))="Konieczne 2 dostawki",IF(AND(C20<>"-",C21<>"-"),"","Konieczne 2 dostawki"),"")) -> 
B21: Dostawka od strony zamka | C21: - | E21: =IF((VLOOKUP(VLOOKUP(C17,Mapping!$AX$2:$BA$230,4,0),Mapping!$BB$3:$BC$5,2,0))="Konieczna dostawka",IF(OR(C20<>"-",C21<>"-"),"","Konieczna dostawka"),IF((VLOOKUP(VLOOKUP(C17,Mapping!$AX$2:$BA$230,4,0),Mapping!$BB$3:$BC$5,2,0))="Konieczne 2 dostawki",IF(AND(C20<>"-",C21<>"-"),"","Konieczne 2 dostawki"),"")) -> 
B22: Naświetle górne | C22: - | E22: =IF((VLOOKUP(VLOOKUP(C18,Mapping!$BD$2:$BG$172,4,0),Mapping!$BH$3:$BI$4,2,0))="Konieczne naświetle",IF(C22="-","Konieczne naświetle",""),"") -> 
B24: Ościeżnica
B25: Rodzaj | C25: Standardowa | F25: =IFERROR(VLOOKUP(C25,Mapping!$CJ$3:$CK$4,2,0),0) -> 0
B26: Aplikacja retro | C26: - | F26: =IFERROR(VLOOKUP(C26,Mapping!$CO$3:$CP$11,2,0),0) -> 0
B27: Grubość górna [cm] | C27: =VLOOKUP($C$14,Mapping!$CY$3:$CZ$5,2,0) -> 6 | E27: ="Standard: "&VLOOKUP($C$14,Mapping!$CY$3:$CZ$5,2,0) -> Standard: 6 | F27: =((C27-VLOOKUP($C$14,Mapping!$CY$8:$CZ$10,2,0))*(C17)/100*(VLOOKUP($C$14,Mapping!$CY$12:$CZ$15,2,0))) -> 0
B28: Grubość strona zawias [cm] | C28: =VLOOKUP($C$14,Mapping!$DG$3:$DI$5,2,0) -> 6 | E28: ="Standard: "&VLOOKUP($C$14,Mapping!$DG$3:$DH$5,2,0) -> Standard: 6 | F28: =((C28-VLOOKUP($C$14,Mapping!$DG$8:$DH$10,2,0))*(C18)/100*(VLOOKUP($C$14,Mapping!$DG$13:$DH$15,2,0))) -> 0
B29: Grubość strona zamka [cm] | C29: =VLOOKUP($C$14,Mapping!$DG$3:$DI$5,3,0) -> 6 | E29: ="Standard: "&VLOOKUP($C$14,Mapping!$DG$3:$DI$5,3,0) -> Standard: 6 | F29: =((C29-VLOOKUP($C$14,Mapping!$DG$8:$DI$10,3,0))*(C18)/100*(VLOOKUP($C$14,Mapping!$DG$13:$DI$15,3,0))) -> 0
B30: Szerokość [cm] | C30: =VLOOKUP($C$25,Mapping!$DQ$3:$DR$4,2,0) -> 10.5 | E30: ="Standard: "&VLOOKUP($C$25,Mapping!$DQ$3:$DR$4,2,0) -> Standard: 10,5 | F30: =(C30-VLOOKUP($C$25,Mapping!$DQ$3:$DR$4,2,0))*(C17+2*C18)/100*VLOOKUP($C$25,Mapping!$DQ$13:$DR$14,2,0) -> 0
B31: Zabudowa wewnętrzna [cm] | C31: - | F31: =IFERROR(C31*($C$17+$C$18*2)/100*7,0) -> 0
B32: Zabudowa zewnętrzna [cm] | C32: - | F32: =IFERROR(C32*($C$17+$C$18*2)/100*7,0) -> 0
B34: Opaski
B35: Regulowana wewnętrzna | C35: - | E35: Szerokosć 8 cm | F35: =IFERROR(VLOOKUP($C$35,Mapping!$DY$3:$DZ$4,2,0),0) -> 0
B36: Regulowana zewnętrzna | C36: - | E36: Szerokosć 10 cm | F36: =IFERROR(VLOOKUP($C$36,Mapping!$EB$3:$EC$4,2,0),0) -> 0
B37: Maskująca stała | C37: - | F37: =IFERROR(VLOOKUP($C$37,Mapping!$EG$3:$EH$5,2,0),0) -> 0
B38: Ćwierćwałek | C38: - | F38: =IFERROR(VLOOKUP($C$38,Mapping!$EJ$3:$EK$5,2,0),0) -> 0
B40: Skrzydło
B41: Światło przejścia szerokość [cm] | C41: - | E41: Wybierz opcję lub wpisz | F41: =IFERROR(VLOOKUP(C41,Mapping!$EN$3:$EO$8,2,1),0) -> 0
B42: Światło przejścia wysokość [cm] | C42: - | E42: Wybierz opcję lub wpisz | F42: =(IFERROR(VLOOKUP(C42,Mapping!$ET$3:$EU$8,2,1),0))*SUM($F$5:$F$10,F41) -> 0
B44: Dostawki boczne
B45: Od zawias - szerokość w świetle [cm] | C45: =IFERROR(IF(C20<>"-",((C17-C28-C29)-C41)/IF(AND(C20<>"-",C21<>"-")=TRUE,2,1)+VLOOKUP(Wycena!C26,Mapping!$CO$40:$CS$49,IF(AND(Wycena!C20="-",Wycena!C21="-"),2,IF(AND(Wycena!C20<>"-",Wycena!C21="-"),3,IF(AND(Wycena!C20="-",Wycena!C21<>"-"),4,5))),0),"-"),"-") -> - | E45: Automatycznie | F45: =IFERROR(IF(E46="",(VLOOKUP(C45,Mapping!$EZ$3:$FB$6,2,1)*SUM(F5:F10)*(VLOOKUP(C42,Mapping!$ET$3:$EU$8,2,1)+1)),"Błąd wyceny"),0) -> 0
B46: Od zawias - rodzaj szklenia | C46: - | E46: =IF(C45<IFERROR(VLOOKUP($C$5,Mapping!$A$2:$I$168,((VLOOKUP(C20,Mapping!$J$2:$K$7,2,0)+IF((OR(C46="-",C46="Brak (pełne)")),0,1))),0),0),"Dostawka za wąska",IF(C45="-","",IF(C45>100,"Wycena indywidualna",""))) ->  | F46: =IFERROR(IF(E46="",IF(AND(C45>69.99,C46="Witraż"),"Wycena indywidulana",(IF((VLOOKUP(C46,Mapping!$FE$3:$FF$14,2,0)-VLOOKUP(C6,Mapping!$FE$3:$FF$14,2,0))<0,0,(VLOOKUP(C46,Mapping!$FE$3:$FF$14,2,0)-VLOOKUP(C6,Mapping!$FE$3:$FF$14,2,0)))*(VLOOKUP(C42,Mapping!$ET$3:$EU$8,2,1)+1))),"Błąd wyceny"),0) -> 0
B47: Od zawias - ilość pól szkła | C47: - | E47: Standard do: 4 | F47: =IFERROR(IF(E46="",(IF(Mapping!$FN$3-Wycena!$C$47<0,(Wycena!$C$47-Mapping!$FN$3)*Mapping!FN6,0)),"Błąd wyceny"),0) -> 0
B49: Od zamka - szerokość w świetle [cm] | C49: =IFERROR(IF(C21<>"-",((C17-C28-C29)-C41)/IF(AND(C20<>"-",C21<>"-")=TRUE,2,1)+VLOOKUP(Wycena!C26,Mapping!$CO$52:$CS$61,IF(AND(Wycena!C20="-",Wycena!C21="-"),2,IF(AND(Wycena!C20<>"-",Wycena!C21="-"),3,IF(AND(Wycena!C20="-",Wycena!C21<>"-"),4,5))),0),"-"),"-") -> - | E49: Automatycznie | F49: =IFERROR(IF(E50="",(VLOOKUP(C49,Mapping!$EZ$3:$FB$6,3,1)*SUM(F5:F10)*(VLOOKUP(C42,Mapping!$ET$3:$EU$8,2,1)+1)),"Błąd wyceny"),0) -> 0
B50: Od zamka - rodzaj szklenia | C50: - | E50: =IF(C49<IFERROR(VLOOKUP($C$5,Mapping!$A$2:$I$168,((VLOOKUP(C21,Mapping!$J$2:$K$7,2,0)+IF((OR(C50="-",C50="Brak (pełne)")),0,1))),0),0),"Dostawka za wąska",IF(C49="-","",IF(C49>100,"Wycena indywidualna",""))) ->  | F50: =IFERROR(IF(E50="",IF(AND(C49>69.99,C50="Witraż"),"Wycena indywidulana",(IF((VLOOKUP(C50,Mapping!$FE$3:$FF$14,2,0)-VLOOKUP(C6,Mapping!$FE$3:$FF$14,2,0))<0,0,(VLOOKUP(C50,Mapping!$FE$3:$FF$14,2,0)-VLOOKUP(C6,Mapping!$FE$3:$FF$14,2,0)))*(VLOOKUP(C42,Mapping!$ET$3:$EU$8,2,1)+1))),"Błąd wyceny"),0) -> 0
B51: Od zamka- ilość pól szkła | C51: - | E51: Standard do: 4 | F51: =IFERROR(IF(E50="",(IF(Mapping!$FN$3-Wycena!$C$51<0,(Wycena!$C$51-Mapping!$FN$3)*Mapping!FN6,0)),"Błąd wyceny"),0) -> 0
B53: Naświetle
B54: Wysokość [cm] | C54: =IFERROR(IF(C22<>"-",C18-C27-C42,"-"),"-") -> - | E54: Automatycznie | F54: =IFERROR(IF(E55="",VLOOKUP(C22,Mapping!$BU$3:$BV$6,2,0),"Błąd wyceny"),0) -> 0
B55: Szklenie | C55: - | E55: =IF(C54="-","",IF(C54>100,"Wycena indywidulana",IF((IF(C22="Imitacja skrzydła",30,IF(C22<>"-",18,"")))>C54,"Za niskie naświetle",""))) ->  | F55: =IFERROR(IF(E55="",VLOOKUP(C55,Mapping!$CA$2:$CC$12,3,0),"Błąd wyceny"),0) -> 0
B56: Ilość pól szkła | C56: - | E56: Standard do: 4 | F56: =IFERROR(IF(E55="",(IF(Mapping!$FN$3-Wycena!$C$56<0,(Wycena!$C$56-Mapping!$FN$3)*Mapping!FN6,0)),"Błąd wyceny"),0) -> 0
B58: Okucia
B59: Specjalny zestaw okuć | C59: Brak (standard) | F59: =IFERROR(VLOOKUP(C59,Mapping!$FW$3:$FX$11,2,0),0) -> 0
B60: Zamek | C60: - | F60: =IFERROR(VLOOKUP(C60,Mapping!$FY$15:$FZ$24,2,0),0) -> 0
B61: Okucie zewnętrzne | C61: - | F61: =IFERROR(VLOOKUP(C61,Mapping!$GA$3:$GB$33,2,0),0) -> 0
B62: Kolor okucia | C62: -
B63: Długość antaby [cm] | C63: -
B64: Wkładki | C64: - | F64: =IFERROR(VLOOKUP(C64,Mapping!$GS$3:$GT$8,2,0),"") -> 
B65: Zapadka | C65: - | F65: =IFERROR(VLOOKUP(C65,Mapping!$GW$3:$GX$5,2,0),0) -> 0
B66: Listwa zaczepowa | C66: - | F66: =IFERROR(VLOOKUP(C66,Mapping!$HB$3:$HC$4,2,0),"") -> 0
B68: Dodatki
B69: Szyba P4 | C69: - | F69: =IFERROR(VLOOKUP(C69,Mapping!$HF$3:$HH$13,3,0),0) -> 0
B70: Próg | C70: Aluminiowy (standard) | F70: =VLOOKUP(C70,Mapping!$HM$3:$HO$5,3,0) -> 0
B71: Adapter podprogowy [cm] | C71: - | F71: =IFERROR(VLOOKUP(C71,Mapping!$HS$3:$HU$20,3,0),0) -> 0
B72: Okapnik | C72: - | F72: =IFERROR(VLOOKUP(C72,Mapping!$HW$3:$HY$9,3,0),0) -> 0
B73: Kopniak inox | C73: - | F73: =IFERROR(VLOOKUP(C73,Mapping!$HW$3:$IA$9,5,0),0) -> 0
B74: Wizjer panoramiczny | C74: - | F74: =IFERROR(VLOOKUP(C74,Mapping!$IE$3:$IF$6,2,0),0) -> 0
B75: Samozamykacz | C75: - | F75: =VLOOKUP(C75,Mapping!$IH$3:$II$13,2,0) -> 0
B76: Kołatka | C76: - | F76: =IFERROR(VLOOKUP(C76,Mapping!$IK$3:$IL$5,2,0),"") -> 0
B77: Piaskowanie numery na szkle | C77: - | F77: =IFERROR(VLOOKUP(C77,Mapping!$IN$3:$IO$5,2,0),0) -> 0
B78: Kontaktron (czujka alarmowa) | C78: - | F78: =IFERROR(VLOOKUP(C78,Mapping!$IQ$3:$IR$4,2,0),0) -> 0
B79: Zestaw pielęgnacyjny | C79: - | F79: =VLOOKUP(C79,Mapping!$IT$3:$IU$4,2,0) -> 0
B80: Inne | E80: Wpisz pozycję i kwotę
B82: Cena netto | F82: =SUM(F5:F81) -> 0
B83: Rabat | E83: Wybierz rabat | F83: 0
B84: Montaż | E84: Wybierz kwotę | F84: 0
B85: Cena brutto (dla wybranej stawki VAT) | C85: 0.08 | E85: Wybierz stawkę | F85: =(F82*(1-F83)+F84)*(1+C85) -> 0
B86: Klient | E86: Wpisz nazwisko | F86: xxx

Sheet SKU (hidden)
A1: Kolejność | B1: Model | C1: Cena podstawowa | D1: Konstrukcja | E1: Kolekcja | F1: Szklenie | G1: Drzwi&szklenie | H1: Inox dwustronny | I1: Kamień ozdobny
A2: 1 | B2: DB 01 | C2: 5900 | D2: Płycinowe | E2: Classic Plus | F2: Przezierne | G2: =B2&F2 -> DB 01Przezierne
A3: 1 | B3: DB 01 | C3: 5900 | D3: Płycinowe | E3: Classic Plus | F3: Brąz refleks | G3: =B3&F3 -> DB 01Brąz refleks
A4: 1 | B4: DB 01 | C4: 6000 | D4: Płycinowe | E4: Classic Plus | F4: Grafit refleks | G4: DB 01Grafit refleks
A5: 1 | B5: DB 01 | C5: 6000 | D5: Płycinowe | E5: Classic Plus | F5: Lustro weneckie | G5: DB 01Lustro weneckie
A6: 1 | B6: DB 01 | C6: 6200 | D6: Płycinowe | E6: Classic Plus | F6: Mleczne | G6: DB 01Mleczne
A7: 1 | B7: DB 01 | C7: 6200 | D7: Płycinowe | E7: Classic Plus | F7: Piaskowane refleks | G7: DB 01Piaskowane refleks
A8: 3 | B8: DB 03 | C8: 5700 | D8: Płycinowe | E8: Classic Plus | F8: Przezierne | G8: DB 03Przezierne
A9: 3 | B9: DB 03 | C9: 5700 | D9: Płycinowe | E9: Classic Plus | F9: Brąz refleks | G9: DB 03Brąz refleks
A10: 3 | B10: DB 03 | C10: 5800 | D10: Płycinowe | E10: Classic Plus | F10: Grafit refleks | G10: DB 03Grafit refleks
A11: 3 | B11: DB 03 | C11: 5800 | D11: Płycinowe | E11: Classic Plus | F11: Lustro weneckie | G11: DB 03Lustro weneckie
A12: 3 | B12: DB 03 | C12: 6000 | D12: Płycinowe | E12: Classic Plus | F12: Mleczne | G12: DB 03Mleczne
A13: 4 | B13: DB 04 | C13: 5700 | D13: Płycinowe | E13: Classic Plus | F13: Przezierne | G13: DB 04Przezierne
A14: 4 | B14: DB 04 | C14: 5700 | D14: Płycinowe | E14: Classic Plus | F14: Brąz refleks | G14: DB 04Brąz refleks
A15: 4 | B15: DB 04 | C15: 5800 | D15: Płycinowe | E15: Classic Plus | F15: Grafit refleks | G15: DB 04Grafit refleks
A16: 4 | B16: DB 04 | C16: 5800 | D16: Płycinowe | E16: Classic Plus | F16: Lustro weneckie | G16: DB 04Lustro weneckie
A17: 4 | B17: DB 04 | C17: 6000 | D17: Płycinowe | E17: Classic Plus | F17: Mleczne | G17: DB 04Mleczne
A18: 7 | B18: DB 07 | C18: 5700 | D18: Płycinowe | E18: Classic Plus | F18: Przezierne | G18: DB 07Przezierne
A19: 7 | B19: DB 07 | C19: 5700 | D19: Płycinowe | E19: Classic Plus | F19: Brąz refleks | G19: DB 07Brąz refleks
A20: 7 | B20: DB 07 | C20: 5800 | D20: Płycinowe | E20: Classic Plus | F20: Grafit refleks | G20: DB 07Grafit refleks
A21: 7 | B21: DB 07 | C21: 5800 | D21: Płycinowe | E21: Classic Plus | F21: Lustro weneckie | G21: DB 07Lustro weneckie
A22: 7 | B22: DB 07 | C22: 6000 | D22: Płycinowe | E22: Classic Plus | F22: Mleczne | G22: DB 07Mleczne
A23: 9 | B23: DB 09a | C23: 5700 | D23: Płycinowe | E23: Classic Plus | F23: Przezierne | G23: DB 09aPrzezierne
A24: 9 | B24: DB 09a | C24: 5700 | D24: Płycinowe | E24: Classic Plus | F24: Brąz refleks | G24: DB 09aBrąz refleks
A25: 9 | B25: DB 09a | C25: 5800 | D25: Płycinowe | E25: Classic Plus | F25: Grafit refleks | G25: DB 09aGrafit refleks
A26: 9 | B26: DB 09a | C26: 5800 | D26: Płycinowe | E26: Classic Plus | F26: Lustro weneckie | G26: DB 09aLustro weneckie
A27: 9 | B27: DB 09a | C27: 6000 | D27: Płycinowe | E27: Classic Plus | F27: Mleczne | G27: DB 09aMleczne
A28: 10 | B28: DB 10 | C28: 5700 | D28: Płycinowe | E28: Classic Plus | F28: Przezierne | G28: DB 10Przezierne
A29: 10 | B29: DB 10 | C29: 5700 | D29: Płycinowe | E29: Classic Plus | F29: Brąz refleks | G29: DB 10Brąz refleks
A30: 10 | B30: DB 10 | C30: 5800 | D30: Płycinowe | E30: Classic Plus | F30: Grafit refleks | G30: DB 10Grafit refleks
A31: 10 | B31: DB 10 | C31: 5800 | D31: Płycinowe | E31: Classic Plus | F31: Lustro weneckie | G31: DB 10Lustro weneckie
A32: 10 | B32: DB 10 | C32: 6000 | D32: Płycinowe | E32: Classic Plus | F32: Mleczne | G32: DB 10Mleczne
A33: 11 | B33: DB 11 | C33: 5700 | D33: Płycinowe | E33: Classic Plus | F33: Przezierne | G33: DB 11Przezierne
A34: 11 | B34: DB 11 | C34: 5700 | D34: Płycinowe | E34: Classic Plus | F34: Brąz refleks | G34: DB 11Brąz refleks
A35: 11 | B35: DB 11 | C35: 5800 | D35: Płycinowe | E35: Classic Plus | F35: Grafit refleks | G35: DB 11Grafit refleks
A36: 11 | B36: DB 11 | C36: 5800 | D36: Płycinowe | E36: Classic Plus | F36: Lustro weneckie | G36: DB 11Lustro weneckie
A37: 11 | B37: DB 11 | C37: 6000 | D37: Płycinowe | E37: Classic Plus | F37: Mleczne | G37: DB 11Mleczne
A38: 12 | B38: DB 12 | C38: 5700 | D38: Płycinowe | E38: Classic Plus | F38: Przezierne | G38: DB 12Przezierne
A39: 12 | B39: DB 12 | C39: 5700 | D39: Płycinowe | E39: Classic Plus | F39: Brąz refleks | G39: DB 12Brąz refleks
A40: 12 | B40: DB 12 | C40: 5800 | D40: Płycinowe | E40: Classic Plus | F40: Grafit refleks | G40: DB 12Grafit refleks
A41: 12 | B41: DB 12 | C41: 5800 | D41: Płycinowe | E41: Classic Plus | F41: Lustro weneckie | G41: DB 12Lustro weneckie
A42: 12 | B42: DB 12 | C42: 6000 | D42: Płycinowe | E42: Classic Plus | F42: Mleczne | G42: DB 12Mleczne
A43: 12 | B43: DB 12 | C43: 6000 | D43: Płycinowe | E43: Classic Plus | F43: Piaskowane refleks | G43: DB 12Piaskowane refleks
A44: 14 | B44: DB 14 | C44: 5700 | D44: Płycinowe | E44: Classic Plus | F44: Przezierne | G44: DB 14Przezierne
A45: 14 | B45: DB 14 | C45: 5700 | D45: Płycinowe | E45: Classic Plus | F45: Brąz refleks | G45: DB 14Brąz refleks
A46: 14 | B46: DB 14 | C46: 5800 | D46: Płycinowe | E46: Classic Plus | F46: Grafit refleks | G46: DB 14Grafit refleks
A47: 14 | B47: DB 14 | C47: 5800 | D47: Płycinowe | E47: Classic Plus | F47: Lustro weneckie | G47: DB 14Lustro weneckie
A48: 14 | B48: DB 14 | C48: 6000 | D48: Płycinowe | E48: Classic Plus | F48: Mleczne | G48: DB 14Mleczne
A49: 17 | B49: DB 17 | C49: 5700 | D49: Płycinowe | E49: Classic Plus | F49: Przezierne | G49: DB 17Przezierne
A50: 17 | B50: DB 17 | C50: 5700 | D50: Płycinowe | E50: Classic Plus | F50: Brąz refleks | G50: DB 17Brąz refleks
A51: 17 | B51: DB 17 | C51: 5800 | D51: Płycinowe | E51: Classic Plus | F51: Grafit refleks | G51: DB 17Grafit refleks
A52: 17 | B52: DB 17 | C52: 5800 | D52: Płycinowe | E52: Classic Plus | F52: Lustro weneckie | G52: DB 17Lustro weneckie
A53: 17 | B53: DB 17 | C53: 6000 | D53: Płycinowe | E53: Classic Plus | F53: Mleczne | G53: DB 17Mleczne
A54: 17 | B54: DB 17 | C54: 6000 | D54: Płycinowe | E54: Classic Plus | F54: Piaskowane refleks | G54: DB 17Piaskowane refleks
A55: 17 | B55: DB 17 | C55: 6000 | D55: Płycinowe | E55: Classic Plus | F55: Brąz refleks wypukły | G55: DB 17Brąz refleks wypukły
A56: 18 | B56: DB 18 | C56: 5700 | D56: Płycinowe | E56: Classic Plus | F56: Przezierne | G56: DB 18Przezierne
A57: 18 | B57: DB 18 | C57: 5700 | D57: Płycinowe | E57: Classic Plus | F57: Brąz refleks | G57: DB 18Brąz refleks
A58: 18 | B58: DB 18 | C58: 5800 | D58: Płycinowe | E58: Classic Plus | F58: Grafit refleks | G58: DB 18Grafit refleks
A59: 18 | B59: DB 18 | C59: 5800 | D59: Płycinowe | E59: Classic Plus | F59: Lustro weneckie | G59: DB 18Lustro weneckie
A60: 18 | B60: DB 18 | C60: 6000 | D60: Płycinowe | E60: Classic Plus | F60: Mleczne | G60: DB 18Mleczne
A61: 18 | B61: DB 18 | C61: 6000 | D61: Płycinowe | E61: Classic Plus | F61: Brąz refleks wypukły | G61: DB 18Brąz refleks wypukły
A62: 19 | B62: DB 19a | C62: 5700 | D62: Płycinowe | E62: Classic Plus | F62: Przezierne | G62: DB 19aPrzezierne
A63: 19 | B63: DB 19a | C63: 5700 | D63: Płycinowe | E63: Classic Plus | F63: Brąz refleks | G63: DB 19aBrąz refleks
A64: 19 | B64: DB 19a | C64: 5800 | D64: Płycinowe | E64: Classic Plus | F64: Grafit refleks | G64: DB 19aGrafit refleks
A65: 19 | B65: DB 19a | C65: 5800 | D65: Płycinowe | E65: Classic Plus | F65: Lustro weneckie | G65: DB 19aLustro weneckie
A66: 19 | B66: DB 19a | C66: 6000 | D66: Płycinowe | E66: Classic Plus | F66: Mleczne | G66: DB 19aMleczne
A67: 20 | B67: DB 20 | C67: 5700 | D67: Płycinowe | E67: Classic Plus | F67: Przezierne | G67: =B67&F67 -> DB 20Przezierne
A68: 20 | B68: DB 20 | C68: 5700 | D68: Płycinowe | E68: Classic Plus | F68: Brąz refleks | G68: DB 20Brąz refleks
A69: 20 | B69: DB 20 | C69: 5800 | D69: Płycinowe | E69: Classic Plus | F69: Grafit refleks | G69: DB 20Grafit refleks
A70: 20 | B70: DB 20 | C70: 5800 | D70: Płycinowe | E70: Classic Plus | F70: Lustro weneckie | G70: DB 20Lustro weneckie
A71: 20 | B71: DB 20 | C71: 6000 | D71: Płycinowe | E71: Classic Plus | F71: Mleczne | G71: DB 20Mleczne
A72: 21 | B72: DB 21 | C72: 5900 | D72: Płycinowe | E72: Classic Plus | F72: Przezierne | G72: DB 21Przezierne
A73: 21 | B73: DB 21 | C73: 5900 | D73: Płycinowe | E73: Classic Plus | F73: Brąz refleks | G73: DB 21Brąz refleks
A74: 21 | B74: DB 21 | C74: 6000 | D74: Płycinowe | E74: Classic Plus | F74: Grafit refleks | G74: DB 21Grafit refleks
A75: 21 | B75: DB 21 | C75: 6000 | D75: Płycinowe | E75: Classic Plus | F75: Lustro weneckie | G75: DB 21Lustro weneckie
A76: 21 | B76: DB 21 | C76: 6200 | D76: Płycinowe | E76: Classic Plus | F76: Mleczne | G76: DB 21Mleczne
A77: 21 | B77: DB 21 | C77: 6200 | D77: Płycinowe | E77: Classic Plus | F77: Piaskowane refleks | G77: DB 21Piaskowane refleks
A78: 21 | B78: DB 21 | C78: 6200 | D78: Płycinowe | E78: Classic Plus | F78: Brąz refleks wypukły | G78: DB 21Brąz refleks wypukły
A79: 28 | B79: DB 28 | C79: 5700 | D79: Płycinowe | E79: Classic Plus | F79: Przezierne | G79: DB 28Przezierne
A80: 28 | B80: DB 28 | C80: 5700 | D80: Płycinowe | E80: Classic Plus | F80: Brąz refleks | G80: DB 28Brąz refleks
A81: 28 | B81: DB 28 | C81: 5800 | D81: Płycinowe | E81: Classic Plus | F81: Grafit refleks | G81: DB 28Grafit refleks
A82: 28 | B82: DB 28 | C82: 5800 | D82: Płycinowe | E82: Classic Plus | F82: Lustro weneckie | G82: DB 28Lustro weneckie
A83: 28 | B83: DB 28 | C83: 6000 | D83: Płycinowe | E83: Classic Plus | F83: Mleczne | G83: DB 28Mleczne
A84: 31 | B84: DB 31 | C84: 5700 | D84: Płycinowe | E84: Classic Plus | F84: Przezierne | G84: DB 31Przezierne
A85: 31 | B85: DB 31 | C85: 5700 | D85: Płycinowe | E85: Classic Plus | F85: Brąz refleks | G85: DB 31Brąz refleks
A86: 31 | B86: DB 31 | C86: 5800 | D86: Płycinowe | E86: Classic Plus | F86: Grafit refleks | G86: DB 31Grafit refleks
A87: 31 | B87: DB 31 | C87: 5800 | D87: Płycinowe | E87: Classic Plus | F87: Lustro weneckie | G87: DB 31Lustro weneckie
A88: 31 | B88: DB 31 | C88: 6000 | D88: Płycinowe | E88: Classic Plus | F88: Mleczne | G88: DB 31Mleczne
A89: 31 | B89: DB 31a | C89: 5700 | D89: Płycinowe | E89: Classic Plus | F89: Przezierne | G89: DB 31aPrzezierne
A90: 31 | B90: DB 31a | C90: 5700 | D90: Płycinowe | E90: Classic Plus | F90: Brąz refleks | G90: DB 31aBrąz refleks
A91: 31 | B91: DB 31a | C91: 5800 | D91: Płycinowe | E91: Classic Plus | F91: Grafit refleks | G91: DB 31aGrafit refleks
A92: 31 | B92: DB 31a | C92: 5800 | D92: Płycinowe | E92: Classic Plus | F92: Lustro weneckie | G92: DB 31aLustro weneckie
A93: 31 | B93: DB 31a | C93: 6000 | D93: Płycinowe | E93: Classic Plus | F93: Mleczne | G93: DB 31aMleczne
A94: 32 | B94: DB 32 | C94: 5300 | D94: Płycinowe | E94: Classic Plus | F94: Brak (pełne) | G94: DB 32Brak (pełne)
A95: 33 | B95: DB 33 | C95: 5700 | D95: Płycinowe | E95: Classic Plus | F95: Przezierne | G95: DB 33Przezierne
A96: 33 | B96: DB 33 | C96: 5700 | D96: Płycinowe | E96: Classic Plus | F96: Brąz refleks | G96: DB 33Brąz refleks
A97: 33 | B97: DB 33 | C97: 5800 | D97: Płycinowe | E97: Classic Plus | F97: Grafit refleks | G97: DB 33Grafit refleks
A98: 33 | B98: DB 33 | C98: 5800 | D98: Płycinowe | E98: Classic Plus | F98: Lustro weneckie | G98: DB 33Lustro weneckie
A99: 33 | B99: DB 33 | C99: 6000 | D99: Płycinowe | E99: Classic Plus | F99: Mleczne | G99: DB 33Mleczne
A100: 34 | B100: DB 34 | C100: 5300 | D100: Płycinowe | E100: Classic Plus | F100: Brak (pełne) | G100: DB 34Brak (pełne)
A101: 39 | B101: DB 39 | C101: 5700 | D101: Płycinowe | E101: Classic Plus | F101: Przezierne | G101: DB 39Przezierne
A102: 39 | B102: DB 39 | C102: 5700 | D102: Płycinowe | E102: Classic Plus | F102: Brąz refleks | G102: DB 39Brąz refleks
A103: 39 | B103: DB 39 | C103: 5800 | D103: Płycinowe | E103: Classic Plus | F103: Grafit refleks | G103: DB 39Grafit refleks
A104: 39 | B104: DB 39 | C104: 5800 | D104: Płycinowe | E104: Classic Plus | F104: Lustro weneckie | G104: DB 39Lustro weneckie
A105: 39 | B105: DB 39 | C105: 6000 | D105: Płycinowe | E105: Classic Plus | F105: Mleczne | G105: DB 39Mleczne
A106: 39 | B106: DB 39 | C106: 6000 | D106: Płycinowe | E106: Classic Plus | F106: Piaskowane refleks | G106: DB 39Piaskowane refleks
A107: 43 | B107: DB 43 | C107: 5700 | D107: Płycinowe | E107: Classic Plus | F107: Przezierne | G107: DB 43Przezierne
A108: 43 | B108: DB 43 | C108: 5700 | D108: Płycinowe | E108: Classic Plus | F108: Brąz refleks | G108: DB 43Brąz refleks
A109: 43 | B109: DB 43 | C109: 5800 | D109: Płycinowe | E109: Classic Plus | F109: Grafit refleks | G109: DB 43Grafit refleks
A110: 43 | B110: DB 43 | C110: 5800 | D110: Płycinowe | E110: Classic Plus | F110: Lustro weneckie | G110: DB 43Lustro weneckie
A111: 43 | B111: DB 43 | C111: 6000 | D111: Płycinowe | E111: Classic Plus | F111: Mleczne | G111: DB 43Mleczne
A112: 45 | B112: DB 45 | C112: 5700 | D112: Płycinowe | E112: Classic Plus | F112: Przezierne | G112: DB 45Przezierne
A113: 45 | B113: DB 45 | C113: 5700 | D113: Płycinowe | E113: Classic Plus | F113: Brąz refleks | G113: DB 45Brąz refleks
A114: 45 | B114: DB 45 | C114: 5800 | D114: Płycinowe | E114: Classic Plus | F114: Grafit refleks | G114: DB 45Grafit refleks
A115: 45 | B115: DB 45 | C115: 5800 | D115: Płycinowe | E115: Classic Plus | F115: Lustro weneckie | G115: DB 45Lustro weneckie
A116: 45 | B116: DB 45 | C116: 6000 | D116: Płycinowe | E116: Classic Plus | F116: Mleczne | G116: DB 45Mleczne
A117: 45 | B117: DB 45 | C117: 6000 | D117: Płycinowe | E117: Classic Plus | F117: Piaskowane refleks | G117: DB 45Piaskowane refleks
A118: 47 | B118: DB 47 | C118: 5700 | D118: Płycinowe | E118: Classic Plus | F118: Przezierne | G118: DB 47Przezierne
A119: 47 | B119: DB 47 | C119: 5700 | D119: Płycinowe | E119: Classic Plus | F119: Brąz refleks | G119: DB 47Brąz refleks
A120: 47 | B120: DB 47 | C120: 5800 | D120: Płycinowe | E120: Classic Plus | F120: Grafit refleks | G120: DB 47Grafit refleks
A121: 47 | B121: DB 47 | C121: 5800 | D121: Płycinowe | E121: Classic Plus | F121: Lustro weneckie | G121: DB 47Lustro weneckie
A122: 47 | B122: DB 47 | C122: 6000 | D122: Płycinowe | E122: Classic Plus | F122: Mleczne | G122: DB 47Mleczne
A123: 51 | B123: DB 51 | C123: 5300 | D123: Płycinowe | E123: Classic Plus | F123: Przezierne | G123: DB 51Przezierne
A124: 51 | B124: DB 51 | C124: 5300 | D124: Płycinowe | E124: Classic Plus | F124: Brąz refleks | G124: DB 51Brąz refleks
A125: 51 | B125: DB 51 | C125: 5400 | D125: Płycinowe | E125: Classic Plus | F125: Grafit refleks | G125: DB 51Grafit refleks
A126: 51 | B126: DB 51 | C126: 5400 | D126: Płycinowe | E126: Classic Plus | F126: Lustro weneckie | G126: DB 51Lustro weneckie
A127: 51 | B127: DB 51 | C127: 5600 | D127: Płycinowe | E127: Classic Plus | F127: Mleczne | G127: DB 51Mleczne
A128: 52 | B128: DB 52a | C128: 5300 | D128: Płycinowe | E128: Classic Plus | F128: Brąz refleks | G128: DB 52aBrąz refleks
A129: 52 | B129: DB 52a | C129: 5400 | D129: Płycinowe | E129: Classic Plus | F129: Grafit refleks | G129: =B129&F129 -> DB 52aGrafit refleks
A130: 52 | B130: DB 52a | C130: 5400 | D130: Płycinowe | E130: Classic Plus | F130: Lustro weneckie | G130: DB 52aLustro weneckie
A131: 52 | B131: DB 52a | C131: 5600 | D131: Płycinowe | E131: Classic Plus | F131: Mleczne | G131: DB 52aMleczne
A132: 55 | B132: DB 55 | C132: 5700 | D132: Płycinowe | E132: Classic | F132: Przezierne | G132: DB 55Przezierne
A133: 55 | B133: DB 55 | C133: 5700 | D133: Płycinowe | E133: Classic | F133: Brąz refleks | G133: DB 55Brąz refleks
A134: 55 | B134: DB 55 | C134: 5800 | D134: Płycinowe | E134: Classic | F134: Grafit refleks | G134: DB 55Grafit refleks
A135: 55 | B135: DB 55 | C135: 5800 | D135: Płycinowe | E135: Classic | F135: Lustro weneckie | G135: DB 55Lustro weneckie
A136: 55 | B136: DB 55 | C136: 6000 | D136: Płycinowe | E136: Classic | F136: Mleczne | G136: DB 55Mleczne
A137: 56 | B137: DB 56 | C137: 5300 | D137: Płycinowe | E137: Classic | F137: Brak (pełne) | G137: DB 56Brak (pełne)
A138: 56 | B138: DB 56a | C138: 5300 | D138: Płycinowe | E138: Classic | F138: Brak (pełne) | G138: DB 56aBrak (pełne)
A139: 57 | B139: DB 57 | C139: 5700 | D139: Płycinowe | E139: Classic | F139: Przezierne | G139: DB 57Przezierne
A140: 57 | B140: DB 57 | C140: 5700 | D140: Płycinowe | E140: Classic | F140: Brąz refleks | G140: DB 57Brąz refleks
A141: 57 | B141: DB 57 | C141: 5800 | D141: Płycinowe | E141: Classic | F141: Grafit refleks | G141: DB 57Grafit refleks
A142: 57 | B142: DB 57 | C142: 5800 | D142: Płycinowe | E142: Classic | F142: Lustro weneckie | G142: DB 57Lustro weneckie
A143: 57 | B143: DB 57 | C143: 6000 | D143: Płycinowe | E143: Classic | F143: Mleczne | G143: DB 57Mleczne
A144: 57 | B144: DB 57 | C144: 6000 | D144: Płycinowe | E144: Classic | F144: Piaskowane refleks | G144: DB 57Piaskowane refleks
A145: 57 | B145: DB 57 | C145: 6000 | D145: Płycinowe | E145: Classic | F145: Brąz refleks wypukły | G145: DB 57Brąz refleks wypukły
A146: 57 | B146: DB 57 | C146: 6600 | D146: Płycinowe | E146: Classic | F146: Witraz | G146: DB 57Witraz
A147: 59 | B147: DB 59 | C147: 5700 | D147: Płycinowe | E147: Classic | F147: Przezierne | G147: DB 59Przezierne
A148: 59 | B148: DB 59 | C148: 5700 | D148: Płycinowe | E148: Classic | F148: Brąz refleks | G148: DB 59Brąz refleks
A149: 59 | B149: DB 59 | C149: 5800 | D149: Płycinowe | E149: Classic | F149: Grafit refleks | G149: DB 59Grafit refleks
A150: 59 | B150: DB 59 | C150: 5800 | D150: Płycinowe | E150: Classic | F150: Lustro weneckie | G150: DB 59Lustro weneckie
A151: 59 | B151: DB 59 | C151: 6000 | D151: Płycinowe | E151: Classic | F151: Mleczne | G151: DB 59Mleczne
A152: 59 | B152: DB 59a | C152: 5700 | D152: Płycinowe | E152: Classic | F152: Przezierne | G152: DB 59aPrzezierne
A153: 59 | B153: DB 59a | C153: 5700 | D153: Płycinowe | E153: Classic | F153: Brąz refleks | G153: DB 59aBrąz refleks
A154: 59 | B154: DB 59a | C154: 5800 | D154: Płycinowe | E154: Classic | F154: Grafit refleks | G154: DB 59aGrafit refleks
A155: 59 | B155: DB 59a | C155: 5800 | D155: Płycinowe | E155: Classic | F155: Lustro weneckie | G155: DB 59aLustro weneckie
A156: 59 | B156: DB 59a | C156: 6000 | D156: Płycinowe | E156: Classic | F156: Mleczne | G156: DB 59aMleczne
A157: 60 | B157: DB 60 | C157: 5700 | D157: Płycinowe | E157: Classic | F157: Przezierne | G157: DB 60Przezierne
A158: 60 | B158: DB 60 | C158: 5700 | D158: Płycinowe | E158: Classic | F158: Brąz refleks | G158: DB 60Brąz refleks
A159: 60 | B159: DB 60 | C159: 5800 | D159: Płycinowe | E159: Classic | F159: Grafit refleks | G159: DB 60Grafit refleks
A160: 60 | B160: DB 60 | C160: 5800 | D160: Płycinowe | E160: Classic | F160: Lustro weneckie | G160: DB 60Lustro weneckie
A161: 60 | B161: DB 60 | C161: 6000 | D161: Płycinowe | E161: Classic | F161: Mleczne | G161: DB 60Mleczne
A162: 61 | B162: DB 61a | C162: 5700 | D162: Płycinowe | E162: Classic | F162: Brak (pełne) | G162: DB 61aBrak (pełne)
A163: 62 | B163: DB 62a | C163: 5300 | D163: Płycinowe | E163: Classic | F163: Brak (pełne) | G163: DB 62aBrak (pełne)
A164: 63 | B164: DB 63 | C164: 5300 | D164: Płycinowe | E164: Classic | F164: Brak (pełne) | G164: DB 63Brak (pełne)
A165: 63 | B165: DB 63a | C165: 5300 | D165: Płycinowe | E165: Classic | F165: Brak (pełne) | G165: DB 63aBrak (pełne)
A166: 65 | B166: DB 65 | C166: 5700 | D166: Płycinowe | E166: Classic | F166: Przezierne | G166: DB 65Przezierne
A167: 65 | B167: DB 65 | C167: 5700 | D167: Płycinowe | E167: Classic | F167: Brąz refleks | G167: DB 65Brąz refleks
A168: 65 | B168: DB 65 | C168: 5800 | D168: Płycinowe | E168: Classic | F168: Grafit refleks | G168: DB 65Grafit refleks
A169: 65 | B169: DB 65 | C169: 5800 | D169: Płycinowe | E169: Classic | F169: Lustro weneckie | G169: DB 65Lustro weneckie
A170: 65 | B170: DB 65 | C170: 6000 | D170: Płycinowe | E170: Classic | F170: Mleczne | G170: DB 65Mleczne
A171: 66 | B171: DB 66a | C171: 5700 | D171: Płycinowe | E171: Classic | F171: Brak (pełne) | G171: DB 66aBrak (pełne)
A172: 67 | B172: DB 67 | C172: 5700 | D172: Płycinowe | E172: Classic | F172: Przezierne | G172: DB 67Przezierne
A173: 67 | B173: DB 67 | C173: 5700 | D173: Płycinowe | E173: Classic | F173: Brąz refleks | G173: DB 67Brąz refleks
A174: 67 | B174: DB 67 | C174: 5800 | D174: Płycinowe | E174: Classic | F174: Grafit refleks | G174: DB 67Grafit refleks
A175: 67 | B175: DB 67 | C175: 5800 | D175: Płycinowe | E175: Classic | F175: Lustro weneckie | G175: DB 67Lustro weneckie
A176: 67 | B176: DB 67 | C176: 6000 | D176: Płycinowe | E176: Classic | F176: Mleczne | G176: DB 67Mleczne
A177: 68 | B177: DB 68a | C177: 5700 | D177: Płycinowe | E177: Classic | F177: Brak (pełne) | G177: DB 68aBrak (pełne)
A178: 69 | B178: DB 69 | C178: 5700 | D178: Płycinowe | E178: Classic | F178: Przezierne | G178: DB 69Przezierne
A179: 69 | B179: DB 69 | C179: 5700 | D179: Płycinowe | E179: Classic | F179: Brąz refleks | G179: DB 69Brąz refleks
A180: 69 | B180: DB 69 | C180: 5800 | D180: Płycinowe | E180: Classic | F180: Grafit refleks | G180: DB 69Grafit refleks
A181: 69 | B181: DB 69 | C181: 5800 | D181: Płycinowe | E181: Classic | F181: Lustro weneckie | G181: DB 69Lustro weneckie
A182: 69 | B182: DB 69 | C182: 6000 | D182: Płycinowe | E182: Classic | F182: Mleczne | G182: DB 69Mleczne
A183: 70 | B183: DB 70 | C183: 5700 | D183: Płycinowe | E183: Classic | F183: Przezierne | G183: DB 70Przezierne
A184: 70 | B184: DB 70 | C184: 5700 | D184: Płycinowe | E184: Classic | F184: Brąz refleks | G184: DB 70Brąz refleks
A185: 70 | B185: DB 70 | C185: 5800 | D185: Płycinowe | E185: Classic | F185: Grafit refleks | G185: =B185&F185 -> DB 70Grafit refleks
A186: 70 | B186: DB 70 | C186: 5800 | D186: Płycinowe | E186: Classic | F186: Lustro weneckie | G186: DB 70Lustro weneckie
A187: 70 | B187: DB 70 | C187: 6000 | D187: Płycinowe | E187: Classic | F187: Mleczne | G187: DB 70Mleczne
A188: 71 | B188: DB 71a | C188: 5700 | D188: Płycinowe | E188: Classic | F188: Przezierne | G188: DB 71aPrzezierne
A189: 71 | B189: DB 71a | C189: 5700 | D189: Płycinowe | E189: Classic | F189: Brąz refleks | G189: DB 71aBrąz refleks
A190: 71 | B190: DB 71a | C190: 5800 | D190: Płycinowe | E190: Classic | F190: Grafit refleks | G190: DB 71aGrafit refleks
A191: 71 | B191: DB 71a | C191: 5800 | D191: Płycinowe | E191: Classic | F191: Lustro weneckie | G191: DB 71aLustro weneckie
A192: 71 | B192: DB 71a | C192: 6000 | D192: Płycinowe | E192: Classic | F192: Mleczne | G192: DB 71aMleczne
A193: 71 | B193: DB 71a | C193: 6000 | D193: Płycinowe | E193: Classic | F193: Piaskowane refleks | G193: DB 71aPiaskowane refleks
A194: 72 | B194: DB 72a | C194: 5700 | D194: Płycinowe | E194: Classic | F194: Przezierne | G194: DB 72aPrzezierne
A195: 72 | B195: DB 72a | C195: 5700 | D195: Płycinowe | E195: Classic | F195: Brąz refleks | G195: DB 72aBrąz refleks
A196: 72 | B196: DB 72a | C196: 5800 | D196: Płycinowe | E196: Classic | F196: Grafit refleks | G196: DB 72aGrafit refleks
A197: 72 | B197: DB 72a | C197: 5800 | D197: Płycinowe | E197: Classic | F197: Lustro weneckie | G197: DB 72aLustro weneckie
A198: 72 | B198: DB 72a | C198: 6000 | D198: Płycinowe | E198: Classic | F198: Mleczne | G198: DB 72aMleczne
A199: 73 | B199: DB 73 | C199: 5300 | D199: Płycinowe | E199: Classic | F199: Brak (pełne) | G199: DB 73Brak (pełne)
A200: 74 | B200: DB 74 | C200: 5800 | D200: Płycinowe | E200: Modern Inox | F200: Przezierne | G200: DB 74Przezierne | H200: 200
... 543 more rows

Sheet Mapping (hidden)
A1: Modele | M1: Szklenie | Q1: Wykończenie | V1: Ilość kolorów | Y1: Kolor | AE1: Inox dustronny | AI1: Rodzaj kamienia | AM1: Przylgowość | AR1: Grubosc | AX1: Szerokość i dostawki | BD1: Wysokość i naświetla | BK1: Kierunek otwierania | BO1: Dostawki | BU1: Naświetle | CJ1: Ościeżnica rodzaj | CO1: Aplikacja Retro | CW1: Grubość górna standard [cm] | DE1: Grubość boczna ościeżnicy | DQ1: Szerokość ościeznicy cm | DW1: Obróbki | DY1: Opaska wewnętrzna | EB1: Opaska zewnętrzna | EG1: Listwa maskująca | EJ1: Ćwierćwałek | EM1: Skrzydło szerokość (tu będzie można wpisać swój wymiar) | ES1: Skrzydło wysokość (tu będzie można wpisać swój wymiar) | EY1: Dostawki cena | FE1: Szklenie dostawkach | FN1: pola szkła | FW1: Okucia | GD1: 1 | GE1: 2 | GF1: 3 | GG1: 4 | GH1: 5 | GI1: 6 | HF1: Szyba P4 | HM1: PROGI | HS1: Adapter | HW1: Okapnik/Kopniak | IE1: Wizjer | IH1: Samozamykacz | IK1: Kołatka | IN1: Piaskowanie numery na szkle | IQ1: Kontrakton | IT1: Zestaw pielęgnacyjny | IW1: Rabat | IY1: Montaż | JA1: VAT | JC1: Kolor zawiasów
A2: lista | B2: dostawka w ościeżnicy nowoczesna pełna - minimalna szerokość | C2: dostawka w ościeżnicy nowoczesna szklana - minimalna szerokość | D2: dostawka w ościeżnicy tradycyjna pełna - minimalna szerokość | E2: dostawka w ościeżnicy tradycyjna szklana - minimalna szerokość | F2: dostawka w imitacji skrzydła stała pełna - minimalna szerokość | G2: dostawka w imitacji skrzydła stała szklana - minimalna szerokość | H2: dostawka w imitacji skrzydła ruchoma pełna - minimalna szerokość | I2: dostawka w imitacji skrzydła ruchoma szklana - minimalna szerokość | J2: Mapping | K2: Mapping na pełne | M2: funkcja | N2: cena | O2: mapping | Q2: lista | R2: cena | S2: funkcja po konstrukcji | T2: mapping | V2: lista | W2: cena | Y2: lista | Z2: cena | AA2: funkcja po konstrukcji | AB2: funkcja po wykończeniu | AC2: mapping | AE2: lista | AF2: cena | AG2: mapping | AI2: lista | AJ2: cena | AK2: mapping | AM2: lista | AN2: funkcja po konstrukcji | AO2: cena | AP2: mapping | AR2: lista | AS2: funkcja po konstrukcji | AT2: funkcja po ościeżnicy | AU2: cena | AV2: mapping | AX2: szerokość | AY2: 102 dostawka | AZ2: 106 dostawka | BA2: dostawki po grubości | BB2: dostawki mapping | BD2: wysokosc | BE2: 102 naswietle | BF2: 106 naswietle | BG2: naswietle po grubosci | BH2: naswietle mapping | BK2: lista | BL2: funkcja po ościeżnicy | BM2: mapping | BO2: lista | BP2: funkcja po konstrukcji | BQ2: fukcja po linii (Kamień bez imitacji skrzydła) | BR2: funkcja po ościeżnicy (bezprzylgowa glass) | BS2: mapping | BU2: lista | BV2: cena bez szkła | BW2: wysokość naświetla | BX2: dopłata do wysokości | BY2: funkcja po ościeżnicy | BZ2: mapping | CA2: szkło naświetle | CB2: dopłata bazowa | CC2: cena finalna | CD2: szklenie po rodzaju naświetla | CE2: szklenie po opcji szklenia | CF2: maping szklenie | CG2: pola szkła | CJ2: lista | CK2: cena | CL2: funckja po ościeżnicy | CM2: mapping | CO2: lista | CP2: cena | CQ2: funkcja po krosnowej | CR2: funkcja po ościeżnicy | CS2: funkcja po dostawkach | CT2: funkcja po naświetlu | CU2: mapping | CW2: vlookup rodzaj | CX2: grubość | CY2: vlookup ościeżnicy | CZ2: funkcja po grubosci | DA2: lista wybór | DB2: funkcja po warunku minimum | DC2: mapping | DE2: vlookup rodzaj | DF2: grubość | DG2: vlookup ościeżnicy | DH2: funkcja po grubosci ościeżnicy od zawias | DI2: funkcja po grubosci ościeżnicy od zamka | DK2: lista wybór | DL2: funkcja po warunku minimum od zawias | DM2: mapping od zawias | DN2: funkcja po warunku minimum od zamka | DO2: mapping od zamka | DQ2: vlookup rodzaj | DR2: szerokość | DS2: lista wybór | DT2: funkcja po warunku minimum | DU2: mapping | DW2: lista wybór | DY2: lista | DZ2: cena | EB2: lista | EC2: cena | ED2: funkcja po ościeżnicy | EE2: mapping | EG2: lista | EH2: cena | EJ2: lista | EK2: cena | EM2: lista | EN2: pod wymiar | EO2: cena | EP2: funkcja po dostawce | EQ2: mapping | ES2: lista | ET2: pod wymiar | EU2: cena | EV2: funkcja po naświetlu | EW2: mapping | EY2: szerokość | EZ2: pod wymiar | FA2: procenty od zawias | FB2: procenty od zamka | FC2: naświetle | FD2: wylicznie pod naświetla | FE2: lista | FF2: dopłata szklenie | FG2: opcje szklenia po rodzaju dostawki dostawka od zawias | FH2: opcje jeśli w ogóle jest jakaś dostawka od zawias | FI2: mapping od zawias | FJ2: opcje szklenia po rodzaju dostawki dostawka od zamka | FK2: opcje jeśli w ogóle jest jakaś dostawka od zamka | FL2: mapping od zamka | FN2: ilość za free | FO2: lista | FP2: funkcja po wyborze od zawias | FQ2: mapping od zawias | FR2: fukca po wyborze od zamka | FS2: mapping od zamka | FT2: funkcja po naświetlu | FU2: mapping po naświetlu | FW2: Specjalny zestaw lista | FX2: cena | FY2: Zamek po zestawie | FZ2: zamek mapping | GA2: Okucie zewnętrzne lista | GB2: Cena | GC2: Okucia po konstrukcji | GD2: Brak (standard) | GE2: Zestaw elektronik z zamkiem ryglowym | GF2: Zestaw elektronik z zamkiem automatycznym | GG2: Zestaw z pochwytem na styl amerykański | GH2: Zestaw antywłamaniowy RC2 | GI2: Wszystkie czytniki | GJ2: Okucia po zestawie | GK2: Numeracja pomocnicza | GL2: Mapping okucia | GM2: Tabela okucia a kolor (1/2) | GN2: Tabela okucia a kolor (2/2) | GO2: Kolor okucia funkcja | GP2: Kolor okucia mapping | GQ2: Długość antaby | GR2: Długość mapping | GS2: Wkładki lista | GT2: Cena wkładki | GU2: Wkładki po zestawie | GV2: Wkładka mapping | GW2: Zapadka | GX2: Cena | GY2: funkcja po zapadce | GZ2: po okuciu (dla klamek nie) | HA2: mapping zapadka | HB2: Listwa zaczepowa | HC2: cena | HD2: mapping listwa | HF2: lista opcji | HG2: Cena podstawowa | HH2: Cena po uwzględniu RC2 | HI2: funkcja po skrzydle (czy pełne czy nie) | HJ2: funkcja po konstrukcji | HK2: mapping P4 | HM2: lista | HN2: cena bazowa | HO2: cena pod dostawkach | HP2: funkcja po kierunku otwierania | HQ2: mapping progi | HS2: lista | HT2: Cena bazowa | HU2: Cena po dostawkach | HW2: Według ilości dostawek | HX2: Cena bezowa okapnik | HY2: Cena po konstrucji okapnik | HZ2: cena bazowa kopniak | IA2: cena po konstrukcji kopniak | IB2: funkcja po konstrukcji | IC2: mapping okapnik/kopniak | IE2: lista | IF2: Cena | IH2: lista | II2: cena | IK2: lista | IL2: cena | IN2: lista | IO2: cena | IQ2: lista | IR2: cena | IT2: lista | IU2: cena | IW2: lista | IY2: lista | JA2: lista | JC2: Kolor zawiasów | JD2: Kolor po przylgowości | JE2: Cena | JF2: Mapping
A3: DB 01 | B3: 20 | C3: 20 | D3: 20 | E3: 20 | F3: 44 | G3: 44 | H3: 44 | I3: 44 | J3: W ościeżnicy nowoczesna | K3: 2 | M3: =IFERROR(VLOOKUP(Wycena!$C$5,OFFSET(SKU!$B$1,MATCH(Wycena!$C$5,SKU!$B$1:$B$743,0)-1,0,1000,6),5,0),"") ->  | N3: =IFERROR(VLOOKUP(Wycena!$C$5,OFFSET(SKU!$B$1,MATCH(Wycena!$C$5,SKU!$B$1:$B$743,0)-1,0,1000,6),2,0)-VLOOKUP(Wycena!$C$5,SKU!$B$1:$C$743,2,0),"") ->  | O3: =IF(ROWS($M$3:M3)>(ROWS($M$3:$M$10)-COUNTBLANK($M$3:$M$10)),"",INDEX($M$3:$M$10,SMALL(IF($M$3:$M$10<>"",ROW($M$3:$M$10)-2),ROWS($M$3:M3)))) ->  | Q3: Dab prosty podluzny | R3: 0 | S3: Dab prosty podluzny | T3: =IF(ROWS($S$3:S3)>(ROWS($S$3:$S$8)-COUNTBLANK($S$3:$S$8)),"",INDEX($S$3:$S$8,SMALL(IF($S$3:$S$8<>"",ROW($S$3:$S$8)-2),ROWS($S$3:S3)))) ->  | V3: Jeden (standard) | W3: 0 | Y3: Afromozja | Z3: 0 | AA3: =Y3 -> Afromozja | AB3: =IF((VLOOKUP(Wycena!$C$7,Mapping!$Q$15:$R$20,2,0))="tak","",AA3) -> Afromozja | AC3: =IF(ROWS($AB$3:AB3)>(ROWS($AB$3:$AB$229)-COUNTBLANK($AB$3:$AB$229)),"",INDEX($AB$3:$AB$229,SMALL(IF($AB$3:$AB$229<>"",ROW($AB$3:$AB$229)-2),ROWS($AB$3:AB3)))) ->  | AE3: =IF(VLOOKUP(Wycena!C5,SKU!$B$1:$H$743,7,0)>0,"Tak","") ->  | AF3: =IF(AE3="Tak",VLOOKUP(Wycena!$C$5,SKU!$B$1:$H$743,7,0),0) ->  | AG3: =IF(ROWS($AE$3:AE3)>(ROWS($AE$3:$AE$4)-COUNTBLANK($AE$3:$AE$4)),"",INDEX($AE$3:$AE$4,SMALL(IF($AE$3:$AE$4<>"",ROW($AE$3:$AE$4)-2),ROWS($AE$3:AE3)))) ->  | AI3: =IF(VLOOKUP(Wycena!$C$5,SKU!$B$1:$I$743,8,0)>0,"Brąz rdzawy","-") ->  | AJ3: =VLOOKUP(Wycena!$C$5,SKU!$B$1:$I$743,8,0) ->  | AK3: =IF(ROWS($AI$3:AI3)>(ROWS($AI$3:$AI$7)-COUNTBLANK($AI$3:$AI$7)),"",INDEX($AI$3:$AI$7,SMALL(IF($AI$3:$AI$7<>"",ROW($AI$3:$AI$7)-2),ROWS($AI$3:AI3)))) ->  | AM3: Przylgowe | AN3: Przylgowe | AO3: 0 | AP3: =IF(ROWS($AN$3:AN3)>(ROWS($AN$3:$AN$5)-COUNTBLANK($AN$3:$AN$5)),"",INDEX($AN$3:$AN$5,SMALL(IF($AN$3:$AN$5<>"",ROW($AN$3:$AN$5)-2),ROWS($AN$3:AN3)))) ->  | AR3: 78 | AS3: 78 | AT3: =IF(Wycena!C14="Przylgowe",Mapping!AS3,"") -> 78 | AU3: 0 | AV3: =IF(ROWS($AT$3:AT3)>(ROWS($AT$3:$AT$5)-COUNTBLANK($AT$3:$AT$5)),"",INDEX($AT$3:$AT$5,SMALL(IF($AT$3:$AT$5<>"",ROW($AT$3:$AT$5)-2),ROWS($AT$3:AT3)))) -> 78 | AX3: 72 | AY3: 0 | AZ3: 0 | BA3: =IF(Wycena!$C$16=78,Mapping!AY3,AZ3) -> 0 | BB3: 0 | BD3: 180 | BE3: 0 | BF3: 0 | BG3: =IF(Wycena!$C$16=78,Mapping!BE3,BF3) -> 0 | BH3: 0 | BK3: Lewe na zewnątrz | BL3: Lewe na zewnątrz | BM3: =IF(ROWS($BL$3:BL3)>(ROWS($BL$3:$BL$6)-COUNTBLANK($BL$3:$BL$6)),"",INDEX($BL$3:$BL$6,SMALL(IF($BL$3:$BL$6<>"",ROW($BL$3:$BL$6)-2),ROWS($BL$3:BL3)))) -> Lewe na zewnątrz | BO3: - | BP3: - | BQ3: - | BR3: - | BS3: =IF(ROWS($BR$3:BR3)>(ROWS($BR$3:$BR$8)-COUNTBLANK($BR$3:$BR$8)),"",INDEX($BR$3:$BR$8,SMALL(IF($BR$3:$BR$8<>"",ROW($BR$3:$BR$8)-2),ROWS($BR$3:BR3)))) ->  | BU3: - | BV3: 0 | BW3: 0 | BX3: 0 | BY3: - | BZ3: =IF(ROWS($BY$3:BY3)>(ROWS($BY$3:$BY$6)-COUNTBLANK($BY$3:$BY$6)),"",INDEX($BY$3:$BY$6,SMALL(IF($BY$3:$BY$6<>"",ROW($BY$3:$BY$6)-2),ROWS($BY$3:BY3)))) -> - | CA3: Brak (pełne) | CB3: 0 | CC3: =CB3*(1+IFERROR(VLOOKUP(Wycena!$C$45,Mapping!$EZ$3:$FC$6,4,1),0)+IFERROR(VLOOKUP(Wycena!$C$49,Mapping!$EZ$3:$FC$6,4,1),0))*(1+VLOOKUP(Wycena!$C$54,Mapping!$BW$3:$BX$6,2,1)) ->  | CD3: Brak (pełne) | CE3: =IF(Wycena!$C$22="-","-",CD3) -> - | CF3: =IF(ROWS($CE$3:CE3)>(ROWS($CE$3:$CE$13)-COUNTBLANK($CE$3:$CE$13)),"",INDEX($CE$3:$CE$13,SMALL(IF($CE$3:$CE$13<>"",ROW($CE$3:$CE$13)-2),ROWS($CE$3:CE3)))) -> - | CJ3: Standardowa | CK3: 0 | CL3: Standardowa | CM3: =IF(ROWS($CL$3:CL3)>(ROWS($CL$3:$CL$4)-COUNTBLANK($CL$3:$CL$4)),"",INDEX($CL$3:$CL$4,SMALL(IF($CL$3:$CL$4<>"",ROW($CL$3:$CL$4)-2),ROWS($CL$3:CL3)))) -> Standardowa | CO3: - | CP3: 0 | CQ3: - | CR3: - | CS3: - | CT3: - | CU3: =IF(ROWS($CT$3:CT3)>(ROWS($CT$3:$CT$11)-COUNTBLANK($CT$3:$CT$11)),"",INDEX($CT$3:$CT$11,SMALL(IF($CT$3:$CT$11<>"",ROW($CT$3:$CT$11)-2),ROWS($CT$3:CT3)))) -> - | CW3: standardowa | CX3: 6 | CY3: Przylgowe | CZ3: =VLOOKUP(Wycena!$C$25,Mapping!$CW$3:$CX$4,2,0) -> 6 | DA3: 6 | DB3: =IF(DA3>=VLOOKUP(Wycena!$C$14,Mapping!$CY$3:$CZ$5,2,0),DA3,"") -> 6 | DC3: =IF(ROWS($DB$3:DB3)>(ROWS($DB$3:$DB$28)-COUNTBLANK($DB$3:$DB$28)),"",INDEX($DB$3:$DB$28,SMALL(IF($DB$3:$DB$28<>"",ROW($DB$3:$DB$28)-2),ROWS($DB$3:DB3)))) -> 6 | DE3: standardowa | DF3: 6 | DG3: Przylgowe | DH3: =IF(OR(Wycena!$C$20="-",Wycena!$C$20="Imitacja skrzydła ruchoma"),(MAX((IFERROR(VLOOKUP(Wycena!C5,Mapping!$DG$21:$DH$23,2,0),0)),(VLOOKUP(Wycena!$C$25,Mapping!$CW$3:$CX$4,2,0)+VLOOKUP(Wycena!C26,$CO$16:$CS$25,IF(AND(Wycena!C20="-",Wycena!C21="-"),2,IF(AND(Wycena!C20<>"-",Wycena!C21="-"),3,IF(AND(Wycena!C20="-",Wycena!C21<>"-"),4,5))),0)))),(VLOOKUP(Wycena!$C$25,Mapping!$CW$3:$CX$4,2,0)+VLOOKUP(Wycena!C26,$CO$16:$CS$25,IF(AND(Wycena!C20="-",Wycena!C21="-"),2,IF(AND(Wycena!C20<>"-",Wycena!C21="-"),3,IF(AND(Wycena!C20="-",Wycena!C21<>"-"),4,5))),0))) -> 6 | DI3: =IF(Wycena!$C$21="Imitacja skrzydła ruchoma",(MAX((IFERROR(VLOOKUP(Wycena!C5,Mapping!$DG$21:$DH$23,2,0),0)),(VLOOKUP(Wycena!$C$25,Mapping!$CW$3:$CX$4,2,0)+VLOOKUP(Wycena!C26,$CO$28:$CS$37,IF(AND(Wycena!C20="-",Wycena!C21="-"),2,IF(AND(Wycena!C20<>"-",Wycena!C21="-"),3,IF(AND(Wycena!C20="-",Wycena!C21<>"-"),4,5))),0)))),(VLOOKUP(Wycena!$C$25,Mapping!$CW$3:$CX$4,2,0)+VLOOKUP(Wycena!C26,$CO$28:$CS$37,IF(AND(Wycena!C20="-",Wycena!C21="-"),2,IF(AND(Wycena!C20<>"-",Wycena!C21="-"),3,IF(AND(Wycena!C20="-",Wycena!C21<>"-"),4,5))),0))) -> 6 | DK3: 6 | DL3: =IF(DK3>=VLOOKUP(Wycena!$C$14,Mapping!$DG$3:$DH$5,2,0),DK3,"") -> 6 | DM3: =IF(ROWS($DL$3:DL3)>(ROWS($DL$3:$DL$28)-COUNTBLANK($DL$3:$DL$28)),"",INDEX($DL$3:$DL$28,SMALL(IF($DL$3:$DL$28<>"",ROW($DL$3:$DL$28)-2),ROWS($DL$3:DL3)))) -> 6 | DN3: =IF(DK3>=VLOOKUP(Wycena!$C$14,Mapping!$DG$3:$DI$5,3,0),DK3,"") -> 6 | DO3: =IF(ROWS($DN$3:DN3)>(ROWS($DN$3:$DN$28)-COUNTBLANK($DN$3:$DN$28)),"",INDEX($DN$3:$DN$28,SMALL(IF($DN$3:$DN$28<>"",ROW($DN$3:$DN$28)-2),ROWS($DN$3:DN3)))) -> 6 | DQ3: standardowa | DR3: 10.5 | DS3: 6 | DT3: =IF(DS3>=VLOOKUP(Wycena!$C$25,Mapping!$DQ$3:$DR$4,2,0),DS3,"") ->  | DU3: =IF(ROWS($DT$3:DT3)>(ROWS($DT$3:$DT$28)-COUNTBLANK($DT$3:$DT$28)),"",INDEX($DT$3:$DT$28,SMALL(IF($DT$3:$DT$28<>"",ROW($DT$3:$DT$28)-2),ROWS($DT$3:DT3)))) -> 10.5 | DW3: - | DY3: - | DZ3: 0 | EB3: - | EC3: 0 | ED3: - | EE3: =IF(ROWS($ED$3:ED3)>(ROWS($ED$3:$ED$4)-COUNTBLANK($ED$3:$ED$4)),"",INDEX($ED$3:$ED$4,SMALL(IF($ED$3:$ED$4<>"",ROW($ED$3:$ED$4)-2),ROWS($ED$3:ED3)))) -> - | EG3: - | EH3: 0 | EJ3: - | EK3: 0 | EM3: 80 | EN3: 60 | EO3: 0 | EP3: =IF(OR(Wycena!$C$20<>"-",Wycena!$C$21<>"-",),EM3,IF((Wycena!$C$17-Wycena!$C$28-Wycena!$C$29)>118,"-",(Wycena!$C$17-Wycena!$C$28-Wycena!$C$29))) -> 90 | EQ3: =IF(ROWS($EP$3:EP3)>(ROWS($EP$3:$EP$8)-COUNTBLANK($EP$3:$EP$8)),"",INDEX($EP$3:$EP$8,SMALL(IF($EP$3:$EP$8<>"",ROW($EP$3:$EP$8)-2),ROWS($EP$3:EP3)))) -> 90 | ES3: 204 | ET3: =180-VLOOKUP(Wycena!$C$14,Mapping!$CY$3:$CZ$5,2,0) -> 174 | EU3: 0 | EV3: =IF(AND(Wycena!$C$22<>"-",ES3<=Wycena!$C$18-Wycena!$C$27),ES3,Wycena!$C$18-Wycena!$C$27) -> 204 | EW3: =IF(ROWS($EV$3:EV3)>(ROWS($EV$3:$EV$8)-COUNTBLANK($EV$3:$EV$8)),"",INDEX($EV$3:$EV$8,SMALL(IF($EV$3:$EV$8<>"",ROW($EV$3:$EV$8)-2),ROWS($EV$3:EV3)))) -> 204 | EY3: 0 | EZ3: 0 | FA3: =50%+IF(Wycena!$C$20="Imitacja skrzydła ruchoma",0.1,0) -> 0.5 | FB3: =50%+IF(Wycena!$C$21="Imitacja skrzydła ruchoma",0.1,0) -> 0.5 | FC3: 0.5 | FD3: =IFERROR(VLOOKUP(Wycena!$C$45,Mapping!$EZ$3:$FC$6,4,1)+VLOOKUP(Wycena!$C$49,Mapping!$EZ$3:$FC$6,4,1),0) -> 0 | FE3: Brak (pełne) | FF3: 0 | FG3: Brak (pełne) | FH3: =IF(Wycena!$C$20="-","-",FG3) -> - | FI3: =IF(ROWS($FH$3:FH3)>(ROWS($FH$3:$FH$14)-COUNTBLANK($FH$3:$FH$14)),"",INDEX($FH$3:$FH$14,SMALL(IF($FH$3:$FH$14<>"",ROW($FH$3:$FH$14)-2),ROWS($FH$3:FH3)))) -> - | FJ3: Brak (pełne) | FK3: =IF(Wycena!$C$21="-","-",FJ3) -> - | FL3: =IF(ROWS($FK$3:FK3)>(ROWS($FK$3:$FK$14)-COUNTBLANK($FK$3:$FK$14)),"",INDEX($FK$3:$FK$14,SMALL(IF($FK$3:$FK$14<>"",ROW($FK$3:$FK$14)-2),ROWS($FK$3:FK3)))) -> - | FN3: 4 | FO3: - | FP3: - | FQ3: =IF(ROWS($FP$3:FP3)>(ROWS($FP$3:$FP$23)-COUNTBLANK($FP$3:$FP$23)),"",INDEX($FP$3:$FP$23,SMALL(IF($FP$3:$FP$23<>"",ROW($FP$3:$FP$23)-2),ROWS($FP$3:FP3)))) -> - | FR3: - | FS3: =IF(ROWS($FR$3:FR3)>(ROWS($FR$3:$FR$23)-COUNTBLANK($FR$3:$FR$23)),"",INDEX($FR$3:$FR$23,SMALL(IF($FR$3:$FR$23<>"",ROW($FR$3:$FR$23)-2),ROWS($FR$3:FR3)))) -> - | FT3: - | FU3: =IF(ROWS($FT$3:FT3)>(ROWS($FT$3:$FT$23)-COUNTBLANK($FT$3:$FT$23)),"",INDEX($FT$3:$FT$23,SMALL(IF($FT$3:$FT$23<>"",ROW($FT$3:$FT$23)-2),ROWS($FT$3:FT3)))) -> - | FW3: Brak (standard) | FX3: 0 | FY3: =IFERROR(VLOOKUP(Wycena!C59,OFFSET(FW15,MATCH(Wycena!C59,FW15:FW39,0)-1,0,15,2),2,0),"") -> Ryglowy 3-punktowy z gałką (standard) | FZ3: =IF(ROWS($FY$3:FY3)>(ROWS($FY$3:$FY$10)-COUNTBLANK($FY$3:$FY$10)),"",INDEX($FY$3:$FY$10,SMALL(IF($FY$3:$FY$10<>"",ROW($FY$3:$FY$10)-2),ROWS($FY$3:FY3)))) -> Ryglowy 3-punktowy z gałką (standard) | GA3: Klamka Medos Warszawa (standard) | GB3: 0 | GC3: Klamka Medos Warszawa (standard) | GD3: =GC3 -> Klamka Medos Warszawa (standard) | GJ3: =IF((HLOOKUP(VLOOKUP(Wycena!$C$59,Mapping!$GI$35:$GJ$43,2,0),$GD$1:$GI$33,2+GK3))=0,"",(HLOOKUP(VLOOKUP(Wycena!$C$59,Mapping!$GI$35:$GJ$43,2,0),$GD$1:$GI$33,2+GK3))) -> Klamka Medos Warszawa (standard) | GK3: 1 | GL3: =IF(ROWS($GJ$3:GJ3)>(ROWS($GJ$3:$GJ$33)-COUNTBLANK($GJ$3:$GJ$33)),"",INDEX($GJ$3:$GJ$33,SMALL(IF($GJ$3:$GJ$33<>"",ROW($GJ$3:$GJ$33)-2),ROWS($GJ$3:GJ3)))) ->  | GM3: Klamka Medos Warszawa (standard) | GN3: Inox | GO3: =IFERROR(VLOOKUP(Wycena!C61,OFFSET(GM2,MATCH(Wycena!C61,$GM$2:$GM$99,0)-1,0,100,2),2,0),"") ->  | GP3: =IF(ROWS($GO$3:GO3)>(ROWS($GO$3:$GO$6)-COUNTBLANK($GO$3:$GO$6)),"",INDEX($GO$3:$GO$6,SMALL(IF($GO$3:$GO$6<>"",ROW($GO$3:$GO$6)-2),ROWS($GO$3:GO3)))) ->  | GQ3: =IFERROR(IF(FIND("Antaba M",Wycena!$C$61)>0,50,"-"),"-") -> - | GR3: =IF(ROWS($GQ$3:GQ3)>(ROWS($GQ$3:$GQ$9)-COUNTBLANK($GQ$3:$GQ$9)),"",INDEX($GQ$3:$GQ$9,SMALL(IF($GQ$3:$GQ$9<>"",ROW($GQ$3:$GQ$9)-2),ROWS($GQ$3:GQ3)))) -> - | GS3: Standard satyna | GT3: 0 | GU3: =IF(OR(Wycena!$C$59=Mapping!$FW$7,Wycena!$C$59=Mapping!$FW$6),"",GS3) -> Standard satyna | GV3: =IF(ROWS($GU$3:GU3)>(ROWS($GU$3:$GU$8)-COUNTBLANK($GU$3:$GU$8)),"",INDEX($GU$3:$GU$8,SMALL(IF($GU$3:$GU$8<>"",ROW($GU$3:$GU$8)-2),ROWS($GU$3:GU3)))) -> Standard satyna | GW3: - | GY3: - | GZ3: - | HA3: =IF(ROWS($GZ$3:GZ3)>(ROWS($GZ$3:$GZ$5)-COUNTBLANK(GZ$3:$GZ$5)),"",INDEX(GZ$3:$GZ$5,SMALL(IF(GZ$3:$GZ$5<>"",ROW(GZ$3:$GZ$5)-2),ROWS($GZ$3:GZ3)))) -> - | HB3: =IF(Wycena!C59=Mapping!$HB$31,"","-") -> - | HC3: 0 | HD3: =IF(ROWS($HB$3:HB3)>(ROWS($HJ$3:$HJ$4)-COUNTBLANK($HB$3:$HB$4)),"",INDEX($HB$3:$HB$4,SMALL(IF($HB$3:$HB$4<>"",ROW($HB$3:$HB$4)-2),ROWS($HB$3:HB3)))) -> - | HJ3: =IF(Wycena!$C$59=Mapping!$HB$31,"","-") -> - | HK3: =IF(ROWS($HJ$3:HJ3)>(ROWS($HJ$3:$HJ$13)-COUNTBLANK($HJ$3:$HJ$13)),"",INDEX($HJ$3:$HJ$13,SMALL(IF($HJ$3:$HJ$13<>"",ROW($HJ$3:$HJ$13)-2),ROWS($HJ$3:HJ3)))) -> - | HM3: Aluminiowy (standard) | HN3: 0 | HO3: 0 | HP3: Aluminiowy (standard) | HQ3: =IF(ROWS($HP$3:HP3)>(ROWS($HP$3:$HP$5)-COUNTBLANK($HP$3:$HP$5)),"",INDEX($HP$3:$HP$5,SMALL(IF($HP$3:$HP$5<>"",ROW($HP$3:$HP$5)-2),ROWS($HP$3:HP3)))) -> Aluminiowy (standard) | HS3: - | HT3: 0 | HU3: 0 | HW3: - | HX3: 0 | HY3: 0 | HZ3: 0 | IA3: 0 | IB3: - | IC3: =IF(ROWS($IB$3:IB3)>(ROWS($IB$3:$IB$9)-COUNTBLANK($IB$3:$IB$9)),"",INDEX($IB$3:$IB$9,SMALL(IF($IB$3:$IB$9<>"",ROW($IB$3:$IB$9)-2),ROWS($IB$3:IB3)))) -> - | IE3: - | IF3: 0 | IH3: - | II3: 0 | IK3: - | IL3: 0 | IN3: - | IO3: 0 | IQ3: - | IR3: 0 | IT3: - | IU3: 0 | IW3: 0 | IY3: 100 | JA3: 0 | JC3: Inox | JD3: Inox | JE3: 0 | JF3: =IF(ROWS($JD$3:JD3)>(ROWS($JD$3:$JD$4)-COUNTBLANK($JD$3:$JD$4)),"",INDEX($JD$3:$JD$4,SMALL(IF($JD$3:$JD$4<>"",ROW($JD$3:$JD$4)-2),ROWS($JD$3:JD3)))) -> Inox
A4: DB 03 | B4: 20 | C4: 20 | D4: 20 | E4: 20 | F4: 34 | G4: 34 | H4: =F4+2 -> 36 | I4: =G4+2 -> 36 | J4: W ościeżnicy tradycyjna | K4: 4 | M4: =IFERROR(VLOOKUP(Wycena!$C$5,OFFSET(SKU!$B$1,MATCH(Wycena!$C$5,SKU!$B$1:$B$743,0),0,1000,6),5,0),"") ->  | N4: =IFERROR(VLOOKUP(Wycena!$C$5,OFFSET(SKU!$B$1,MATCH(Wycena!$C$5,SKU!$B$1:$B$743,0),0,1000,6),2,0)-VLOOKUP(Wycena!$C$5,SKU!$B$1:$C$743,2,0),"") ->  | O4: =IF(ROWS($M$3:M4)>(ROWS($M$3:$M$10)-COUNTBLANK($M$3:$M$10)),"",INDEX($M$3:$M$10,SMALL(IF($M$3:$M$10<>"",ROW($M$3:$M$10)-2),ROWS($M$3:M4)))) ->  | Q4: Dąb prosty poprzeczny | R4: 0 | S4: =IF(VLOOKUP(Wycena!$C$5,SKU!$B$1:$D$743,3,0)="Płytowe",Q4,"") ->  | T4: =IF(ROWS($S$3:S4)>(ROWS($S$3:$S$8)-COUNTBLANK($S$3:$S$8)),"",INDEX($S$3:$S$8,SMALL(IF($S$3:$S$8<>"",ROW($S$3:$S$8)-2),ROWS($S$3:S4)))) ->  | V4: Dwukolor ościeżnica (standard) | W4: 0 | Y4: Brunat | Z4: 0 | AA4: =Y4 -> Brunat | AB4: =IF((VLOOKUP(Wycena!$C$7,Mapping!$Q$15:$R$20,2,0))="tak","",AA4) -> Brunat | AC4: =IF(ROWS($AB$3:AB4)>(ROWS($AB$3:$AB$229)-COUNTBLANK($AB$3:$AB$229)),"",INDEX($AB$3:$AB$229,SMALL(IF($AB$3:$AB$229<>"",ROW($AB$3:$AB$229)-2),ROWS($AB$3:AB4)))) ->  | AE4: - | AG4: =IF(ROWS($AE$3:AE4)>(ROWS($AE$3:$AE$4)-COUNTBLANK($AE$3:$AE$4)),"",INDEX($AE$3:$AE$4,SMALL(IF($AE$3:$AE$4<>"",ROW($AE$3:$AE$4)-2),ROWS($AE$3:AE4)))) ->  | AI4: =IF(VLOOKUP(Wycena!$C$5,SKU!$B$1:$I$743,8,0)>0,"Szary piasek","") ->  | AJ4: =VLOOKUP(Wycena!$C$5,SKU!$B$1:$I$743,8,0) ->  | AK4: =IF(ROWS($AI$3:AI4)>(ROWS($AI$3:$AI$7)-COUNTBLANK($AI$3:$AI$7)),"",INDEX($AI$3:$AI$7,SMALL(IF($AI$3:$AI$7<>"",ROW($AI$3:$AI$7)-2),ROWS($AI$3:AI4)))) ->  | AM4: Bezprzylgowe | AN4: =IF(VLOOKUP(Wycena!$C$5,SKU!$B$1:$D$743,3,0)="Płytowe",AM4,"") ->  | AO4: =IFERROR(IF(Wycena!C42*1>214,2800,2400),2400)*(IF(Wycena!C20="Imitacja skrzydła ruchoma",1,0)+IF(Wycena!C21="Imitacja skrzydła ruchoma",1,0)+1) -> 2400 | AP4: =IF(ROWS($AN$3:AN4)>(ROWS($AN$3:$AN$5)-COUNTBLANK($AN$3:$AN$5)),"",INDEX($AN$3:$AN$5,SMALL(IF($AN$3:$AN$5<>"",ROW($AN$3:$AN$5)-2),ROWS($AN$3:AN4)))) ->  | AR4: 90 | AS4: =IF(VLOOKUP(Wycena!$C$5,SKU!$B$1:$D$743,3,0)="Płytowe",AR4,"") ->  | AT4: =IF(OR((Wycena!C14="Bezprzylgowe"),(Wycena!C14="Bezprzylgowe Glass")),Mapping!AS4,"") ->  | AU4: 0 | AV4: =IF(ROWS($AT$3:AT4)>(ROWS($AT$3:$AT$5)-COUNTBLANK($AT$3:$AT$5)),"",INDEX($AT$3:$AT$5,SMALL(IF($AT$3:$AT$5<>"",ROW($AT$3:$AT$5)-2),ROWS($AT$3:AT4)))) ->  | AX4: 73 | AY4: 0 | AZ4: 0 | BA4: =IF(Wycena!$C$16=78,Mapping!AY4,AZ4) -> 0 | BB4: 1 | BC4: Konieczna dostawka | BD4: 181 | BE4: 0 | BF4: 0 | BG4: =IF(Wycena!$C$16=78,Mapping!BE4,BF4) -> 0 | BH4: 1 | BI4: Konieczne naświetle | BK4: Lewe do wewnątrz | BL4: =IF(Wycena!$C$14="Bezprzylgowe Glass","",BK4) -> Lewe do wewnątrz | BM4: =IF(ROWS($BL$3:BL4)>(ROWS($BL$3:$BL$6)-COUNTBLANK($BL$3:$BL$6)),"",INDEX($BL$3:$BL$6,SMALL(IF($BL$3:$BL$6<>"",ROW($BL$3:$BL$6)-2),ROWS($BL$3:BL4)))) -> Lewe do wewnątrz | BO4: W ościeżnicy nowoczesna | BP4: W ościeżnicy nowoczesna | BQ4: =BP4 -> W ościeżnicy nowoczesna | BR4: =IF(Wycena!$C$14="Bezprzylgowe Glass","",BQ4) -> W ościeżnicy nowoczesna | BS4: =IF(ROWS($BR$3:BR4)>(ROWS($BR$3:$BR$8)-COUNTBLANK($BR$3:$BR$8)),"",INDEX($BR$3:$BR$8,SMALL(IF($BR$3:$BR$8<>"",ROW($BR$3:$BR$8)-2),ROWS($BR$3:BR4)))) ->  | BU4: W ościeżnicy | BV4: =((1200+IF(Wycena!$F$9<>0,200,0))*(1+IFERROR(VLOOKUP(Wycena!$C$45,Mapping!$EZ$3:$FC$6,4,1),0)+IFERROR(VLOOKUP(Wycena!$C$49,Mapping!$EZ$3:$FC$6,4,1),0))*(1+VLOOKUP(Wycena!$C$54,Mapping!$BW$3:$BX$6,2,1))) ->  | BW4: 50.0001 | BX4: 0.2 | BY4: =IF(Wycena!$C$14="Bezprzylgowe Glass","",BU4) -> W ościeżnicy | BZ4: =IF(ROWS($BY$3:BY4)>(ROWS($BY$3:$BY$6)-COUNTBLANK($BY$3:$BY$6)),"",INDEX($BY$3:$BY$6,SMALL(IF($BY$3:$BY$6<>"",ROW($BY$3:$BY$6)-2),ROWS($BY$3:BY4)))) -> W ościeżnicy | CA4: Brąz refleks | CB4: 0 | CC4: =CB4*(1+IFERROR(VLOOKUP(Wycena!$C$45,Mapping!$EZ$3:$FC$6,4,1),0)+IFERROR(VLOOKUP(Wycena!$C$49,Mapping!$EZ$3:$FC$6,4,1),0))*(1+VLOOKUP(Wycena!$C$54,Mapping!$BW$3:$BX$6,2,1)) ->  | CD4: Przezierne | CE4: =IF(Wycena!$C$22="-","",CD4) ->  | CF4: =IF(ROWS($CE$3:CE4)>(ROWS($CE$3:$CE$13)-COUNTBLANK($CE$3:$CE$13)),"",INDEX($CE$3:$CE$13,SMALL(IF($CE$3:$CE$13<>"",ROW($CE$3:$CE$13)-2),ROWS($CE$3:CE4)))) ->  | CJ4: Krosnowa | CK4: 300 | CL4: =IF(Wycena!$C$14="Przylgowe",CJ4,"") -> Krosnowa | CM4: =IF(ROWS($CL$3:CL4)>(ROWS($CL$3:$CL$4)-COUNTBLANK($CL$3:$CL$4)),"",INDEX($CL$3:$CL$4,SMALL(IF($CL$3:$CL$4<>"",ROW($CL$3:$CL$4)-2),ROWS($CL$3:CL4)))) -> Krosnowa | CO4: Przy skrzydle od zewnątrz | CP4: 1200 | CQ4: =IF(Wycena!$C$25="Krosnowa","",CO4) -> Przy skrzydle od zewnątrz | CR4: =IF(Wycena!$C$14="Bezprzylgowe Glass","",CQ4) -> Przy skrzydle od zewnątrz | CS4: =CR4 -> Przy skrzydle od zewnątrz | CT4: =CS4 -> Przy skrzydle od zewnątrz | CU4: =IF(ROWS($CT$3:CT4)>(ROWS($CT$3:$CT$11)-COUNTBLANK($CT$3:$CT$11)),"",INDEX($CT$3:$CT$11,SMALL(IF($CT$3:$CT$11<>"",ROW($CT$3:$CT$11)-2),ROWS($CT$3:CT4)))) -> Przy skrzydle od zewnątrz | CW4: krosnowa | CX4: 10.5 | CY4: Bezprzylgowe | CZ4: 8 | DA4: 7 | DB4: =IF(DA4>=VLOOKUP(Wycena!$C$14,Mapping!$CY$3:$CZ$5,2,0),DA4,"") -> 7 | DC4: =IF(ROWS($DB$3:DB4)>(ROWS($DB$3:$DB$28)-COUNTBLANK($DB$3:$DB$28)),"",INDEX($DB$3:$DB$28,SMALL(IF($DB$3:$DB$28<>"",ROW($DB$3:$DB$28)-2),ROWS($DB$3:DB4)))) -> 7 | DE4: krosnowa | DF4: 10.5 | DG4: Bezprzylgowe | DH4: =IF(OR(Wycena!$C$20="-",Wycena!$C$20="Imitacja skrzydła ruchoma"),(MAX((IFERROR(VLOOKUP(Wycena!C5,Mapping!$DG$21:$DH$23,2,0),0)),(8+VLOOKUP(Wycena!C26,$CO$16:$CS$25,IF(AND(Wycena!C20="-",Wycena!C21="-"),2,IF(AND(Wycena!C20<>"-",Wycena!C21="-"),3,IF(AND(Wycena!C20="-",Wycena!C21<>"-"),4,5))),0)))),(8+VLOOKUP(Wycena!C26,$CO$16:$CS$25,IF(AND(Wycena!C20="-",Wycena!C21="-"),2,IF(AND(Wycena!C20<>"-",Wycena!C21="-"),3,IF(AND(Wycena!C20="-",Wycena!C21<>"-"),4,5))),0))) -> 8 | DI4: =IF(Wycena!$C$21="Imitacja skrzydła ruchoma",(MAX((IFERROR(VLOOKUP(Wycena!C5,Mapping!$DG$21:$DH$23,2,0),0)),(8+VLOOKUP(Wycena!C26,$CO$28:$CS$37,IF(AND(Wycena!C20="-",Wycena!C21="-"),2,IF(AND(Wycena!C20<>"-",Wycena!C21="-"),3,IF(AND(Wycena!C20="-",Wycena!C21<>"-"),4,5))),0)))),(8+VLOOKUP(Wycena!C26,$CO$28:$CS$37,IF(AND(Wycena!C20="-",Wycena!C21="-"),2,IF(AND(Wycena!C20<>"-",Wycena!C21="-"),3,IF(AND(Wycena!C20="-",Wycena!C21<>"-"),4,5))),0))) -> 8 | DK4: 7 | DL4: =IF(DK4>=VLOOKUP(Wycena!$C$14,Mapping!$DG$3:$DH$5,2,0),DK4,"") -> 7 | DM4: =IF(ROWS($DL$3:DL4)>(ROWS($DL$3:$DL$28)-COUNTBLANK($DL$3:$DL$28)),"",INDEX($DL$3:$DL$28,SMALL(IF($DL$3:$DL$28<>"",ROW($DL$3:$DL$28)-2),ROWS($DL$3:DL4)))) -> 7 | DN4: =IF(DK4>=VLOOKUP(Wycena!$C$14,Mapping!$DG$3:$DI$5,3,0),DK4,"") -> 7 | DO4: =IF(ROWS($DN$3:DN4)>(ROWS($DN$3:$DN$28)-COUNTBLANK($DN$3:$DN$28)),"",INDEX($DN$3:$DN$28,SMALL(IF($DN$3:$DN$28<>"",ROW($DN$3:$DN$28)-2),ROWS($DN$3:DN4)))) -> 7 | DQ4: krosnowa | DR4: 6 | DS4: 7 | DT4: =IF(DS4>=VLOOKUP(Wycena!$C$25,Mapping!$DQ$3:$DR$4,2,0),DS4,"") ->  | DU4: =IF(ROWS($DT$3:DT4)>(ROWS($DT$3:$DT$28)-COUNTBLANK($DT$3:$DT$28)),"",INDEX($DT$3:$DT$28,SMALL(IF($DT$3:$DT$28<>"",ROW($DT$3:$DT$28)-2),ROWS($DT$3:DT4)))) -> 11 | DW4: 1 | DY4: Tak | DZ4: =340+(IF(Wycena!C20<>"-",1,0)+IF(Wycena!C21<>"-",1,0))*DZ8+IF((IF(Wycena!C16="-",212,IF(Wycena!C16=78, 212,214)))<Wycena!$C$18,1,0)*DZ9 -> 340 | EB4: Tak | EC4: =380+(IF(Wycena!C20<>"-",1,0)+IF(Wycena!C21<>"-",1,0))*EC8+IF((IF(Wycena!C16="-",212,IF(Wycena!C16=78, 212,214)))<Wycena!$C$18,1,0)*EC9 -> 380 | ED4: =IF(Wycena!C14="Bezprzylgowe Glass","",EB4) -> Tak | EE4: =IF(ROWS($ED$3:ED4)>(ROWS($ED$3:$ED$4)-COUNTBLANK($ED$3:$ED$4)),"",INDEX($ED$3:$ED$4,SMALL(IF($ED$3:$ED$4<>"",ROW($ED$3:$ED$4)-2),ROWS($ED$3:ED4)))) -> Tak | EG4: 1 kpl | EH4: =300+(IF(Wycena!C20<>"-",1,0)+IF(Wycena!C21<>"-",1,0))*EH8+IF((IF(Wycena!C16="-",212,IF(Wycena!C16=78, 212,214)))<Wycena!$C$18,1,0)*EH9 -> 300 | EJ4: 1 kpl | EK4: =140+(IF(Wycena!C20<>"-",1,0)+IF(Wycena!C21<>"-",1,0))*EK8+IF((IF(Wycena!C16="-",212,IF(Wycena!C16=78, 212,214)))<Wycena!$C$18,1,0)*EK9 -> 140 | EM4: 85 | EP4: =IF(OR(Wycena!$C$20<>"-",Wycena!$C$21<>"-",),EM4,"") ->  | EQ4: =IF(ROWS($EP$3:EP4)>(ROWS($EP$3:$EP$8)-COUNTBLANK($EP$3:$EP$8)),"",INDEX($EP$3:$EP$8,SMALL(IF($EP$3:$EP$8<>"",ROW($EP$3:$EP$8)-2),ROWS($EP$3:EP4)))) ->  | ES4: 206 | ET4: 206.001 | EU4: 0.1 | EV4: =IF(IF(Wycena!$C$22<>"-",ES4,"")<=Wycena!$C$18-Wycena!$C$27,ES4,"") ->  | EW4: =IF(ROWS($EV$3:EV4)>(ROWS($EV$3:$EV$8)-COUNTBLANK($EV$3:$EV$8)),"",INDEX($EV$3:$EV$8,SMALL(IF($EV$3:$EV$8<>"",ROW($EV$3:$EV$8)-2),ROWS($EV$3:EV4)))) ->  | EY4: 50 | EZ4: 50.001 | FA4: =70%+IF(Wycena!$C$20="Imitacja skrzydła ruchoma",0.1,0) -> 0.7 | FB4: =70%+IF(Wycena!$C$21="Imitacja skrzydła ruchoma",0.1,0) -> 0.7 | FC4: 0.7 | FD4: =IFERROR(VLOOKUP(Wycena!$C$45,Mapping!$EZ$3:$FC$6,4,1)+VLOOKUP(Wycena!$C$49,Mapping!$EZ$3:$FC$6,4,1),0) -> 0 | FE4: Przezierne | FF4: 200 | FG4: Przezierne | FH4: =IF(Wycena!$C$20="-","-",FG4) -> - | FI4: =IF(ROWS($FH$3:FH4)>(ROWS($FH$3:$FH$14)-COUNTBLANK($FH$3:$FH$14)),"",INDEX($FH$3:$FH$14,SMALL(IF($FH$3:$FH$14<>"",ROW($FH$3:$FH$14)-2),ROWS($FH$3:FH4)))) -> - | FJ4: Przezierne | FK4: =IF(Wycena!$C$21="-","",FJ4) ->  | FL4: =IF(ROWS($FK$3:FK4)>(ROWS($FK$3:$FK$14)-COUNTBLANK($FK$3:$FK$14)),"",INDEX($FK$3:$FK$14,SMALL(IF($FK$3:$FK$14<>"",ROW($FK$3:$FK$14)-2),ROWS($FK$3:FK4)))) ->  | FO4: 1 | FP4: =IF(Wycena!$C$20="-","",FO4) ->  | FQ4: =IF(ROWS($FP$3:FP4)>(ROWS($FP$3:$FP$23)-COUNTBLANK($FP$3:$FP$23)),"",INDEX($FP$3:$FP$23,SMALL(IF($FP$3:$FP$23<>"",ROW($FP$3:$FP$23)-2),ROWS($FP$3:FP4)))) ->  | FR4: =IF(Wycena!$C$21="-","",FO4) ->  | FS4: =IF(ROWS($FR$3:FR4)>(ROWS($FR$3:$FR$23)-COUNTBLANK($FR$3:$FR$23)),"",INDEX($FR$3:$FR$23,SMALL(IF($FR$3:$FR$23<>"",ROW($FR$3:$FR$23)-2),ROWS($FR$3:FR4)))) ->  | FT4: =IF(Wycena!$C$22="-","",FO4) ->  | FU4: =IF(ROWS($FT$3:FT4)>(ROWS($FT$3:$FT$23)-COUNTBLANK($FT$3:$FT$23)),"",INDEX($FT$3:$FT$23,SMALL(IF($FT$3:$FT$23<>"",ROW($FT$3:$FT$23)-2),ROWS($FT$3:FT4)))) ->  | FW4: Zestaw elektronik z zamkiem ryglowym | FX4: 1000 | FY4: =IFERROR(VLOOKUP(Wycena!C59,OFFSET(FW15,MATCH(Wycena!C59,FW15:FW39,0),0,15,2),2,0),"") -> Ryglowy 3-punktowy bez gałki (standard) | FZ4: =IF(ROWS($FY$3:FY4)>(ROWS($FY$3:$FY$10)-COUNTBLANK($FY$3:$FY$10)),"",INDEX($FY$3:$FY$10,SMALL(IF($FY$3:$FY$10<>"",ROW($FY$3:$FY$10)-2),ROWS($FY$3:FY4)))) -> Ryglowy 3-punktowy bez gałki (standard) | GA4: Klamka Medos Dublin | GB4: 250 | GC4: Klamka Medos Dublin | GD4: =GC4 -> Klamka Medos Dublin | GJ4: =IF((HLOOKUP(VLOOKUP(Wycena!$C$59,Mapping!$GI$35:$GJ$43,2,0),$GD$1:$GI$33,2+GK4))=0,"",(HLOOKUP(VLOOKUP(Wycena!$C$59,Mapping!$GI$35:$GJ$43,2,0),$GD$1:$GI$33,2+GK4))) -> Klamka Medos Dublin | GK4: 2 | GL4: =IF(ROWS($GJ$3:GJ4)>(ROWS($GJ$3:$GJ$33)-COUNTBLANK($GJ$3:$GJ$33)),"",INDEX($GJ$3:$GJ$33,SMALL(IF($GJ$3:$GJ$33<>"",ROW($GJ$3:$GJ$33)-2),ROWS($GJ$3:GJ4)))) ->  | GM4: Klamka Medos Warszawa (standard) | GN4: Stare złoto | GO4: =IFERROR(VLOOKUP(Wycena!C61,OFFSET(GM2,MATCH(Wycena!C61,$GM$2:$GM$98,0),0,100,2),2,0),"") ->  | GP4: =IF(ROWS($GO$3:GO4)>(ROWS($GO$3:$GO$6)-COUNTBLANK($GO$3:$GO$6)),"",INDEX($GO$3:$GO$6,SMALL(IF($GO$3:$GO$6<>"",ROW($GO$3:$GO$6)-2),ROWS($GO$3:GO4)))) ->  | GQ4: =IFERROR(IF(FIND("Antaba M",Wycena!$C$61)>0,80,""),"") ->  | GR4: =IF(ROWS($GQ$3:GQ4)>(ROWS($GQ$3:$GQ$9)-COUNTBLANK($GQ$3:$GQ$9)),"",INDEX($GQ$3:$GQ$9,SMALL(IF($GQ$3:$GQ$9<>"",ROW($GQ$3:$GQ$9)-2),ROWS($GQ$3:GQ4)))) ->  | GS4: Standard patyna | GT4: 0 | GU4: =IF(OR(Wycena!$C$59=Mapping!$FW$7,Wycena!$C$59=Mapping!$FW$6),"",GS4) -> Standard patyna | GV4: =IF(ROWS($GU$3:GU4)>(ROWS($GU$3:$GU$8)-COUNTBLANK($GU$3:$GU$8)),"",INDEX($GU$3:$GU$8,SMALL(IF($GU$3:$GU$8<>"",ROW($GU$3:$GU$8)-2),ROWS($GU$3:GU4)))) -> Standard patyna | GW4: Manualna | GX4: 350 | GY4: =IF(Wycena!$C$59=Mapping!$GW$15,Mapping!GW4,"") -> Manualna | GZ4: =IFERROR(IF(FIND("Klamka",Wycena!$C$61)>0,"",GY4),GY4) -> Manualna | HA4: =IF(ROWS($GZ$3:GZ4)>(ROWS($GZ$3:$GZ$5)-COUNTBLANK(GZ$3:$GZ$5)),"",INDEX(GZ$3:$GZ$5,SMALL(IF(GZ$3:$GZ$5<>"",ROW(GZ$3:$GZ$5)-2),ROWS($GZ$3:GZ4)))) -> Manualna | HB4: Tak | HC4: =300-IF(Wycena!C59=Mapping!FY31,300,0) -> 300 | HD4: =IF(ROWS($HB$3:HB4)>(ROWS($HB$3:$HB$4)-COUNTBLANK($HB$3:$HB$4)),"",INDEX($HB$3:$HB$4,SMALL(IF($HB$3:$HB$4<>"",ROW($HB$3:$HB$4)-2),ROWS($HB$3:HB4)))) -> Tak | HF4: W skrzydle | HG4: 400 | HH4: =IF(Wycena!$C$59=Mapping!$HB$31,-400,0)+HG4 -> 400 | HI4: =IF(Wycena!$C$6="Brak (pełne)","",HF4) -> W skrzydle | HJ4: =HI4 -> W skrzydle | HK4: =IF(ROWS($HJ$3:HJ4)>(ROWS($HJ$3:$HJ$13)-COUNTBLANK($HJ$3:$HJ$13)),"",INDEX($HJ$3:$HJ$13,SMALL(IF($HJ$3:$HJ$13<>"",ROW($HJ$3:$HJ$13)-2),ROWS($HJ$3:HJ4)))) -> W skrzydle | HM4: Drewniany z nakładką aluminową | HN4: 200 | HO4: =(1+IFERROR(VLOOKUP(Wycena!$C$45,Mapping!$EZ$3:$FC$6,4,1),0)+IFERROR(VLOOKUP(Wycena!$C$49,Mapping!$EZ$3:$FC$6,4,1),0))*HN4 -> 200 | HP4: Drewniany z nakładką aluminową | HQ4: =IF(ROWS($HP$3:HP4)>(ROWS($HP$3:$HP$5)-COUNTBLANK($HP$3:$HP$5)),"",INDEX($HP$3:$HP$5,SMALL(IF($HP$3:$HP$5<>"",ROW($HP$3:$HP$5)-2),ROWS($HP$3:HP4)))) -> Drewniany z nakładką aluminową | HS4: 3 | HT4: 60 | HU4: =(1+IFERROR(VLOOKUP(Wycena!$C$45,Mapping!$EZ$3:$FC$6,4,1),0)+IFERROR(VLOOKUP(Wycena!$C$49,Mapping!$EZ$3:$FC$6,4,1),0))*HT4 -> 60 | HW4: Z jednej strony skrzydła | HX4: 100 | HY4: 100 | HZ4: 200 | IA4: 200 | IB4: Z jednej strony skrzydła | IC4: =IF(ROWS($IB$3:IB4)>(ROWS($IB$3:$IB$9)-COUNTBLANK($IB$3:$IB$9)),"",INDEX($IB$3:$IB$9,SMALL(IF($IB$3:$IB$9<>"",ROW($IB$3:$IB$9)-2),ROWS($IB$3:IB4)))) -> Z jednej strony skrzydła | IE4: Inox | IF4: 150 | IH4: Nawierzchniowy inox | II4: 350 | IK4: Lew retro patyna | IL4: 400 | IN4: Na skrzydle | IO4: 200 | IQ4: Tak | IR4: 50 | IT4: Tak | IU4: 120 | IW4: 0.01 | IY4: 200 | JA4: 0.08 | JC4: Czarny | JD4: =IF(Wycena!C14=Mapping!JC6,"",Mapping!JC4) ->  | JE4: =IF(JD4=JD6,0,IFERROR(IF(Wycena!C42*1>214,400,350),350)) -> 350 | JF4: =IF(ROWS($JD$3:JD4)>(ROWS($JD$3:$JD$4)-COUNTBLANK($JD$3:$JD$4)),"",INDEX($JD$3:$JD$4,SMALL(IF($JD$3:$JD$4<>"",ROW($JD$3:$JD$4)-2),ROWS($JD$3:JD4)))) -> 
A5: DB 04 | B5: 20 | C5: 20 | D5: 20 | E5: 20 | F5: 34 | G5: 34 | H5: 36 | I5: 36 | J5: W ościeżnicy kasetonem | K5: 4 | M5: =IFERROR(VLOOKUP(Wycena!$C$5,OFFSET(SKU!$B$1,MATCH(Wycena!$C$5,SKU!$B$1:$B$743,0)+1,0,1000,6),5,0),"") ->  | N5: =IFERROR(VLOOKUP(Wycena!$C$5,OFFSET(SKU!$B$1,MATCH(Wycena!$C$5,SKU!$B$1:$B$743,0)+1,0,1000,6),2,0)-VLOOKUP(Wycena!$C$5,SKU!$B$1:$C$743,2,0),"") ->  | O5: =IF(ROWS($M$3:M5)>(ROWS($M$3:$M$10)-COUNTBLANK($M$3:$M$10)),"",INDEX($M$3:$M$10,SMALL(IF($M$3:$M$10<>"",ROW($M$3:$M$10)-2),ROWS($M$3:M5)))) ->  | Q5: Dab flader podłużny | R5: 900 | S5: =IF(VLOOKUP(Wycena!$C$5,SKU!$B$1:$D$743,3,0)="Płytowe",Q5,"") ->  | T5: =IF(ROWS($S$3:S5)>(ROWS($S$3:$S$8)-COUNTBLANK($S$3:$S$8)),"",INDEX($S$3:$S$8,SMALL(IF($S$3:$S$8<>"",ROW($S$3:$S$8)-2),ROWS($S$3:S5)))) ->  | V5: Dwukolor | W5: 300 | Y5: Dąb | Z5: 0 | AA5: Dąb | AB5: =AA5 -> Dąb | AC5: =IF(ROWS($AB$3:AB5)>(ROWS($AB$3:$AB$229)-COUNTBLANK($AB$3:$AB$229)),"",INDEX($AB$3:$AB$229,SMALL(IF($AB$3:$AB$229<>"",ROW($AB$3:$AB$229)-2),ROWS($AB$3:AB5)))) ->  | AE5: x | AG5: x | AI5: =IF(VLOOKUP(Wycena!$C$5,SKU!$B$1:$I$743,8,0)>0,"Skała beżowa","") ->  | AJ5: =VLOOKUP(Wycena!$C$5,SKU!$B$1:$I$743,8,0) ->  | AK5: =IF(ROWS($AI$3:AI5)>(ROWS($AI$3:$AI$7)-COUNTBLANK($AI$3:$AI$7)),"",INDEX($AI$3:$AI$7,SMALL(IF($AI$3:$AI$7<>"",ROW($AI$3:$AI$7)-2),ROWS($AI$3:AI5)))) ->  | AM5: Bezprzylgowe Glass | AN5: =IF(OR((VLOOKUP(Wycena!$C$5,SKU!$B$1:$E$743,4,0)="Simple"),VLOOKUP(Wycena!$C$5,SKU!$B$1:$E$743,4,0)="Prestige Glass",VLOOKUP(Wycena!$C$5,SKU!$B$1:$E$743,4,0)="Maverick"),AM5,"") ->  | AO5: =IFERROR(IF(Wycena!C42*1>214,2800,2400),2400) -> 2400 | AP5: =IF(ROWS($AN$3:AN5)>(ROWS($AN$3:$AN$5)-COUNTBLANK($AN$3:$AN$5)),"",INDEX($AN$3:$AN$5,SMALL(IF($AN$3:$AN$5<>"",ROW($AN$3:$AN$5)-2),ROWS($AN$3:AN5)))) ->  | AV5: =IF(ROWS($AT$3:AT5)>(ROWS($AT$3:$AT$5)-COUNTBLANK($AT$3:$AT$5)),"",INDEX($AT$3:$AT$5,SMALL(IF($AT$3:$AT$5<>"",ROW($AT$3:$AT$5)-2),ROWS($AT$3:AT5)))) ->  | AX5: 74 | AY5: 0 | AZ5: 0 | BA5: =IF(Wycena!$C$16=78,Mapping!AY5,AZ5) -> 0 | BB5: 2 | BC5: Konieczne 2 dostawki | BD5: 182 | BE5: 0 | BF5: 0 | BG5: =IF(Wycena!$C$16=78,Mapping!BE5,BF5) -> 0 | BK5: Prawe na zewnątrz | BL5: Prawe na zewnątrz | BM5: =IF(ROWS($BL$3:BL5)>(ROWS($BL$3:$BL$6)-COUNTBLANK($BL$3:$BL$6)),"",INDEX($BL$3:$BL$6,SMALL(IF($BL$3:$BL$6<>"",ROW($BL$3:$BL$6)-2),ROWS($BL$3:BL5)))) -> Prawe na zewnątrz | BO5: W ościeżnicy tradycyjna | BP5: =IF(VLOOKUP(Wycena!$C$5,SKU!$B$1:$D$743,3,0)="Płytowe","",BO5) ->  | BQ5: =BP5 ->  | BR5: =IF(Wycena!$C$14="Bezprzylgowe Glass","",BQ5) ->  | BS5: =IF(ROWS($BR$3:BR5)>(ROWS($BR$3:$BR$8)-COUNTBLANK($BR$3:$BR$8)),"",INDEX($BR$3:$BR$8,SMALL(IF($BR$3:$BR$8<>"",ROW($BR$3:$BR$8)-2),ROWS($BR$3:BR5)))) ->  | BU5: Imitacja skrzydła | BV5: =((1200+IF(Wycena!$F$9<>0,200,0))*(1+IFERROR(VLOOKUP(Wycena!$C$45,Mapping!$EZ$3:$FC$6,4,1),0)+IFERROR(VLOOKUP(Wycena!$C$49,Mapping!$EZ$3:$FC$6,4,1),0))*(1+VLOOKUP(Wycena!$C$54,Mapping!$BW$3:$BX$6,2,1))) ->  | BW5: 70.0001 | BX5: 0.5 | BY5: =IF(Wycena!$C$14="Bezprzylgowe Glass","",BU5) -> Imitacja skrzydła | BZ5: =IF(ROWS($BY$3:BY5)>(ROWS($BY$3:$BY$6)-COUNTBLANK($BY$3:$BY$6)),"",INDEX($BY$3:$BY$6,SMALL(IF($BY$3:$BY$6<>"",ROW($BY$3:$BY$6)-2),ROWS($BY$3:BY5)))) -> Imitacja skrzydła | CA5: Grafit refleks | CB5: 50 | CC5: =CB5*(1+IFERROR(VLOOKUP(Wycena!$C$45,Mapping!$EZ$3:$FC$6,4,1),0)+IFERROR(VLOOKUP(Wycena!$C$49,Mapping!$EZ$3:$FC$6,4,1),0))*(1+VLOOKUP(Wycena!$C$54,Mapping!$BW$3:$BX$6,2,1)) ->  | CD5: Brąz refleks | CE5: =IF(Wycena!$C$22="-","",CD5) ->  | CF5: =IF(ROWS($CE$3:CE5)>(ROWS($CE$3:$CE$13)-COUNTBLANK($CE$3:$CE$13)),"",INDEX($CE$3:$CE$13,SMALL(IF($CE$3:$CE$13<>"",ROW($CE$3:$CE$13)-2),ROWS($CE$3:CE5)))) ->  | CJ5: x | CK5: x | CL5: x | CM5: x | CO5: Przy skrzydle z dwóch stron | CP5: 1600 | CQ5: =IF(Wycena!$C$25="Krosnowa","",CO5) -> Przy skrzydle z dwóch stron | CR5: =IF(Wycena!$C$14="Bezprzylgowe Glass","",CQ5) -> Przy skrzydle z dwóch stron | CS5: =CR5 -> Przy skrzydle z dwóch stron | CT5: =CS5 -> Przy skrzydle z dwóch stron | CU5: =IF(ROWS($CT$3:CT5)>(ROWS($CT$3:$CT$11)-COUNTBLANK($CT$3:$CT$11)),"",INDEX($CT$3:$CT$11,SMALL(IF($CT$3:$CT$11<>"",ROW($CT$3:$CT$11)-2),ROWS($CT$3:CT5)))) -> Przy skrzydle z dwóch stron | CY5: Bezprzylgowe Glass | CZ5: 12 | DA5: 8 | DB5: =IF(DA5>=VLOOKUP(Wycena!$C$14,Mapping!$CY$3:$CZ$5,2,0),DA5,"") -> 8 | DC5: =IF(ROWS($DB$3:DB5)>(ROWS($DB$3:$DB$28)-COUNTBLANK($DB$3:$DB$28)),"",INDEX($DB$3:$DB$28,SMALL(IF($DB$3:$DB$28<>"",ROW($DB$3:$DB$28)-2),ROWS($DB$3:DB5)))) -> 8 | DG5: Bezprzylgowe Glass | DH5: 12 | DI5: 12 | DK5: 8 | DL5: =IF(DK5>=VLOOKUP(Wycena!$C$14,Mapping!$DG$3:$DH$5,2,0),DK5,"") -> 8 | DM5: =IF(ROWS($DL$3:DL5)>(ROWS($DL$3:$DL$28)-COUNTBLANK($DL$3:$DL$28)),"",INDEX($DL$3:$DL$28,SMALL(IF($DL$3:$DL$28<>"",ROW($DL$3:$DL$28)-2),ROWS($DL$3:DL5)))) -> 8 | DN5: =IF(DK5>=VLOOKUP(Wycena!$C$14,Mapping!$DG$3:$DI$5,3,0),DK5,"") -> 8 | DO5: =IF(ROWS($DN$3:DN5)>(ROWS($DN$3:$DN$28)-COUNTBLANK($DN$3:$DN$28)),"",INDEX($DN$3:$DN$28,SMALL(IF($DN$3:$DN$28<>"",ROW($DN$3:$DN$28)-2),ROWS($DN$3:DN5)))) -> 8 | DS5: 8 | DT5: =IF(DS5>=VLOOKUP(Wycena!$C$25,Mapping!$DQ$3:$DR$4,2,0),DS5,"") ->  | DU5: =IF(ROWS($DT$3:DT5)>(ROWS($DT$3:$DT$28)-COUNTBLANK($DT$3:$DT$28)),"",INDEX($DT$3:$DT$28,SMALL(IF($DT$3:$DT$28<>"",ROW($DT$3:$DT$28)-2),ROWS($DT$3:DT5)))) -> 12 | DW5: 2 | ED5: x | EE5: x | EG5: 2 kpl | EH5: =600+((IF(Wycena!C20<>"-",1,0)+IF(Wycena!C21<>"-",1,0))*EH8+IF((IF(Wycena!C16="-",212,IF(Wycena!C16=78, 212,214)))<Wycena!$C$18,1,0)*EH9*2) -> 600 | EJ5: 2 kpl | EK5: =280+((IF(Wycena!C20<>"-",1,0)+IF(Wycena!C21<>"-",1,0))*EK8+IF((IF(Wycena!C16="-",212,IF(Wycena!C16=78, 212,214)))<Wycena!$C$18,1,0)*EK9*2) -> 280 | EM5: 90 | EN5: 90.001 | EO5: 300 | EP5: =IF(OR(Wycena!$C$20<>"-",Wycena!$C$21<>"-",),EM5,"") ->  | EQ5: =IF(ROWS($EP$3:EP5)>(ROWS($EP$3:$EP$8)-COUNTBLANK($EP$3:$EP$8)),"",INDEX($EP$3:$EP$8,SMALL(IF($EP$3:$EP$8<>"",ROW($EP$3:$EP$8)-2),ROWS($EP$3:EP5)))) ->  | ES5: 214 | ET5: 214.001 | EU5: 0.2 | EV5: =IF(IF(Wycena!$C$22<>"-",ES5,"")<=Wycena!$C$18-Wycena!$C$27,ES5,"") ->  | EW5: =IF(ROWS($EV$3:EV5)>(ROWS($EV$3:$EV$8)-COUNTBLANK($EV$3:$EV$8)),"",INDEX($EV$3:$EV$8,SMALL(IF($EV$3:$EV$8<>"",ROW($EV$3:$EV$8)-2),ROWS($EV$3:EV5)))) ->  | EY5: 70 | EZ5: 70.001 | FA5: =100%+IF(Wycena!$C$20="Imitacja skrzydła ruchoma",0.1,0) -> 1 | FB5: =100%+IF(Wycena!$C$21="Imitacja skrzydła ruchoma",0.1,0) -> 1 | FC5: 1 | FD5: =IFERROR(VLOOKUP(Wycena!$C$45,Mapping!$EZ$3:$FC$6,4,1)+VLOOKUP(Wycena!$C$49,Mapping!$EZ$3:$FC$6,4,1),0) -> 0 | FE5: Brąz refleks | FF5: 200 | FG5: Brąz refleks | FH5: =IF(Wycena!$C$20="-","",FG5) ->  | FI5: =IF(ROWS($FH$3:FH5)>(ROWS($FH$3:$FH$14)-COUNTBLANK($FH$3:$FH$14)),"",INDEX($FH$3:$FH$14,SMALL(IF($FH$3:$FH$14<>"",ROW($FH$3:$FH$14)-2),ROWS($FH$3:FH5)))) ->  | FJ5: Brąz refleks | FK5: =IF(Wycena!$C$21="-","",FJ5) ->  | FL5: =IF(ROWS($FK$3:FK5)>(ROWS($FK$3:$FK$14)-COUNTBLANK($FK$3:$FK$14)),"",INDEX($FK$3:$FK$14,SMALL(IF($FK$3:$FK$14<>"",ROW($FK$3:$FK$14)-2),ROWS($FK$3:FK5)))) ->  | FN5: stawka powyżej 4 | FO5: 2 | FP5: =IF(Wycena!$C$20="-","",FO5) ->  | FQ5: =IF(ROWS($FP$3:FP5)>(ROWS($FP$3:$FP$23)-COUNTBLANK($FP$3:$FP$23)),"",INDEX($FP$3:$FP$23,SMALL(IF($FP$3:$FP$23<>"",ROW($FP$3:$FP$23)-2),ROWS($FP$3:FP5)))) ->  | FR5: =IF(Wycena!$C$21="-","",FO5) ->  | FS5: =IF(ROWS($FR$3:FR5)>(ROWS($FR$3:$FR$23)-COUNTBLANK($FR$3:$FR$23)),"",INDEX($FR$3:$FR$23,SMALL(IF($FR$3:$FR$23<>"",ROW($FR$3:$FR$23)-2),ROWS($FR$3:FR5)))) ->  | FT5: =IF(Wycena!$C$22="-","",FO5) ->  | FU5: =IF(ROWS($FT$3:FT5)>(ROWS($FT$3:$FT$23)-COUNTBLANK($FT$3:$FT$23)),"",INDEX($FT$3:$FT$23,SMALL(IF($FT$3:$FT$23<>"",ROW($FT$3:$FT$23)-2),ROWS($FT$3:FT5)))) ->  | FW5: Zestaw elektronik z zamkiem automatycznym | FX5: 1300 | FY5: =IFERROR(VLOOKUP(Wycena!C59,OFFSET(FW15,MATCH(Wycena!C59,FW15:FW40,0)+1,0,15,2),2,0),"") -> Ryglowy 4-punktowy | FZ5: =IF(ROWS($FY$3:FY5)>(ROWS($FY$3:$FY$10)-COUNTBLANK($FY$3:$FY$10)),"",INDEX($FY$3:$FY$10,SMALL(IF($FY$3:$FY$10<>"",ROW($FY$3:$FY$10)-2),ROWS($FY$3:FY5)))) -> Ryglowy 4-punktowy | GA5: Klamka Barański Retro | GB5: 600 | GC5: Klamka Barański Retro | GD5: Klamka Barański Retro | GJ5: =IF((HLOOKUP(VLOOKUP(Wycena!$C$59,Mapping!$GI$35:$GJ$43,2,0),$GD$1:$GI$33,2+GK5))=0,"",(HLOOKUP(VLOOKUP(Wycena!$C$59,Mapping!$GI$35:$GJ$43,2,0),$GD$1:$GI$33,2+GK5))) -> Klamka Barański Retro | GK5: 3 | GL5: =IF(ROWS($GJ$3:GJ5)>(ROWS($GJ$3:$GJ$33)-COUNTBLANK($GJ$3:$GJ$33)),"",INDEX($GJ$3:$GJ$33,SMALL(IF($GJ$3:$GJ$33<>"",ROW($GJ$3:$GJ$33)-2),ROWS($GJ$3:GJ5)))) ->  | GM5: Klamka Medos Warszawa (standard) | GN5: Czarny | GO5: =IFERROR(VLOOKUP(Wycena!C61,OFFSET(GM2,MATCH(Wycena!C61,$GM$2:$GM$98,0)+1,0,100,2),2,0),"") ->  | GP5: =IF(ROWS($GO$3:GO5)>(ROWS($GO$3:$GO$6)-COUNTBLANK($GO$3:$GO$6)),"",INDEX($GO$3:$GO$6,SMALL(IF($GO$3:$GO$6<>"",ROW($GO$3:$GO$6)-2),ROWS($GO$3:GO5)))) ->  | GQ5: =IFERROR(IF(FIND("Antaba M",Wycena!$C$61)>0,100,""),"") ->  | GR5: =IF(ROWS($GQ$3:GQ5)>(ROWS($GQ$3:$GQ$9)-COUNTBLANK($GQ$3:$GQ$9)),"",INDEX($GQ$3:$GQ$9,SMALL(IF($GQ$3:$GQ$9<>"",ROW($GQ$3:$GQ$9)-2),ROWS($GQ$3:GQ5)))) ->  | GS5: Klasy B czarna | GT5: 350 | GU5: =IF(OR(Wycena!$C$59=Mapping!$FW$7,Wycena!$C$59=Mapping!$FW$6),"",GS5) -> Klasy B czarna | GV5: =IF(ROWS($GU$3:GU5)>(ROWS($GU$3:$GU$8)-COUNTBLANK($GU$3:$GU$8)),"",INDEX($GU$3:$GU$8,SMALL(IF($GU$3:$GU$8<>"",ROW($GU$3:$GU$8)-2),ROWS($GU$3:GU5)))) -> Klasy B czarna | GW5: Elektrozaczep | GX5: =IF(Wycena!C59=Mapping!GW18,0,400) -> 400 | GY5: =IF(OR(Wycena!$C$59=Mapping!$GW$18,Wycena!$C$59=Mapping!$GW$15),Mapping!GW5,"") -> Elektrozaczep | GZ5: =IFERROR(IF(FIND("Klamka",Wycena!$C$61)>0,"",GY5),GY5) -> Elektrozaczep | HA5: =IF(ROWS($GZ$3:GZ5)>(ROWS($GZ$3:$GZ$5)-COUNTBLANK(GZ$3:$GZ$5)),"",INDEX(GZ$3:$GZ$5,SMALL(IF(GZ$3:$GZ$5<>"",ROW(GZ$3:$GZ$5)-2),ROWS($GZ$3:GZ5)))) -> Elektrozaczep | HB5: x | HC5: x | HD5: x | HF5: W skrzydle i dostawce | HG5: 800 | HH5: =IF(Wycena!$C$59=Mapping!$HB$31,-400,0)+HG5 -> 800 | HI5: =IF(Wycena!$C$6="Brak (pełne)","",HF5) -> W skrzydle i dostawce | HJ5: =IF(OR(AND(Wycena!$C$20="-",Wycena!$C$21<>"-"),AND(Wycena!$C$21="-",Wycena!$C$20<>"-")),HI5,"") ->  | HK5: =IF(ROWS($HJ$3:HJ5)>(ROWS($HJ$3:$HJ$13)-COUNTBLANK($HJ$3:$HJ$13)),"",INDEX($HJ$3:$HJ$13,SMALL(IF($HJ$3:$HJ$13<>"",ROW($HJ$3:$HJ$13)-2),ROWS($HJ$3:HJ5)))) ->  | HS5: 5 | HT5: 70 | HU5: =(1+IFERROR(VLOOKUP(Wycena!$C$45,Mapping!$EZ$3:$FC$6,4,1),0)+IFERROR(VLOOKUP(Wycena!$C$49,Mapping!$EZ$3:$FC$6,4,1),0))*HT5 -> 70 | HW5: Z jednej strony skrzydła i dostawki | HX5: 100 | HY5: =(1+IFERROR(VLOOKUP(Wycena!$C$45,Mapping!$EZ$3:$FC$6,4,1),0)+IFERROR(VLOOKUP(Wycena!$C$49,Mapping!$EZ$3:$FC$6,4,1),0))*HX5 -> 100 | HZ5: 200 | IA5: =(1+IFERROR(VLOOKUP(Wycena!$C$45,Mapping!$EZ$3:$FC$6,4,1),0)+IFERROR(VLOOKUP(Wycena!$C$49,Mapping!$EZ$3:$FC$6,4,1),0))*HZ5 -> 200 | IB5: =IF(OR(AND(Wycena!$C$20="-",Wycena!$C$21<>"-"),AND(Wycena!$C$21="-",Wycena!$C$20<>"-")),HW5,"") ->  | IC5: =IF(ROWS($IB$3:IB5)>(ROWS($IB$3:$IB$9)-COUNTBLANK($IB$3:$IB$9)),"",INDEX($IB$3:$IB$9,SMALL(IF($IB$3:$IB$9<>"",ROW($IB$3:$IB$9)-2),ROWS($IB$3:IB5)))) -> Z dwóch stron skrzydła | IE5: Patyna | IF5: 150 | IH5: Nawierzchniowy biały | II5: 350 | IK5: Lew retro satyna | IL5: 400 | IN5: Na dostawce | IO5: 200 | IW5: 0.02 | IY5: 300 | JA5: 0.23
A6: DB 07 | B6: 20 | C6: 20 | D6: 20 | E6: 20 | F6: 34 | G6: 34 | H6: 36 | I6: 36 | J6: Imitacja skrzydła stała | K6: 6 | M6: =IFERROR(VLOOKUP(Wycena!$C$5,OFFSET(SKU!$B$1,MATCH(Wycena!$C$5,SKU!$B$1:$B$743,0)+2,0,1000,6),5,0),"") ->  | N6: =IFERROR(VLOOKUP(Wycena!$C$5,OFFSET(SKU!$B$1,MATCH(Wycena!$C$5,SKU!$B$1:$B$743,0)+2,0,1000,6),2,0)-VLOOKUP(Wycena!$C$5,SKU!$B$1:$C$743,2,0),"") ->  | O6: =IF(ROWS($M$3:M6)>(ROWS($M$3:$M$10)-COUNTBLANK($M$3:$M$10)),"",INDEX($M$3:$M$10,SMALL(IF($M$3:$M$10<>"",ROW($M$3:$M$10)-2),ROWS($M$3:M6)))) ->  | Q6: Dąb flader poprzeczny | R6: 900 | S6: =IF(VLOOKUP(Wycena!$C$5,SKU!$B$1:$D$743,3,0)="Płytowe",Q6,"") ->  | T6: =IF(ROWS($S$3:S6)>(ROWS($S$3:$S$8)-COUNTBLANK($S$3:$S$8)),"",INDEX($S$3:$S$8,SMALL(IF($S$3:$S$8<>"",ROW($S$3:$S$8)-2),ROWS($S$3:S6)))) ->  | V6: Więcej niż dwa | W6: 500 | Y6: Dąb bagienny | Z6: 0 | AA6: Dąb bagienny | AB6: =IF((VLOOKUP(Wycena!$C$7,Mapping!$Q$15:$R$20,2,0))="tak","",AA6) -> Dąb bagienny | AC6: =IF(ROWS($AB$3:AB6)>(ROWS($AB$3:$AB$229)-COUNTBLANK($AB$3:$AB$229)),"",INDEX($AB$3:$AB$229,SMALL(IF($AB$3:$AB$229<>"",ROW($AB$3:$AB$229)-2),ROWS($AB$3:AB6)))) ->  | AI6: =IF(VLOOKUP(Wycena!$C$5,SKU!$B$1:$I$743,8,0)>0,"Węgiel drzewny","") ->  | AJ6: =VLOOKUP(Wycena!$C$5,SKU!$B$1:$I$743,8,0) ->  | AK6: =IF(ROWS($AI$3:AI6)>(ROWS($AI$3:$AI$7)-COUNTBLANK($AI$3:$AI$7)),"",INDEX($AI$3:$AI$7,SMALL(IF($AI$3:$AI$7<>"",ROW($AI$3:$AI$7)-2),ROWS($AI$3:AI6)))) ->  | AM6: x | AN6: x | AO6: x | AP6: x | AR6: x | AS6: x | AT6: x | AU6: x | AV6: x | AX6: 75 | AY6: 0 | AZ6: 0 | BA6: =IF(Wycena!$C$16=78,Mapping!AY6,AZ6) -> 0 | BD6: 183 | BE6: 0 | BF6: 0 | BG6: =IF(Wycena!$C$16=78,Mapping!BE6,BF6) -> 0 | BK6: Prawe do wewnątrz | BL6: =IF(Wycena!$C$14="Bezprzylgowe Glass","",BK6) -> Prawe do wewnątrz | BM6: =IF(ROWS($BL$3:BL6)>(ROWS($BL$3:$BL$6)-COUNTBLANK($BL$3:$BL$6)),"",INDEX($BL$3:$BL$6,SMALL(IF($BL$3:$BL$6<>"",ROW($BL$3:$BL$6)-2),ROWS($BL$3:BL6)))) -> Prawe do wewnątrz | BO6: W ościeżnicy z kasetonem | BP6: =IF(VLOOKUP(Wycena!$C$5,SKU!$B$1:$D$743,3,0)="Płytowe","",BO6) ->  | BQ6: =BP6 ->  | BR6: =IF(Wycena!$C$14="Bezprzylgowe Glass","",BQ6) ->  | BS6: =IF(ROWS($BR$3:BR6)>(ROWS($BR$3:$BR$8)-COUNTBLANK($BR$3:$BR$8)),"",INDEX($BR$3:$BR$8,SMALL(IF($BR$3:$BR$8<>"",ROW($BR$3:$BR$8)-2),ROWS($BR$3:BR6)))) ->  | BU6: W łuku | BV6: =((2400+IF(Wycena!$F$9<>0,200,0))*(1+IFERROR(VLOOKUP(Wycena!$C$45,Mapping!$EZ$3:$FC$6,4,1),0)+IFERROR(VLOOKUP(Wycena!$C$49,Mapping!$EZ$3:$FC$6,4,1),0))*(1+VLOOKUP(Wycena!$C$54,Mapping!$BW$3:$BX$6,2,1))) ->  | BW6: 100.0001 | BY6: =IF(Wycena!$C$14="Bezprzylgowe Glass","",BU6) -> W łuku | BZ6: =IF(ROWS($BY$3:BY6)>(ROWS($BY$3:$BY$6)-COUNTBLANK($BY$3:$BY$6)),"",INDEX($BY$3:$BY$6,SMALL(IF($BY$3:$BY$6<>"",ROW($BY$3:$BY$6)-2),ROWS($BY$3:BY6)))) -> W łuku | CA6: Lustro weneckie | CB6: 50 | CC6: =CB6*(1+IFERROR(VLOOKUP(Wycena!$C$45,Mapping!$EZ$3:$FC$6,4,1),0)+IFERROR(VLOOKUP(Wycena!$C$49,Mapping!$EZ$3:$FC$6,4,1),0))*(1+VLOOKUP(Wycena!$C$54,Mapping!$BW$3:$BX$6,2,1)) ->  | CD6: Grafit refleks | CE6: =IF(Wycena!$C$22="-","",CD6) ->  | CF6: =IF(ROWS($CE$3:CE6)>(ROWS($CE$3:$CE$13)-COUNTBLANK($CE$3:$CE$13)),"",INDEX($CE$3:$CE$13,SMALL(IF($CE$3:$CE$13<>"",ROW($CE$3:$CE$13)-2),ROWS($CE$3:CE6)))) ->  | CO6: Przy skrzydle i ościeżnicy od zewnątrz | CP6: =1200+((IF(OR(Wycena!$C$20="W ościeżnicy nowoczesna",Wycena!$C$20="W ościeżnicy tradycyjna"),1,0))+(IF(OR(Wycena!$C$21="W ościeżnicy nowoczesna",Wycena!$C$21="W ościeżnicy tradycyjna"),1,0)))*600 -> 1200 | CQ6: =IF(Wycena!$C$25="Krosnowa","",CO6) -> Przy skrzydle i ościeżnicy od zewnątrz | CR6: =IF(Wycena!$C$14="Bezprzylgowe Glass","",CQ6) -> Przy skrzydle i ościeżnicy od zewnątrz | CS6: =IF(OR(Wycena!$C$20="W ościeżnicy nowoczesna",Wycena!$C$20="W ościeżnicy tradycyjna",Wycena!$C$21="W ościeżnicy nowoczesna",Wycena!$C$21="W ościeżnicy tradycyjna"),CR6,"") ->  | CT6: =CS6 ->  | CU6: =IF(ROWS($CT$3:CT6)>(ROWS($CT$3:$CT$11)-COUNTBLANK($CT$3:$CT$11)),"",INDEX($CT$3:$CT$11,SMALL(IF($CT$3:$CT$11<>"",ROW($CT$3:$CT$11)-2),ROWS($CT$3:CT6)))) ->  | DA6: 9 | DB6: =IF(DA6>=VLOOKUP(Wycena!$C$14,Mapping!$CY$3:$CZ$5,2,0),DA6,"") -> 9 | DC6: =IF(ROWS($DB$3:DB6)>(ROWS($DB$3:$DB$28)-COUNTBLANK($DB$3:$DB$28)),"",INDEX($DB$3:$DB$28,SMALL(IF($DB$3:$DB$28<>"",ROW($DB$3:$DB$28)-2),ROWS($DB$3:DB6)))) -> 9 | DK6: 9 | DL6: =IF(DK6>=VLOOKUP(Wycena!$C$14,Mapping!$DG$3:$DH$5,2,0),DK6,"") -> 9 | DM6: =IF(ROWS($DL$3:DL6)>(ROWS($DL$3:$DL$28)-COUNTBLANK($DL$3:$DL$28)),"",INDEX($DL$3:$DL$28,SMALL(IF($DL$3:$DL$28<>"",ROW($DL$3:$DL$28)-2),ROWS($DL$3:DL6)))) -> 9 | DN6: =IF(DK6>=VLOOKUP(Wycena!$C$14,Mapping!$DG$3:$DI$5,3,0),DK6,"") -> 9 | DO6: =IF(ROWS($DN$3:DN6)>(ROWS($DN$3:$DN$28)-COUNTBLANK($DN$3:$DN$28)),"",INDEX($DN$3:$DN$28,SMALL(IF($DN$3:$DN$28<>"",ROW($DN$3:$DN$28)-2),ROWS($DN$3:DN6)))) -> 9 | DS6: 9 | DT6: =IF(DS6>=VLOOKUP(Wycena!$C$25,Mapping!$DQ$3:$DR$4,2,0),DS6,"") ->  | DU6: =IF(ROWS($DT$3:DT6)>(ROWS($DT$3:$DT$28)-COUNTBLANK($DT$3:$DT$28)),"",INDEX($DT$3:$DT$28,SMALL(IF($DT$3:$DT$28<>"",ROW($DT$3:$DT$28)-2),ROWS($DT$3:DT6)))) -> 13 | DW6: 3 | EM6: 100 | EN6: 100.001 | EO6: 900 | EP6: =IF(OR(Wycena!$C$20<>"-",Wycena!$C$21<>"-",),EM6,"") ->  | EQ6: =IF(ROWS($EP$3:EP6)>(ROWS($EP$3:$EP$8)-COUNTBLANK($EP$3:$EP$8)),"",INDEX($EP$3:$EP$8,SMALL(IF($EP$3:$EP$8<>"",ROW($EP$3:$EP$8)-2),ROWS($EP$3:EP6)))) ->  | ES6: 224 | ET6: 224.001 | EU6: 0.3 | EV6: =IF(IF(Wycena!$C$22<>"-",ES6,"")<=Wycena!$C$18-Wycena!$C$27,ES6,"") ->  | EW6: =IF(ROWS($EV$3:EV6)>(ROWS($EV$3:$EV$8)-COUNTBLANK($EV$3:$EV$8)),"",INDEX($EV$3:$EV$8,SMALL(IF($EV$3:$EV$8<>"",ROW($EV$3:$EV$8)-2),ROWS($EV$3:EV6)))) ->  | EY6: 100 | EZ6: 100.001 | FE6: Grafit refleks | FF6: 250 | FG6: Grafit refleks | FH6: =IF(Wycena!$C$20="-","",FG6) ->  | FI6: =IF(ROWS($FH$3:FH6)>(ROWS($FH$3:$FH$14)-COUNTBLANK($FH$3:$FH$14)),"",INDEX($FH$3:$FH$14,SMALL(IF($FH$3:$FH$14<>"",ROW($FH$3:$FH$14)-2),ROWS($FH$3:FH6)))) ->  | FJ6: Grafit refleks | FK6: =IF(Wycena!$C$21="-","",FJ6) ->  | FL6: =IF(ROWS($FK$3:FK6)>(ROWS($FK$3:$FK$14)-COUNTBLANK($FK$3:$FK$14)),"",INDEX($FK$3:$FK$14,SMALL(IF($FK$3:$FK$14<>"",ROW($FK$3:$FK$14)-2),ROWS($FK$3:FK6)))) ->  | FN6: 100 | FO6: 3 | FP6: =IF(Wycena!$C$20="-","",FO6) ->  | FQ6: =IF(ROWS($FP$3:FP6)>(ROWS($FP$3:$FP$23)-COUNTBLANK($FP$3:$FP$23)),"",INDEX($FP$3:$FP$23,SMALL(IF($FP$3:$FP$23<>"",ROW($FP$3:$FP$23)-2),ROWS($FP$3:FP6)))) ->  | FR6: =IF(Wycena!$C$21="-","",FO6) ->  | FS6: =IF(ROWS($FR$3:FR6)>(ROWS($FR$3:$FR$23)-COUNTBLANK($FR$3:$FR$23)),"",INDEX($FR$3:$FR$23,SMALL(IF($FR$3:$FR$23<>"",ROW($FR$3:$FR$23)-2),ROWS($FR$3:FR6)))) ->  | FT6: =IF(Wycena!$C$22="-","",FO6) ->  | FU6: =IF(ROWS($FT$3:FT6)>(ROWS($FT$3:$FT$23)-COUNTBLANK($FT$3:$FT$23)),"",INDEX($FT$3:$FT$23,SMALL(IF($FT$3:$FT$23<>"",ROW($FT$3:$FT$23)-2),ROWS($FT$3:FT6)))) ->  | FW6: Zestaw z pochwytem na styl amerykański | FX6: 2500 | FY6: =IFERROR(VLOOKUP(Wycena!C59,OFFSET(FW15,MATCH(Wycena!C59,FW15:FW39,0)+2,0,15,2),2,0),"") -> Automat 3-punktowy z gałką | FZ6: =IF(ROWS($FY$3:FY6)>(ROWS($FY$3:$FY$10)-COUNTBLANK($FY$3:$FY$10)),"",INDEX($FY$3:$FY$10,SMALL(IF($FY$3:$FY$10<>"",ROW($FY$3:$FY$10)-2),ROWS($FY$3:FY6)))) -> Automat 3-punktowy z gałką | GA6: Klamka Hoppe Bezpieczna | GB6: 350 | GC6: Klamka Hoppe Bezpieczna | GD6: Klamka Hoppe Bezpieczna | GJ6: =IF((HLOOKUP(VLOOKUP(Wycena!$C$59,Mapping!$GI$35:$GJ$43,2,0),$GD$1:$GI$33,2+GK6))=0,"",(HLOOKUP(VLOOKUP(Wycena!$C$59,Mapping!$GI$35:$GJ$43,2,0),$GD$1:$GI$33,2+GK6))) -> Klamka Hoppe Bezpieczna | GK6: 4 | GL6: =IF(ROWS($GJ$3:GJ6)>(ROWS($GJ$3:$GJ$33)-COUNTBLANK($GJ$3:$GJ$33)),"",INDEX($GJ$3:$GJ$33,SMALL(IF($GJ$3:$GJ$33<>"",ROW($GJ$3:$GJ$33)-2),ROWS($GJ$3:GJ6)))) ->  | GM6: Klamka Medos Dublin | GN6: Inox | GO6: =IFERROR(VLOOKUP(Wycena!C61,OFFSET(GM2,MATCH(Wycena!C61,$GM$2:$GM$98,0)+2,0,100,2),2,0),"") ->  | GP6: =IF(ROWS($GO$3:GO6)>(ROWS($GO$3:$GO$6)-COUNTBLANK($GO$3:$GO$6)),"",INDEX($GO$3:$GO$6,SMALL(IF($GO$3:$GO$6<>"",ROW($GO$3:$GO$6)-2),ROWS($GO$3:GO6)))) ->  | GQ6: =IFERROR(IF(FIND("Antaba M",Wycena!$C$61)>0,120,""),"") ->  | GR6: =IF(ROWS($GQ$3:GQ6)>(ROWS($GQ$3:$GQ$9)-COUNTBLANK($GQ$3:$GQ$9)),"",INDEX($GQ$3:$GQ$9,SMALL(IF($GQ$3:$GQ$9<>"",ROW($GQ$3:$GQ$9)-2),ROWS($GQ$3:GQ6)))) ->  | GS6: Klasy C patyna | GT6: =350-IF(Wycena!C59=Mapping!FY31,350,0) -> 350 | GU6: =IF(Wycena!$C$59=Mapping!FW6,"",IF(Wycena!$C$59=Mapping!FW7,GS6,GS6)) -> Klasy C patyna | GV6: =IF(ROWS($GU$3:GU6)>(ROWS($GU$3:$GU$8)-COUNTBLANK($GU$3:$GU$8)),"",INDEX($GU$3:$GU$8,SMALL(IF($GU$3:$GU$8<>"",ROW($GU$3:$GU$8)-2),ROWS($GU$3:GU6)))) -> Klasy C patyna | GY6: x | GZ6: x | HA6: x | HF6: W skrzydle i dostawkach | HG6: 1200 | HH6: =IF(Wycena!$C$59=Mapping!$HB$31,-400,0)+HG6 -> 1200 | HI6: =IF(Wycena!$C$6="Brak (pełne)","",HF6) -> W skrzydle i dostawkach | HJ6: =IF(AND(Wycena!$C$20<>"-",Wycena!$C$21<>"-"),HI6,"") ->  | HK6: =IF(ROWS($HJ$3:HJ6)>(ROWS($HJ$3:$HJ$13)-COUNTBLANK($HJ$3:$HJ$13)),"",INDEX($HJ$3:$HJ$13,SMALL(IF($HJ$3:$HJ$13<>"",ROW($HJ$3:$HJ$13)-2),ROWS($HJ$3:HJ6)))) ->  | HM6: x | HN6: x | HO6: x | HP6: x | HQ6: x | HS6: 8 | HT6: 130 | HU6: =(1+IFERROR(VLOOKUP(Wycena!$C$45,Mapping!$EZ$3:$FC$6,4,1),0)+IFERROR(VLOOKUP(Wycena!$C$49,Mapping!$EZ$3:$FC$6,4,1),0))*HT6 -> 130 | HW6: Z jednej strony skrzydła i dostawek | HX6: 100 | HY6: =(1+IFERROR(VLOOKUP(Wycena!$C$45,Mapping!$EZ$3:$FC$6,4,1),0)+IFERROR(VLOOKUP(Wycena!$C$49,Mapping!$EZ$3:$FC$6,4,1),0))*HX6 -> 100 | HZ6: 200 | IA6: =(1+IFERROR(VLOOKUP(Wycena!$C$45,Mapping!$EZ$3:$FC$6,4,1),0)+IFERROR(VLOOKUP(Wycena!$C$49,Mapping!$EZ$3:$FC$6,4,1),0))*HZ6 -> 200 | IB6: =IF(AND(Wycena!$C$20<>"-",Wycena!$C$21<>"-"),HW6,"") ->  | IC6: =IF(ROWS($IB$3:IB6)>(ROWS($IB$3:$IB$9)-COUNTBLANK($IB$3:$IB$9)),"",INDEX($IB$3:$IB$9,SMALL(IF($IB$3:$IB$9<>"",ROW($IB$3:$IB$9)-2),ROWS($IB$3:IB6)))) ->  | IE6: Czarny | IF6: 150 | IH6: Nawierzchniowy brąz | II6: 350 | IW6: 0.03 | IY6: 400 | JC6: Przylgowe | JD6: - | JF6: x
A7: DB 09a | B7: 20 | C7: 20 | D7: 20 | E7: 20 | F7: 34 | G7: 34 | H7: 36 | I7: 36 | J7: Imitacja skrzydła ruchoma | K7: 8 | M7: =IFERROR(VLOOKUP(Wycena!$C$5,OFFSET(SKU!$B$1,MATCH(Wycena!$C$5,SKU!$B$1:$B$743,0)+3,0,1000,6),5,0),"") ->  | N7: =IFERROR(VLOOKUP(Wycena!$C$5,OFFSET(SKU!$B$1,MATCH(Wycena!$C$5,SKU!$B$1:$B$743,0)+3,0,1000,6),2,0)-VLOOKUP(Wycena!$C$5,SKU!$B$1:$C$743,2,0),"") ->  | O7: =IF(ROWS($M$3:M7)>(ROWS($M$3:$M$10)-COUNTBLANK($M$3:$M$10)),"",INDEX($M$3:$M$10,SMALL(IF($M$3:$M$10<>"",ROW($M$3:$M$10)-2),ROWS($M$3:M7)))) ->  | Q7: Dąb sękaty podłużny | R7: 1200 | S7: =IF(VLOOKUP(Wycena!$C$5,SKU!$B$1:$D$743,3,0)="Płytowe",Q7,"") ->  | T7: =IF(ROWS($S$3:S7)>(ROWS($S$3:$S$8)-COUNTBLANK($S$3:$S$8)),"",INDEX($S$3:$S$8,SMALL(IF($S$3:$S$8<>"",ROW($S$3:$S$8)-2),ROWS($S$3:S7)))) ->  | Y7: Dąb natura | Z7: 500 | AA7: =IF(VLOOKUP(Wycena!$C$5,SKU!$B$1:$D$743,3,0)="Płytowe",Y7,"") ->  | AB7: =AA7 ->  | AC7: =IF(ROWS($AB$3:AB7)>(ROWS($AB$3:$AB$229)-COUNTBLANK($AB$3:$AB$229)),"",INDEX($AB$3:$AB$229,SMALL(IF($AB$3:$AB$229<>"",ROW($AB$3:$AB$229)-2),ROWS($AB$3:AB7)))) ->  | AG7: =$AG$3:INDEX($AG$3:$AG$4,(ROWS($AE$3:$AE$4)-COUNTBLANK($AE$3:$AE$4))) ->  | AI7: =IF(VLOOKUP(Wycena!$C$5,SKU!$B$1:$I$743,8,0)>0,"Złota patyna","") ->  | AJ7: =VLOOKUP(Wycena!$C$5,SKU!$B$1:$I$743,8,0) ->  | AK7: =IF(ROWS($AI$3:AI7)>(ROWS($AI$3:$AI$7)-COUNTBLANK($AI$3:$AI$7)),"",INDEX($AI$3:$AI$7,SMALL(IF($AI$3:$AI$7<>"",ROW($AI$3:$AI$7)-2),ROWS($AI$3:AI7)))) ->  | AX7: 76 | AY7: 0 | AZ7: 0 | BA7: =IF(Wycena!$C$16=78,Mapping!AY7,AZ7) -> 0 | BD7: 184 | BE7: 0 | BF7: 0 | BG7: =IF(Wycena!$C$16=78,Mapping!BE7,BF7) -> 0 | BK7: x | BL7: x | BM7: x | BO7: Imitacja skrzydła stała | BP7: Imitacja skrzydła stała | BQ7: =IF(VLOOKUP(Wycena!C5,SKU!$B$1:$E$743,4,0)="Prestige Kamień","",BP7) ->  | BR7: =BQ7 ->  | BS7: =IF(ROWS($BR$3:BR7)>(ROWS($BR$3:$BR$8)-COUNTBLANK($BR$3:$BR$8)),"",INDEX($BR$3:$BR$8,SMALL(IF($BR$3:$BR$8<>"",ROW($BR$3:$BR$8)-2),ROWS($BR$3:BR7)))) ->  | BU7: x | BY7: x | BZ7: x | CA7: Mleczne | CB7: 150 | CC7: =CB7*(1+IFERROR(VLOOKUP(Wycena!$C$45,Mapping!$EZ$3:$FC$6,4,1),0)+IFERROR(VLOOKUP(Wycena!$C$49,Mapping!$EZ$3:$FC$6,4,1),0))*(1+VLOOKUP(Wycena!$C$54,Mapping!$BW$3:$BX$6,2,1)) ->  | CD7: Lustro weneckie | CE7: =IF(Wycena!$C$22="-","",CD7) ->  | CF7: =IF(ROWS($CE$3:CE7)>(ROWS($CE$3:$CE$13)-COUNTBLANK($CE$3:$CE$13)),"",INDEX($CE$3:$CE$13,SMALL(IF($CE$3:$CE$13<>"",ROW($CE$3:$CE$13)-2),ROWS($CE$3:CE7)))) ->  | CM7: =$CM$3:INDEX($CM$3:$CM$4,(ROWS($CL$3:$CL$4)-COUNTBLANK($CL$3:$CL$4))) -> Standardowa | CO7: Przy skrzydle i ościeżnicy z dwóch stron | CP7: =1600+((IF(OR(Wycena!$C$20="W ościeżnicy nowoczesna",Wycena!$C$20="W ościeżnicy tradycyjna"),1,0))+(IF(OR(Wycena!$C$21="W ościeżnicy nowoczesna",Wycena!$C$21="W ościeżnicy tradycyjna"),1,0)))*800 -> 1600 | CQ7: =IF(Wycena!$C$25="Krosnowa","",CO7) -> Przy skrzydle i ościeżnicy z dwóch stron | CR7: =IF(Wycena!$C$14="Bezprzylgowe Glass","",CQ7) -> Przy skrzydle i ościeżnicy z dwóch stron | CS7: =IF(OR(Wycena!$C$20="W ościeżnicy nowoczesna",Wycena!$C$20="W ościeżnicy tradycyjna",Wycena!$C$21="W ościeżnicy nowoczesna",Wycena!$C$21="W ościeżnicy tradycyjna"),CR7,"") ->  | CT7: =CS7 ->  | CU7: =IF(ROWS($CT$3:CT7)>(ROWS($CT$3:$CT$11)-COUNTBLANK($CT$3:$CT$11)),"",INDEX($CT$3:$CT$11,SMALL(IF($CT$3:$CT$11<>"",ROW($CT$3:$CT$11)-2),ROWS($CT$3:CT7)))) ->  | CY7: vlookup ościeżnicy | CZ7: grubość pod liczenie | DA7: 10 | DB7: =IF(DA7>=VLOOKUP(Wycena!$C$14,Mapping!$CY$3:$CZ$5,2,0),DA7,"") -> 10 | DC7: =IF(ROWS($DB$3:DB7)>(ROWS($DB$3:$DB$28)-COUNTBLANK($DB$3:$DB$28)),"",INDEX($DB$3:$DB$28,SMALL(IF($DB$3:$DB$28<>"",ROW($DB$3:$DB$28)-2),ROWS($DB$3:DB7)))) -> 10 | DG7: vlookup ościeżnicy | DH7: grubość pod liczenie | DI7: grubość pod liczenie | DK7: 10 | DL7: =IF(DK7>=VLOOKUP(Wycena!$C$14,Mapping!$DG$3:$DH$5,2,0),DK7,"") -> 10 | DM7: =IF(ROWS($DL$3:DL7)>(ROWS($DL$3:$DL$28)-COUNTBLANK($DL$3:$DL$28)),"",INDEX($DL$3:$DL$28,SMALL(IF($DL$3:$DL$28<>"",ROW($DL$3:$DL$28)-2),ROWS($DL$3:DL7)))) -> 10 | DN7: =IF(DK7>=VLOOKUP(Wycena!$C$14,Mapping!$DG$3:$DI$5,3,0),DK7,"") -> 10 | DO7: =IF(ROWS($DN$3:DN7)>(ROWS($DN$3:$DN$28)-COUNTBLANK($DN$3:$DN$28)),"",INDEX($DN$3:$DN$28,SMALL(IF($DN$3:$DN$28<>"",ROW($DN$3:$DN$28)-2),ROWS($DN$3:DN7)))) -> 10 | DQ7: vlookup rodzaj | DR7: szerokości pod liczenie | DS7: 10 | DT7: =IF(DS7>=VLOOKUP(Wycena!$C$25,Mapping!$DQ$3:$DR$4,2,0),DS7,"") ->  | DU7: =IF(ROWS($DT$3:DT7)>(ROWS($DT$3:$DT$28)-COUNTBLANK($DT$3:$DT$28)),"",INDEX($DT$3:$DT$28,SMALL(IF($DT$3:$DT$28<>"",ROW($DT$3:$DT$28)-2),ROWS($DT$3:DT7)))) -> 14 | DW7: 4 | DY7: dopłaty | DZ7: stawka | EB7: dopłaty | EC7: stawka | EE7: =$EE$3:INDEX($EE$3:$EE$4,(ROWS($ED$3:$ED$4)-COUNTBLANK($ED$3:$ED$4))) -> - | EG7: dopłaty | EH7: stawka | EJ7: dopłaty | EK7: stawka | EM7: 108 | EN7: 108.001 | EO7: 1500 | EP7: =IF(OR(Wycena!$C$20<>"-",Wycena!$C$21<>"-",),EM7,"") ->  | EQ7: =IF(ROWS($EP$3:EP7)>(ROWS($EP$3:$EP$8)-COUNTBLANK($EP$3:$EP$8)),"",INDEX($EP$3:$EP$8,SMALL(IF($EP$3:$EP$8<>"",ROW($EP$3:$EP$8)-2),ROWS($EP$3:EP7)))) ->  | ES7: 234 | ET7: 234.001 | EU7: 0.4 | EV7: =IF(IF(Wycena!$C$22<>"-",ES7,"")<=Wycena!$C$18-Wycena!$C$27,ES7,"") ->  | EW7: =IF(ROWS($EV$3:EV7)>(ROWS($EV$3:$EV$8)-COUNTBLANK($EV$3:$EV$8)),"",INDEX($EV$3:$EV$8,SMALL(IF($EV$3:$EV$8<>"",ROW($EV$3:$EV$8)-2),ROWS($EV$3:EV7)))) ->  | FE7: Lustro weneckie | FF7: 250 | FG7: Lustro weneckie | FH7: =IF(Wycena!$C$20="-","",FG7) ->  | FI7: =IF(ROWS($FH$3:FH7)>(ROWS($FH$3:$FH$14)-COUNTBLANK($FH$3:$FH$14)),"",INDEX($FH$3:$FH$14,SMALL(IF($FH$3:$FH$14<>"",ROW($FH$3:$FH$14)-2),ROWS($FH$3:FH7)))) ->  | FJ7: Lustro weneckie | FK7: =IF(Wycena!$C$21="-","",FJ7) ->  | FL7: =IF(ROWS($FK$3:FK7)>(ROWS($FK$3:$FK$14)-COUNTBLANK($FK$3:$FK$14)),"",INDEX($FK$3:$FK$14,SMALL(IF($FK$3:$FK$14<>"",ROW($FK$3:$FK$14)-2),ROWS($FK$3:FK7)))) ->  | FO7: 4 | FP7: =IF(Wycena!$C$20="-","",FO7) ->  | FQ7: =IF(ROWS($FP$3:FP7)>(ROWS($FP$3:$FP$23)-COUNTBLANK($FP$3:$FP$23)),"",INDEX($FP$3:$FP$23,SMALL(IF($FP$3:$FP$23<>"",ROW($FP$3:$FP$23)-2),ROWS($FP$3:FP7)))) ->  | FR7: =IF(Wycena!$C$21="-","",FO7) ->  | FS7: =IF(ROWS($FR$3:FR7)>(ROWS($FR$3:$FR$23)-COUNTBLANK($FR$3:$FR$23)),"",INDEX($FR$3:$FR$23,SMALL(IF($FR$3:$FR$23<>"",ROW($FR$3:$FR$23)-2),ROWS($FR$3:FR7)))) ->  | FT7: =IF(Wycena!$C$22="-","",FO7) ->  | FU7: =IF(ROWS($FT$3:FT7)>(ROWS($FT$3:$FT$23)-COUNTBLANK($FT$3:$FT$23)),"",INDEX($FT$3:$FT$23,SMALL(IF($FT$3:$FT$23<>"",ROW($FT$3:$FT$23)-2),ROWS($FT$3:FT7)))) ->  | FV7: x | FW7: Zestaw antywłamaniowy RC2 | FX7: =1100+IF(Wycena!$C$6="Brak (pełne)",0,400) -> 1500 | FY7: =IFERROR(VLOOKUP(Wycena!C59,OFFSET(FW15,MATCH(Wycena!C59,FW15:FW39,0)+3,0,15,2),2,0),"") -> Automat 3-punktowy bez gałki | FZ7: =IF(ROWS($FY$3:FY7)>(ROWS($FY$3:$FY$10)-COUNTBLANK($FY$3:$FY$10)),"",INDEX($FY$3:$FY$10,SMALL(IF($FY$3:$FY$10<>"",ROW($FY$3:$FY$10)-2),ROWS($FY$3:FY7)))) -> Automat 3-punktowy bez gałki | GA7: Klamka AXA Diva Flex | GB7: =480-IFERROR(IF(Wycena!C59=Mapping!FY31,480,0),0) -> 480 | GC7: Klamka AXA Diva Flex | GD7: Klamka AXA Diva Flex | GH7: =GC7 -> Klamka AXA Diva Flex | GJ7: =IF((HLOOKUP(VLOOKUP(Wycena!$C$59,Mapping!$GI$35:$GJ$43,2,0),$GD$1:$GI$33,2+GK7))=0,"",(HLOOKUP(VLOOKUP(Wycena!$C$59,Mapping!$GI$35:$GJ$43,2,0),$GD$1:$GI$33,2+GK7))) -> Klamka AXA Diva Flex | GK7: 5 | GL7: =IF(ROWS($GJ$3:GJ7)>(ROWS($GJ$3:$GJ$33)-COUNTBLANK($GJ$3:$GJ$33)),"",INDEX($GJ$3:$GJ$33,SMALL(IF($GJ$3:$GJ$33<>"",ROW($GJ$3:$GJ$33)-2),ROWS($GJ$3:GJ7)))) ->  | GM7: Klamka Medos Dublin | GN7: Stare złoto | GO7: x | GP7: x | GQ7: =IFERROR(IF(FIND("Antaba M",Wycena!$C$61)>0,150,""),"") ->  | GR7: =IF(ROWS($GQ$3:GQ7)>(ROWS($GQ$3:$GQ$9)-COUNTBLANK($GQ$3:$GQ$9)),"",INDEX($GQ$3:$GQ$9,SMALL(IF($GQ$3:$GQ$9<>"",ROW($GQ$3:$GQ$9)-2),ROWS($GQ$3:GQ7)))) ->  | GS7: Klasy C satyna | GT7: =350-IF(Wycena!C59=Mapping!FY31,350,0) -> 350 | GU7: =IF(Wycena!$C$59=Mapping!FW6,"",IF(Wycena!$C$59=Mapping!FW7,GS7,GS7)) -> Klasy C satyna | GV7: =IF(ROWS($GU$3:GU7)>(ROWS($GU$3:$GU$8)-COUNTBLANK($GU$3:$GU$8)),"",INDEX($GU$3:$GU$8,SMALL(IF($GU$3:$GU$8<>"",ROW($GU$3:$GU$8)-2),ROWS($GU$3:GU7)))) -> Klasy C satyna | HD7: =$HD$3:INDEX($HD$3:$HD$4,(ROWS($HB$3:$HB$4)-COUNTBLANK($HB$3:$HB$4))) -> - | HF7: W skrzydle i naświetlu | HG7: 800 | HH7: =IF(Wycena!$C$59=Mapping!$HB$31,-400,0)+HG7 -> 800 | HI7: =IF(Wycena!$C$6="Brak (pełne)","",HF7) -> W skrzydle i naświetlu | HJ7: =IF(AND(Wycena!$C$20="-",Wycena!$C$21="-",Wycena!$C$22<>"-"),HI7,"") ->  | HK7: =IF(ROWS($HJ$3:HJ7)>(ROWS($HJ$3:$HJ$13)-COUNTBLANK($HJ$3:$HJ$13)),"",INDEX($HJ$3:$HJ$13,SMALL(IF($HJ$3:$HJ$13<>"",ROW($HJ$3:$HJ$13)-2),ROWS($HJ$3:HJ7)))) ->  | HS7: 10 | HT7: 110 | HU7: =(1+IFERROR(VLOOKUP(Wycena!$C$45,Mapping!$EZ$3:$FC$6,4,1),0)+IFERROR(VLOOKUP(Wycena!$C$49,Mapping!$EZ$3:$FC$6,4,1),0))*HT7 -> 110 | HW7: Z dwóch stron skrzydła | HX7: 200 | HY7: 200 | HZ7: 400 | IA7: 400 | IB7: Z dwóch stron skrzydła | IC7: =IF(ROWS($IB$3:IB7)>(ROWS($IB$3:$IB$9)-COUNTBLANK($IB$3:$IB$9)),"",INDEX($IB$3:$IB$9,SMALL(IF($IB$3:$IB$9<>"",ROW($IB$3:$IB$9)-2),ROWS($IB$3:IB7)))) ->  | IH7: Nawierzchniowy czarny | II7: 350 | IW7: 0.04 | IY7: 500 | JC7: Bezprzylgowe | JD7: czarny | JF7: =$JF$3:INDEX($JF$3:$JF$4,(ROWS($JD$3:$JD$4)-COUNTBLANK($JD$3:$JD$4))) -> Inox
A8: DB 10 | B8: 20 | C8: 20 | D8: 20 | E8: 20 | F8: 34 | G8: 34 | H8: 36 | I8: 36 | M8: =IFERROR(VLOOKUP(Wycena!$C$5,OFFSET(SKU!$B$1,MATCH(Wycena!$C$5,SKU!$B$1:$B$743,0)+4,0,1000,6),5,0),"") ->  | N8: =IFERROR(VLOOKUP(Wycena!$C$5,OFFSET(SKU!$B$1,MATCH(Wycena!$C$5,SKU!$B$1:$B$743,0)+4,0,1000,6),2,0)-VLOOKUP(Wycena!$C$5,SKU!$B$1:$C$743,2,0),"") ->  | O8: =IF(ROWS($M$3:M8)>(ROWS($M$3:$M$10)-COUNTBLANK($M$3:$M$10)),"",INDEX($M$3:$M$10,SMALL(IF($M$3:$M$10<>"",ROW($M$3:$M$10)-2),ROWS($M$3:M8)))) ->  | Q8: Dąb sękaty poprzeczny | R8: 1200 | S8: =IF(VLOOKUP(Wycena!$C$5,SKU!$B$1:$D$743,3,0)="Płytowe",Q8,"") ->  | T8: =IF(ROWS($S$3:S8)>(ROWS($S$3:$S$8)-COUNTBLANK($S$3:$S$8)),"",INDEX($S$3:$S$8,SMALL(IF($S$3:$S$8<>"",ROW($S$3:$S$8)-2),ROWS($S$3:S8)))) ->  | Y8: Jasny orzech | Z8: 0 | AA8: Jasny orzech | AB8: =IF((VLOOKUP(Wycena!$C$7,Mapping!$Q$15:$R$20,2,0))="tak","",AA8) -> Jasny orzech | AC8: =IF(ROWS($AB$3:AB8)>(ROWS($AB$3:$AB$229)-COUNTBLANK($AB$3:$AB$229)),"",INDEX($AB$3:$AB$229,SMALL(IF($AB$3:$AB$229<>"",ROW($AB$3:$AB$229)-2),ROWS($AB$3:AB8)))) ->  | AI8: x | AK8: x | AP8: =$AP$3:INDEX($AP$3:$AP$5,(ROWS($AN$3:$AN$5)-COUNTBLANK($AN$3:$AN$5))) ->  | AV8: =$AV$3:INDEX($AV$3:$AV$5,(ROWS($AT$3:$AT$5)-COUNTBLANK($AT$3:$AT$5))) -> 78 | AX8: 77 | AY8: 0 | AZ8: 0 | BA8: =IF(Wycena!$C$16=78,Mapping!AY8,AZ8) -> 0 | BD8: 185 | BE8: 0 | BF8: 0 | BG8: =IF(Wycena!$C$16=78,Mapping!BE8,BF8) -> 0 | BO8: Imitacja skrzydła ruchoma | BP8: Imitacja skrzydła ruchoma | BQ8: =IF(VLOOKUP(Wycena!C5,SKU!$B$1:$E$743,4,0)="Prestige Kamień","",BP8) ->  | BR8: =IF(Wycena!$C$14="Bezprzylgowe Glass","",BQ8) ->  | BS8: =IF(ROWS($BR$3:BR8)>(ROWS($BR$3:$BR$8)-COUNTBLANK($BR$3:$BR$8)),"",INDEX($BR$3:$BR$8,SMALL(IF($BR$3:$BR$8<>"",ROW($BR$3:$BR$8)-2),ROWS($BR$3:BR8)))) ->  | CA8: Piaskowane refleks | CB8: 150 | CC8: =CB8*(1+IFERROR(VLOOKUP(Wycena!$C$45,Mapping!$EZ$3:$FC$6,4,1),0)+IFERROR(VLOOKUP(Wycena!$C$49,Mapping!$EZ$3:$FC$6,4,1),0))*(1+VLOOKUP(Wycena!$C$54,Mapping!$BW$3:$BX$6,2,1)) ->  | CD8: Mleczne | CE8: =IF(Wycena!$C$22="-","",CD8) ->  | CF8: =IF(ROWS($CE$3:CE8)>(ROWS($CE$3:$CE$13)-COUNTBLANK($CE$3:$CE$13)),"",INDEX($CE$3:$CE$13,SMALL(IF($CE$3:$CE$13<>"",ROW($CE$3:$CE$13)-2),ROWS($CE$3:CE8)))) ->  | CO8: Przy skrzydle i naświetlu od zewnątrz | CP8: 1200 | CQ8: =IF(Wycena!$C$25="Krosnowa","",CO8) -> Przy skrzydle i naświetlu od zewnątrz | CR8: =IF(Wycena!$C$14="Bezprzylgowe Glass","",CQ8) -> Przy skrzydle i naświetlu od zewnątrz | CS8: =CR8 -> Przy skrzydle i naświetlu od zewnątrz | CT8: =IF(Wycena!$C$22="W ościeżnicy",CS8,"") ->  | CU8: =IF(ROWS($CT$3:CT8)>(ROWS($CT$3:$CT$11)-COUNTBLANK($CT$3:$CT$11)),"",INDEX($CT$3:$CT$11,SMALL(IF($CT$3:$CT$11<>"",ROW($CT$3:$CT$11)-2),ROWS($CT$3:CT8)))) ->  | CY8: Przylgowe | CZ8: =VLOOKUP(Wycena!$C$25,Mapping!$CW$3:$CX$4,2,0) -> 6 | DA8: 10.5 | DB8: =IF(OR(DB3=6,DB5=8),"",IF(DA8>=VLOOKUP(Wycena!$C$14,Mapping!$CY$3:$CZ$5,2,0),DA8,"")) ->  | DC8: =IF(ROWS($DB$3:DB8)>(ROWS($DB$3:$DB$28)-COUNTBLANK($DB$3:$DB$28)),"",INDEX($DB$3:$DB$28,SMALL(IF($DB$3:$DB$28<>"",ROW($DB$3:$DB$28)-2),ROWS($DB$3:DB8)))) -> 11 | DG8: Przylgowe | DH8: =DH3 -> 6 | DI8: =DI3 -> 6 | DK8: 10.5 | DL8: =IF(OR(DL3=6,DL5=8),"",IF(DK8>=VLOOKUP(Wycena!$C$14,Mapping!$DG$3:$DH$5,2,0),DK8,"")) ->  | DM8: =IF(ROWS($DL$3:DL8)>(ROWS($DL$3:$DL$28)-COUNTBLANK($DL$3:$DL$28)),"",INDEX($DL$3:$DL$28,SMALL(IF($DL$3:$DL$28<>"",ROW($DL$3:$DL$28)-2),ROWS($DL$3:DL8)))) -> 11 | DN8: =IF(OR(DL3=6,DL5=8),"",IF(DK8>=VLOOKUP(Wycena!$C$14,Mapping!$DG$3:$DI$5,3,0),DK8,"")) ->  | DO8: =IF(ROWS($DN$3:DN8)>(ROWS($DN$3:$DN$28)-COUNTBLANK($DN$3:$DN$28)),"",INDEX($DN$3:$DN$28,SMALL(IF($DN$3:$DN$28<>"",ROW($DN$3:$DN$28)-2),ROWS($DN$3:DN8)))) -> 11 | DQ8: standardowa | DR8: 10.5 | DS8: 10.5 | DT8: =IF(DT3=6,"",IF(DS8>=VLOOKUP(Wycena!$C$25,Mapping!$DQ$3:$DR$4,2,0),DS8,"")) -> 10.5 | DU8: =IF(ROWS($DT$3:DT8)>(ROWS($DT$3:$DT$28)-COUNTBLANK($DT$3:$DT$28)),"",INDEX($DT$3:$DT$28,SMALL(IF($DT$3:$DT$28<>"",ROW($DT$3:$DT$28)-2),ROWS($DT$3:DT8)))) -> 15 | DW8: 5 | DY8: za dostawkę | DZ8: 80 | EB8: za dostawkę | EC8: 80 | EG8: za dostawkę | EH8: 80 | EJ8: za dostawkę | EK8: 80 | EM8: 118 | EN8: 118.001 | EP8: =IF(OR(Wycena!$C$20<>"-",Wycena!$C$21<>"-",),EM8,"") ->  | EQ8: =IF(ROWS($EP$3:EP8)>(ROWS($EP$3:$EP$8)-COUNTBLANK($EP$3:$EP$8)),"",INDEX($EP$3:$EP$8,SMALL(IF($EP$3:$EP$8<>"",ROW($EP$3:$EP$8)-2),ROWS($EP$3:EP8)))) ->  | ES8: 244 | ET8: 244.001 | EV8: =IF(IF(Wycena!$C$22<>"-",ES8,"")<=Wycena!$C$18-Wycena!$C$27,ES8,"") ->  | EW8: =IF(ROWS($EV$3:EV8)>(ROWS($EV$3:$EV$8)-COUNTBLANK($EV$3:$EV$8)),"",INDEX($EV$3:$EV$8,SMALL(IF($EV$3:$EV$8<>"",ROW($EV$3:$EV$8)-2),ROWS($EV$3:EV8)))) ->  | FE8: Mleczne | FF8: 350 | FG8: Mleczne | FH8: =IF(Wycena!$C$20="-","",FG8) ->  | FI8: =IF(ROWS($FH$3:FH8)>(ROWS($FH$3:$FH$14)-COUNTBLANK($FH$3:$FH$14)),"",INDEX($FH$3:$FH$14,SMALL(IF($FH$3:$FH$14<>"",ROW($FH$3:$FH$14)-2),ROWS($FH$3:FH8)))) ->  | FJ8: Mleczne | FK8: =IF(Wycena!$C$21="-","",FJ8) ->  | FL8: =IF(ROWS($FK$3:FK8)>(ROWS($FK$3:$FK$14)-COUNTBLANK($FK$3:$FK$14)),"",INDEX($FK$3:$FK$14,SMALL(IF($FK$3:$FK$14<>"",ROW($FK$3:$FK$14)-2),ROWS($FK$3:FK8)))) ->  | FO8: 5 | FP8: =IF(Wycena!$C$20="-","",FO8) ->  | FQ8: =IF(ROWS($FP$3:FP8)>(ROWS($FP$3:$FP$23)-COUNTBLANK($FP$3:$FP$23)),"",INDEX($FP$3:$FP$23,SMALL(IF($FP$3:$FP$23<>"",ROW($FP$3:$FP$23)-2),ROWS($FP$3:FP8)))) ->  | FR8: =IF(Wycena!$C$21="-","",FO8) ->  | FS8: =IF(ROWS($FR$3:FR8)>(ROWS($FR$3:$FR$23)-COUNTBLANK($FR$3:$FR$23)),"",INDEX($FR$3:$FR$23,SMALL(IF($FR$3:$FR$23<>"",ROW($FR$3:$FR$23)-2),ROWS($FR$3:FR8)))) ->  | FT8: =IF(Wycena!$C$22="-","",FO8) ->  | FU8: =IF(ROWS($FT$3:FT8)>(ROWS($FT$3:$FT$23)-COUNTBLANK($FT$3:$FT$23)),"",INDEX($FT$3:$FT$23,SMALL(IF($FT$3:$FT$23<>"",ROW($FT$3:$FT$23)-2),ROWS($FT$3:FT8)))) ->  | FV8: x | FW8: Zestaw czytnik linii papilarnych | FX8: 5600 | FY8: =IFERROR(VLOOKUP(Wycena!C59,OFFSET(FW15,MATCH(Wycena!C59,FW15:FW39,0)+4,0,15,2),2,0),"") -> Automat 4-punktowy | FZ8: =IF(ROWS($FY$3:FY8)>(ROWS($FY$3:$FY$10)-COUNTBLANK($FY$3:$FY$10)),"",INDEX($FY$3:$FY$10,SMALL(IF($FY$3:$FY$10<>"",ROW($FY$3:$FY$10)-2),ROWS($FY$3:FY8)))) -> Automat 4-punktowy | GA8: Klamka AXA Haga Plus | GB8: 250 | GC8: Klamka AXA Haga Plus | GD8: Klamka AXA Haga Plus | GJ8: =IF((HLOOKUP(VLOOKUP(Wycena!$C$59,Mapping!$GI$35:$GJ$43,2,0),$GD$1:$GI$33,2+GK8))=0,"",(HLOOKUP(VLOOKUP(Wycena!$C$59,Mapping!$GI$35:$GJ$43,2,0),$GD$1:$GI$33,2+GK8))) -> Klamka AXA Haga Plus | GK8: 6 | GL8: =IF(ROWS($GJ$3:GJ8)>(ROWS($GJ$3:$GJ$33)-COUNTBLANK($GJ$3:$GJ$33)),"",INDEX($GJ$3:$GJ$33,SMALL(IF($GJ$3:$GJ$33<>"",ROW($GJ$3:$GJ$33)-2),ROWS($GJ$3:GJ8)))) ->  | GM8: Klamka Medos Dublin | GN8: Czarny | GQ8: =IFERROR(IF(FIND("Antaba M",Wycena!$C$61)>0,170,""),"") ->  | GR8: =IF(ROWS($GQ$3:GQ8)>(ROWS($GQ$3:$GQ$9)-COUNTBLANK($GQ$3:$GQ$9)),"",INDEX($GQ$3:$GQ$9,SMALL(IF($GQ$3:$GQ$9<>"",ROW($GQ$3:$GQ$9)-2),ROWS($GQ$3:GQ8)))) ->  | GS8: Klasy C czarna | GT8: =550-IF(Wycena!C59=Mapping!FY31,450,0) -> 550 | GU8: =IF(Wycena!$C$59=Mapping!FW6,"-",IF(Wycena!$C$59=Mapping!FW7,GS8,GS8)) -> Klasy C czarna | GV8: =IF(ROWS($GU$3:GU8)>(ROWS($GU$3:$GU$8)-COUNTBLANK($GU$3:$GU$8)),"",INDEX($GU$3:$GU$8,SMALL(IF($GU$3:$GU$8<>"",ROW($GU$3:$GU$8)-2),ROWS($GU$3:GU8)))) -> Klasy C czarna | HA8: =$HA$3:INDEX($HA$3:$HA$5,(ROWS($GZ$3:$GZ$5)-COUNTBLANK($GZ$3:$GZ$5))) -> - | HF8: W skrzydle, dostawce i naświetlu | HG8: 1200 | HH8: =IF(Wycena!$C$59=Mapping!$HB$31,-400,0)+HG8 -> 1200 | HI8: =IF(Wycena!$C$6="Brak (pełne)","",HF8) -> W skrzydle, dostawce i naświetlu | HJ8: =IF(OR(AND(Wycena!$C$20="-",Wycena!$C$21<>"-",Wycena!C22<>"-"),AND(Wycena!$C$21="-",Wycena!$C$20<>"-",Wycena!C22<>"-")),HI8,"") ->  | HK8: =IF(ROWS($HJ$3:HJ8)>(ROWS($HJ$3:$HJ$13)-COUNTBLANK($HJ$3:$HJ$13)),"",INDEX($HJ$3:$HJ$13,SMALL(IF($HJ$3:$HJ$13<>"",ROW($HJ$3:$HJ$13)-2),ROWS($HJ$3:HJ8)))) ->  | HQ8: =$HQ$3:INDEX($HQ$3:$HQ$5,(ROWS($HP$3:$HP$5)-COUNTBLANK($HP$3:$HP$5))) -> Aluminiowy (standard) | HS8: 13 | HT8: 170 | HU8: =(1+IFERROR(VLOOKUP(Wycena!$C$45,Mapping!$EZ$3:$FC$6,4,1),0)+IFERROR(VLOOKUP(Wycena!$C$49,Mapping!$EZ$3:$FC$6,4,1),0))*HT8 -> 170 | HW8: Z dwóch stron skrzydła i dostawki | HX8: 200 | HY8: =(1+IFERROR(VLOOKUP(Wycena!$C$45,Mapping!$EZ$3:$FC$6,4,1),0)+IFERROR(VLOOKUP(Wycena!$C$49,Mapping!$EZ$3:$FC$6,4,1),0))*HX8 -> 200 | HZ8: 400 | IA8: =(1+IFERROR(VLOOKUP(Wycena!$C$45,Mapping!$EZ$3:$FC$6,4,1),0)+IFERROR(VLOOKUP(Wycena!$C$49,Mapping!$EZ$3:$FC$6,4,1),0))*HZ8 -> 400 | IB8: =IF(OR(AND(Wycena!$C$20="-",Wycena!$C$21<>"-"),AND(Wycena!$C$21="-",Wycena!$C$20<>"-")),HW8,"") ->  | IC8: =IF(ROWS($IB$3:IB8)>(ROWS($IB$3:$IB$9)-COUNTBLANK($IB$3:$IB$9)),"",INDEX($IB$3:$IB$9,SMALL(IF($IB$3:$IB$9<>"",ROW($IB$3:$IB$9)-2),ROWS($IB$3:IB8)))) ->  | IH8: Nawierzchniowy z funkcją stop inox | II8: 500 | IW8: 0.05 | IY8: 600 | JC8: Bezprzylgowe Glass | JD8: czarny
A9: DB 11 | B9: 20 | C9: 20 | D9: 20 | E9: 20 | F9: 34 | G9: 34 | H9: 36 | I9: 36 | M9: =IFERROR(VLOOKUP(Wycena!$C$5,OFFSET(SKU!$B$1,MATCH(Wycena!$C$5,SKU!$B$1:$B$743,0)+5,0,1000,6),5,0),"") ->  | N9: =IFERROR(VLOOKUP(Wycena!$C$5,OFFSET(SKU!$B$1,MATCH(Wycena!$C$5,SKU!$B$1:$B$743,0)+5,0,1000,6),2,0)-VLOOKUP(Wycena!$C$5,SKU!$B$1:$C$743,2,0),"") ->  | O9: =IF(ROWS($M$3:M9)>(ROWS($M$3:$M$10)-COUNTBLANK($M$3:$M$10)),"",INDEX($M$3:$M$10,SMALL(IF($M$3:$M$10<>"",ROW($M$3:$M$10)-2),ROWS($M$3:M9)))) ->  | Q9: x | R9: x | S9: x | T9: x | Y9: Mahoń | Z9: 0 | AA9: Mahoń | AB9: =IF((VLOOKUP(Wycena!$C$7,Mapping!$Q$15:$R$20,2,0))="tak","",AA9) -> Mahoń | AC9: =IF(ROWS($AB$3:AB9)>(ROWS($AB$3:$AB$229)-COUNTBLANK($AB$3:$AB$229)),"",INDEX($AB$3:$AB$229,SMALL(IF($AB$3:$AB$229<>"",ROW($AB$3:$AB$229)-2),ROWS($AB$3:AB9)))) ->  | AX9: 78 | AY9: 0 | AZ9: 0 | BA9: =IF(Wycena!$C$16=78,Mapping!AY9,AZ9) -> 0 | BD9: 186 | BE9: 0 | BF9: 0 | BG9: =IF(Wycena!$C$16=78,Mapping!BE9,BF9) -> 0 | BM9: =$BM$3:INDEX($BM$3:$BM$6,(ROWS($BL$3:$BL$6)-COUNTBLANK($BL$3:$BL$6))) -> Lewe na zewnątrz | BO9: x | BP9: x | BQ9: x | BR9: x | BS9: x | BZ9: =$BZ$3:INDEX($BZ$3:$BZ$6,(ROWS($BY$3:$BY$6)-COUNTBLANK($BY$3:$BY$6))) -> - | CA9: Dyskretne brąz refleks | CB9: 400 | CC9: =CB9*(1+IFERROR(VLOOKUP(Wycena!$C$45,Mapping!$EZ$3:$FC$6,4,1),0)+IFERROR(VLOOKUP(Wycena!$C$49,Mapping!$EZ$3:$FC$6,4,1),0))*(1+VLOOKUP(Wycena!$C$54,Mapping!$BW$3:$BX$6,2,1)) ->  | CD9: Piaskowane refleks | CE9: =IF(Wycena!$C$22="-","",CD9) ->  | CF9: =IF(ROWS($CE$3:CE9)>(ROWS($CE$3:$CE$13)-COUNTBLANK($CE$3:$CE$13)),"",INDEX($CE$3:$CE$13,SMALL(IF($CE$3:$CE$13<>"",ROW($CE$3:$CE$13)-2),ROWS($CE$3:CE9)))) ->  | CO9: Przy skrzydle i naświetlu z dwóch stron | CP9: 1600 | CQ9: =IF(Wycena!$C$25="Krosnowa","",CO9) -> Przy skrzydle i naświetlu z dwóch stron | CR9: =IF(Wycena!$C$14="Bezprzylgowe Glass","",CQ9) -> Przy skrzydle i naświetlu z dwóch stron | CS9: =CR9 -> Przy skrzydle i naświetlu z dwóch stron | CT9: =IF(Wycena!$C$22="W ościeżnicy",CS9,"") ->  | CU9: =IF(ROWS($CT$3:CT9)>(ROWS($CT$3:$CT$11)-COUNTBLANK($CT$3:$CT$11)),"",INDEX($CT$3:$CT$11,SMALL(IF($CT$3:$CT$11<>"",ROW($CT$3:$CT$11)-2),ROWS($CT$3:CT9)))) ->  | CY9: Bezprzylgowe | CZ9: 8 | DA9: 11 | DB9: =IF(DA9>=VLOOKUP(Wycena!$C$14,Mapping!$CY$3:$CZ$5,2,0),DA9,"") -> 11 | DC9: =IF(ROWS($DB$3:DB9)>(ROWS($DB$3:$DB$28)-COUNTBLANK($DB$3:$DB$28)),"",INDEX($DB$3:$DB$28,SMALL(IF($DB$3:$DB$28<>"",ROW($DB$3:$DB$28)-2),ROWS($DB$3:DB9)))) -> 12 | DG9: Bezprzylgowe | DH9: =DH4 -> 8 | DI9: =DI4 -> 8 | DK9: 11 | DL9: =IF(DK9>=VLOOKUP(Wycena!$C$14,Mapping!$DG$3:$DH$5,2,0),DK9,"") -> 11 | DM9: =IF(ROWS($DL$3:DL9)>(ROWS($DL$3:$DL$28)-COUNTBLANK($DL$3:$DL$28)),"",INDEX($DL$3:$DL$28,SMALL(IF($DL$3:$DL$28<>"",ROW($DL$3:$DL$28)-2),ROWS($DL$3:DL9)))) -> 12 | DN9: =IF(DK9>=VLOOKUP(Wycena!$C$14,Mapping!$DG$3:$DI$5,3,0),DK9,"") -> 11 | DO9: =IF(ROWS($DN$3:DN9)>(ROWS($DN$3:$DN$28)-COUNTBLANK($DN$3:$DN$28)),"",INDEX($DN$3:$DN$28,SMALL(IF($DN$3:$DN$28<>"",ROW($DN$3:$DN$28)-2),ROWS($DN$3:DN9)))) -> 12 | DQ9: krosnowa | DR9: 6 | DS9: 11 | DT9: =IF(DS9>=VLOOKUP(Wycena!$C$25,Mapping!$DQ$3:$DR$4,2,0),DS9,"") -> 11 | DU9: =IF(ROWS($DT$3:DT9)>(ROWS($DT$3:$DT$28)-COUNTBLANK($DT$3:$DT$28)),"",INDEX($DT$3:$DT$28,SMALL(IF($DT$3:$DT$28<>"",ROW($DT$3:$DT$28)-2),ROWS($DT$3:DT9)))) -> 16 | DW9: 6 | DY9: za wysokość ponad standard | DZ9: 80 | EB9: za wysokość ponad standard | EC9: 80 | EG9: za wysokość ponad standard | EH9: 80 | EJ9: za wysokość ponad standard | EK9: 80 | EM9: x | EN9: x | EO9: x | EP9: x | EQ9: x | ES9: x | ET9: x | EU9: x | EV9: x | EW9: x | FE9: Piaskowane refleks | FF9: 350 | FG9: Piaskowane refleks | FH9: =IF(Wycena!$C$20="-","",FG9) ->  | FI9: =IF(ROWS($FH$3:FH9)>(ROWS($FH$3:$FH$14)-COUNTBLANK($FH$3:$FH$14)),"",INDEX($FH$3:$FH$14,SMALL(IF($FH$3:$FH$14<>"",ROW($FH$3:$FH$14)-2),ROWS($FH$3:FH9)))) ->  | FJ9: Piaskowane refleks | FK9: =IF(Wycena!$C$21="-","",FJ9) ->  | FL9: =IF(ROWS($FK$3:FK9)>(ROWS($FK$3:$FK$14)-COUNTBLANK($FK$3:$FK$14)),"",INDEX($FK$3:$FK$14,SMALL(IF($FK$3:$FK$14<>"",ROW($FK$3:$FK$14)-2),ROWS($FK$3:FK9)))) ->  | FO9: 6 | FP9: =IF(Wycena!$C$20="-","",FO9) ->  | FQ9: =IF(ROWS($FP$3:FP9)>(ROWS($FP$3:$FP$23)-COUNTBLANK($FP$3:$FP$23)),"",INDEX($FP$3:$FP$23,SMALL(IF($FP$3:$FP$23<>"",ROW($FP$3:$FP$23)-2),ROWS($FP$3:FP9)))) ->  | FR9: =IF(Wycena!$C$21="-","",FO9) ->  | FS9: =IF(ROWS($FR$3:FR9)>(ROWS($FR$3:$FR$23)-COUNTBLANK($FR$3:$FR$23)),"",INDEX($FR$3:$FR$23,SMALL(IF($FR$3:$FR$23<>"",ROW($FR$3:$FR$23)-2),ROWS($FR$3:FR9)))) ->  | FT9: =IF(Wycena!$C$22="-","",FO9) ->  | FU9: =IF(ROWS($FT$3:FT9)>(ROWS($FT$3:$FT$23)-COUNTBLANK($FT$3:$FT$23)),"",INDEX($FT$3:$FT$23,SMALL(IF($FT$3:$FT$23<>"",ROW($FT$3:$FT$23)-2),ROWS($FT$3:FT9)))) ->  | FV9: x | FW9: Zestaw czytnik linii papilarnych dLine | FX9: 6200 | FY9: =IFERROR(VLOOKUP(Wycena!C59,OFFSET(FW15,MATCH(Wycena!C59,FW15:FW39,0)+5,0,15,2),2,0),"") -> Automat ADR 5-punktowy z gałką | FZ9: =IF(ROWS($FY$3:FY9)>(ROWS($FY$3:$FY$10)-COUNTBLANK($FY$3:$FY$10)),"",INDEX($FY$3:$FY$10,SMALL(IF($FY$3:$FY$10<>"",ROW($FY$3:$FY$10)-2),ROWS($FY$3:FY9)))) -> Automat ADR 5-punktowy z gałką | GA9: Klamka AXA Manitoba Plus | GB9: 250 | GC9: Klamka AXA Manitoba Plus | GD9: Klamka AXA Manitoba Plus | GJ9: =IF((HLOOKUP(VLOOKUP(Wycena!$C$59,Mapping!$GI$35:$GJ$43,2,0),$GD$1:$GI$33,2+GK9))=0,"",(HLOOKUP(VLOOKUP(Wycena!$C$59,Mapping!$GI$35:$GJ$43,2,0),$GD$1:$GI$33,2+GK9))) -> Klamka AXA Manitoba Plus | GK9: 7 | GL9: =IF(ROWS($GJ$3:GJ9)>(ROWS($GJ$3:$GJ$33)-COUNTBLANK($GJ$3:$GJ$33)),"",INDEX($GJ$3:$GJ$33,SMALL(IF($GJ$3:$GJ$33<>"",ROW($GJ$3:$GJ$33)-2),ROWS($GJ$3:GJ9)))) ->  | GM9: Klamka Barański Retro | GN9: Satyna | GP9: =$GP$3:INDEX($GP$3:$GP$6,(ROWS($GO$3:$GO$6)-COUNTBLANK($GO$3:$GO$6))) ->  | GQ9: =IFERROR(IF(FIND("Vegas",Wycena!$C$61)>0,200,""),"") ->  | GR9: =IF(ROWS($GQ$3:GQ9)>(ROWS($GQ$3:$GQ$9)-COUNTBLANK($GQ$3:$GQ$9)),"",INDEX($GQ$3:$GQ$9,SMALL(IF($GQ$3:$GQ$9<>"",ROW($GQ$3:$GQ$9)-2),ROWS($GQ$3:GQ9)))) ->  | GU9: x | GV9: x | HF9: W skrzydle, dostawkach i naświetlu | HG9: 1600 | HH9: =IF(Wycena!$C$59=Mapping!$HB$31,-400,0)+HG9 -> 1600 | HI9: =IF(Wycena!$C$6="Brak (pełne)","",HF9) -> W skrzydle, dostawkach i naświetlu | HJ9: =IF(AND(Wycena!$C$20<>"-",Wycena!$C$21<>"-",Wycena!$C$22<>"-"),HI9,"") ->  | HK9: =IF(ROWS($HJ$3:HJ9)>(ROWS($HJ$3:$HJ$13)-COUNTBLANK($HJ$3:$HJ$13)),"",INDEX($HJ$3:$HJ$13,SMALL(IF($HJ$3:$HJ$13<>"",ROW($HJ$3:$HJ$13)-2),ROWS($HJ$3:HJ9)))) ->  | HS9: 15 | HT9: 180 | HU9: =(1+IFERROR(VLOOKUP(Wycena!$C$45,Mapping!$EZ$3:$FC$6,4,1),0)+IFERROR(VLOOKUP(Wycena!$C$49,Mapping!$EZ$3:$FC$6,4,1),0))*HT9 -> 180 | HW9: Z dwóch stron skrzydła i dostawek | HX9: 200 | HY9: =(1+IFERROR(VLOOKUP(Wycena!$C$45,Mapping!$EZ$3:$FC$6,4,1),0)+IFERROR(VLOOKUP(Wycena!$C$49,Mapping!$EZ$3:$FC$6,4,1),0))*HX9 -> 200 | HZ9: 400 | IA9: =(1+IFERROR(VLOOKUP(Wycena!$C$45,Mapping!$EZ$3:$FC$6,4,1),0)+IFERROR(VLOOKUP(Wycena!$C$49,Mapping!$EZ$3:$FC$6,4,1),0))*HZ9 -> 400 | IB9: =IF(AND(Wycena!$C$20<>"-",Wycena!$C$21<>"-"),HW9,"") ->  | IC9: =IF(ROWS($IB$3:IB9)>(ROWS($IB$3:$IB$9)-COUNTBLANK($IB$3:$IB$9)),"",INDEX($IB$3:$IB$9,SMALL(IF($IB$3:$IB$9<>"",ROW($IB$3:$IB$9)-2),ROWS($IB$3:IB9)))) ->  | IH9: Nawierzchniowy z funkcją stop biały | II9: 500 | IW9: 0.06 | IY9: 700
A10: DB 12 | B10: 20 | C10: 20 | D10: 20 | E10: 20 | F10: 34 | G10: 34 | H10: 36 | I10: 36 | J10: Mapping dla naświetle | K10: 3 | M10: =IFERROR(VLOOKUP(Wycena!$C$5,OFFSET(SKU!$B$1,MATCH(Wycena!$C$5,SKU!$B$1:$B$743,0)+6,0,1000,6),5,0),"") ->  | N10: =IFERROR(VLOOKUP(Wycena!$C$5,OFFSET(SKU!$B$1,MATCH(Wycena!$C$5,SKU!$B$1:$B$743,0)+6,0,1000,6),2,0)-VLOOKUP(Wycena!$C$5,SKU!$B$1:$C$743,2,0),"") ->  | O10: =IF(ROWS($M$3:M10)>(ROWS($M$3:$M$10)-COUNTBLANK($M$3:$M$10)),"",INDEX($M$3:$M$10,SMALL(IF($M$3:$M$10<>"",ROW($M$3:$M$10)-2),ROWS($M$3:M10)))) ->  | Y10: Montana | AA10: Montana | AB10: =AA10 -> Montana | AC10: =IF(ROWS($AB$3:AB10)>(ROWS($AB$3:$AB$229)-COUNTBLANK($AB$3:$AB$229)),"",INDEX($AB$3:$AB$229,SMALL(IF($AB$3:$AB$229<>"",ROW($AB$3:$AB$229)-2),ROWS($AB$3:AB10)))) ->  | AK10: =$AK$3:INDEX($AK$3:$AK$7,(ROWS($AI$3:$AI$7)-COUNTBLANK($AI$3:$AI$7))) ->  | AX10: 79 | AY10: 0 | AZ10: 0 | BA10: =IF(Wycena!$C$16=78,Mapping!AY10,AZ10) -> 0 | BD10: 187 | BE10: 0 | BF10: 0 | BG10: =IF(Wycena!$C$16=78,Mapping!BE10,BF10) -> 0 | BS10: =$BS$3:INDEX($BS$3:$BS$8,(ROWS($BR$3:$BR$8)-COUNTBLANK($BR$3:$BR$8))) ->  | CA10: Dyskretne grafit refleks | CB10: 400 | CC10: =CB10*(1+IFERROR(VLOOKUP(Wycena!$C$45,Mapping!$EZ$3:$FC$6,4,1),0)+IFERROR(VLOOKUP(Wycena!$C$49,Mapping!$EZ$3:$FC$6,4,1),0))*(1+VLOOKUP(Wycena!$C$54,Mapping!$BW$3:$BX$6,2,1)) ->  | CD10: =IF(Wycena!$C$22="Imitacja skrzydła",CA9,"") ->  | CE10: =IF(Wycena!$C$22="-","",CD10) ->  | CF10: =IF(ROWS($CE$3:CE10)>(ROWS($CE$3:$CE$13)-COUNTBLANK($CE$3:$CE$13)),"",INDEX($CE$3:$CE$13,SMALL(IF($CE$3:$CE$13<>"",ROW($CE$3:$CE$13)-2),ROWS($CE$3:CE10)))) ->  | CO10: Przy skrzydle, naświetlu i ościeżnicy od zewnątrz | CP10: =1200+((IF(OR(Wycena!$C$20="W ościeżnicy nowoczesna",Wycena!$C$20="W ościeżnicy tradycyjna"),1,0))+(IF(OR(Wycena!$C$21="W ościeżnicy nowoczesna",Wycena!$C$21="W ościeżnicy tradycyjna"),1,0)))*600 -> 1200 | CQ10: =IF(Wycena!$C$25="Krosnowa","",CO10) -> Przy skrzydle, naświetlu i ościeżnicy od zewnątrz | CR10: =IF(Wycena!$C$14="Bezprzylgowe Glass","",CQ10) -> Przy skrzydle, naświetlu i ościeżnicy od zewnątrz | CS10: =IF(OR(Wycena!$C$20="W ościeżnicy nowoczesna",Wycena!$C$20="W ościeżnicy tradycyjna",Wycena!$C$21="W ościeżnicy nowoczesna",Wycena!$C$21="W ościeżnicy tradycyjna"),CR10,"") ->  | CT10: =IF(Wycena!$C$22="W ościeżnicy",CS10,"") ->  | CU10: =IF(ROWS($CT$3:CT10)>(ROWS($CT$3:$CT$11)-COUNTBLANK($CT$3:$CT$11)),"",INDEX($CT$3:$CT$11,SMALL(IF($CT$3:$CT$11<>"",ROW($CT$3:$CT$11)-2),ROWS($CT$3:CT10)))) ->  | CY10: Bezprzylgowe Glass | CZ10: 8 | DA10: 12 | DB10: =IF(DA10>=VLOOKUP(Wycena!$C$14,Mapping!$CY$3:$CZ$5,2,0),DA10,"") -> 12 | DC10: =IF(ROWS($DB$3:DB10)>(ROWS($DB$3:$DB$28)-COUNTBLANK($DB$3:$DB$28)),"",INDEX($DB$3:$DB$28,SMALL(IF($DB$3:$DB$28<>"",ROW($DB$3:$DB$28)-2),ROWS($DB$3:DB10)))) -> 13 | DG10: Bezprzylgowe Glass | DH10: 8 | DI10: 8 | DK10: 12 | DL10: =IF(DK10>=VLOOKUP(Wycena!$C$14,Mapping!$DG$3:$DH$5,2,0),DK10,"") -> 12 | DM10: =IF(ROWS($DL$3:DL10)>(ROWS($DL$3:$DL$28)-COUNTBLANK($DL$3:$DL$28)),"",INDEX($DL$3:$DL$28,SMALL(IF($DL$3:$DL$28<>"",ROW($DL$3:$DL$28)-2),ROWS($DL$3:DL10)))) -> 13 | DN10: =IF(DK10>=VLOOKUP(Wycena!$C$14,Mapping!$DG$3:$DI$5,3,0),DK10,"") -> 12 | DO10: =IF(ROWS($DN$3:DN10)>(ROWS($DN$3:$DN$28)-COUNTBLANK($DN$3:$DN$28)),"",INDEX($DN$3:$DN$28,SMALL(IF($DN$3:$DN$28<>"",ROW($DN$3:$DN$28)-2),ROWS($DN$3:DN10)))) -> 13 | DS10: 12 | DT10: =IF(DS10>=VLOOKUP(Wycena!$C$25,Mapping!$DQ$3:$DR$4,2,0),DS10,"") -> 12 | DU10: =IF(ROWS($DT$3:DT10)>(ROWS($DT$3:$DT$28)-COUNTBLANK($DT$3:$DT$28)),"",INDEX($DT$3:$DT$28,SMALL(IF($DT$3:$DT$28<>"",ROW($DT$3:$DT$28)-2),ROWS($DT$3:DT10)))) -> 17 | DW10: 7 | FE10: Dyskretne brąz refleks | FF10: 600 | FG10: =IF(OR(Wycena!$C$20="Imitacja skrzydła stała",Wycena!$C$20="Imitacja skrzydła ruchoma"),FE10,"") ->  | FH10: =IF(Wycena!$C$20="-","",FG10) ->  | FI10: =IF(ROWS($FH$3:FH10)>(ROWS($FH$3:$FH$14)-COUNTBLANK($FH$3:$FH$14)),"",INDEX($FH$3:$FH$14,SMALL(IF($FH$3:$FH$14<>"",ROW($FH$3:$FH$14)-2),ROWS($FH$3:FH10)))) ->  | FJ10: =IF(OR(Wycena!$C$21="Imitacja skrzydła stała",Wycena!$C$21="Imitacja skrzydła ruchoma"),FE10,"") ->  | FK10: =IF(Wycena!$C$21="-","",FJ10) ->  | FL10: =IF(ROWS($FK$3:FK10)>(ROWS($FK$3:$FK$14)-COUNTBLANK($FK$3:$FK$14)),"",INDEX($FK$3:$FK$14,SMALL(IF($FK$3:$FK$14<>"",ROW($FK$3:$FK$14)-2),ROWS($FK$3:FK10)))) ->  | FO10: 7 | FP10: =IF(Wycena!$C$20="-","",FO10) ->  | FQ10: =IF(ROWS($FP$3:FP10)>(ROWS($FP$3:$FP$23)-COUNTBLANK($FP$3:$FP$23)),"",INDEX($FP$3:$FP$23,SMALL(IF($FP$3:$FP$23<>"",ROW($FP$3:$FP$23)-2),ROWS($FP$3:FP10)))) ->  | FR10: =IF(Wycena!$C$21="-","",FO10) ->  | FS10: =IF(ROWS($FR$3:FR10)>(ROWS($FR$3:$FR$23)-COUNTBLANK($FR$3:$FR$23)),"",INDEX($FR$3:$FR$23,SMALL(IF($FR$3:$FR$23<>"",ROW($FR$3:$FR$23)-2),ROWS($FR$3:FR10)))) ->  | FT10: =IF(Wycena!$C$22="-","",FO10) ->  | FU10: =IF(ROWS($FT$3:FT10)>(ROWS($FT$3:$FT$23)-COUNTBLANK($FT$3:$FT$23)),"",INDEX($FT$3:$FT$23,SMALL(IF($FT$3:$FT$23<>"",ROW($FT$3:$FT$23)-2),ROWS($FT$3:FT10)))) ->  | FV10: x | FW10: Zestaw UNILOCK | FX10: 5900 | FY10: =IFERROR(VLOOKUP(Wycena!C59,OFFSET(FW15,MATCH(Wycena!C59,FW15:FW39,0)+6,0,15,2),2,0),"") -> Automat ADR 5-punktowy bez gałki | FZ10: =IF(ROWS($FY$3:FY10)>(ROWS($FY$3:$FY$10)-COUNTBLANK($FY$3:$FY$10)),"",INDEX($FY$3:$FY$10,SMALL(IF($FY$3:$FY$10<>"",ROW($FY$3:$FY$10)-2),ROWS($FY$3:FY10)))) -> Automat ADR 5-punktowy bez gałki | GA10: Klamka AXA Niagara Plus | GB10: 250 | GC10: Klamka AXA Niagara Plus | GD10: Klamka AXA Niagara Plus | GJ10: =IF((HLOOKUP(VLOOKUP(Wycena!$C$59,Mapping!$GI$35:$GJ$43,2,0),$GD$1:$GI$33,2+GK10))=0,"",(HLOOKUP(VLOOKUP(Wycena!$C$59,Mapping!$GI$35:$GJ$43,2,0),$GD$1:$GI$33,2+GK10))) -> Klamka AXA Niagara Plus | GK10: 8 | GL10: =IF(ROWS($GJ$3:GJ10)>(ROWS($GJ$3:$GJ$33)-COUNTBLANK($GJ$3:$GJ$33)),"",INDEX($GJ$3:$GJ$33,SMALL(IF($GJ$3:$GJ$33<>"",ROW($GJ$3:$GJ$33)-2),ROWS($GJ$3:GJ10)))) ->  | GM10: Klamka Barański Retro | GN10: Patyna | GQ10: x | GR10: x | HF10: W dostawce | HG10: 400 | HH10: 400 | HI10: W dostawce | HJ10: =IF(OR(AND(Wycena!$C$20="-",Wycena!$C$21<>"-"),AND(Wycena!$C$21="-",Wycena!$C$20<>"-")),HI10,"") ->  | HK10: =IF(ROWS($HJ$3:HJ10)>(ROWS($HJ$3:$HJ$13)-COUNTBLANK($HJ$3:$HJ$13)),"",INDEX($HJ$3:$HJ$13,SMALL(IF($HJ$3:$HJ$13<>"",ROW($HJ$3:$HJ$13)-2),ROWS($HJ$3:HJ10)))) ->  | HM10: Lewe na zewnątrz | HN10: 1 | HS10: 16 | HT10: =120+110 -> 230 | HU10: =(1+IFERROR(VLOOKUP(Wycena!$C$45,Mapping!$EZ$3:$FC$6,4,1),0)+IFERROR(VLOOKUP(Wycena!$C$49,Mapping!$EZ$3:$FC$6,4,1),0))*HT10 -> 230 | HW10: x | HX10: x | HY10: x | HZ10: x | IA10: x | IB10: x | IC10: x | IH10: Nawierzchniowy z funkcją stop brąz | II10: 500 | IW10: 0.07 | IY10: 800
A11: DB 14 | B11: 20 | C11: 20 | D11: 20 | E11: 20 | F11: 34 | G11: 34 | H11: 36 | I11: 36 | J11: W ościeżnicy | K11: 5 | M11: x | N11: x | O11: x | T11: =$T$3:INDEX($T$3:$T$8,(ROWS($S$3:$S$8)-COUNTBLANK($S$3:$S$8))) ->  | Y11: Orzech | Z11: 0 | AA11: =Y11 -> Orzech | AB11: =IF((VLOOKUP(Wycena!$C$7,Mapping!$Q$15:$R$20,2,0))="tak","",AA11) -> Orzech | AC11: =IF(ROWS($AB$3:AB11)>(ROWS($AB$3:$AB$229)-COUNTBLANK($AB$3:$AB$229)),"",INDEX($AB$3:$AB$229,SMALL(IF($AB$3:$AB$229<>"",ROW($AB$3:$AB$229)-2),ROWS($AB$3:AB11)))) ->  | AX11: 80 | AY11: 0 | AZ11: 0 | BA11: =IF(Wycena!$C$16=78,Mapping!AY11,AZ11) -> 0 | BD11: 188 | BE11: 0 | BF11: 0 | BG11: =IF(Wycena!$C$16=78,Mapping!BE11,BF11) -> 0 | CA11: Dyskretne lustrzane | CB11: 400 | CC11: =CB11*(1+IFERROR(VLOOKUP(Wycena!$C$45,Mapping!$EZ$3:$FC$6,4,1),0)+IFERROR(VLOOKUP(Wycena!$C$49,Mapping!$EZ$3:$FC$6,4,1),0))*(1+VLOOKUP(Wycena!$C$54,Mapping!$BW$3:$BX$6,2,1)) ->  | CD11: =IF(Wycena!$C$22="Imitacja skrzydła",CA10,"") ->  | CE11: =IF(Wycena!$C$22="-","",CD11) ->  | CF11: =IF(ROWS($CE$3:CE11)>(ROWS($CE$3:$CE$13)-COUNTBLANK($CE$3:$CE$13)),"",INDEX($CE$3:$CE$13,SMALL(IF($CE$3:$CE$13<>"",ROW($CE$3:$CE$13)-2),ROWS($CE$3:CE11)))) ->  | CO11: Przy skrzydle, naświetlu i ościeżnicy z dwóch stron | CP11: =1600+((IF(OR(Wycena!$C$20="W ościeżnicy nowoczesna",Wycena!$C$20="W ościeżnicy tradycyjna"),1,0))+(IF(OR(Wycena!$C$21="W ościeżnicy nowoczesna",Wycena!$C$21="W ościeżnicy tradycyjna"),1,0)))*800 -> 1600 | CQ11: =IF(Wycena!$C$25="Krosnowa","",CO11) -> Przy skrzydle, naświetlu i ościeżnicy z dwóch stron | CR11: =IF(Wycena!$C$14="Bezprzylgowe Glass","",CQ11) -> Przy skrzydle, naświetlu i ościeżnicy z dwóch stron | CS11: =IF(OR(Wycena!$C$20="W ościeżnicy nowoczesna",Wycena!$C$20="W ościeżnicy tradycyjna",Wycena!$C$21="W ościeżnicy nowoczesna",Wycena!$C$21="W ościeżnicy tradycyjna"),CR11,"") ->  | CT11: =IF(Wycena!$C$22="W ościeżnicy",CS11,"") ->  | CU11: =IF(ROWS($CT$3:CT11)>(ROWS($CT$3:$CT$11)-COUNTBLANK($CT$3:$CT$11)),"",INDEX($CT$3:$CT$11,SMALL(IF($CT$3:$CT$11<>"",ROW($CT$3:$CT$11)-2),ROWS($CT$3:CT11)))) ->  | DA11: 13 | DB11: =IF(DA11>=VLOOKUP(Wycena!$C$14,Mapping!$CY$3:$CZ$5,2,0),DA11,"") -> 13 | DC11: =IF(ROWS($DB$3:DB11)>(ROWS($DB$3:$DB$28)-COUNTBLANK($DB$3:$DB$28)),"",INDEX($DB$3:$DB$28,SMALL(IF($DB$3:$DB$28<>"",ROW($DB$3:$DB$28)-2),ROWS($DB$3:DB11)))) -> 14 | DK11: 13 | DL11: =IF(DK11>=VLOOKUP(Wycena!$C$14,Mapping!$DG$3:$DH$5,2,0),DK11,"") -> 13 | DM11: =IF(ROWS($DL$3:DL11)>(ROWS($DL$3:$DL$28)-COUNTBLANK($DL$3:$DL$28)),"",INDEX($DL$3:$DL$28,SMALL(IF($DL$3:$DL$28<>"",ROW($DL$3:$DL$28)-2),ROWS($DL$3:DL11)))) -> 14 | DN11: =IF(DK11>=VLOOKUP(Wycena!$C$14,Mapping!$DG$3:$DI$5,3,0),DK11,"") -> 13 | DO11: =IF(ROWS($DN$3:DN11)>(ROWS($DN$3:$DN$28)-COUNTBLANK($DN$3:$DN$28)),"",INDEX($DN$3:$DN$28,SMALL(IF($DN$3:$DN$28<>"",ROW($DN$3:$DN$28)-2),ROWS($DN$3:DN11)))) -> 14 | DS11: 13 | DT11: =IF(DS11>=VLOOKUP(Wycena!$C$25,Mapping!$DQ$3:$DR$4,2,0),DS11,"") -> 13 | DU11: =IF(ROWS($DT$3:DT11)>(ROWS($DT$3:$DT$28)-COUNTBLANK($DT$3:$DT$28)),"",INDEX($DT$3:$DT$28,SMALL(IF($DT$3:$DT$28<>"",ROW($DT$3:$DT$28)-2),ROWS($DT$3:DT11)))) -> 18 | DW11: 8 | EQ11: =$EQ$3:INDEX($EQ$3:$EQ$8,(ROWS($EP$3:$EP$8)-COUNTBLANK($EP$3:$EP$8))) -> 90 | EW11: =$EW$3:INDEX($EW$3:$EW$8,(ROWS($EV$3:$EV$8)-COUNTBLANK($EV$3:$EV$8))) -> 204 | FE11: Dyskretne grafit refleks | FF11: 600 | FG11: =IF(OR(Wycena!$C$20="Imitacja skrzydła stała",Wycena!$C$20="Imitacja skrzydła ruchoma"),FE11,"") ->  | FH11: =IF(Wycena!$C$20="-","",FG11) ->  | FI11: =IF(ROWS($FH$3:FH11)>(ROWS($FH$3:$FH$14)-COUNTBLANK($FH$3:$FH$14)),"",INDEX($FH$3:$FH$14,SMALL(IF($FH$3:$FH$14<>"",ROW($FH$3:$FH$14)-2),ROWS($FH$3:FH11)))) ->  | FJ11: =IF(OR(Wycena!$C$21="Imitacja skrzydła stała",Wycena!$C$21="Imitacja skrzydła ruchoma"),FE11,"") ->  | FK11: =IF(Wycena!$C$21="-","",FJ11) ->  | FL11: =IF(ROWS($FK$3:FK11)>(ROWS($FK$3:$FK$14)-COUNTBLANK($FK$3:$FK$14)),"",INDEX($FK$3:$FK$14,SMALL(IF($FK$3:$FK$14<>"",ROW($FK$3:$FK$14)-2),ROWS($FK$3:FK11)))) ->  | FO11: 8 | FP11: =IF(Wycena!$C$20="-","",FO11) ->  | FQ11: =IF(ROWS($FP$3:FP11)>(ROWS($FP$3:$FP$23)-COUNTBLANK($FP$3:$FP$23)),"",INDEX($FP$3:$FP$23,SMALL(IF($FP$3:$FP$23<>"",ROW($FP$3:$FP$23)-2),ROWS($FP$3:FP11)))) ->  | FR11: =IF(Wycena!$C$21="-","",FO11) ->  | FS11: =IF(ROWS($FR$3:FR11)>(ROWS($FR$3:$FR$23)-COUNTBLANK($FR$3:$FR$23)),"",INDEX($FR$3:$FR$23,SMALL(IF($FR$3:$FR$23<>"",ROW($FR$3:$FR$23)-2),ROWS($FR$3:FR11)))) ->  | FT11: =IF(Wycena!$C$22="-","",FO11) ->  | FU11: =IF(ROWS($FT$3:FT11)>(ROWS($FT$3:$FT$23)-COUNTBLANK($FT$3:$FT$23)),"",INDEX($FT$3:$FT$23,SMALL(IF($FT$3:$FT$23<>"",ROW($FT$3:$FT$23)-2),ROWS($FT$3:FT11)))) ->  | FW11: Zestaw UNILOCK WIFI | FX11: 6500 | FY11: x | FZ11: x | GA11: Klamka AXA Prestige Flex | GB11: 500 | GC11: Klamka AXA Prestige Flex | GD11: Klamka AXA Prestige Flex | GJ11: =IF((HLOOKUP(VLOOKUP(Wycena!$C$59,Mapping!$GI$35:$GJ$43,2,0),$GD$1:$GI$33,2+GK11))=0,"",(HLOOKUP(VLOOKUP(Wycena!$C$59,Mapping!$GI$35:$GJ$43,2,0),$GD$1:$GI$33,2+GK11))) -> Klamka AXA Prestige Flex | GK11: 9 | GL11: =IF(ROWS($GJ$3:GJ11)>(ROWS($GJ$3:$GJ$33)-COUNTBLANK($GJ$3:$GJ$33)),"",INDEX($GJ$3:$GJ$33,SMALL(IF($GJ$3:$GJ$33<>"",ROW($GJ$3:$GJ$33)-2),ROWS($GJ$3:GJ11)))) ->  | GM11: Klamka Hoppe Bezpieczna | GN11: Satyna | GV11: =$GV$3:INDEX($GV$3:$GV$8,(ROWS($GU$3:$GU$8)-COUNTBLANK($GU$3:$GU$8))) -> Standard satyna | HF11: W dostawkach | HG11: 800 | HH11: 800 | HI11: W dostawkach | HJ11: =IF(AND(Wycena!$C$20<>"-",Wycena!$C$21<>"-"),HI11,"") ->  | HK11: =IF(ROWS($HJ$3:HJ11)>(ROWS($HJ$3:$HJ$13)-COUNTBLANK($HJ$3:$HJ$13)),"",INDEX($HJ$3:$HJ$13,SMALL(IF($HJ$3:$HJ$13<>"",ROW($HJ$3:$HJ$13)-2),ROWS($HJ$3:HJ11)))) ->  | HM11: Lewe do wewnątrz | HN11: 0 | HS11: 18 | HT11: 240 | HU11: =(1+IFERROR(VLOOKUP(Wycena!$C$45,Mapping!$EZ$3:$FC$6,4,1),0)+IFERROR(VLOOKUP(Wycena!$C$49,Mapping!$EZ$3:$FC$6,4,1),0))*HT11 -> 240 | IH11: Nawierzchniowy z funkcją stop czarny | II11: 500 | IW11: 0.08 | IY11: 900
A12: DB 17 | B12: 20 | C12: 20 | D12: 20 | E12: 20 | F12: 34 | G12: 34 | H12: 36 | I12: 36 | J12: Imitacja skrzydła | K12: 3 | Y12: Palisander | Z12: 0 | AA12: Palisander | AB12: =IF((VLOOKUP(Wycena!$C$7,Mapping!$Q$15:$R$20,2,0))="tak","",AA12) -> Palisander | AC12: =IF(ROWS($AB$3:AB12)>(ROWS($AB$3:$AB$229)-COUNTBLANK($AB$3:$AB$229)),"",INDEX($AB$3:$AB$229,SMALL(IF($AB$3:$AB$229<>"",ROW($AB$3:$AB$229)-2),ROWS($AB$3:AB12)))) ->  | AX12: 81 | AY12: 0 | AZ12: 0 | BA12: =IF(Wycena!$C$16=78,Mapping!AY12,AZ12) -> 0 | BD12: 189 | BE12: 0 | BF12: 0 | BG12: =IF(Wycena!$C$16=78,Mapping!BE12,BF12) -> 0 | CA12: Dyskretne lustro weneckie w głębi | CB12: 400 | CC12: =CB12*(1+IFERROR(VLOOKUP(Wycena!$C$45,Mapping!$EZ$3:$FC$6,4,1),0)+IFERROR(VLOOKUP(Wycena!$C$49,Mapping!$EZ$3:$FC$6,4,1),0))*(1+VLOOKUP(Wycena!$C$54,Mapping!$BW$3:$BX$6,2,1)) ->  | CD12: =IF(Wycena!$C$22="Imitacja skrzydła",CA11,"") ->  | CE12: =IF(Wycena!$C$22="-","",CD12) ->  | CF12: =IF(ROWS($CE$3:CE12)>(ROWS($CE$3:$CE$13)-COUNTBLANK($CE$3:$CE$13)),"",INDEX($CE$3:$CE$13,SMALL(IF($CE$3:$CE$13<>"",ROW($CE$3:$CE$13)-2),ROWS($CE$3:CE12)))) ->  | CO12: x | CR12: x | CS12: x | CT12: x | CU12: x | CY12: vlookup ościeżnicy | CZ12: stawki pod liczenie | DA12: 14 | DB12: =IF(DA12>=VLOOKUP(Wycena!$C$14,Mapping!$CY$3:$CZ$5,2,0),DA12,"") -> 14 | DC12: =IF(ROWS($DB$3:DB12)>(ROWS($DB$3:$DB$28)-COUNTBLANK($DB$3:$DB$28)),"",INDEX($DB$3:$DB$28,SMALL(IF($DB$3:$DB$28<>"",ROW($DB$3:$DB$28)-2),ROWS($DB$3:DB12)))) -> 15 | DG12: vlookup ościeżnicy | DH12: stawki pod liczenie | DI12: stawki pod liczenie | DK12: 14 | DL12: =IF(DK12>=VLOOKUP(Wycena!$C$14,Mapping!$DG$3:$DH$5,2,0),DK12,"") -> 14 | DM12: =IF(ROWS($DL$3:DL12)>(ROWS($DL$3:$DL$28)-COUNTBLANK($DL$3:$DL$28)),"",INDEX($DL$3:$DL$28,SMALL(IF($DL$3:$DL$28<>"",ROW($DL$3:$DL$28)-2),ROWS($DL$3:DL12)))) -> 15 | DN12: =IF(DK12>=VLOOKUP(Wycena!$C$14,Mapping!$DG$3:$DI$5,3,0),DK12,"") -> 14 | DO12: =IF(ROWS($DN$3:DN12)>(ROWS($DN$3:$DN$28)-COUNTBLANK($DN$3:$DN$28)),"",INDEX($DN$3:$DN$28,SMALL(IF($DN$3:$DN$28<>"",ROW($DN$3:$DN$28)-2),ROWS($DN$3:DN12)))) -> 15 | DQ12: vlookup rodzaj | DR12: stawki pod liczenie | DS12: 14 | DT12: =IF(DS12>=VLOOKUP(Wycena!$C$25,Mapping!$DQ$3:$DR$4,2,0),DS12,"") -> 14 | DU12: =IF(ROWS($DT$3:DT12)>(ROWS($DT$3:$DT$28)-COUNTBLANK($DT$3:$DT$28)),"",INDEX($DT$3:$DT$28,SMALL(IF($DT$3:$DT$28<>"",ROW($DT$3:$DT$28)-2),ROWS($DT$3:DT12)))) -> 19 | DW12: 9 | FE12: Dyskretne lustrzane | FF12: 600 | FG12: =IF(OR(Wycena!$C$20="Imitacja skrzydła stała",Wycena!$C$20="Imitacja skrzydła ruchoma"),FE12,"") ->  | FH12: =IF(Wycena!$C$20="-","",FG12) ->  | FI12: =IF(ROWS($FH$3:FH12)>(ROWS($FH$3:$FH$14)-COUNTBLANK($FH$3:$FH$14)),"",INDEX($FH$3:$FH$14,SMALL(IF($FH$3:$FH$14<>"",ROW($FH$3:$FH$14)-2),ROWS($FH$3:FH12)))) ->  | FJ12: =IF(OR(Wycena!$C$21="Imitacja skrzydła stała",Wycena!$C$21="Imitacja skrzydła ruchoma"),FE12,"") ->  | FK12: =IF(Wycena!$C$21="-","",FJ12) ->  | FL12: =IF(ROWS($FK$3:FK12)>(ROWS($FK$3:$FK$14)-COUNTBLANK($FK$3:$FK$14)),"",INDEX($FK$3:$FK$14,SMALL(IF($FK$3:$FK$14<>"",ROW($FK$3:$FK$14)-2),ROWS($FK$3:FK12)))) ->  | FO12: 9 | FP12: =IF(Wycena!$C$20="-","",FO12) ->  | FQ12: =IF(ROWS($FP$3:FP12)>(ROWS($FP$3:$FP$23)-COUNTBLANK($FP$3:$FP$23)),"",INDEX($FP$3:$FP$23,SMALL(IF($FP$3:$FP$23<>"",ROW($FP$3:$FP$23)-2),ROWS($FP$3:FP12)))) ->  | FR12: =IF(Wycena!$C$21="-","",FO12) ->  | FS12: =IF(ROWS($FR$3:FR12)>(ROWS($FR$3:$FR$23)-COUNTBLANK($FR$3:$FR$23)),"",INDEX($FR$3:$FR$23,SMALL(IF($FR$3:$FR$23<>"",ROW($FR$3:$FR$23)-2),ROWS($FR$3:FR12)))) ->  | FT12: =IF(Wycena!$C$22="-","",FO12) ->  | FU12: =IF(ROWS($FT$3:FT12)>(ROWS($FT$3:$FT$23)-COUNTBLANK($FT$3:$FT$23)),"",INDEX($FT$3:$FT$23,SMALL(IF($FT$3:$FT$23<>"",ROW($FT$3:$FT$23)-2),ROWS($FT$3:FT12)))) ->  | GA12: Klamka AXA Slim Plus | GB12: 250 | GC12: Klamka AXA Slim Plus | GD12: Klamka AXA Slim Plus | GJ12: =IF((HLOOKUP(VLOOKUP(Wycena!$C$59,Mapping!$GI$35:$GJ$43,2,0),$GD$1:$GI$33,2+GK12))=0,"",(HLOOKUP(VLOOKUP(Wycena!$C$59,Mapping!$GI$35:$GJ$43,2,0),$GD$1:$GI$33,2+GK12))) -> Klamka AXA Slim Plus | GK12: 10 | GL12: =IF(ROWS($GJ$3:GJ12)>(ROWS($GJ$3:$GJ$33)-COUNTBLANK($GJ$3:$GJ$33)),"",INDEX($GJ$3:$GJ$33,SMALL(IF($GJ$3:$GJ$33<>"",ROW($GJ$3:$GJ$33)-2),ROWS($GJ$3:GJ12)))) ->  | GM12: Klamka Hoppe Bezpieczna | GN12: Patyna | GR12: =$GR$3:INDEX($GR$3:$GR$9,(ROWS($GQ$3:$GQ$9)-COUNTBLANK($GQ$3:$GQ$9))) -> - | HF12: W dostawce i naświetlu | HG12: 800 | HH12: 800 | HI12: W dostawce i naświetlu | HJ12: =IF(OR(AND(Wycena!$C$20="-",Wycena!$C$21<>"-",Wycena!C22<>"-"),AND(Wycena!$C$21="-",Wycena!$C$20<>"-",Wycena!C22<>"-")),HI12,"") ->  | HK12: =IF(ROWS($HJ$3:HJ12)>(ROWS($HJ$3:$HJ$13)-COUNTBLANK($HJ$3:$HJ$13)),"",INDEX($HJ$3:$HJ$13,SMALL(IF($HJ$3:$HJ$13<>"",ROW($HJ$3:$HJ$13)-2),ROWS($HJ$3:HJ12)))) ->  | HM12: Prawe na zewnątrz | HN12: 1 | HS12: 19 | HT12: =110+3*60 -> 290 | HU12: =(1+IFERROR(VLOOKUP(Wycena!$C$45,Mapping!$EZ$3:$FC$6,4,1),0)+IFERROR(VLOOKUP(Wycena!$C$49,Mapping!$EZ$3:$FC$6,4,1),0))*HT12 -> 290 | IC12: =$IC$3:INDEX($IC$3:$IC$9,(ROWS($IB$3:$IB$9)-COUNTBLANK($IB$3:$IB$9))) -> - | IH12: Ukryty | II12: 1000 | IW12: 0.09 | IY12: 1000
A13: DB 18 | B13: 20 | C13: 20 | D13: 20 | E13: 20 | F13: 34 | G13: 34 | H13: 36 | I13: 36 | J13: W łuku w ościeżnicy | O13: =$O$3:INDEX($O$3:$O$10,(ROWS($M$3:$M$10)-COUNTBLANK($M$3:$M$10))) ->  | Y13: Teak | Z13: 0 | AA13: Teak | AB13: =IF((VLOOKUP(Wycena!$C$7,Mapping!$Q$15:$R$20,2,0))="tak","",AA13) -> Teak | AC13: =IF(ROWS($AB$3:AB13)>(ROWS($AB$3:$AB$229)-COUNTBLANK($AB$3:$AB$229)),"",INDEX($AB$3:$AB$229,SMALL(IF($AB$3:$AB$229<>"",ROW($AB$3:$AB$229)-2),ROWS($AB$3:AB13)))) ->  | AX13: 82 | AY13: 0 | AZ13: 0 | BA13: =IF(Wycena!$C$16=78,Mapping!AY13,AZ13) -> 0 | BD13: 190 | BE13: 0 | BF13: 0 | BG13: =IF(Wycena!$C$16=78,Mapping!BE13,BF13) -> 0 | CA13: x | CB13: x | CD13: =IF(Wycena!$C$22="Imitacja skrzydła",CA12,"") ->  | CE13: =IF(Wycena!$C$22="-","",CD13) ->  | CF13: =IF(ROWS($CE$3:CE13)>(ROWS($CE$3:$CE$13)-COUNTBLANK($CE$3:$CE$13)),"",INDEX($CE$3:$CE$13,SMALL(IF($CE$3:$CE$13<>"",ROW($CE$3:$CE$13)-2),ROWS($CE$3:CE13)))) ->  | CY13: Przylgowe | CZ13: 26 | DA13: 15 | DB13: =IF(DA13>=VLOOKUP(Wycena!$C$14,Mapping!$CY$3:$CZ$5,2,0),DA13,"") -> 15 | DC13: =IF(ROWS($DB$3:DB13)>(ROWS($DB$3:$DB$28)-COUNTBLANK($DB$3:$DB$28)),"",INDEX($DB$3:$DB$28,SMALL(IF($DB$3:$DB$28<>"",ROW($DB$3:$DB$28)-2),ROWS($DB$3:DB13)))) -> 16 | DG13: Przylgowe | DH13: 26 | DI13: 26 | DK13: 15 | DL13: =IF(DK13>=VLOOKUP(Wycena!$C$14,Mapping!$DG$3:$DH$5,2,0),DK13,"") -> 15 | DM13: =IF(ROWS($DL$3:DL13)>(ROWS($DL$3:$DL$28)-COUNTBLANK($DL$3:$DL$28)),"",INDEX($DL$3:$DL$28,SMALL(IF($DL$3:$DL$28<>"",ROW($DL$3:$DL$28)-2),ROWS($DL$3:DL13)))) -> 16 | DN13: =IF(DK13>=VLOOKUP(Wycena!$C$14,Mapping!$DG$3:$DI$5,3,0),DK13,"") -> 15 | DO13: =IF(ROWS($DN$3:DN13)>(ROWS($DN$3:$DN$28)-COUNTBLANK($DN$3:$DN$28)),"",INDEX($DN$3:$DN$28,SMALL(IF($DN$3:$DN$28<>"",ROW($DN$3:$DN$28)-2),ROWS($DN$3:DN13)))) -> 16 | DQ13: standardowa | DR13: 18 | DS13: 15 | DT13: =IF(DS13>=VLOOKUP(Wycena!$C$25,Mapping!$DQ$3:$DR$4,2,0),DS13,"") -> 15 | DU13: =IF(ROWS($DT$3:DT13)>(ROWS($DT$3:$DT$28)-COUNTBLANK($DT$3:$DT$28)),"",INDEX($DT$3:$DT$28,SMALL(IF($DT$3:$DT$28<>"",ROW($DT$3:$DT$28)-2),ROWS($DT$3:DT13)))) -> 20 | DW13: 10 | FE13: Dyskretne lustro weneckie w głębi | FF13: 600 | FG13: =IF(OR(Wycena!$C$20="Imitacja skrzydła stała",Wycena!$C$20="Imitacja skrzydła ruchoma"),FE13,"") ->  | FH13: =IF(Wycena!$C$20="-","",FG13) ->  | FI13: =IF(ROWS($FH$3:FH13)>(ROWS($FH$3:$FH$14)-COUNTBLANK($FH$3:$FH$14)),"",INDEX($FH$3:$FH$14,SMALL(IF($FH$3:$FH$14<>"",ROW($FH$3:$FH$14)-2),ROWS($FH$3:FH13)))) ->  | FJ13: =IF(OR(Wycena!$C$21="Imitacja skrzydła stała",Wycena!$C$21="Imitacja skrzydła ruchoma"),FE13,"") ->  | FK13: =IF(Wycena!$C$21="-","",FJ13) ->  | FL13: =IF(ROWS($FK$3:FK13)>(ROWS($FK$3:$FK$14)-COUNTBLANK($FK$3:$FK$14)),"",INDEX($FK$3:$FK$14,SMALL(IF($FK$3:$FK$14<>"",ROW($FK$3:$FK$14)-2),ROWS($FK$3:FK13)))) ->  | FO13: 10 | FP13: =IF(Wycena!$C$20="-","",FO13) ->  | FQ13: =IF(ROWS($FP$3:FP13)>(ROWS($FP$3:$FP$23)-COUNTBLANK($FP$3:$FP$23)),"",INDEX($FP$3:$FP$23,SMALL(IF($FP$3:$FP$23<>"",ROW($FP$3:$FP$23)-2),ROWS($FP$3:FP13)))) ->  | FR13: =IF(Wycena!$C$21="-","",FO13) ->  | FS13: =IF(ROWS($FR$3:FR13)>(ROWS($FR$3:$FR$23)-COUNTBLANK($FR$3:$FR$23)),"",INDEX($FR$3:$FR$23,SMALL(IF($FR$3:$FR$23<>"",ROW($FR$3:$FR$23)-2),ROWS($FR$3:FR13)))) ->  | FT13: =IF(Wycena!$C$22="-","",FO13) ->  | FU13: =IF(ROWS($FT$3:FT13)>(ROWS($FT$3:$FT$23)-COUNTBLANK($FT$3:$FT$23)),"",INDEX($FT$3:$FT$23,SMALL(IF($FT$3:$FT$23<>"",ROW($FT$3:$FT$23)-2),ROWS($FT$3:FT13)))) ->  | FZ13: =$FZ$3:INDEX($FZ$3:$FZ$10,(ROWS($FY$3:$FY$10)-COUNTBLANK($FY$3:$FY$10))) -> Ryglowy 3-punktowy z gałką (standard) | GA13: Klamko - gałka Medos Warszawa | GB13: 250 | GC13: Klamko - gałka Medos Warszawa | GD13: Klamko - gałka Medos Warszawa | GJ13: =IF((HLOOKUP(VLOOKUP(Wycena!$C$59,Mapping!$GI$35:$GJ$43,2,0),$GD$1:$GI$33,2+GK13))=0,"",(HLOOKUP(VLOOKUP(Wycena!$C$59,Mapping!$GI$35:$GJ$43,2,0),$GD$1:$GI$33,2+GK13))) -> Klamko - gałka Medos Warszawa | GK13: 11 | GL13: =IF(ROWS($GJ$3:GJ13)>(ROWS($GJ$3:$GJ$33)-COUNTBLANK($GJ$3:$GJ$33)),"",INDEX($GJ$3:$GJ$33,SMALL(IF($GJ$3:$GJ$33<>"",ROW($GJ$3:$GJ$33)-2),ROWS($GJ$3:GJ13)))) ->  | GM13: Klamka AXA Diva Flex | GN13: Inox | GR13: - | HF13: W dostawkach i naświetlu | HG13: 1200 | HH13: 1200 | HI13: W dostawkach i naświetlu | HJ13: =IF(AND(Wycena!$C$20<>"-",Wycena!$C$21<>"-",Wycena!$C$22<>"-"),HI13,"") ->  | HK13: =IF(ROWS($HJ$3:HJ13)>(ROWS($HJ$3:$HJ$13)-COUNTBLANK($HJ$3:$HJ$13)),"",INDEX($HJ$3:$HJ$13,SMALL(IF($HJ$3:$HJ$13<>"",ROW($HJ$3:$HJ$13)-2),ROWS($HJ$3:HJ13)))) ->  | HM13: Prawe do wewnątrz | HN13: 0 | HS13: 20 | HT13: 220 | HU13: =(1+IFERROR(VLOOKUP(Wycena!$C$45,Mapping!$EZ$3:$FC$6,4,1),0)+IFERROR(VLOOKUP(Wycena!$C$49,Mapping!$EZ$3:$FC$6,4,1),0))*HT13 -> 220 | IH13: Ukryty z funkcją stop | II13: 1150 | IW13: 0.1 | IY13: 1100
A14: DB 19a | B14: 20 | C14: 20 | D14: 20 | E14: 20 | F14: 50 | G14: 50 | H14: 50 | I14: 50 | Q14: Wykończenie po konstukcji | Y14: Vintage oak | Z14: 0 | AA14: Vintage oak | AB14: =IF((VLOOKUP(Wycena!$C$7,Mapping!$Q$15:$R$20,2,0))="tak","",AA14) -> Vintage oak | AC14: =IF(ROWS($AB$3:AB14)>(ROWS($AB$3:$AB$229)-COUNTBLANK($AB$3:$AB$229)),"",INDEX($AB$3:$AB$229,SMALL(IF($AB$3:$AB$229<>"",ROW($AB$3:$AB$229)-2),ROWS($AB$3:AB14)))) ->  | AX14: 83 | AY14: 0 | AZ14: 0 | BA14: =IF(Wycena!$C$16=78,Mapping!AY14,AZ14) -> 0 | BD14: 191 | BE14: 0 | BF14: 0 | BG14: =IF(Wycena!$C$16=78,Mapping!BE14,BF14) -> 0 | CD14: x | CE14: x | CF14: x | CU14: =$CU$3:INDEX($CU$3:$CU$11,(ROWS($CT$3:$CT$11)-COUNTBLANK($CT$3:$CT$11))) -> - | CY14: Bezprzylgowe | CZ14: 26 | DA14: 16 | DB14: =IF(DA14>=VLOOKUP(Wycena!$C$14,Mapping!$CY$3:$CZ$5,2,0),DA14,"") -> 16 | DC14: =IF(ROWS($DB$3:DB14)>(ROWS($DB$3:$DB$28)-COUNTBLANK($DB$3:$DB$28)),"",INDEX($DB$3:$DB$28,SMALL(IF($DB$3:$DB$28<>"",ROW($DB$3:$DB$28)-2),ROWS($DB$3:DB14)))) -> 17 | DG14: Bezprzylgowe | DH14: 26 | DI14: 26 | DK14: 16 | DL14: =IF(DK14>=VLOOKUP(Wycena!$C$14,Mapping!$DG$3:$DH$5,2,0),DK14,"") -> 16 | DM14: =IF(ROWS($DL$3:DL14)>(ROWS($DL$3:$DL$28)-COUNTBLANK($DL$3:$DL$28)),"",INDEX($DL$3:$DL$28,SMALL(IF($DL$3:$DL$28<>"",ROW($DL$3:$DL$28)-2),ROWS($DL$3:DL14)))) -> 17 | DN14: =IF(DK14>=VLOOKUP(Wycena!$C$14,Mapping!$DG$3:$DI$5,3,0),DK14,"") -> 16 | DO14: =IF(ROWS($DN$3:DN14)>(ROWS($DN$3:$DN$28)-COUNTBLANK($DN$3:$DN$28)),"",INDEX($DN$3:$DN$28,SMALL(IF($DN$3:$DN$28<>"",ROW($DN$3:$DN$28)-2),ROWS($DN$3:DN14)))) -> 17 | DQ14: krosnowa | DR14: 18 | DS14: 16 | DT14: =IF(DS14>=VLOOKUP(Wycena!$C$25,Mapping!$DQ$3:$DR$4,2,0),DS14,"") -> 16 | DU14: =IF(ROWS($DT$3:DT14)>(ROWS($DT$3:$DT$28)-COUNTBLANK($DT$3:$DT$28)),"",INDEX($DT$3:$DT$28,SMALL(IF($DT$3:$DT$28<>"",ROW($DT$3:$DT$28)-2),ROWS($DT$3:DT14)))) -> 21 | DW14: 11 | FE14: Witraż | FF14: 1000 | FG14: =IF(OR(Wycena!$C$20="Imitacja skrzydła stała",Wycena!$C$20="Imitacja skrzydła ruchoma",Wycena!$C$20="W ościeżnicy tradycyjna"),FE14,"") ->  | FH14: =IF(Wycena!$C$20="-","",FG14) ->  | FI14: =IF(ROWS($FH$3:FH14)>(ROWS($FH$3:$FH$14)-COUNTBLANK($FH$3:$FH$14)),"",INDEX($FH$3:$FH$14,SMALL(IF($FH$3:$FH$14<>"",ROW($FH$3:$FH$14)-2),ROWS($FH$3:FH14)))) ->  | FJ14: =IF(OR(Wycena!$C$21="Imitacja skrzydła stała",Wycena!$C$21="Imitacja skrzydła ruchoma",Wycena!$C$21="W ościeżnicy tradycyjna"),FE14,"") ->  | FK14: =IF(Wycena!$C$21="-","",FJ14) ->  | FL14: =IF(ROWS($FK$3:FK14)>(ROWS($FK$3:$FK$14)-COUNTBLANK($FK$3:$FK$14)),"",INDEX($FK$3:$FK$14,SMALL(IF($FK$3:$FK$14<>"",ROW($FK$3:$FK$14)-2),ROWS($FK$3:FK14)))) ->  | FO14: 11 | FP14: =IF(Wycena!$C$20="-","",FO14) ->  | FQ14: =IF(ROWS($FP$3:FP14)>(ROWS($FP$3:$FP$23)-COUNTBLANK($FP$3:$FP$23)),"",INDEX($FP$3:$FP$23,SMALL(IF($FP$3:$FP$23<>"",ROW($FP$3:$FP$23)-2),ROWS($FP$3:FP14)))) ->  | FR14: =IF(Wycena!$C$21="-","",FO14) ->  | FS14: =IF(ROWS($FR$3:FR14)>(ROWS($FR$3:$FR$23)-COUNTBLANK($FR$3:$FR$23)),"",INDEX($FR$3:$FR$23,SMALL(IF($FR$3:$FR$23<>"",ROW($FR$3:$FR$23)-2),ROWS($FR$3:FR14)))) ->  | FT14: =IF(Wycena!$C$22="-","",FO14) ->  | FU14: =IF(ROWS($FT$3:FT14)>(ROWS($FT$3:$FT$23)-COUNTBLANK($FT$3:$FT$23)),"",INDEX($FT$3:$FT$23,SMALL(IF($FT$3:$FT$23<>"",ROW($FT$3:$FT$23)-2),ROWS($FT$3:FT14)))) ->  | FW14: zestaw specjalny | FX14: zamek | FY14: Cena | GA14: Klamko - gałka Medos Dublin | GB14: 250 | GC14: Klamko - gałka Medos Dublin | GD14: Klamko - gałka Medos Dublin | GJ14: =IF((HLOOKUP(VLOOKUP(Wycena!$C$59,Mapping!$GI$35:$GJ$43,2,0),$GD$1:$GI$33,2+GK14))=0,"",(HLOOKUP(VLOOKUP(Wycena!$C$59,Mapping!$GI$35:$GJ$43,2,0),$GD$1:$GI$33,2+GK14))) -> Klamko - gałka Medos Dublin | GK14: 12 | GL14: =IF(ROWS($GJ$3:GJ14)>(ROWS($GJ$3:$GJ$33)-COUNTBLANK($GJ$3:$GJ$33)),"",INDEX($GJ$3:$GJ$33,SMALL(IF($GJ$3:$GJ$33<>"",ROW($GJ$3:$GJ$33)-2),ROWS($GJ$3:GJ14)))) ->  | GM14: Klamka AXA Diva Flex | GN14: Tytan | GR14: - | GW14: Po zestawie | HF14: x | HG14: x | HH14: x | HI14: x | HJ14: x | HK14: x | HS14: 21 | HT14: =110+70+120 -> 300 | HU14: =(1+IFERROR(VLOOKUP(Wycena!$C$45,Mapping!$EZ$3:$FC$6,4,1),0)+IFERROR(VLOOKUP(Wycena!$C$49,Mapping!$EZ$3:$FC$6,4,1),0))*HT14 -> 300 | IW14: 0.11 | IY14: 1200
A15: DB 20 | B15: 20 | C15: 20 | D15: 20 | E15: 20 | F15: 34 | G15: 34 | H15: =F15+2 -> 36 | I15: =G15+2 -> 36 | Q15: Dab prosty podluzny | R15: nie | Y15: Winchester | Z15: 0 | AA15: Winchester | AB15: =AA15 -> Winchester | AC15: =IF(ROWS($AB$3:AB15)>(ROWS($AB$3:$AB$229)-COUNTBLANK($AB$3:$AB$229)),"",INDEX($AB$3:$AB$229,SMALL(IF($AB$3:$AB$229<>"",ROW($AB$3:$AB$229)-2),ROWS($AB$3:AB15)))) ->  | AX15: 84 | AY15: 0 | AZ15: 0 | BA15: =IF(Wycena!$C$16=78,Mapping!AY15,AZ15) -> 0 | BD15: 192 | BE15: 0 | BF15: 0 | BG15: =IF(Wycena!$C$16=78,Mapping!BE15,BF15) -> 0 | CO15: =VLOOKUP(Wycena!C26,$CO$16:$CS$25,IF(AND(Wycena!C20="-",Wycena!C21="-"),2,IF(AND(Wycena!C20<>"-",Wycena!C21="-"),3,IF(AND(Wycena!C20="-",Wycena!C21<>"-"),4,5))),0) -> 0 | CY15: Bezprzylgowe Glass | CZ15: 70 | DA15: 17 | DB15: =IF(DA15>=VLOOKUP(Wycena!$C$14,Mapping!$CY$3:$CZ$5,2,0),DA15,"") -> 17 | DC15: =IF(ROWS($DB$3:DB15)>(ROWS($DB$3:$DB$28)-COUNTBLANK($DB$3:$DB$28)),"",INDEX($DB$3:$DB$28,SMALL(IF($DB$3:$DB$28<>"",ROW($DB$3:$DB$28)-2),ROWS($DB$3:DB15)))) -> 18 | DG15: Bezprzylgowe Glass | DH15: 70 | DI15: 70 | DK15: 17 | DL15: =IF(DK15>=VLOOKUP(Wycena!$C$14,Mapping!$DG$3:$DH$5,2,0),DK15,"") -> 17 | DM15: =IF(ROWS($DL$3:DL15)>(ROWS($DL$3:$DL$28)-COUNTBLANK($DL$3:$DL$28)),"",INDEX($DL$3:$DL$28,SMALL(IF($DL$3:$DL$28<>"",ROW($DL$3:$DL$28)-2),ROWS($DL$3:DL15)))) -> 18 | DN15: =IF(DK15>=VLOOKUP(Wycena!$C$14,Mapping!$DG$3:$DI$5,3,0),DK15,"") -> 17 | DO15: =IF(ROWS($DN$3:DN15)>(ROWS($DN$3:$DN$28)-COUNTBLANK($DN$3:$DN$28)),"",INDEX($DN$3:$DN$28,SMALL(IF($DN$3:$DN$28<>"",ROW($DN$3:$DN$28)-2),ROWS($DN$3:DN15)))) -> 18 | DS15: 17 | DT15: =IF(DS15>=VLOOKUP(Wycena!$C$25,Mapping!$DQ$3:$DR$4,2,0),DS15,"") -> 17 | DU15: =IF(ROWS($DT$3:DT15)>(ROWS($DT$3:$DT$28)-COUNTBLANK($DT$3:$DT$28)),"",INDEX($DT$3:$DT$28,SMALL(IF($DT$3:$DT$28<>"",ROW($DT$3:$DT$28)-2),ROWS($DT$3:DT15)))) -> 22 | DW15: 12 | FE15: x | FF15: x | FG15: x | FH15: x | FI15: x | FJ15: x | FK15: x | FL15: x | FO15: 12 | FP15: =IF(Wycena!$C$20="-","",FO15) ->  | FQ15: =IF(ROWS($FP$3:FP15)>(ROWS($FP$3:$FP$23)-COUNTBLANK($FP$3:$FP$23)),"",INDEX($FP$3:$FP$23,SMALL(IF($FP$3:$FP$23<>"",ROW($FP$3:$FP$23)-2),ROWS($FP$3:FP15)))) ->  | FR15: =IF(Wycena!$C$21="-","",FO15) ->  | FS15: =IF(ROWS($FR$3:FR15)>(ROWS($FR$3:$FR$23)-COUNTBLANK($FR$3:$FR$23)),"",INDEX($FR$3:$FR$23,SMALL(IF($FR$3:$FR$23<>"",ROW($FR$3:$FR$23)-2),ROWS($FR$3:FR15)))) ->  | FT15: =IF(Wycena!$C$22="-","",FO15) ->  | FU15: =IF(ROWS($FT$3:FT15)>(ROWS($FT$3:$FT$23)-COUNTBLANK($FT$3:$FT$23)),"",INDEX($FT$3:$FT$23,SMALL(IF($FT$3:$FT$23<>"",ROW($FT$3:$FT$23)-2),ROWS($FT$3:FT15)))) ->  | FW15: Brak (standard) | FX15: Ryglowy 3-punktowy z gałką (standard) | FY15: Ryglowy 3-punktowy z gałką (standard) | FZ15: 0 | GA15: Klamko - gałka Hoppe Bezpieczna | GB15: 550 | GC15: Klamko - gałka Hoppe Bezpieczna | GD15: Klamko - gałka Hoppe Bezpieczna | GJ15: =IF((HLOOKUP(VLOOKUP(Wycena!$C$59,Mapping!$GI$35:$GJ$43,2,0),$GD$1:$GI$33,2+GK15))=0,"",(HLOOKUP(VLOOKUP(Wycena!$C$59,Mapping!$GI$35:$GJ$43,2,0),$GD$1:$GI$33,2+GK15))) -> Klamko - gałka Hoppe Bezpieczna | GK15: 13 | GL15: =IF(ROWS($GJ$3:GJ15)>(ROWS($GJ$3:$GJ$33)-COUNTBLANK($GJ$3:$GJ$33)),"",INDEX($GJ$3:$GJ$33,SMALL(IF($GJ$3:$GJ$33<>"",ROW($GJ$3:$GJ$33)-2),ROWS($GJ$3:GJ15)))) ->  | GM15: Klamka AXA Diva Flex | GN15: Stare złoto | GR15: - | GW15: Brak (standard) | GX15: - | HS15: 23 | HT15: 280 | HU15: =(1+IFERROR(VLOOKUP(Wycena!$C$45,Mapping!$EZ$3:$FC$6,4,1),0)+IFERROR(VLOOKUP(Wycena!$C$49,Mapping!$EZ$3:$FC$6,4,1),0))*HT15 -> 280 | IW15: 0.12 | IY15: 1300
A16: DB 21 | B16: 20 | C16: 20 | D16: 20 | E16: 20 | F16: 44 | G16: 44 | H16: 44 | I16: 44 | Q16: Dąb prosty poprzeczny | R16: nie | Y16: Złoty dąb | Z16: 0 | AA16: Złoty dąb | AB16: =AA16 -> Złoty dąb | AC16: =IF(ROWS($AB$3:AB16)>(ROWS($AB$3:$AB$229)-COUNTBLANK($AB$3:$AB$229)),"",INDEX($AB$3:$AB$229,SMALL(IF($AB$3:$AB$229<>"",ROW($AB$3:$AB$229)-2),ROWS($AB$3:AB16)))) ->  | AX16: 85 | AY16: 0 | AZ16: 0 | BA16: =IF(Wycena!$C$16=78,Mapping!AY16,AZ16) -> 0 | BD16: 193 | BE16: 0 | BF16: 0 | BG16: =IF(Wycena!$C$16=78,Mapping!BE16,BF16) -> 0 | CF16: =$CF$3:INDEX($CF$3:$CF$13,(ROWS($CE$3:$CE$13)-COUNTBLANK($CE$3:$CE$13))) -> - | CO16: Dla ościeżnicy od zawias | CP16: SOLO | CQ16: DOSTAWKA OD ZAWIAS | CR16: DOSTAWKA OD ZAMKA | CS16: 2 DOSTAWKI | DA16: 18 | DB16: =IF(DA16>=VLOOKUP(Wycena!$C$14,Mapping!$CY$3:$CZ$5,2,0),DA16,"") -> 18 | DC16: =IF(ROWS($DB$3:DB16)>(ROWS($DB$3:$DB$28)-COUNTBLANK($DB$3:$DB$28)),"",INDEX($DB$3:$DB$28,SMALL(IF($DB$3:$DB$28<>"",ROW($DB$3:$DB$28)-2),ROWS($DB$3:DB16)))) -> 19 | DK16: 18 | DL16: =IF(DK16>=VLOOKUP(Wycena!$C$14,Mapping!$DG$3:$DH$5,2,0),DK16,"") -> 18 | DM16: =IF(ROWS($DL$3:DL16)>(ROWS($DL$3:$DL$28)-COUNTBLANK($DL$3:$DL$28)),"",INDEX($DL$3:$DL$28,SMALL(IF($DL$3:$DL$28<>"",ROW($DL$3:$DL$28)-2),ROWS($DL$3:DL16)))) -> 19 | DN16: =IF(DK16>=VLOOKUP(Wycena!$C$14,Mapping!$DG$3:$DI$5,3,0),DK16,"") -> 18 | DO16: =IF(ROWS($DN$3:DN16)>(ROWS($DN$3:$DN$28)-COUNTBLANK($DN$3:$DN$28)),"",INDEX($DN$3:$DN$28,SMALL(IF($DN$3:$DN$28<>"",ROW($DN$3:$DN$28)-2),ROWS($DN$3:DN16)))) -> 19 | DS16: 18 | DT16: =IF(DS16>=VLOOKUP(Wycena!$C$25,Mapping!$DQ$3:$DR$4,2,0),DS16,"") -> 18 | DU16: =IF(ROWS($DT$3:DT16)>(ROWS($DT$3:$DT$28)-COUNTBLANK($DT$3:$DT$28)),"",INDEX($DT$3:$DT$28,SMALL(IF($DT$3:$DT$28<>"",ROW($DT$3:$DT$28)-2),ROWS($DT$3:DT16)))) -> 23 | DW16: 13 | FO16: 13 | FP16: =IF(Wycena!$C$20="-","",FO16) ->  | FQ16: =IF(ROWS($FP$3:FP16)>(ROWS($FP$3:$FP$23)-COUNTBLANK($FP$3:$FP$23)),"",INDEX($FP$3:$FP$23,SMALL(IF($FP$3:$FP$23<>"",ROW($FP$3:$FP$23)-2),ROWS($FP$3:FP16)))) ->  | FR16: =IF(Wycena!$C$21="-","",FO16) ->  | FS16: =IF(ROWS($FR$3:FR16)>(ROWS($FR$3:$FR$23)-COUNTBLANK($FR$3:$FR$23)),"",INDEX($FR$3:$FR$23,SMALL(IF($FR$3:$FR$23<>"",ROW($FR$3:$FR$23)-2),ROWS($FR$3:FR16)))) ->  | FT16: =IF(Wycena!$C$22="-","",FO16) ->  | FU16: =IF(ROWS($FT$3:FT16)>(ROWS($FT$3:$FT$23)-COUNTBLANK($FT$3:$FT$23)),"",INDEX($FT$3:$FT$23,SMALL(IF($FT$3:$FT$23<>"",ROW($FT$3:$FT$23)-2),ROWS($FT$3:FT16)))) ->  | FW16: Brak (standard) | FX16: Ryglowy 3-punktowy bez gałki (standard) | FY16: Ryglowy 3-punktowy bez gałki (standard) | FZ16: 0 | GA16: Klamko - gałka AXA Diva Flex | GB16: 500 | GC16: Klamko - gałka AXA Diva Flex | GD16: Klamko - gałka AXA Diva Flex | GJ16: =IF((HLOOKUP(VLOOKUP(Wycena!$C$59,Mapping!$GI$35:$GJ$43,2,0),$GD$1:$GI$33,2+GK16))=0,"",(HLOOKUP(VLOOKUP(Wycena!$C$59,Mapping!$GI$35:$GJ$43,2,0),$GD$1:$GI$33,2+GK16))) -> Klamko - gałka AXA Diva Flex | GK16: 14 | GL16: =IF(ROWS($GJ$3:GJ16)>(ROWS($GJ$3:$GJ$33)-COUNTBLANK($GJ$3:$GJ$33)),"",INDEX($GJ$3:$GJ$33,SMALL(IF($GJ$3:$GJ$33<>"",ROW($GJ$3:$GJ$33)-2),ROWS($GJ$3:GJ16)))) ->  | GM16: Klamka AXA Haga Plus | GN16: Inox | GR16: - | GW16: Brak (standard) | GX16: Manualna | HK16: =$HK$3:INDEX($HK$3:$HK$13,(ROWS($HJ$3:$HJ$13)-COUNTBLANK($HJ$3:$HJ$13))) -> - | HS16: 24 | HT16: 360 | HU16: =(1+IFERROR(VLOOKUP(Wycena!$C$45,Mapping!$EZ$3:$FC$6,4,1),0)+IFERROR(VLOOKUP(Wycena!$C$49,Mapping!$EZ$3:$FC$6,4,1),0))*HT16 -> 360 | IW16: 0.13 | IY16: 1400
A17: DB 28 | B17: 20 | C17: 20 | D17: 20 | E17: 20 | F17: 63 | G17: 63 | H17: 63 | I17: 63 | Q17: Dab flader podłużny | R17: tak | Y17: RAL 9016 biały | Z17: 0 | AA17: RAL 9016 biały | AB17: =IF((VLOOKUP(Wycena!$C$7,Mapping!$Q$15:$R$20,2,0))="tak","",AA17) -> RAL 9016 biały | AC17: =IF(ROWS($AB$3:AB17)>(ROWS($AB$3:$AB$229)-COUNTBLANK($AB$3:$AB$229)),"",INDEX($AB$3:$AB$229,SMALL(IF($AB$3:$AB$229<>"",ROW($AB$3:$AB$229)-2),ROWS($AB$3:AB17)))) ->  | AX17: 86 | AY17: 0 | AZ17: 0 | BA17: =IF(Wycena!$C$16=78,Mapping!AY17,AZ17) -> 0 | BD17: 194 | BE17: 0 | BF17: 0 | BG17: =IF(Wycena!$C$16=78,Mapping!BE17,BF17) -> 0 | CO17: - | CP17: 0 | CQ17: 0 | CR17: 0 | CS17: 0 | DA17: 19 | DB17: =IF(DA17>=VLOOKUP(Wycena!$C$14,Mapping!$CY$3:$CZ$5,2,0),DA17,"") -> 19 | DC17: =IF(ROWS($DB$3:DB17)>(ROWS($DB$3:$DB$28)-COUNTBLANK($DB$3:$DB$28)),"",INDEX($DB$3:$DB$28,SMALL(IF($DB$3:$DB$28<>"",ROW($DB$3:$DB$28)-2),ROWS($DB$3:DB17)))) -> 20 | DK17: 19 | DL17: =IF(DK17>=VLOOKUP(Wycena!$C$14,Mapping!$DG$3:$DH$5,2,0),DK17,"") -> 19 | DM17: =IF(ROWS($DL$3:DL17)>(ROWS($DL$3:$DL$28)-COUNTBLANK($DL$3:$DL$28)),"",INDEX($DL$3:$DL$28,SMALL(IF($DL$3:$DL$28<>"",ROW($DL$3:$DL$28)-2),ROWS($DL$3:DL17)))) -> 20 | DN17: =IF(DK17>=VLOOKUP(Wycena!$C$14,Mapping!$DG$3:$DI$5,3,0),DK17,"") -> 19 | DO17: =IF(ROWS($DN$3:DN17)>(ROWS($DN$3:$DN$28)-COUNTBLANK($DN$3:$DN$28)),"",INDEX($DN$3:$DN$28,SMALL(IF($DN$3:$DN$28<>"",ROW($DN$3:$DN$28)-2),ROWS($DN$3:DN17)))) -> 20 | DS17: 19 | DT17: =IF(DS17>=VLOOKUP(Wycena!$C$25,Mapping!$DQ$3:$DR$4,2,0),DS17,"") -> 19 | DU17: =IF(ROWS($DT$3:DT17)>(ROWS($DT$3:$DT$28)-COUNTBLANK($DT$3:$DT$28)),"",INDEX($DT$3:$DT$28,SMALL(IF($DT$3:$DT$28<>"",ROW($DT$3:$DT$28)-2),ROWS($DT$3:DT17)))) -> 24 | DW17: 14 | DY17: =3*25 -> 75 | FI17: =$FI$3:INDEX($FI$3:$FI$14,(ROWS($FH$3:$FH$14)-COUNTBLANK($FH$3:$FH$14))) -> - | FL17: =$FL$3:INDEX($FL$3:$FL$14,(ROWS($FK$3:$FK$14)-COUNTBLANK($FK$3:$FK$14))) -> - | FO17: 14 | FP17: =IF(Wycena!$C$20="-","",FO17) ->  | FQ17: =IF(ROWS($FP$3:FP17)>(ROWS($FP$3:$FP$23)-COUNTBLANK($FP$3:$FP$23)),"",INDEX($FP$3:$FP$23,SMALL(IF($FP$3:$FP$23<>"",ROW($FP$3:$FP$23)-2),ROWS($FP$3:FP17)))) ->  | FR17: =IF(Wycena!$C$21="-","",FO17) ->  | FS17: =IF(ROWS($FR$3:FR17)>(ROWS($FR$3:$FR$23)-COUNTBLANK($FR$3:$FR$23)),"",INDEX($FR$3:$FR$23,SMALL(IF($FR$3:$FR$23<>"",ROW($FR$3:$FR$23)-2),ROWS($FR$3:FR17)))) ->  | FT17: =IF(Wycena!$C$22="-","",FO17) ->  | FU17: =IF(ROWS($FT$3:FT17)>(ROWS($FT$3:$FT$23)-COUNTBLANK($FT$3:$FT$23)),"",INDEX($FT$3:$FT$23,SMALL(IF($FT$3:$FT$23<>"",ROW($FT$3:$FT$23)-2),ROWS($FT$3:FT17)))) ->  | FW17: Brak (standard) | FX17: Ryglowy 4-punktowy | FY17: Ryglowy 4-punktowy | FZ17: 300 | GA17: Klamko - gałka AXA Haga Plus | GB17: 250 | GC17: Klamko - gałka AXA Haga Plus | GD17: Klamko - gałka AXA Haga Plus | GJ17: =IF((HLOOKUP(VLOOKUP(Wycena!$C$59,Mapping!$GI$35:$GJ$43,2,0),$GD$1:$GI$33,2+GK17))=0,"",(HLOOKUP(VLOOKUP(Wycena!$C$59,Mapping!$GI$35:$GJ$43,2,0),$GD$1:$GI$33,2+GK17))) -> Klamko - gałka AXA Haga Plus | GK17: 15 | GL17: =IF(ROWS($GJ$3:GJ17)>(ROWS($GJ$3:$GJ$33)-COUNTBLANK($GJ$3:$GJ$33)),"",INDEX($GJ$3:$GJ$33,SMALL(IF($GJ$3:$GJ$33<>"",ROW($GJ$3:$GJ$33)-2),ROWS($GJ$3:GJ17)))) ->  | GM17: Klamka AXA Haga Plus | GN17: Tytan | GR17: - | GW17: Brak (standard) | GX17: Elektrozaczep | HS17: 25 | HT17: 290 | HU17: =(1+IFERROR(VLOOKUP(Wycena!$C$45,Mapping!$EZ$3:$FC$6,4,1),0)+IFERROR(VLOOKUP(Wycena!$C$49,Mapping!$EZ$3:$FC$6,4,1),0))*HT17 -> 290 | IW17: 0.14 | IY17: 1500
A18: DB 31 | B18: 20 | C18: 20 | D18: 20 | E18: 20 | F18: 34 | G18: 34 | H18: =F18+2 -> 36 | I18: 36 | Q18: Dąb flader poprzeczny | R18: tak | Y18: RAL 7016 antracyt | Z18: 0 | AA18: RAL 7016 antracyt | AB18: =IF((VLOOKUP(Wycena!$C$7,Mapping!$Q$15:$R$20,2,0))="tak","",AA18) -> RAL 7016 antracyt | AC18: =IF(ROWS($AB$3:AB18)>(ROWS($AB$3:$AB$229)-COUNTBLANK($AB$3:$AB$229)),"",INDEX($AB$3:$AB$229,SMALL(IF($AB$3:$AB$229<>"",ROW($AB$3:$AB$229)-2),ROWS($AB$3:AB18)))) ->  | AX18: 87 | AY18: 0 | AZ18: 0 | BA18: =IF(Wycena!$C$16=78,Mapping!AY18,AZ18) -> 0 | BD18: 195 | BE18: 0 | BF18: 0 | BG18: =IF(Wycena!$C$16=78,Mapping!BE18,BF18) -> 0 | CO18: Przy skrzydle od zewnątrz | CP18: =IF(Wycena!$C$14="Przylgowe",8,IF(Wycena!$C$14="Bezprzylgowe",6,0)) -> 8 | CQ18: 0 | CR18: =IF(Wycena!$C$14="Przylgowe",8,IF(Wycena!$C$14="Bezprzylgowe",6,0)) -> 8 | CS18: 0 | DA18: 20 | DB18: =IF(DA18>=VLOOKUP(Wycena!$C$14,Mapping!$CY$3:$CZ$5,2,0),DA18,"") -> 20 | DC18: =IF(ROWS($DB$3:DB18)>(ROWS($DB$3:$DB$28)-COUNTBLANK($DB$3:$DB$28)),"",INDEX($DB$3:$DB$28,SMALL(IF($DB$3:$DB$28<>"",ROW($DB$3:$DB$28)-2),ROWS($DB$3:DB18)))) -> 21 | DK18: 20 | DL18: =IF(DK18>=VLOOKUP(Wycena!$C$14,Mapping!$DG$3:$DH$5,2,0),DK18,"") -> 20 | DM18: =IF(ROWS($DL$3:DL18)>(ROWS($DL$3:$DL$28)-COUNTBLANK($DL$3:$DL$28)),"",INDEX($DL$3:$DL$28,SMALL(IF($DL$3:$DL$28<>"",ROW($DL$3:$DL$28)-2),ROWS($DL$3:DL18)))) -> 21 | DN18: =IF(DK18>=VLOOKUP(Wycena!$C$14,Mapping!$DG$3:$DI$5,3,0),DK18,"") -> 20 | DO18: =IF(ROWS($DN$3:DN18)>(ROWS($DN$3:$DN$28)-COUNTBLANK($DN$3:$DN$28)),"",INDEX($DN$3:$DN$28,SMALL(IF($DN$3:$DN$28<>"",ROW($DN$3:$DN$28)-2),ROWS($DN$3:DN18)))) -> 21 | DS18: 20 | DT18: =IF(DS18>=VLOOKUP(Wycena!$C$25,Mapping!$DQ$3:$DR$4,2,0),DS18,"") -> 20 | DU18: =IF(ROWS($DT$3:DT18)>(ROWS($DT$3:$DT$28)-COUNTBLANK($DT$3:$DT$28)),"",INDEX($DT$3:$DT$28,SMALL(IF($DT$3:$DT$28<>"",ROW($DT$3:$DT$28)-2),ROWS($DT$3:DT18)))) -> 25 | DW18: 15 | FO18: 15 | FP18: =IF(Wycena!$C$20="-","",FO18) ->  | FQ18: =IF(ROWS($FP$3:FP18)>(ROWS($FP$3:$FP$23)-COUNTBLANK($FP$3:$FP$23)),"",INDEX($FP$3:$FP$23,SMALL(IF($FP$3:$FP$23<>"",ROW($FP$3:$FP$23)-2),ROWS($FP$3:FP18)))) ->  | FR18: =IF(Wycena!$C$21="-","",FO18) ->  | FS18: =IF(ROWS($FR$3:FR18)>(ROWS($FR$3:$FR$23)-COUNTBLANK($FR$3:$FR$23)),"",INDEX($FR$3:$FR$23,SMALL(IF($FR$3:$FR$23<>"",ROW($FR$3:$FR$23)-2),ROWS($FR$3:FR18)))) ->  | FT18: =IF(Wycena!$C$22="-","",FO18) ->  | FU18: =IF(ROWS($FT$3:FT18)>(ROWS($FT$3:$FT$23)-COUNTBLANK($FT$3:$FT$23)),"",INDEX($FT$3:$FT$23,SMALL(IF($FT$3:$FT$23<>"",ROW($FT$3:$FT$23)-2),ROWS($FT$3:FT18)))) ->  | FW18: Brak (standard) | FX18: Automat 3-punktowy z gałką | FY18: Automat 3-punktowy z gałką | FZ18: =IF(OR(Wycena!$C$59=Mapping!$FW$5,Wycena!C59=Mapping!FW7,Wycena!C59=Mapping!FW8,Wycena!C59=Mapping!FW9,Wycena!C59=Mapping!FW10),0,400) -> 400 | GA18: Klamko - gałka AXA Prestige Flex | GB18: 500 | GC18: Klamko - gałka AXA Prestige Flex | GD18: Klamko - gałka AXA Prestige Flex | GJ18: =IF((HLOOKUP(VLOOKUP(Wycena!$C$59,Mapping!$GI$35:$GJ$43,2,0),$GD$1:$GI$33,2+GK18))=0,"",(HLOOKUP(VLOOKUP(Wycena!$C$59,Mapping!$GI$35:$GJ$43,2,0),$GD$1:$GI$33,2+GK18))) -> Klamko - gałka AXA Prestige Flex | GK18: 16 | GL18: =IF(ROWS($GJ$3:GJ18)>(ROWS($GJ$3:$GJ$33)-COUNTBLANK($GJ$3:$GJ$33)),"",INDEX($GJ$3:$GJ$33,SMALL(IF($GJ$3:$GJ$33<>"",ROW($GJ$3:$GJ$33)-2),ROWS($GJ$3:GJ18)))) ->  | GM18: Klamka AXA Haga Plus | GN18: Stare złoto | GR18: - | GW18: Zestaw elektronik z zamkiem ryglowym | GX18: Elektrozaczep | HS18: 30 | HT18: 330 | HU18: =(1+IFERROR(VLOOKUP(Wycena!$C$45,Mapping!$EZ$3:$FC$6,4,1),0)+IFERROR(VLOOKUP(Wycena!$C$49,Mapping!$EZ$3:$FC$6,4,1),0))*HT18 -> 330 | IW18: 0.15 | IY18: 1600
A19: DB 31a | B19: 20 | C19: 20 | D19: 20 | E19: 20 | F19: 34 | G19: 34 | H19: 36 | I19: 36 | Q19: Dąb sękaty podłużny | R19: tak | Y19: RAL 7040 | Z19: 0 | AA19: RAL 7040 | AB19: =IF((VLOOKUP(Wycena!$C$7,Mapping!$Q$15:$R$20,2,0))="tak","",AA19) -> RAL 7040 | AC19: =IF(ROWS($AB$3:AB19)>(ROWS($AB$3:$AB$229)-COUNTBLANK($AB$3:$AB$229)),"",INDEX($AB$3:$AB$229,SMALL(IF($AB$3:$AB$229<>"",ROW($AB$3:$AB$229)-2),ROWS($AB$3:AB19)))) ->  | AX19: 88 | AY19: 0 | AZ19: 0 | BA19: =IF(Wycena!$C$16=78,Mapping!AY19,AZ19) -> 0 | BD19: 196 | BE19: 0 | BF19: 0 | BG19: =IF(Wycena!$C$16=78,Mapping!BE19,BF19) -> 0 | CO19: Przy skrzydle z dwóch stron | CP19: =IF(Wycena!$C$14="Przylgowe",8,IF(Wycena!$C$14="Bezprzylgowe",6,0)) -> 8 | CQ19: 0 | CR19: =IF(Wycena!$C$14="Przylgowe",8,IF(Wycena!$C$14="Bezprzylgowe",6,0)) -> 8 | CS19: 0 | DA19: 21 | DB19: =IF(DA19>=VLOOKUP(Wycena!$C$14,Mapping!$CY$3:$CZ$5,2,0),DA19,"") -> 21 | DC19: =IF(ROWS($DB$3:DB19)>(ROWS($DB$3:$DB$28)-COUNTBLANK($DB$3:$DB$28)),"",INDEX($DB$3:$DB$28,SMALL(IF($DB$3:$DB$28<>"",ROW($DB$3:$DB$28)-2),ROWS($DB$3:DB19)))) -> 22 | DG19: Ościeżnica od zawias pogrubienia w standardzie | DK19: 21 | DL19: =IF(DK19>=VLOOKUP(Wycena!$C$14,Mapping!$DG$3:$DH$5,2,0),DK19,"") -> 21 | DM19: =IF(ROWS($DL$3:DL19)>(ROWS($DL$3:$DL$28)-COUNTBLANK($DL$3:$DL$28)),"",INDEX($DL$3:$DL$28,SMALL(IF($DL$3:$DL$28<>"",ROW($DL$3:$DL$28)-2),ROWS($DL$3:DL19)))) -> 22 | DN19: =IF(DK19>=VLOOKUP(Wycena!$C$14,Mapping!$DG$3:$DI$5,3,0),DK19,"") -> 21 | DO19: =IF(ROWS($DN$3:DN19)>(ROWS($DN$3:$DN$28)-COUNTBLANK($DN$3:$DN$28)),"",INDEX($DN$3:$DN$28,SMALL(IF($DN$3:$DN$28<>"",ROW($DN$3:$DN$28)-2),ROWS($DN$3:DN19)))) -> 22 | DS19: 21 | DT19: =IF(DS19>=VLOOKUP(Wycena!$C$25,Mapping!$DQ$3:$DR$4,2,0),DS19,"") -> 21 | DU19: =IF(ROWS($DT$3:DT19)>(ROWS($DT$3:$DT$28)-COUNTBLANK($DT$3:$DT$28)),"",INDEX($DT$3:$DT$28,SMALL(IF($DT$3:$DT$28<>"",ROW($DT$3:$DT$28)-2),ROWS($DT$3:DT19)))) -> 26 | DW19: 16 | FE19: Ocja witraż nie powinna być dotępna dla w ościeżnicy nowoczesnej | FO19: 16 | FP19: =IF(Wycena!$C$20="-","",FO19) ->  | FQ19: =IF(ROWS($FP$3:FP19)>(ROWS($FP$3:$FP$23)-COUNTBLANK($FP$3:$FP$23)),"",INDEX($FP$3:$FP$23,SMALL(IF($FP$3:$FP$23<>"",ROW($FP$3:$FP$23)-2),ROWS($FP$3:FP19)))) ->  | FR19: =IF(Wycena!$C$21="-","",FO19) ->  | FS19: =IF(ROWS($FR$3:FR19)>(ROWS($FR$3:$FR$23)-COUNTBLANK($FR$3:$FR$23)),"",INDEX($FR$3:$FR$23,SMALL(IF($FR$3:$FR$23<>"",ROW($FR$3:$FR$23)-2),ROWS($FR$3:FR19)))) ->  | FT19: =IF(Wycena!$C$22="-","",FO19) ->  | FU19: =IF(ROWS($FT$3:FT19)>(ROWS($FT$3:$FT$23)-COUNTBLANK($FT$3:$FT$23)),"",INDEX($FT$3:$FT$23,SMALL(IF($FT$3:$FT$23<>"",ROW($FT$3:$FT$23)-2),ROWS($FT$3:FT19)))) ->  | FW19: Brak (standard) | FX19: Automat 3-punktowy bez gałki | FY19: Automat 3-punktowy bez gałki | FZ19: =IF(OR(Wycena!$C$59=Mapping!$FW$5,Wycena!C59=Mapping!FW7,Wycena!C59=Mapping!FW8,Wycena!C59=Mapping!FW9,Wycena!C59=Mapping!FW10),0,400) -> 400 | GA19: Pochwyt Palermo w zestawie | GB19: 1700 | GC19: Pochwyt Palermo w zestawie | GD19: =IF(OR(Wycena!C60=Mapping!FY20,Wycena!C60=Mapping!FY17,Wycena!C60="-"),"",GC19) ->  | GJ19: =IF((HLOOKUP(VLOOKUP(Wycena!$C$59,Mapping!$GI$35:$GJ$43,2,0),$GD$1:$GI$33,2+GK19))=0,"",(HLOOKUP(VLOOKUP(Wycena!$C$59,Mapping!$GI$35:$GJ$43,2,0),$GD$1:$GI$33,2+GK19))) ->  | GK19: 17 | GL19: =IF(ROWS($GJ$3:GJ19)>(ROWS($GJ$3:$GJ$33)-COUNTBLANK($GJ$3:$GJ$33)),"",INDEX($GJ$3:$GJ$33,SMALL(IF($GJ$3:$GJ$33<>"",ROW($GJ$3:$GJ$33)-2),ROWS($GJ$3:GJ19)))) ->  | GM19: Klamka AXA Haga Plus | GN19: Czarny | GW19: Zestaw elektronik z zamkiem automatycznym | GX19: - | HS19: 35 | HT19: =3*110+70 -> 400 | HU19: =(1+IFERROR(VLOOKUP(Wycena!$C$45,Mapping!$EZ$3:$FC$6,4,1),0)+IFERROR(VLOOKUP(Wycena!$C$49,Mapping!$EZ$3:$FC$6,4,1),0))*HT19 -> 400 | IY19: 1700
A20: DB 32 | B20: 20 | C20: 20 | D20: 20 | E20: 20 | F20: 34 | G20: 34 | H20: 36 | I20: 36 | Q20: Dąb sękaty poprzeczny | R20: tak | Y20: RAL 7047 | Z20: 0 | AA20: RAL 7047 | AB20: =IF((VLOOKUP(Wycena!$C$7,Mapping!$Q$15:$R$20,2,0))="tak","",AA20) -> RAL 7047 | AC20: =IF(ROWS($AB$3:AB20)>(ROWS($AB$3:$AB$229)-COUNTBLANK($AB$3:$AB$229)),"",INDEX($AB$3:$AB$229,SMALL(IF($AB$3:$AB$229<>"",ROW($AB$3:$AB$229)-2),ROWS($AB$3:AB20)))) ->  | AX20: 89 | AY20: 0 | AZ20: 0 | BA20: =IF(Wycena!$C$16=78,Mapping!AY20,AZ20) -> 0 | BD20: 197 | BE20: 0 | BF20: 0 | BG20: =IF(Wycena!$C$16=78,Mapping!BE20,BF20) -> 0 | CO20: Przy skrzydle i ościeżnicy od zewnątrz | CQ20: =IF(Wycena!$C$14="Przylgowe",8,IF(Wycena!$C$14="Bezprzylgowe",6,0)) -> 8 | CR20: =IF(Wycena!$C$14="Przylgowe",8,IF(Wycena!$C$14="Bezprzylgowe",6,0)) -> 8 | CS20: =IF(Wycena!$C$14="Przylgowe",8,IF(Wycena!$C$14="Bezprzylgowe",6,0)) -> 8 | DA20: 22 | DB20: =IF(DA20>=VLOOKUP(Wycena!$C$14,Mapping!$CY$3:$CZ$5,2,0),DA20,"") -> 22 | DC20: =IF(ROWS($DB$3:DB20)>(ROWS($DB$3:$DB$28)-COUNTBLANK($DB$3:$DB$28)),"",INDEX($DB$3:$DB$28,SMALL(IF($DB$3:$DB$28<>"",ROW($DB$3:$DB$28)-2),ROWS($DB$3:DB20)))) -> 23 | DK20: 22 | DL20: =IF(DK20>=VLOOKUP(Wycena!$C$14,Mapping!$DG$3:$DH$5,2,0),DK20,"") -> 22 | DM20: =IF(ROWS($DL$3:DL20)>(ROWS($DL$3:$DL$28)-COUNTBLANK($DL$3:$DL$28)),"",INDEX($DL$3:$DL$28,SMALL(IF($DL$3:$DL$28<>"",ROW($DL$3:$DL$28)-2),ROWS($DL$3:DL20)))) -> 23 | DN20: =IF(DK20>=VLOOKUP(Wycena!$C$14,Mapping!$DG$3:$DI$5,3,0),DK20,"") -> 22 | DO20: =IF(ROWS($DN$3:DN20)>(ROWS($DN$3:$DN$28)-COUNTBLANK($DN$3:$DN$28)),"",INDEX($DN$3:$DN$28,SMALL(IF($DN$3:$DN$28<>"",ROW($DN$3:$DN$28)-2),ROWS($DN$3:DN20)))) -> 23 | DS20: 22 | DT20: =IF(DS20>=VLOOKUP(Wycena!$C$25,Mapping!$DQ$3:$DR$4,2,0),DS20,"") -> 22 | DU20: =IF(ROWS($DT$3:DT20)>(ROWS($DT$3:$DT$28)-COUNTBLANK($DT$3:$DT$28)),"",INDEX($DT$3:$DT$28,SMALL(IF($DT$3:$DT$28<>"",ROW($DT$3:$DT$28)-2),ROWS($DT$3:DT20)))) -> 27 | DW20: 17 | FE20: Opcja dyskretne - tylko dla imitacji skrzydła | FO20: 17 | FP20: =IF(Wycena!$C$20="-","",FO20) ->  | FQ20: =IF(ROWS($FP$3:FP20)>(ROWS($FP$3:$FP$23)-COUNTBLANK($FP$3:$FP$23)),"",INDEX($FP$3:$FP$23,SMALL(IF($FP$3:$FP$23<>"",ROW($FP$3:$FP$23)-2),ROWS($FP$3:FP20)))) ->  | FR20: =IF(Wycena!$C$21="-","",FO20) ->  | FS20: =IF(ROWS($FR$3:FR20)>(ROWS($FR$3:$FR$23)-COUNTBLANK($FR$3:$FR$23)),"",INDEX($FR$3:$FR$23,SMALL(IF($FR$3:$FR$23<>"",ROW($FR$3:$FR$23)-2),ROWS($FR$3:FR20)))) ->  | FT20: =IF(Wycena!$C$22="-","",FO20) ->  | FU20: =IF(ROWS($FT$3:FT20)>(ROWS($FT$3:$FT$23)-COUNTBLANK($FT$3:$FT$23)),"",INDEX($FT$3:$FT$23,SMALL(IF($FT$3:$FT$23<>"",ROW($FT$3:$FT$23)-2),ROWS($FT$3:FT20)))) ->  | FW20: Brak (standard) | FX20: Automat 4-punktowy | FY20: Automat 4-punktowy | FZ20: =600-IF(Wycena!C59=Mapping!FY31,600,0)-IF(Wycena!C59=Mapping!FY30,300,0) -> 600 | GA20: Pochwyt Eva | GB20: 0 | GC20: Pochwyt Eva | GG20: =GC20 -> Pochwyt Eva | GJ20: =IF((HLOOKUP(VLOOKUP(Wycena!$C$59,Mapping!$GI$35:$GJ$43,2,0),$GD$1:$GI$33,2+GK20))=0,"",(HLOOKUP(VLOOKUP(Wycena!$C$59,Mapping!$GI$35:$GJ$43,2,0),$GD$1:$GI$33,2+GK20))) ->  | GK20: 18 | GL20: =IF(ROWS($GJ$3:GJ20)>(ROWS($GJ$3:$GJ$33)-COUNTBLANK($GJ$3:$GJ$33)),"",INDEX($GJ$3:$GJ$33,SMALL(IF($GJ$3:$GJ$33<>"",ROW($GJ$3:$GJ$33)-2),ROWS($GJ$3:GJ20)))) ->  | GM20: Klamka AXA Manitoba Plus | GN20: Inox | GW20: Zestaw z pochwytem na styl amerykański | GX20: - | HS20: 40 | HT20: =4*110 -> 440 | HU20: =(1+IFERROR(VLOOKUP(Wycena!$C$45,Mapping!$EZ$3:$FC$6,4,1),0)+IFERROR(VLOOKUP(Wycena!$C$49,Mapping!$EZ$3:$FC$6,4,1),0))*HT20 -> 440 | IY20: 1800
A21: DB 33 | B21: 20 | C21: 20 | D21: 20 | E21: 20 | F21: 34 | G21: 34 | H21: 36 | I21: 36 | Y21: --- RAL inny --- | Z21: 500 | AA21: =Y21 -> --- RAL inny --- | AB21: =IF((VLOOKUP(Wycena!$C$7,Mapping!$Q$15:$R$20,2,0))="tak","",AA21) -> --- RAL inny --- | AC21: =IF(ROWS($AB$3:AB21)>(ROWS($AB$3:$AB$229)-COUNTBLANK($AB$3:$AB$229)),"",INDEX($AB$3:$AB$229,SMALL(IF($AB$3:$AB$229<>"",ROW($AB$3:$AB$229)-2),ROWS($AB$3:AB21)))) ->  | AX21: 90 | AY21: 0 | AZ21: 0 | BA21: =IF(Wycena!$C$16=78,Mapping!AY21,AZ21) -> 0 | BD21: 198 | BE21: 0 | BF21: 0 | BG21: =IF(Wycena!$C$16=78,Mapping!BE21,BF21) -> 0 | CO21: Przy skrzydle i ościeżnicy z dwóch stron | CQ21: =IF(Wycena!$C$14="Przylgowe",8,IF(Wycena!$C$14="Bezprzylgowe",6,0)) -> 8 | CR21: =IF(Wycena!$C$14="Przylgowe",8,IF(Wycena!$C$14="Bezprzylgowe",6,0)) -> 8 | CS21: =IF(Wycena!$C$14="Przylgowe",8,IF(Wycena!$C$14="Bezprzylgowe",6,0)) -> 8 | DA21: 23 | DB21: =IF(DA21>=VLOOKUP(Wycena!$C$14,Mapping!$CY$3:$CZ$5,2,0),DA21,"") -> 23 | DC21: =IF(ROWS($DB$3:DB21)>(ROWS($DB$3:$DB$28)-COUNTBLANK($DB$3:$DB$28)),"",INDEX($DB$3:$DB$28,SMALL(IF($DB$3:$DB$28<>"",ROW($DB$3:$DB$28)-2),ROWS($DB$3:DB21)))) -> 24 | DG21: DB 223 | DH21: 12 | DK21: 23 | DL21: =IF(DK21>=VLOOKUP(Wycena!$C$14,Mapping!$DG$3:$DH$5,2,0),DK21,"") -> 23 | DM21: =IF(ROWS($DL$3:DL21)>(ROWS($DL$3:$DL$28)-COUNTBLANK($DL$3:$DL$28)),"",INDEX($DL$3:$DL$28,SMALL(IF($DL$3:$DL$28<>"",ROW($DL$3:$DL$28)-2),ROWS($DL$3:DL21)))) -> 24 | DN21: =IF(DK21>=VLOOKUP(Wycena!$C$14,Mapping!$DG$3:$DI$5,3,0),DK21,"") -> 23 | DO21: =IF(ROWS($DN$3:DN21)>(ROWS($DN$3:$DN$28)-COUNTBLANK($DN$3:$DN$28)),"",INDEX($DN$3:$DN$28,SMALL(IF($DN$3:$DN$28<>"",ROW($DN$3:$DN$28)-2),ROWS($DN$3:DN21)))) -> 24 | DS21: 23 | DT21: =IF(DS21>=VLOOKUP(Wycena!$C$25,Mapping!$DQ$3:$DR$4,2,0),DS21,"") -> 23 | DU21: =IF(ROWS($DT$3:DT21)>(ROWS($DT$3:$DT$28)-COUNTBLANK($DT$3:$DT$28)),"",INDEX($DT$3:$DT$28,SMALL(IF($DT$3:$DT$28<>"",ROW($DT$3:$DT$28)-2),ROWS($DT$3:DT21)))) -> 28 | DW21: 18 | FO21: 18 | FP21: =IF(Wycena!$C$20="-","",FO21) ->  | FQ21: =IF(ROWS($FP$3:FP21)>(ROWS($FP$3:$FP$23)-COUNTBLANK($FP$3:$FP$23)),"",INDEX($FP$3:$FP$23,SMALL(IF($FP$3:$FP$23<>"",ROW($FP$3:$FP$23)-2),ROWS($FP$3:FP21)))) ->  | FR21: =IF(Wycena!$C$21="-","",FO21) ->  | FS21: =IF(ROWS($FR$3:FR21)>(ROWS($FR$3:$FR$23)-COUNTBLANK($FR$3:$FR$23)),"",INDEX($FR$3:$FR$23,SMALL(IF($FR$3:$FR$23<>"",ROW($FR$3:$FR$23)-2),ROWS($FR$3:FR21)))) ->  | FT21: =IF(Wycena!$C$22="-","",FO21) ->  | FU21: =IF(ROWS($FT$3:FT21)>(ROWS($FT$3:$FT$23)-COUNTBLANK($FT$3:$FT$23)),"",INDEX($FT$3:$FT$23,SMALL(IF($FT$3:$FT$23<>"",ROW($FT$3:$FT$23)-2),ROWS($FT$3:FT21)))) ->  | FW21: Brak (standard) | FX21: Automat ADR 5-punktowy z gałką | FY21: Automat ADR 5-punktowy z gałką | FZ21: =IFERROR(IF(VLOOKUP(Wycena!C59,Mapping!$FY$26:$FZ$29,2,0)>0,0,800),800) -> 800 | GA21: Pochwyt Maddalena | GB21: 0 | GC21: Pochwyt Maddalena | GG21: =GC21 -> Pochwyt Maddalena | GJ21: =IF((HLOOKUP(VLOOKUP(Wycena!$C$59,Mapping!$GI$35:$GJ$43,2,0),$GD$1:$GI$33,2+GK21))=0,"",(HLOOKUP(VLOOKUP(Wycena!$C$59,Mapping!$GI$35:$GJ$43,2,0),$GD$1:$GI$33,2+GK21))) ->  | GK21: 19 | GL21: =IF(ROWS($GJ$3:GJ21)>(ROWS($GJ$3:$GJ$33)-COUNTBLANK($GJ$3:$GJ$33)),"",INDEX($GJ$3:$GJ$33,SMALL(IF($GJ$3:$GJ$33<>"",ROW($GJ$3:$GJ$33)-2),ROWS($GJ$3:GJ21)))) ->  | GW21: Zestaw antywłamaniowy RC2 | GX21: - | HS21: x | HT21: x | HU21: x | IY21: 1900
A22: DB 34 | B22: 20 | C22: 20 | D22: 20 | E22: 20 | F22: 34 | G22: 34 | H22: 36 | I22: 36 | Y22: RAL 1000 | Z22: 500 | AA22: RAL 1000 | AB22: =IF((VLOOKUP(Wycena!$C$7,Mapping!$Q$15:$R$20,2,0))="tak","",AA22) -> RAL 1000 | AC22: =IF(ROWS($AB$3:AB22)>(ROWS($AB$3:$AB$229)-COUNTBLANK($AB$3:$AB$229)),"",INDEX($AB$3:$AB$229,SMALL(IF($AB$3:$AB$229<>"",ROW($AB$3:$AB$229)-2),ROWS($AB$3:AB22)))) ->  | AX22: 91 | AY22: 0 | AZ22: 0 | BA22: =IF(Wycena!$C$16=78,Mapping!AY22,AZ22) -> 0 | BD22: 199 | BE22: 0 | BF22: 0 | BG22: =IF(Wycena!$C$16=78,Mapping!BE22,BF22) -> 0 | CO22: Przy skrzydle i naświetlu od zewnątrz | CP22: =IF(Wycena!$C$14="Przylgowe",8,IF(Wycena!$C$14="Bezprzylgowe",6,0)) -> 8 | CQ22: 0 | CR22: =IF(Wycena!$C$14="Przylgowe",8,IF(Wycena!$C$14="Bezprzylgowe",6,0)) -> 8 | CS22: 0 | DA22: 24 | DB22: =IF(DA22>=VLOOKUP(Wycena!$C$14,Mapping!$CY$3:$CZ$5,2,0),DA22,"") -> 24 | DC22: =IF(ROWS($DB$3:DB22)>(ROWS($DB$3:$DB$28)-COUNTBLANK($DB$3:$DB$28)),"",INDEX($DB$3:$DB$28,SMALL(IF($DB$3:$DB$28<>"",ROW($DB$3:$DB$28)-2),ROWS($DB$3:DB22)))) -> 25 | DG22: DB 154 | DH22: 9 | DI22: =IF(OR(Wycena!$C$20="-",Wycena!$C$20="Imitacja skrzydła ruchoma"),(MAX((IFERROR(VLOOKUP(Wycena!C5,Mapping!$DG$21:$DH$23,2,0),0)),(VLOOKUP(Wycena!$C$25,Mapping!$CW$3:$CX$4,2,0)+VLOOKUP(Wycena!C26,$CO$16:$CS$25,IF(AND(Wycena!C20="-",Wycena!C21="-"),2,IF(AND(Wycena!C20<>"-",Wycena!C21="-"),3,IF(AND(Wycena!C20="-",Wycena!C21<>"-"),4,5))),0)))),(VLOOKUP(Wycena!$C$25,Mapping!$CW$3:$CX$4,2,0)+VLOOKUP(Wycena!C26,$CO$16:$CS$25,IF(AND(Wycena!C20="-",Wycena!C21="-"),2,IF(AND(Wycena!C20<>"-",Wycena!C21="-"),3,IF(AND(Wycena!C20="-",Wycena!C21<>"-"),4,5))),0))) -> 6 | DJ22: =IF(Wycena!$C$21="Imitacja skrzydła ruchoma",(MAX((IFERROR(VLOOKUP(Wycena!C5,Mapping!$DG$21:$DH$23,2,0),0)),(VLOOKUP(Wycena!$C$25,Mapping!$CW$3:$CX$4,2,0)+VLOOKUP(Wycena!C26,$CO$28:$CS$37,IF(AND(Wycena!C20="-",Wycena!C21="-"),2,IF(AND(Wycena!C20<>"-",Wycena!C21="-"),3,IF(AND(Wycena!C20="-",Wycena!C21<>"-"),4,5))),0)))),(VLOOKUP(Wycena!$C$25,Mapping!$CW$3:$CX$4,2,0)+VLOOKUP(Wycena!C26,$CO$28:$CS$37,IF(AND(Wycena!C20="-",Wycena!C21="-"),2,IF(AND(Wycena!C20<>"-",Wycena!C21="-"),3,IF(AND(Wycena!C20="-",Wycena!C21<>"-"),4,5))),0))) -> 6 | DK22: 24 | DL22: =IF(DK22>=VLOOKUP(Wycena!$C$14,Mapping!$DG$3:$DH$5,2,0),DK22,"") -> 24 | DM22: =IF(ROWS($DL$3:DL22)>(ROWS($DL$3:$DL$28)-COUNTBLANK($DL$3:$DL$28)),"",INDEX($DL$3:$DL$28,SMALL(IF($DL$3:$DL$28<>"",ROW($DL$3:$DL$28)-2),ROWS($DL$3:DL22)))) -> 25 | DN22: =IF(DK22>=VLOOKUP(Wycena!$C$14,Mapping!$DG$3:$DI$5,3,0),DK22,"") -> 24 | DO22: =IF(ROWS($DN$3:DN22)>(ROWS($DN$3:$DN$28)-COUNTBLANK($DN$3:$DN$28)),"",INDEX($DN$3:$DN$28,SMALL(IF($DN$3:$DN$28<>"",ROW($DN$3:$DN$28)-2),ROWS($DN$3:DN22)))) -> 25 | DS22: 24 | DT22: =IF(DS22>=VLOOKUP(Wycena!$C$25,Mapping!$DQ$3:$DR$4,2,0),DS22,"") -> 24 | DU22: =IF(ROWS($DT$3:DT22)>(ROWS($DT$3:$DT$28)-COUNTBLANK($DT$3:$DT$28)),"",INDEX($DT$3:$DT$28,SMALL(IF($DT$3:$DT$28<>"",ROW($DT$3:$DT$28)-2),ROWS($DT$3:DT22)))) -> 29 | DW22: 19 | FO22: 19 | FP22: =IF(Wycena!$C$20="-","",FO22) ->  | FQ22: =IF(ROWS($FP$3:FP22)>(ROWS($FP$3:$FP$23)-COUNTBLANK($FP$3:$FP$23)),"",INDEX($FP$3:$FP$23,SMALL(IF($FP$3:$FP$23<>"",ROW($FP$3:$FP$23)-2),ROWS($FP$3:FP22)))) ->  | FR22: =IF(Wycena!$C$21="-","",FO22) ->  | FS22: =IF(ROWS($FR$3:FR22)>(ROWS($FR$3:$FR$23)-COUNTBLANK($FR$3:$FR$23)),"",INDEX($FR$3:$FR$23,SMALL(IF($FR$3:$FR$23<>"",ROW($FR$3:$FR$23)-2),ROWS($FR$3:FR22)))) ->  | FT22: =IF(Wycena!$C$22="-","",FO22) ->  | FU22: =IF(ROWS($FT$3:FT22)>(ROWS($FT$3:$FT$23)-COUNTBLANK($FT$3:$FT$23)),"",INDEX($FT$3:$FT$23,SMALL(IF($FT$3:$FT$23<>"",ROW($FT$3:$FT$23)-2),ROWS($FT$3:FT22)))) ->  | FW22: Brak (standard) | FX22: Automat ADR 5-punktowy bez gałki | FY22: Automat ADR 5-punktowy bez gałki | FZ22: =IFERROR(IF(VLOOKUP(Wycena!C59,Mapping!$FY$26:$FZ$29,2,0)>0,0,800),800) -> 800 | GA22: Antaba Medos Lisbon prostokątna prosta + klamka Warszawa | GB22: 900 | GC22: =IF(VLOOKUP(Wycena!$C$5,SKU!$B$1:$D$743,3,0)="Płytowe",GA22,"") ->  | GD22: =GC22 ->  | GE22: =GC22 ->  | GF22: =GC22 ->  | GI22: =GC22 ->  | GJ22: =IF((HLOOKUP(VLOOKUP(Wycena!$C$59,Mapping!$GI$35:$GJ$43,2,0),$GD$1:$GI$33,2+GK22))=0,"",(HLOOKUP(VLOOKUP(Wycena!$C$59,Mapping!$GI$35:$GJ$43,2,0),$GD$1:$GI$33,2+GK22))) ->  | GK22: 20 | GL22: =IF(ROWS($GJ$3:GJ22)>(ROWS($GJ$3:$GJ$33)-COUNTBLANK($GJ$3:$GJ$33)),"",INDEX($GJ$3:$GJ$33,SMALL(IF($GJ$3:$GJ$33<>"",ROW($GJ$3:$GJ$33)-2),ROWS($GJ$3:GJ22)))) ->  | GM22: Klamka AXA Manitoba Plus | GN22: Stare złoto | GW22: Zestaw czytnik linii papilarnych | GX22: - | IY22: 2000
A23: DB 39 | B23: 20 | C23: 20 | D23: 48 | E23: 48 | F23: 50 | G23: 50 | H23: 50 | I23: 50 | Y23: RAL 1001 | Z23: 500 | AA23: RAL 1001 | AB23: =IF((VLOOKUP(Wycena!$C$7,Mapping!$Q$15:$R$20,2,0))="tak","",AA23) -> RAL 1001 | AC23: =IF(ROWS($AB$3:AB23)>(ROWS($AB$3:$AB$229)-COUNTBLANK($AB$3:$AB$229)),"",INDEX($AB$3:$AB$229,SMALL(IF($AB$3:$AB$229<>"",ROW($AB$3:$AB$229)-2),ROWS($AB$3:AB23)))) ->  | AX23: 92 | AY23: 0 | AZ23: 0 | BA23: =IF(Wycena!$C$16=78,Mapping!AY23,AZ23) -> 0 | BD23: 200 | BE23: 0 | BF23: 0 | BG23: =IF(Wycena!$C$16=78,Mapping!BE23,BF23) -> 0 | CO23: Przy skrzydle i naświetlu z dwóch stron | CP23: =IF(Wycena!$C$14="Przylgowe",8,IF(Wycena!$C$14="Bezprzylgowe",6,0)) -> 8 | CQ23: 0 | CR23: =IF(Wycena!$C$14="Przylgowe",8,IF(Wycena!$C$14="Bezprzylgowe",6,0)) -> 8 | CS23: 0 | DA23: 25 | DB23: =IF(DA23>=VLOOKUP(Wycena!$C$14,Mapping!$CY$3:$CZ$5,2,0),DA23,"") -> 25 | DC23: =IF(ROWS($DB$3:DB23)>(ROWS($DB$3:$DB$28)-COUNTBLANK($DB$3:$DB$28)),"",INDEX($DB$3:$DB$28,SMALL(IF($DB$3:$DB$28<>"",ROW($DB$3:$DB$28)-2),ROWS($DB$3:DB23)))) -> 26 | DG23: DB 157 | DH23: 9 | DI23: =IF(OR(Wycena!$C$20="-",Wycena!$C$20="Imitacja skrzydła ruchoma"),(MAX((IFERROR(VLOOKUP(Wycena!C5,Mapping!$DG$21:$DH$23,2,0),0)),(8+VLOOKUP(Wycena!C26,$CO$16:$CS$25,IF(AND(Wycena!C20="-",Wycena!C21="-"),2,IF(AND(Wycena!C20<>"-",Wycena!C21="-"),3,IF(AND(Wycena!C20="-",Wycena!C21<>"-"),4,5))),0)))),(8+VLOOKUP(Wycena!C26,$CO$16:$CS$25,IF(AND(Wycena!C20="-",Wycena!C21="-"),2,IF(AND(Wycena!C20<>"-",Wycena!C21="-"),3,IF(AND(Wycena!C20="-",Wycena!C21<>"-"),4,5))),0))) -> 8 | DJ23: =IF(Wycena!$C$21="Imitacja skrzydła ruchoma",(MAX((IFERROR(VLOOKUP(Wycena!C5,Mapping!$DG$21:$DH$23,2,0),0)),(8+VLOOKUP(Wycena!C26,$CO$28:$CS$37,IF(AND(Wycena!C20="-",Wycena!C21="-"),2,IF(AND(Wycena!C20<>"-",Wycena!C21="-"),3,IF(AND(Wycena!C20="-",Wycena!C21<>"-"),4,5))),0)))),(8+VLOOKUP(Wycena!C26,$CO$28:$CS$37,IF(AND(Wycena!C20="-",Wycena!C21="-"),2,IF(AND(Wycena!C20<>"-",Wycena!C21="-"),3,IF(AND(Wycena!C20="-",Wycena!C21<>"-"),4,5))),0))) -> 8 | DK23: 25 | DL23: =IF(DK23>=VLOOKUP(Wycena!$C$14,Mapping!$DG$3:$DH$5,2,0),DK23,"") -> 25 | DM23: =IF(ROWS($DL$3:DL23)>(ROWS($DL$3:$DL$28)-COUNTBLANK($DL$3:$DL$28)),"",INDEX($DL$3:$DL$28,SMALL(IF($DL$3:$DL$28<>"",ROW($DL$3:$DL$28)-2),ROWS($DL$3:DL23)))) -> 26 | DN23: =IF(DK23>=VLOOKUP(Wycena!$C$14,Mapping!$DG$3:$DI$5,3,0),DK23,"") -> 25 | DO23: =IF(ROWS($DN$3:DN23)>(ROWS($DN$3:$DN$28)-COUNTBLANK($DN$3:$DN$28)),"",INDEX($DN$3:$DN$28,SMALL(IF($DN$3:$DN$28<>"",ROW($DN$3:$DN$28)-2),ROWS($DN$3:DN23)))) -> 26 | DS23: 25 | DT23: =IF(DS23>=VLOOKUP(Wycena!$C$25,Mapping!$DQ$3:$DR$4,2,0),DS23,"") -> 25 | DU23: =IF(ROWS($DT$3:DT23)>(ROWS($DT$3:$DT$28)-COUNTBLANK($DT$3:$DT$28)),"",INDEX($DT$3:$DT$28,SMALL(IF($DT$3:$DT$28<>"",ROW($DT$3:$DT$28)-2),ROWS($DT$3:DT23)))) -> 30 | DW23: 20 | FO23: 20 | FP23: =IF(Wycena!$C$20="-","",FO23) ->  | FQ23: =IF(ROWS($FP$3:FP23)>(ROWS($FP$3:$FP$23)-COUNTBLANK($FP$3:$FP$23)),"",INDEX($FP$3:$FP$23,SMALL(IF($FP$3:$FP$23<>"",ROW($FP$3:$FP$23)-2),ROWS($FP$3:FP23)))) ->  | FR23: =IF(Wycena!$C$21="-","",FO23) ->  | FS23: =IF(ROWS($FR$3:FR23)>(ROWS($FR$3:$FR$23)-COUNTBLANK($FR$3:$FR$23)),"",INDEX($FR$3:$FR$23,SMALL(IF($FR$3:$FR$23<>"",ROW($FR$3:$FR$23)-2),ROWS($FR$3:FR23)))) ->  | FT23: =IF(Wycena!$C$22="-","",FO23) ->  | FU23: =IF(ROWS($FT$3:FT23)>(ROWS($FT$3:$FT$23)-COUNTBLANK($FT$3:$FT$23)),"",INDEX($FT$3:$FT$23,SMALL(IF($FT$3:$FT$23<>"",ROW($FT$3:$FT$23)-2),ROWS($FT$3:FT23)))) ->  | FW23: Zestaw elektronik z zamkiem ryglowym | FX23: Ryglowy 3-punktowy z gałką (standard) | FY23: Pojedynczy jedna wkładka | FZ23: 0 | GA23: Antaba Medos Lisbon prostokątna skośna + klamka Warszawa | GB23: 1000 | GC23: =IF(VLOOKUP(Wycena!$C$5,SKU!$B$1:$D$743,3,0)="Płycinowe",GA23,"") ->  | GE23: =GC23 ->  | GI23: =GC23 ->  | GJ23: =IF((HLOOKUP(VLOOKUP(Wycena!$C$59,Mapping!$GI$35:$GJ$43,2,0),$GD$1:$GI$33,2+GK23))=0,"",(HLOOKUP(VLOOKUP(Wycena!$C$59,Mapping!$GI$35:$GJ$43,2,0),$GD$1:$GI$33,2+GK23))) ->  | GK23: 21 | GL23: =IF(ROWS($GJ$3:GJ23)>(ROWS($GJ$3:$GJ$33)-COUNTBLANK($GJ$3:$GJ$33)),"",INDEX($GJ$3:$GJ$33,SMALL(IF($GJ$3:$GJ$33<>"",ROW($GJ$3:$GJ$33)-2),ROWS($GJ$3:GJ23)))) ->  | GM23: Klamka AXA Niagara Plus | GN23: Inox | GW23: Zestaw czytnik linii papilarnych dLine | GX23: - | HB23: Po zestawie | IY23: 2100
A24: DB 43 | B24: 20 | C24: 20 | D24: 20 | E24: 20 | F24: 34 | G24: 34 | H24: =F24+2 -> 36 | I24: =G24+2 -> 36 | Y24: RAL 1002 | Z24: 500 | AA24: RAL 1002 | AB24: =IF((VLOOKUP(Wycena!$C$7,Mapping!$Q$15:$R$20,2,0))="tak","",AA24) -> RAL 1002 | AC24: =IF(ROWS($AB$3:AB24)>(ROWS($AB$3:$AB$229)-COUNTBLANK($AB$3:$AB$229)),"",INDEX($AB$3:$AB$229,SMALL(IF($AB$3:$AB$229<>"",ROW($AB$3:$AB$229)-2),ROWS($AB$3:AB24)))) ->  | AX24: 93 | AY24: 0 | AZ24: 0 | BA24: =IF(Wycena!$C$16=78,Mapping!AY24,AZ24) -> 0 | BD24: 201 | BE24: 0 | BF24: 0 | BG24: =IF(Wycena!$C$16=78,Mapping!BE24,BF24) -> 0 | CO24: Przy skrzydle, naświetlu i ościeżnicy od zewnątrz | CQ24: =IF(Wycena!$C$14="Przylgowe",8,IF(Wycena!$C$14="Bezprzylgowe",6,0)) -> 8 | CR24: =IF(Wycena!$C$14="Przylgowe",8,IF(Wycena!$C$14="Bezprzylgowe",6,0)) -> 8 | CS24: =IF(Wycena!$C$14="Przylgowe",8,IF(Wycena!$C$14="Bezprzylgowe",6,0)) -> 8 | DA24: 26 | DB24: =IF(DA24>=VLOOKUP(Wycena!$C$14,Mapping!$CY$3:$CZ$5,2,0),DA24,"") -> 26 | DC24: =IF(ROWS($DB$3:DB24)>(ROWS($DB$3:$DB$28)-COUNTBLANK($DB$3:$DB$28)),"",INDEX($DB$3:$DB$28,SMALL(IF($DB$3:$DB$28<>"",ROW($DB$3:$DB$28)-2),ROWS($DB$3:DB24)))) -> 27 | DK24: 26 | DL24: =IF(DK24>=VLOOKUP(Wycena!$C$14,Mapping!$DG$3:$DH$5,2,0),DK24,"") -> 26 | DM24: =IF(ROWS($DL$3:DL24)>(ROWS($DL$3:$DL$28)-COUNTBLANK($DL$3:$DL$28)),"",INDEX($DL$3:$DL$28,SMALL(IF($DL$3:$DL$28<>"",ROW($DL$3:$DL$28)-2),ROWS($DL$3:DL24)))) -> 27 | DN24: =IF(DK24>=VLOOKUP(Wycena!$C$14,Mapping!$DG$3:$DI$5,3,0),DK24,"") -> 26 | DO24: =IF(ROWS($DN$3:DN24)>(ROWS($DN$3:$DN$28)-COUNTBLANK($DN$3:$DN$28)),"",INDEX($DN$3:$DN$28,SMALL(IF($DN$3:$DN$28<>"",ROW($DN$3:$DN$28)-2),ROWS($DN$3:DN24)))) -> 27 | DS24: 26 | DT24: =IF(DS24>=VLOOKUP(Wycena!$C$25,Mapping!$DQ$3:$DR$4,2,0),DS24,"") -> 26 | DU24: =IF(ROWS($DT$3:DT24)>(ROWS($DT$3:$DT$28)-COUNTBLANK($DT$3:$DT$28)),"",INDEX($DT$3:$DT$28,SMALL(IF($DT$3:$DT$28<>"",ROW($DT$3:$DT$28)-2),ROWS($DT$3:DT24)))) ->  | DW24: 21 | FO24: x | FP24: x | FQ24: x | FR24: x | FS24: x | FT24: x | FW24: Zestaw elektronik z zamkiem ryglowym | FX24: Ryglowy 3-punktowy bez gałki (standard) | FY24: Podwójny dwie wkładki | FZ24: 400 | GJ24: =IF((HLOOKUP(VLOOKUP(Wycena!$C$59,Mapping!$GI$35:$GJ$43,2,0),$GD$1:$GI$33,2+GK24))=0,"",(HLOOKUP(VLOOKUP(Wycena!$C$59,Mapping!$GI$35:$GJ$43,2,0),$GD$1:$GI$33,2+GK24))) ->  | GK24: 22 | GL24: =IF(ROWS($GJ$3:GJ24)>(ROWS($GJ$3:$GJ$33)-COUNTBLANK($GJ$3:$GJ$33)),"",INDEX($GJ$3:$GJ$33,SMALL(IF($GJ$3:$GJ$33<>"",ROW($GJ$3:$GJ$33)-2),ROWS($GJ$3:GJ24)))) ->  | GW24: Zestaw UNILOCK | GX24: - | HB24: Brak (standard) | HC24: - | IY24: 2200
A25: DB 45 | B25: 20 | C25: 20 | D25: 20 | E25: 20 | F25: 34 | G25: 34 | H25: 36 | I25: 36 | Y25: RAL 1003 | Z25: 500 | AA25: RAL 1003 | AB25: =IF((VLOOKUP(Wycena!$C$7,Mapping!$Q$15:$R$20,2,0))="tak","",AA25) -> RAL 1003 | AC25: =IF(ROWS($AB$3:AB25)>(ROWS($AB$3:$AB$229)-COUNTBLANK($AB$3:$AB$229)),"",INDEX($AB$3:$AB$229,SMALL(IF($AB$3:$AB$229<>"",ROW($AB$3:$AB$229)-2),ROWS($AB$3:AB25)))) ->  | AX25: 94 | AY25: 0 | AZ25: 0 | BA25: =IF(Wycena!$C$16=78,Mapping!AY25,AZ25) -> 0 | BD25: 202 | BE25: 0 | BF25: 0 | BG25: =IF(Wycena!$C$16=78,Mapping!BE25,BF25) -> 0 | CO25: Przy skrzydle, naświetlu i ościeżnicy z dwóch stron | CQ25: =IF(Wycena!$C$14="Przylgowe",8,IF(Wycena!$C$14="Bezprzylgowe",6,0)) -> 8 | CR25: =IF(Wycena!$C$14="Przylgowe",8,IF(Wycena!$C$14="Bezprzylgowe",6,0)) -> 8 | CS25: =IF(Wycena!$C$14="Przylgowe",8,IF(Wycena!$C$14="Bezprzylgowe",6,0)) -> 8 | DA25: 27 | DB25: =IF(DA25>=VLOOKUP(Wycena!$C$14,Mapping!$CY$3:$CZ$5,2,0),DA25,"") -> 27 | DC25: =IF(ROWS($DB$3:DB25)>(ROWS($DB$3:$DB$28)-COUNTBLANK($DB$3:$DB$28)),"",INDEX($DB$3:$DB$28,SMALL(IF($DB$3:$DB$28<>"",ROW($DB$3:$DB$28)-2),ROWS($DB$3:DB25)))) -> 28 | DK25: 27 | DL25: =IF(DK25>=VLOOKUP(Wycena!$C$14,Mapping!$DG$3:$DH$5,2,0),DK25,"") -> 27 | DM25: =IF(ROWS($DL$3:DL25)>(ROWS($DL$3:$DL$28)-COUNTBLANK($DL$3:$DL$28)),"",INDEX($DL$3:$DL$28,SMALL(IF($DL$3:$DL$28<>"",ROW($DL$3:$DL$28)-2),ROWS($DL$3:DL25)))) -> 28 | DN25: =IF(DK25>=VLOOKUP(Wycena!$C$14,Mapping!$DG$3:$DI$5,3,0),DK25,"") -> 27 | DO25: =IF(ROWS($DN$3:DN25)>(ROWS($DN$3:$DN$28)-COUNTBLANK($DN$3:$DN$28)),"",INDEX($DN$3:$DN$28,SMALL(IF($DN$3:$DN$28<>"",ROW($DN$3:$DN$28)-2),ROWS($DN$3:DN25)))) -> 28 | DS25: 27 | DT25: =IF(DS25>=VLOOKUP(Wycena!$C$25,Mapping!$DQ$3:$DR$4,2,0),DS25,"") -> 27 | DU25: =IF(ROWS($DT$3:DT25)>(ROWS($DT$3:$DT$28)-COUNTBLANK($DT$3:$DT$28)),"",INDEX($DT$3:$DT$28,SMALL(IF($DT$3:$DT$28<>"",ROW($DT$3:$DT$28)-2),ROWS($DT$3:DT25)))) ->  | DW25: 22 | FW25: Zestaw elektronik z zamkiem ryglowym | FX25: Ryglowy 4-punktowy | GJ25: =IF((HLOOKUP(VLOOKUP(Wycena!$C$59,Mapping!$GI$35:$GJ$43,2,0),$GD$1:$GI$33,2+GK25))=0,"",(HLOOKUP(VLOOKUP(Wycena!$C$59,Mapping!$GI$35:$GJ$43,2,0),$GD$1:$GI$33,2+GK25))) ->  | GK25: 23 | GL25: =IF(ROWS($GJ$3:GJ25)>(ROWS($GJ$3:$GJ$33)-COUNTBLANK($GJ$3:$GJ$33)),"",INDEX($GJ$3:$GJ$33,SMALL(IF($GJ$3:$GJ$33<>"",ROW($GJ$3:$GJ$33)-2),ROWS($GJ$3:GJ25)))) ->  | GM25: Klamka AXA Niagara Plus | GN25: Stare złoto | GW25: Zestaw UNILOCK WIFI | GX25: - | HB25: Brak (standard) | HC25: Tak | IY25: 2300
A26: DB 47 | B26: 20 | C26: 20 | D26: 20 | E26: 20 | F26: 34 | G26: 34 | H26: 36 | I26: 36 | Y26: RAL 1004 | Z26: 500 | AA26: RAL 1004 | AB26: =IF((VLOOKUP(Wycena!$C$7,Mapping!$Q$15:$R$20,2,0))="tak","",AA26) -> RAL 1004 | AC26: =IF(ROWS($AB$3:AB26)>(ROWS($AB$3:$AB$229)-COUNTBLANK($AB$3:$AB$229)),"",INDEX($AB$3:$AB$229,SMALL(IF($AB$3:$AB$229<>"",ROW($AB$3:$AB$229)-2),ROWS($AB$3:AB26)))) ->  | AX26: 95 | AY26: 0 | AZ26: 0 | BA26: =IF(Wycena!$C$16=78,Mapping!AY26,AZ26) -> 0 | BD26: 203 | BE26: 0 | BF26: 0 | BG26: =IF(Wycena!$C$16=78,Mapping!BE26,BF26) -> 0 | DA26: 28 | DB26: =IF(DA26>=VLOOKUP(Wycena!$C$14,Mapping!$CY$3:$CZ$5,2,0),DA26,"") -> 28 | DC26: =IF(ROWS($DB$3:DB26)>(ROWS($DB$3:$DB$28)-COUNTBLANK($DB$3:$DB$28)),"",INDEX($DB$3:$DB$28,SMALL(IF($DB$3:$DB$28<>"",ROW($DB$3:$DB$28)-2),ROWS($DB$3:DB26)))) -> 29 | DK26: 28 | DL26: =IF(DK26>=VLOOKUP(Wycena!$C$14,Mapping!$DG$3:$DH$5,2,0),DK26,"") -> 28 | DM26: =IF(ROWS($DL$3:DL26)>(ROWS($DL$3:$DL$28)-COUNTBLANK($DL$3:$DL$28)),"",INDEX($DL$3:$DL$28,SMALL(IF($DL$3:$DL$28<>"",ROW($DL$3:$DL$28)-2),ROWS($DL$3:DL26)))) -> 29 | DN26: =IF(DK26>=VLOOKUP(Wycena!$C$14,Mapping!$DG$3:$DI$5,3,0),DK26,"") -> 28 | DO26: =IF(ROWS($DN$3:DN26)>(ROWS($DN$3:$DN$28)-COUNTBLANK($DN$3:$DN$28)),"",INDEX($DN$3:$DN$28,SMALL(IF($DN$3:$DN$28<>"",ROW($DN$3:$DN$28)-2),ROWS($DN$3:DN26)))) -> 29 | DS26: 28 | DT26: =IF(DS26>=VLOOKUP(Wycena!$C$25,Mapping!$DQ$3:$DR$4,2,0),DS26,"") -> 28 | DU26: =IF(ROWS($DT$3:DT26)>(ROWS($DT$3:$DT$28)-COUNTBLANK($DT$3:$DT$28)),"",INDEX($DT$3:$DT$28,SMALL(IF($DT$3:$DT$28<>"",ROW($DT$3:$DT$28)-2),ROWS($DT$3:DT26)))) ->  | DW26: 23 | FQ26: =$FQ$3:INDEX($FQ$3:$FQ$23,(ROWS($FP$3:$FP$23)-COUNTBLANK($FP$3:$FP$23))) -> - | FS26: =$FS$3:INDEX($FS$3:$FS$23,(ROWS($FR$3:$FR$23)-COUNTBLANK($FR$3:$FR$23))) -> - | FU26: =$FU$3:INDEX($FU$3:$FU$23,(ROWS($FT$3:$FT$23)-COUNTBLANK($FT$3:$FT$23))) -> - | FW26: Zestaw elektronik z zamkiem automatycznym | FX26: Automat 3-punktowy z gałką | FY26: Zestaw czytnik linii papilarnych | FZ26: 1 | GA26: Antaba Medos Paris okrągła prosta + klamka Warszawa | GB26: 900 | GC26: =IF(VLOOKUP(Wycena!$C$5,SKU!$B$1:$D$743,3,0)="Płytowe",GA26,"") ->  | GJ26: =IF((HLOOKUP(VLOOKUP(Wycena!$C$59,Mapping!$GI$35:$GJ$43,2,0),$GD$1:$GI$33,2+GK26))=0,"",(HLOOKUP(VLOOKUP(Wycena!$C$59,Mapping!$GI$35:$GJ$43,2,0),$GD$1:$GI$33,2+GK26))) ->  | GK26: 24 | GL26: =IF(ROWS($GJ$3:GJ26)>(ROWS($GJ$3:$GJ$33)-COUNTBLANK($GJ$3:$GJ$33)),"",INDEX($GJ$3:$GJ$33,SMALL(IF($GJ$3:$GJ$33<>"",ROW($GJ$3:$GJ$33)-2),ROWS($GJ$3:GJ26)))) ->  | GM26: Klamka AXA Prestige Flex | GN26: Inox | HB26: Zestaw elektronik z zamkiem ryglowym | HC26: - | IY26: 2400
A27: DB 51 | B27: 20 | C27: 20 | D27: 20 | E27: 20 | F27: 34 | G27: 34 | H27: 36 | I27: 36 | Y27: RAL 1005 | Z27: 500 | AA27: RAL 1005 | AB27: =IF((VLOOKUP(Wycena!$C$7,Mapping!$Q$15:$R$20,2,0))="tak","",AA27) -> RAL 1005 | AC27: =IF(ROWS($AB$3:AB27)>(ROWS($AB$3:$AB$229)-COUNTBLANK($AB$3:$AB$229)),"",INDEX($AB$3:$AB$229,SMALL(IF($AB$3:$AB$229<>"",ROW($AB$3:$AB$229)-2),ROWS($AB$3:AB27)))) ->  | AX27: 96 | AY27: 0 | AZ27: 0 | BA27: =IF(Wycena!$C$16=78,Mapping!AY27,AZ27) -> 0 | BD27: 204 | BE27: 0 | BF27: 0 | BG27: =IF(Wycena!$C$16=78,Mapping!BE27,BF27) -> 0 | CO27: =VLOOKUP(Wycena!C26,$CO$28:$CS$37,IF(AND(Wycena!C20="-",Wycena!C21="-"),2,IF(AND(Wycena!C20<>"-",Wycena!C21="-"),3,IF(AND(Wycena!C20="-",Wycena!C21<>"-"),4,5))),0) -> 0 | DA27: 29 | DB27: =IF(DA27>=VLOOKUP(Wycena!$C$14,Mapping!$CY$3:$CZ$5,2,0),DA27,"") -> 29 | DC27: =IF(ROWS($DB$3:DB27)>(ROWS($DB$3:$DB$28)-COUNTBLANK($DB$3:$DB$28)),"",INDEX($DB$3:$DB$28,SMALL(IF($DB$3:$DB$28<>"",ROW($DB$3:$DB$28)-2),ROWS($DB$3:DB27)))) -> 30 | DK27: 29 | DL27: =IF(DK27>=VLOOKUP(Wycena!$C$14,Mapping!$DG$3:$DH$5,2,0),DK27,"") -> 29 | DM27: =IF(ROWS($DL$3:DL27)>(ROWS($DL$3:$DL$28)-COUNTBLANK($DL$3:$DL$28)),"",INDEX($DL$3:$DL$28,SMALL(IF($DL$3:$DL$28<>"",ROW($DL$3:$DL$28)-2),ROWS($DL$3:DL27)))) -> 30 | DN27: =IF(DK27>=VLOOKUP(Wycena!$C$14,Mapping!$DG$3:$DI$5,3,0),DK27,"") -> 29 | DO27: =IF(ROWS($DN$3:DN27)>(ROWS($DN$3:$DN$28)-COUNTBLANK($DN$3:$DN$28)),"",INDEX($DN$3:$DN$28,SMALL(IF($DN$3:$DN$28<>"",ROW($DN$3:$DN$28)-2),ROWS($DN$3:DN27)))) -> 30 | DS27: 29 | DT27: =IF(DS27>=VLOOKUP(Wycena!$C$25,Mapping!$DQ$3:$DR$4,2,0),DS27,"") -> 29 | DU27: =IF(ROWS($DT$3:DT27)>(ROWS($DT$3:$DT$28)-COUNTBLANK($DT$3:$DT$28)),"",INDEX($DT$3:$DT$28,SMALL(IF($DT$3:$DT$28<>"",ROW($DT$3:$DT$28)-2),ROWS($DT$3:DT27)))) ->  | DW27: 24 | FW27: Zestaw elektronik z zamkiem automatycznym | FX27: Automat 3-punktowy bez gałki | FY27: Zestaw czytnik linii papilarnych dLine | FZ27: 1 | GA27: Antaba Medos Paris okrągła skośna + klamka Warszawa | GB27: 1000 | GC27: =IF(VLOOKUP(Wycena!$C$5,SKU!$B$1:$D$743,3,0)="Płycinowe",GA27,"") ->  | GJ27: =IF((HLOOKUP(VLOOKUP(Wycena!$C$59,Mapping!$GI$35:$GJ$43,2,0),$GD$1:$GI$33,2+GK27))=0,"",(HLOOKUP(VLOOKUP(Wycena!$C$59,Mapping!$GI$35:$GJ$43,2,0),$GD$1:$GI$33,2+GK27))) ->  | GK27: 25 | GL27: =IF(ROWS($GJ$3:GJ27)>(ROWS($GJ$3:$GJ$33)-COUNTBLANK($GJ$3:$GJ$33)),"",INDEX($GJ$3:$GJ$33,SMALL(IF($GJ$3:$GJ$33<>"",ROW($GJ$3:$GJ$33)-2),ROWS($GJ$3:GJ27)))) ->  | GM27: Klamka AXA Prestige Flex | GN27: Tytan | HB27: Zestaw elektronik z zamkiem ryglowym | HC27: Tak | IY27: 2500
A28: DB 52a | B28: 20 | C28: 20 | D28: 20 | E28: 20 | F28: 34 | G28: 34 | H28: 36 | I28: 36 | Y28: RAL 1006 | Z28: 500 | AA28: RAL 1006 | AB28: =IF((VLOOKUP(Wycena!$C$7,Mapping!$Q$15:$R$20,2,0))="tak","",AA28) -> RAL 1006 | AC28: =IF(ROWS($AB$3:AB28)>(ROWS($AB$3:$AB$229)-COUNTBLANK($AB$3:$AB$229)),"",INDEX($AB$3:$AB$229,SMALL(IF($AB$3:$AB$229<>"",ROW($AB$3:$AB$229)-2),ROWS($AB$3:AB28)))) ->  | AX28: 97 | AY28: 0 | AZ28: 0 | BA28: =IF(Wycena!$C$16=78,Mapping!AY28,AZ28) -> 0 | BD28: 205 | BE28: 0 | BF28: 0 | BG28: =IF(Wycena!$C$16=78,Mapping!BE28,BF28) -> 0 | CO28: Dla ościeżnicy od zamka | CP28: SOLO | CQ28: DOSTAWKA OD ZAWIAS | CR28: DOSTAWKA OD ZAMKA | CS28: 2 DOSTAWKI | DA28: 30 | DB28: =IF(DA28>=VLOOKUP(Wycena!$C$14,Mapping!$CY$3:$CZ$5,2,0),DA28,"") -> 30 | DC28: =IF(ROWS($DB$3:DB28)>(ROWS($DB$3:$DB$28)-COUNTBLANK($DB$3:$DB$28)),"",INDEX($DB$3:$DB$28,SMALL(IF($DB$3:$DB$28<>"",ROW($DB$3:$DB$28)-2),ROWS($DB$3:DB28)))) ->  | DK28: 30 | DL28: =IF(DK28>=VLOOKUP(Wycena!$C$14,Mapping!$DG$3:$DH$5,2,0),DK28,"") -> 30 | DM28: =IF(ROWS($DL$3:DL28)>(ROWS($DL$3:$DL$28)-COUNTBLANK($DL$3:$DL$28)),"",INDEX($DL$3:$DL$28,SMALL(IF($DL$3:$DL$28<>"",ROW($DL$3:$DL$28)-2),ROWS($DL$3:DL28)))) ->  | DN28: =IF(DK28>=VLOOKUP(Wycena!$C$14,Mapping!$DG$3:$DI$5,3,0),DK28,"") -> 30 | DO28: =IF(ROWS($DN$3:DN28)>(ROWS($DN$3:$DN$28)-COUNTBLANK($DN$3:$DN$28)),"",INDEX($DN$3:$DN$28,SMALL(IF($DN$3:$DN$28<>"",ROW($DN$3:$DN$28)-2),ROWS($DN$3:DN28)))) ->  | DS28: 30 | DT28: =IF(DS28>=VLOOKUP(Wycena!$C$25,Mapping!$DQ$3:$DR$4,2,0),DS28,"") -> 30 | DU28: =IF(ROWS($DT$3:DT28)>(ROWS($DT$3:$DT$28)-COUNTBLANK($DT$3:$DT$28)),"",INDEX($DT$3:$DT$28,SMALL(IF($DT$3:$DT$28<>"",ROW($DT$3:$DT$28)-2),ROWS($DT$3:DT28)))) ->  | DW28: 25 | FW28: Zestaw elektronik z zamkiem automatycznym | FX28: Automat 4-punktowy | FY28: Zestaw UNILOCK | FZ28: 1 | GA28: Antaba Vegas prostokątna polerowana + klamka Warszawa | GB28: 1700 | GC28: =IF(VLOOKUP(Wycena!$C$5,SKU!$B$1:$D$743,3,0)="Płytowe",GA28,"") ->  | GE28: =GD28 ->  | GF28: =GE28 ->  | GJ28: =IF((HLOOKUP(VLOOKUP(Wycena!$C$59,Mapping!$GI$35:$GJ$43,2,0),$GD$1:$GI$33,2+GK28))=0,"",(HLOOKUP(VLOOKUP(Wycena!$C$59,Mapping!$GI$35:$GJ$43,2,0),$GD$1:$GI$33,2+GK28))) ->  | GK28: 26 | GL28: =IF(ROWS($GJ$3:GJ28)>(ROWS($GJ$3:$GJ$33)-COUNTBLANK($GJ$3:$GJ$33)),"",INDEX($GJ$3:$GJ$33,SMALL(IF($GJ$3:$GJ$33<>"",ROW($GJ$3:$GJ$33)-2),ROWS($GJ$3:GJ28)))) ->  | GM28: Klamka AXA Prestige Flex | GN28: Stare złoto | HB28: Zestaw elektronik z zamkiem automatycznym | HC28: - | IY28: 2600
A29: DB 55 | B29: 20 | C29: 20 | D29: 20 | E29: 20 | F29: 34 | G29: 34 | H29: 36 | I29: 36 | Y29: RAL 1007 | Z29: 500 | AA29: RAL 1007 | AB29: =IF((VLOOKUP(Wycena!$C$7,Mapping!$Q$15:$R$20,2,0))="tak","",AA29) -> RAL 1007 | AC29: =IF(ROWS($AB$3:AB29)>(ROWS($AB$3:$AB$229)-COUNTBLANK($AB$3:$AB$229)),"",INDEX($AB$3:$AB$229,SMALL(IF($AB$3:$AB$229<>"",ROW($AB$3:$AB$229)-2),ROWS($AB$3:AB29)))) ->  | AX29: 98 | AY29: 0 | AZ29: 0 | BA29: =IF(Wycena!$C$16=78,Mapping!AY29,AZ29) -> 0 | BD29: 206 | BE29: 0 | BF29: 0 | BG29: =IF(Wycena!$C$16=78,Mapping!BE29,BF29) -> 0 | CO29: - | CP29: 0 | CQ29: 0 | CR29: 0 | CS29: 0 | DA29: x | DB29: x | DC29: x | DK29: x | DL29: x | DM29: x | DN29: x | DO29: x | DS29: x | DT29: x | DU29: x | DW29: 26 | FW29: Zestaw z pochwytem na styl amerykański | FX29: Pojedynczy jedna wkładka | FY29: Zestaw UNILOCK WIFI | FZ29: 1 | GC29: =IF(VLOOKUP(Wycena!$C$5,SKU!$B$1:$D$743,3,0)="Płytowe",GA29,"") ->  | GJ29: =IF((HLOOKUP(VLOOKUP(Wycena!$C$59,Mapping!$GI$35:$GJ$43,2,0),$GD$1:$GI$33,2+GK29))=0,"",(HLOOKUP(VLOOKUP(Wycena!$C$59,Mapping!$GI$35:$GJ$43,2,0),$GD$1:$GI$33,2+GK29))) ->  | GK29: 27 | GL29: =IF(ROWS($GJ$3:GJ29)>(ROWS($GJ$3:$GJ$33)-COUNTBLANK($GJ$3:$GJ$33)),"",INDEX($GJ$3:$GJ$33,SMALL(IF($GJ$3:$GJ$33<>"",ROW($GJ$3:$GJ$33)-2),ROWS($GJ$3:GJ29)))) ->  | GM29: Klamka AXA Slim Plus | GN29: Inox | HB29: Zestaw elektronik z zamkiem automatycznym | HC29: Tak | IY29: 2700
A30: DB 56 | B30: 20 | C30: 20 | D30: 20 | E30: 20 | F30: 34 | G30: 34 | H30: 36 | I30: 36 | Y30: RAL 1011 | Z30: 500 | AA30: RAL 1011 | AB30: =IF((VLOOKUP(Wycena!$C$7,Mapping!$Q$15:$R$20,2,0))="tak","",AA30) -> RAL 1011 | AC30: =IF(ROWS($AB$3:AB30)>(ROWS($AB$3:$AB$229)-COUNTBLANK($AB$3:$AB$229)),"",INDEX($AB$3:$AB$229,SMALL(IF($AB$3:$AB$229<>"",ROW($AB$3:$AB$229)-2),ROWS($AB$3:AB30)))) ->  | AX30: 99 | AY30: 0 | AZ30: 0 | BA30: =IF(Wycena!$C$16=78,Mapping!AY30,AZ30) -> 0 | BD30: 207 | BE30: 0 | BF30: 0 | BG30: =IF(Wycena!$C$16=78,Mapping!BE30,BF30) -> 0 | CO30: Przy skrzydle od zewnątrz | CP30: =IF(Wycena!$C$14="Przylgowe",8,IF(Wycena!$C$14="Bezprzylgowe",6,0)) -> 8 | CQ30: =IF(Wycena!$C$14="Przylgowe",8,IF(Wycena!$C$14="Bezprzylgowe",6,0)) -> 8 | CR30: 0 | CS30: 0 | DW30: 27 | FW30: Zestaw z pochwytem na styl amerykański | FX30: Podwójny dwie wkładki | FY30: Zestaw elektronik z zamkiem automatycznym | GC30: =IF(VLOOKUP(Wycena!$C$5,SKU!$B$1:$D$743,3,0)="Płytowe",GA30,"") ->  | GE30: =GC30 ->  | GF30: =GC30 ->  | GJ30: =IF((HLOOKUP(VLOOKUP(Wycena!$C$59,Mapping!$GI$35:$GJ$43,2,0),$GD$1:$GI$33,2+GK30))=0,"",(HLOOKUP(VLOOKUP(Wycena!$C$59,Mapping!$GI$35:$GJ$43,2,0),$GD$1:$GI$33,2+GK30))) ->  | GK30: 28 | GL30: =IF(ROWS($GJ$3:GJ30)>(ROWS($GJ$3:$GJ$33)-COUNTBLANK($GJ$3:$GJ$33)),"",INDEX($GJ$3:$GJ$33,SMALL(IF($GJ$3:$GJ$33<>"",ROW($GJ$3:$GJ$33)-2),ROWS($GJ$3:GJ30)))) ->  | GM30: Klamka AXA Slim Plus | GN30: Tytan | HB30: Zestaw z pochwytem na styl amerykański | HC30: - | IY30: 2800
A31: DB 56a | B31: 20 | C31: 20 | D31: 20 | E31: 20 | F31: 34 | G31: 34 | H31: 36 | I31: 36 | Y31: RAL 1012 | Z31: 500 | AA31: RAL 1012 | AB31: =IF((VLOOKUP(Wycena!$C$7,Mapping!$Q$15:$R$20,2,0))="tak","",AA31) -> RAL 1012 | AC31: =IF(ROWS($AB$3:AB31)>(ROWS($AB$3:$AB$229)-COUNTBLANK($AB$3:$AB$229)),"",INDEX($AB$3:$AB$229,SMALL(IF($AB$3:$AB$229<>"",ROW($AB$3:$AB$229)-2),ROWS($AB$3:AB31)))) ->  | AX31: 100 | AY31: 0 | AZ31: 0 | BA31: =IF(Wycena!$C$16=78,Mapping!AY31,AZ31) -> 0 | BD31: 208 | BE31: 0 | BF31: 0 | BG31: =IF(Wycena!$C$16=78,Mapping!BE31,BF31) -> 0 | CO31: Przy skrzydle z dwóch stron | CP31: =IF(Wycena!$C$14="Przylgowe",8,IF(Wycena!$C$14="Bezprzylgowe",6,0)) -> 8 | CQ31: =IF(Wycena!$C$14="Przylgowe",8,IF(Wycena!$C$14="Bezprzylgowe",6,0)) -> 8 | CR31: 0 | CS31: 0 | DC31: =$DC$3:INDEX($DC$3:$DC$28,(ROWS($DB$3:$DB$28)-COUNTBLANK($DB$3:$DB$28))) -> 6 | DM31: =$DM$3:INDEX($DM$3:$DM$28,(ROWS($DL$3:$DL$28)-COUNTBLANK($DL$3:$DL$28))) -> 6 | DO31: =$DO$3:INDEX($DO$3:$DO$28,(ROWS($DN$3:$DN$28)-COUNTBLANK($DN$3:$DN$28))) -> 6 | DU31: =$DU$3:INDEX($DU$3:$DU$28,(ROWS($DT$3:$DT$28)-COUNTBLANK($DT$3:$DT$28))) -> 10.5 | DW31: 28 | FW31: Zestaw antywłamaniowy RC2 | FX31: Automat 4-punktowy | FY31: Zestaw antywłamaniowy RC2 | GC31: =IF(VLOOKUP(Wycena!$C$5,SKU!$B$1:$D$743,3,0)="Płycinowe",GA31,"") ->  | GE31: =GC31 ->  | GF31: =GC31 ->  | GJ31: =IF((HLOOKUP(VLOOKUP(Wycena!$C$59,Mapping!$GI$35:$GJ$43,2,0),$GD$1:$GI$33,2+GK31))=0,"",(HLOOKUP(VLOOKUP(Wycena!$C$59,Mapping!$GI$35:$GJ$43,2,0),$GD$1:$GI$33,2+GK31))) ->  | GK31: 29 | GL31: =IF(ROWS($GJ$3:GJ31)>(ROWS($GJ$3:$GJ$33)-COUNTBLANK($GJ$3:$GJ$33)),"",INDEX($GJ$3:$GJ$33,SMALL(IF($GJ$3:$GJ$33<>"",ROW($GJ$3:$GJ$33)-2),ROWS($GJ$3:GJ31)))) ->  | GM31: Klamka AXA Slim Plus | GN31: Stare złoto | HB31: Zestaw antywłamaniowy RC2 | HC31: Tak | IY31: 2900
A32: DB 57 | B32: 20 | C32: 20 | D32: 20 | E32: 20 | F32: 34 | G32: 34 | H32: 36 | I32: 36 | Y32: RAL 1013 | Z32: 500 | AA32: RAL 1013 | AB32: =IF((VLOOKUP(Wycena!$C$7,Mapping!$Q$15:$R$20,2,0))="tak","",AA32) -> RAL 1013 | AC32: =IF(ROWS($AB$3:AB32)>(ROWS($AB$3:$AB$229)-COUNTBLANK($AB$3:$AB$229)),"",INDEX($AB$3:$AB$229,SMALL(IF($AB$3:$AB$229<>"",ROW($AB$3:$AB$229)-2),ROWS($AB$3:AB32)))) ->  | AX32: 101 | AY32: 0 | AZ32: 0 | BA32: =IF(Wycena!$C$16=78,Mapping!AY32,AZ32) -> 0 | BD32: 209 | BE32: 0 | BF32: 0 | BG32: =IF(Wycena!$C$16=78,Mapping!BE32,BF32) -> 0 | CO32: Przy skrzydle i ościeżnicy od zewnątrz | CQ32: =IF(Wycena!$C$14="Przylgowe",8,IF(Wycena!$C$14="Bezprzylgowe",6,0)) -> 8 | CR32: =IF(Wycena!$C$14="Przylgowe",8,IF(Wycena!$C$14="Bezprzylgowe",6,0)) -> 8 | CS32: =IF(Wycena!$C$14="Przylgowe",8,IF(Wycena!$C$14="Bezprzylgowe",6,0)) -> 8 | DW32: 29 | FW32: Zestaw czytnik linii papilarnych | FX32: Automat ADR 5-punktowy bez gałki | GC32: =IF(VLOOKUP(Wycena!$C$5,SKU!$B$1:$D$743,3,0)="Płytowe",GA32,"") ->  | GE32: =GC32 ->  | GF32: =GC32 ->  | GJ32: =IF((HLOOKUP(VLOOKUP(Wycena!$C$59,Mapping!$GI$35:$GJ$43,2,0),$GD$1:$GI$33,2+GK32))=0,"",(HLOOKUP(VLOOKUP(Wycena!$C$59,Mapping!$GI$35:$GJ$43,2,0),$GD$1:$GI$33,2+GK32))) ->  | GK32: 30 | GL32: =IF(ROWS($GJ$3:GJ32)>(ROWS($GJ$3:$GJ$33)-COUNTBLANK($GJ$3:$GJ$33)),"",INDEX($GJ$3:$GJ$33,SMALL(IF($GJ$3:$GJ$33<>"",ROW($GJ$3:$GJ$33)-2),ROWS($GJ$3:GJ32)))) ->  | GM32: Klamko - gałka Medos Warszawa | GN32: Inox | HB32: Zestaw czytnik linii papilarnych | HC32: - | IY32: 3000
A33: DB 59 | B33: 20 | C33: 20 | D33: 20 | E33: 20 | F33: 34 | G33: 34 | H33: 36 | I33: 36 | Y33: RAL 1014 | Z33: 500 | AA33: RAL 1014 | AB33: =IF((VLOOKUP(Wycena!$C$7,Mapping!$Q$15:$R$20,2,0))="tak","",AA33) -> RAL 1014 | AC33: =IF(ROWS($AB$3:AB33)>(ROWS($AB$3:$AB$229)-COUNTBLANK($AB$3:$AB$229)),"",INDEX($AB$3:$AB$229,SMALL(IF($AB$3:$AB$229<>"",ROW($AB$3:$AB$229)-2),ROWS($AB$3:AB33)))) ->  | AX33: 102 | AY33: 0 | AZ33: 0 | BA33: =IF(Wycena!$C$16=78,Mapping!AY33,AZ33) -> 0 | BD33: 210 | BE33: 0 | BF33: 0 | BG33: =IF(Wycena!$C$16=78,Mapping!BE33,BF33) -> 0 | CO33: Przy skrzydle i ościeżnicy z dwóch stron | CQ33: =IF(Wycena!$C$14="Przylgowe",8,IF(Wycena!$C$14="Bezprzylgowe",6,0)) -> 8 | CR33: =IF(Wycena!$C$14="Przylgowe",8,IF(Wycena!$C$14="Bezprzylgowe",6,0)) -> 8 | CS33: =IF(Wycena!$C$14="Przylgowe",8,IF(Wycena!$C$14="Bezprzylgowe",6,0)) -> 8 | DW33: 30 | FW33: Zestaw czytnik linii papilarnych | FX33: Automat ADR 5-punktowy z gałką | GC33: =IF(VLOOKUP(Wycena!$C$5,SKU!$B$1:$D$743,3,0)="Płycinowe",GA33,"") ->  | GE33: =GC33 ->  | GF33: =GC33 ->  | GK33: 31 | GL33: =IF(ROWS($GJ$3:GJ33)>(ROWS($GJ$3:$GJ$33)-COUNTBLANK($GJ$3:$GJ$33)),"",INDEX($GJ$3:$GJ$33,SMALL(IF($GJ$3:$GJ$33<>"",ROW($GJ$3:$GJ$33)-2),ROWS($GJ$3:GJ33)))) ->  | GM33: Klamko - gałka Medos Warszawa | GN33: Stare złoto | HB33: Zestaw czytnik linii papilarnych | HC33: Tak | IY33: 3100
A34: DB 59a | B34: 20 | C34: 20 | D34: 20 | E34: 20 | F34: 34 | G34: 34 | H34: 36 | I34: 36 | Y34: RAL 1015 | Z34: 500 | AA34: RAL 1015 | AB34: =IF((VLOOKUP(Wycena!$C$7,Mapping!$Q$15:$R$20,2,0))="tak","",AA34) -> RAL 1015 | AC34: =IF(ROWS($AB$3:AB34)>(ROWS($AB$3:$AB$229)-COUNTBLANK($AB$3:$AB$229)),"",INDEX($AB$3:$AB$229,SMALL(IF($AB$3:$AB$229<>"",ROW($AB$3:$AB$229)-2),ROWS($AB$3:AB34)))) ->  | AX34: 103 | AY34: 0 | AZ34: 0 | BA34: =IF(Wycena!$C$16=78,Mapping!AY34,AZ34) -> 0 | BD34: 211 | BE34: 0 | BF34: 0 | BG34: =IF(Wycena!$C$16=78,Mapping!BE34,BF34) -> 0 | CO34: Przy skrzydle i naświetlu od zewnątrz | CQ34: =IF(Wycena!$C$14="Przylgowe",8,IF(Wycena!$C$14="Bezprzylgowe",6,0)) -> 8 | CR34: 0 | CS34: 0 | FW34: Zestaw czytnik linii papilarnych dLine | FX34: Automat ADR 5-punktowy z gałką | GI34: x | GJ34: x | GK34: x | GL34: x | GM34: Klamko - gałka Medos Warszawa | GN34: Czarny | HB34: Zestaw czytnik linii papilarnych dLine | HC34: - | IY34: 3200
A35: DB 60 | B35: 20 | C35: 20 | D35: 20 | E35: 20 | F35: 34 | G35: 34 | H35: 36 | I35: 36 | Y35: RAL 1016 | Z35: 500 | AA35: RAL 1016 | AB35: =IF((VLOOKUP(Wycena!$C$7,Mapping!$Q$15:$R$20,2,0))="tak","",AA35) -> RAL 1016 | AC35: =IF(ROWS($AB$3:AB35)>(ROWS($AB$3:$AB$229)-COUNTBLANK($AB$3:$AB$229)),"",INDEX($AB$3:$AB$229,SMALL(IF($AB$3:$AB$229<>"",ROW($AB$3:$AB$229)-2),ROWS($AB$3:AB35)))) ->  | AX35: 104 | AY35: 0 | AZ35: 0 | BA35: =IF(Wycena!$C$16=78,Mapping!AY35,AZ35) -> 0 | BD35: 212 | BE35: 0 | BF35: 0 | BG35: =IF(Wycena!$C$16=78,Mapping!BE35,BF35) -> 0 | CO35: Przy skrzydle i naświetlu z dwóch stron | CP35: =IF(Wycena!$C$14="Przylgowe",8,IF(Wycena!$C$14="Bezprzylgowe",6,0)) -> 8 | CQ35: =IF(Wycena!$C$14="Przylgowe",8,IF(Wycena!$C$14="Bezprzylgowe",6,0)) -> 8 | CR35: 0 | CS35: 0 | FW35: Zestaw czytnik linii papilarnych dLine | FX35: Automat ADR 5-punktowy bez gałki | GI35: Brak (standard) | GJ35: 1 | GM35: Klamko - gałka Dublin Warszawa | GN35: Inox | HB35: Zestaw czytnik linii papilarnych dLine | HC35: Tak | IY35: 3300
A36: DB 61a | B36: 20 | C36: 20 | D36: 20 | E36: 20 | F36: 34 | G36: 34 | H36: 36 | I36: 36 | Y36: RAL 1017 | Z36: 500 | AA36: RAL 1017 | AB36: =IF((VLOOKUP(Wycena!$C$7,Mapping!$Q$15:$R$20,2,0))="tak","",AA36) -> RAL 1017 | AC36: =IF(ROWS($AB$3:AB36)>(ROWS($AB$3:$AB$229)-COUNTBLANK($AB$3:$AB$229)),"",INDEX($AB$3:$AB$229,SMALL(IF($AB$3:$AB$229<>"",ROW($AB$3:$AB$229)-2),ROWS($AB$3:AB36)))) ->  | AX36: 105 | AY36: 0 | AZ36: 0 | BA36: =IF(Wycena!$C$16=78,Mapping!AY36,AZ36) -> 0 | BD36: 213 | BE36: 0 | BF36: 0 | BG36: =IF(Wycena!$C$16=78,Mapping!BE36,BF36) -> 0 | CO36: Przy skrzydle, naświetlu i ościeżnicy od zewnątrz | CP36: =IF(Wycena!$C$14="Przylgowe",8,IF(Wycena!$C$14="Bezprzylgowe",6,0)) -> 8 | CQ36: =IF(Wycena!$C$14="Przylgowe",8,IF(Wycena!$C$14="Bezprzylgowe",6,0)) -> 8 | CR36: =IF(Wycena!$C$14="Przylgowe",8,IF(Wycena!$C$14="Bezprzylgowe",6,0)) -> 8 | CS36: =IF(Wycena!$C$14="Przylgowe",8,IF(Wycena!$C$14="Bezprzylgowe",6,0)) -> 8 | FW36: Zestaw UNILOCK | FX36: Automat ADR 5-punktowy z gałką | GI36: Zestaw elektronik z zamkiem ryglowym | GJ36: 2 | GL36: =$GL$3:INDEX($GL$3:$GL$33,(ROWS($GJ$3:$GJ$33)-COUNTBLANK($GJ$3:$GJ$33))) ->  | GM36: Klamko - gałka Dublin Warszawa | GN36: Stare złoto | HB36: Zestaw UNILOCK | HC36: - | IY36: 3400
A37: DB 62a | B37: 20 | C37: 20 | D37: 20 | E37: 20 | F37: 34 | G37: 34 | H37: 36 | I37: 36 | Y37: RAL 1018 | Z37: 500 | AA37: RAL 1018 | AB37: =IF((VLOOKUP(Wycena!$C$7,Mapping!$Q$15:$R$20,2,0))="tak","",AA37) -> RAL 1018 | AC37: =IF(ROWS($AB$3:AB37)>(ROWS($AB$3:$AB$229)-COUNTBLANK($AB$3:$AB$229)),"",INDEX($AB$3:$AB$229,SMALL(IF($AB$3:$AB$229<>"",ROW($AB$3:$AB$229)-2),ROWS($AB$3:AB37)))) ->  | AX37: 106 | AY37: 0 | AZ37: 0 | BA37: =IF(Wycena!$C$16=78,Mapping!AY37,AZ37) -> 0 | BD37: 214 | BE37: 0 | BF37: 0 | BG37: =IF(Wycena!$C$16=78,Mapping!BE37,BF37) -> 0 | CO37: Przy skrzydle, naświetlu i ościeżnicy z dwóch stron | CQ37: =IF(Wycena!$C$14="Przylgowe",8,IF(Wycena!$C$14="Bezprzylgowe",6,0)) -> 8 | CR37: =IF(Wycena!$C$14="Przylgowe",8,IF(Wycena!$C$14="Bezprzylgowe",6,0)) -> 8 | CS37: =IF(Wycena!$C$14="Przylgowe",8,IF(Wycena!$C$14="Bezprzylgowe",6,0)) -> 8 | FW37: Zestaw UNILOCK | FX37: Automat ADR 5-punktowy bez gałki | GI37: Zestaw elektronik z zamkiem automatycznym | GJ37: 3 | GM37: Klamko - gałka Dublin Warszawa | GN37: Czarny | HB37: Zestaw UNILOCK | HC37: Tak | IY37: 3500
A38: DB 63 | B38: 20 | C38: 20 | D38: 20 | E38: 20 | F38: 34 | G38: 34 | H38: 36 | I38: 36 | Y38: RAL 1019 | Z38: 500 | AA38: RAL 1019 | AB38: =IF((VLOOKUP(Wycena!$C$7,Mapping!$Q$15:$R$20,2,0))="tak","",AA38) -> RAL 1019 | AC38: =IF(ROWS($AB$3:AB38)>(ROWS($AB$3:$AB$229)-COUNTBLANK($AB$3:$AB$229)),"",INDEX($AB$3:$AB$229,SMALL(IF($AB$3:$AB$229<>"",ROW($AB$3:$AB$229)-2),ROWS($AB$3:AB38)))) ->  | AX38: 107 | AY38: 0 | AZ38: 0 | BA38: =IF(Wycena!$C$16=78,Mapping!AY38,AZ38) -> 0 | BD38: 215 | BE38: 0 | BF38: 0 | BG38: =IF(Wycena!$C$16=78,Mapping!BE38,BF38) -> 0 | FW38: Zestaw UNILOCK WIFI | FX38: Automat ADR 5-punktowy z gałką | GI38: Zestaw z pochwytem na styl amerykański | GJ38: 4 | GM38: Klamko - gałka Hoppe Bezpieczna | GN38: Satyna | HB38: Zestaw UNILOCK WIFI | HC38: - | IY38: 3600
A39: DB 63a | B39: 20 | C39: 20 | D39: 20 | E39: 20 | F39: 34 | G39: 34 | H39: 36 | I39: 36 | Y39: RAL 1020 | Z39: 500 | AA39: RAL 1020 | AB39: =IF((VLOOKUP(Wycena!$C$7,Mapping!$Q$15:$R$20,2,0))="tak","",AA39) -> RAL 1020 | AC39: =IF(ROWS($AB$3:AB39)>(ROWS($AB$3:$AB$229)-COUNTBLANK($AB$3:$AB$229)),"",INDEX($AB$3:$AB$229,SMALL(IF($AB$3:$AB$229<>"",ROW($AB$3:$AB$229)-2),ROWS($AB$3:AB39)))) ->  | AX39: 108 | AY39: 0 | AZ39: 0 | BA39: =IF(Wycena!$C$16=78,Mapping!AY39,AZ39) -> 0 | BD39: 216 | BE39: 0 | BF39: 0 | BG39: =IF(Wycena!$C$16=78,Mapping!BE39,BF39) -> 0 | CO39: =VLOOKUP(Wycena!C26,Mapping!$CO$40:$CS$49,IF(AND(Wycena!C20="-",Wycena!C21="-"),2,IF(AND(Wycena!C20<>"-",Wycena!C21="-"),3,IF(AND(Wycena!C20="-",Wycena!C21<>"-"),4,5))),0) -> 0 | FW39: Zestaw UNILOCK WIFI | FX39: Automat ADR 5-punktowy bez gałki | GI39: Zestaw antywłamaniowy RC2 | GJ39: 5 | GM39: Klamko - gałka Hoppe Bezpieczna | GN39: Patyna | HB39: Zestaw UNILOCK WIFI | HC39: Tak | IY39: 3700
A40: DB 65 | B40: 20 | C40: 20 | D40: 20 | E40: 20 | F40: 34 | G40: 34 | H40: 36 | I40: 36 | Y40: RAL 1021 | Z40: 500 | AA40: RAL 1021 | AB40: =IF((VLOOKUP(Wycena!$C$7,Mapping!$Q$15:$R$20,2,0))="tak","",AA40) -> RAL 1021 | AC40: =IF(ROWS($AB$3:AB40)>(ROWS($AB$3:$AB$229)-COUNTBLANK($AB$3:$AB$229)),"",INDEX($AB$3:$AB$229,SMALL(IF($AB$3:$AB$229<>"",ROW($AB$3:$AB$229)-2),ROWS($AB$3:AB40)))) ->  | AX40: 109 | AY40: 0 | AZ40: 0 | BA40: =IF(Wycena!$C$16=78,Mapping!AY40,AZ40) -> 0 | BD40: 217 | BE40: 0 | BF40: 0 | BG40: =IF(Wycena!$C$16=78,Mapping!BE40,BF40) -> 0 | CO40: Dla dostawki od zawias | CP40: SOLO | CQ40: DOSTAWKA OD ZAWIAS | CR40: DOSTAWKA OD ZAMKA | CS40: 2 DOSTAWKI | GI40: Zestaw czytnik linii papilarnych | GJ40: 6 | GM40: Klamko - gałka AXA Diva Flex | GN40: Inox | IY40: 3800
A41: DB 66a | B41: 20 | C41: 20 | D41: 20 | E41: 20 | F41: 34 | G41: 34 | H41: 36 | I41: 36 | Y41: RAL 1023 | Z41: 500 | AA41: RAL 1023 | AB41: =IF((VLOOKUP(Wycena!$C$7,Mapping!$Q$15:$R$20,2,0))="tak","",AA41) -> RAL 1023 | AC41: =IF(ROWS($AB$3:AB41)>(ROWS($AB$3:$AB$229)-COUNTBLANK($AB$3:$AB$229)),"",INDEX($AB$3:$AB$229,SMALL(IF($AB$3:$AB$229<>"",ROW($AB$3:$AB$229)-2),ROWS($AB$3:AB41)))) ->  | AX41: 110 | AY41: 0 | AZ41: 0 | BA41: =IF(Wycena!$C$16=78,Mapping!AY41,AZ41) -> 0 | BD41: 218 | BE41: 0 | BF41: 0 | BG41: =IF(Wycena!$C$16=78,Mapping!BE41,BF41) -> 0 | CO41: - | CP41: 0 | CQ41: 0 | CR41: 0 | CS41: 0 | GI41: Zestaw czytnik linii papilarnych dLine | GJ41: 6 | GM41: Klamko - gałka AXA Diva Flex | GN41: Tytan | IY41: 3900
A42: DB 67 | B42: 20 | C42: 20 | D42: 20 | E42: 20 | F42: 34 | G42: 34 | H42: 36 | I42: 36 | Y42: RAL 1024 | Z42: 500 | AA42: RAL 1024 | AB42: =IF((VLOOKUP(Wycena!$C$7,Mapping!$Q$15:$R$20,2,0))="tak","",AA42) -> RAL 1024 | AC42: =IF(ROWS($AB$3:AB42)>(ROWS($AB$3:$AB$229)-COUNTBLANK($AB$3:$AB$229)),"",INDEX($AB$3:$AB$229,SMALL(IF($AB$3:$AB$229<>"",ROW($AB$3:$AB$229)-2),ROWS($AB$3:AB42)))) ->  | AX42: 111 | AY42: 0 | AZ42: 0 | BA42: =IF(Wycena!$C$16=78,Mapping!AY42,AZ42) -> 0 | BD42: 219 | BE42: 0 | BF42: 0 | BG42: =IF(Wycena!$C$16=78,Mapping!BE42,BF42) -> 0 | CO42: Przy skrzydle od zewnątrz | CQ42: =-IF(Wycena!$C$14="Przylgowe",8,IF(Wycena!$C$14="Bezprzylgowe",6,0)) -> -8 | CR42: 0 | CS42: =-IF(Wycena!$C$14="Przylgowe",8,IF(Wycena!$C$14="Bezprzylgowe",6,0)) -> -8 | GI42: Zestaw UNILOCK | GJ42: 6 | IY42: 4000
A43: DB 68a | B43: 20 | C43: 20 | D43: 20 | E43: 20 | F43: 34 | G43: 34 | H43: 36 | I43: 36 | Y43: RAL 1026 | Z43: 500 | AA43: =Y43 -> RAL 1026 | AB43: =IF((VLOOKUP(Wycena!$C$7,Mapping!$Q$15:$R$20,2,0))="tak","",AA43) -> RAL 1026 | AC43: =IF(ROWS($AB$3:AB43)>(ROWS($AB$3:$AB$229)-COUNTBLANK($AB$3:$AB$229)),"",INDEX($AB$3:$AB$229,SMALL(IF($AB$3:$AB$229<>"",ROW($AB$3:$AB$229)-2),ROWS($AB$3:AB43)))) ->  | AX43: 112 | AY43: 0 | AZ43: 0 | BA43: =IF(Wycena!$C$16=78,Mapping!AY43,AZ43) -> 0 | BD43: 220 | BE43: 0 | BF43: 0 | BG43: =IF(Wycena!$C$16=78,Mapping!BE43,BF43) -> 0 | CO43: Przy skrzydle z dwóch stron | CQ43: =-IF(Wycena!$C$14="Przylgowe",8,IF(Wycena!$C$14="Bezprzylgowe",6,0)) -> -8 | CR43: 0 | CS43: =-IF(Wycena!$C$14="Przylgowe",8,IF(Wycena!$C$14="Bezprzylgowe",6,0)) -> -8 | GI43: Zestaw UNILOCK WIFI | GJ43: 6 | GM43: Klamko - gałka AXA Haga Plus | GN43: Inox
A44: DB 69 | B44: 20 | C44: 20 | D44: 20 | E44: 20 | F44: 34 | G44: 34 | H44: 36 | I44: 36 | Y44: RAL 1027 | Z44: 500 | AA44: RAL 1027 | AB44: =IF((VLOOKUP(Wycena!$C$7,Mapping!$Q$15:$R$20,2,0))="tak","",AA44) -> RAL 1027 | AC44: =IF(ROWS($AB$3:AB44)>(ROWS($AB$3:$AB$229)-COUNTBLANK($AB$3:$AB$229)),"",INDEX($AB$3:$AB$229,SMALL(IF($AB$3:$AB$229<>"",ROW($AB$3:$AB$229)-2),ROWS($AB$3:AB44)))) ->  | AX44: 113 | AY44: 0 | AZ44: 0 | BA44: =IF(Wycena!$C$16=78,Mapping!AY44,AZ44) -> 0 | BD44: 221 | BE44: 0 | BF44: 0 | BG44: =IF(Wycena!$C$16=78,Mapping!BE44,BF44) -> 0 | CO44: Przy skrzydle i ościeżnicy od zewnątrz | CQ44: =-IF(Wycena!$C$14="Przylgowe",8,IF(Wycena!$C$14="Bezprzylgowe",6,0)) -> -8 | CR44: 0 | CS44: =-IF(Wycena!$C$14="Przylgowe",8,IF(Wycena!$C$14="Bezprzylgowe",6,0)) -> -8 | GM44: Klamko - gałka AXA Haga Plus | GN44: Tytan
A45: DB 70 | B45: 20 | C45: 20 | D45: 20 | E45: 20 | F45: 34 | G45: 34 | H45: 36 | I45: 36 | Y45: RAL 1028 | Z45: 500 | AA45: RAL 1028 | AB45: =IF((VLOOKUP(Wycena!$C$7,Mapping!$Q$15:$R$20,2,0))="tak","",AA45) -> RAL 1028 | AC45: =IF(ROWS($AB$3:AB45)>(ROWS($AB$3:$AB$229)-COUNTBLANK($AB$3:$AB$229)),"",INDEX($AB$3:$AB$229,SMALL(IF($AB$3:$AB$229<>"",ROW($AB$3:$AB$229)-2),ROWS($AB$3:AB45)))) ->  | AX45: 114 | AY45: 0 | AZ45: 0 | BA45: =IF(Wycena!$C$16=78,Mapping!AY45,AZ45) -> 0 | BD45: 222 | BE45: 0 | BF45: 0 | BG45: =IF(Wycena!$C$16=78,Mapping!BE45,BF45) -> 0 | CO45: Przy skrzydle i ościeżnicy z dwóch stron | CQ45: =-IF(Wycena!$C$14="Przylgowe",8,IF(Wycena!$C$14="Bezprzylgowe",6,0)) -> -8 | CR45: 0 | CS45: =-IF(Wycena!$C$14="Przylgowe",8,IF(Wycena!$C$14="Bezprzylgowe",6,0)) -> -8 | GM45: Klamko - gałka AXA Haga Plus | GN45: Stare złoto
A46: DB 71a | B46: 20 | C46: 20 | D46: 20 | E46: 20 | F46: 34 | G46: 34 | H46: 36 | I46: 36 | Y46: RAL 1032 | Z46: 500 | AA46: RAL 1032 | AB46: =IF((VLOOKUP(Wycena!$C$7,Mapping!$Q$15:$R$20,2,0))="tak","",AA46) -> RAL 1032 | AC46: =IF(ROWS($AB$3:AB46)>(ROWS($AB$3:$AB$229)-COUNTBLANK($AB$3:$AB$229)),"",INDEX($AB$3:$AB$229,SMALL(IF($AB$3:$AB$229<>"",ROW($AB$3:$AB$229)-2),ROWS($AB$3:AB46)))) ->  | AX46: 115 | AY46: 0 | AZ46: 0 | BA46: =IF(Wycena!$C$16=78,Mapping!AY46,AZ46) -> 0 | BD46: 223 | BE46: 0 | BF46: 0 | BG46: =IF(Wycena!$C$16=78,Mapping!BE46,BF46) -> 0 | CO46: Przy skrzydle i naświetlu od zewnątrz | CQ46: =-IF(Wycena!$C$14="Przylgowe",8,IF(Wycena!$C$14="Bezprzylgowe",6,0)) -> -8 | CR46: 0 | CS46: =-IF(Wycena!$C$14="Przylgowe",8,IF(Wycena!$C$14="Bezprzylgowe",6,0)) -> -8 | GM46: Klamko - gałka AXA Haga Plus | GN46: Czarny
A47: DB 72a | B47: 20 | C47: 20 | D47: 20 | E47: 20 | F47: 34 | G47: 34 | H47: 36 | I47: 36 | Y47: RAL 1033 | Z47: 500 | AA47: RAL 1033 | AB47: =IF((VLOOKUP(Wycena!$C$7,Mapping!$Q$15:$R$20,2,0))="tak","",AA47) -> RAL 1033 | AC47: =IF(ROWS($AB$3:AB47)>(ROWS($AB$3:$AB$229)-COUNTBLANK($AB$3:$AB$229)),"",INDEX($AB$3:$AB$229,SMALL(IF($AB$3:$AB$229<>"",ROW($AB$3:$AB$229)-2),ROWS($AB$3:AB47)))) ->  | AX47: 116 | AY47: 0 | AZ47: 0 | BA47: =IF(Wycena!$C$16=78,Mapping!AY47,AZ47) -> 0 | BD47: 224 | BE47: 0 | BF47: 0 | BG47: =IF(Wycena!$C$16=78,Mapping!BE47,BF47) -> 0 | CO47: Przy skrzydle i naświetlu z dwóch stron | CQ47: =-IF(Wycena!$C$14="Przylgowe",8,IF(Wycena!$C$14="Bezprzylgowe",6,0)) -> -8 | CR47: 0 | CS47: =-IF(Wycena!$C$14="Przylgowe",8,IF(Wycena!$C$14="Bezprzylgowe",6,0)) -> -8 | GM47: Klamko - gałka AXA Prestige Flex | GN47: Inox
A48: DB 73 | B48: 20 | C48: 20 | D48: 20 | E48: 20 | F48: 34 | G48: 34 | H48: 36 | I48: 36 | Y48: RAL 1034 | Z48: 500 | AA48: RAL 1034 | AB48: =IF((VLOOKUP(Wycena!$C$7,Mapping!$Q$15:$R$20,2,0))="tak","",AA48) -> RAL 1034 | AC48: =IF(ROWS($AB$3:AB48)>(ROWS($AB$3:$AB$229)-COUNTBLANK($AB$3:$AB$229)),"",INDEX($AB$3:$AB$229,SMALL(IF($AB$3:$AB$229<>"",ROW($AB$3:$AB$229)-2),ROWS($AB$3:AB48)))) ->  | AX48: 117 | AY48: 0 | AZ48: 0 | BA48: =IF(Wycena!$C$16=78,Mapping!AY48,AZ48) -> 0 | BD48: 225 | BE48: 0 | BF48: 0 | BG48: =IF(Wycena!$C$16=78,Mapping!BE48,BF48) -> 0 | CO48: Przy skrzydle, naświetlu i ościeżnicy od zewnątrz | CQ48: =-IF(Wycena!$C$14="Przylgowe",8,IF(Wycena!$C$14="Bezprzylgowe",6,0)) -> -8 | CR48: 0 | CS48: =-IF(Wycena!$C$14="Przylgowe",8,IF(Wycena!$C$14="Bezprzylgowe",6,0)) -> -8 | GM48: Klamko - gałka AXA Prestige Flex | GN48: Tytan
A49: DB 74 | B49: 20 | C49: 20 | D49: 20 | E49: 20 | F49: 34 | G49: 34 | H49: 36 | I49: 36 | Y49: RAL 1035 | Z49: 500 | AA49: RAL 1035 | AB49: =IF((VLOOKUP(Wycena!$C$7,Mapping!$Q$15:$R$20,2,0))="tak","",AA49) -> RAL 1035 | AC49: =IF(ROWS($AB$3:AB49)>(ROWS($AB$3:$AB$229)-COUNTBLANK($AB$3:$AB$229)),"",INDEX($AB$3:$AB$229,SMALL(IF($AB$3:$AB$229<>"",ROW($AB$3:$AB$229)-2),ROWS($AB$3:AB49)))) ->  | AX49: 118 | AY49: 0 | AZ49: 0 | BA49: =IF(Wycena!$C$16=78,Mapping!AY49,AZ49) -> 0 | BD49: 226 | BE49: 0 | BF49: 0 | BG49: =IF(Wycena!$C$16=78,Mapping!BE49,BF49) -> 0 | CO49: Przy skrzydle, naświetlu i ościeżnicy z dwóch stron | CQ49: =-IF(Wycena!$C$14="Przylgowe",8,IF(Wycena!$C$14="Bezprzylgowe",6,0)) -> -8 | CR49: 0 | CS49: =-IF(Wycena!$C$14="Przylgowe",8,IF(Wycena!$C$14="Bezprzylgowe",6,0)) -> -8 | GM49: Klamko - gałka AXA Prestige Flex | GN49: Stare złoto
A50: DB 77 | B50: 20 | C50: 20 | D50: 20 | E50: 20 | F50: 34 | G50: 34 | H50: 36 | I50: 36 | Y50: RAL 1036 | Z50: 500 | AA50: RAL 1036 | AB50: =IF((VLOOKUP(Wycena!$C$7,Mapping!$Q$15:$R$20,2,0))="tak","",AA50) -> RAL 1036 | AC50: =IF(ROWS($AB$3:AB50)>(ROWS($AB$3:$AB$229)-COUNTBLANK($AB$3:$AB$229)),"",INDEX($AB$3:$AB$229,SMALL(IF($AB$3:$AB$229<>"",ROW($AB$3:$AB$229)-2),ROWS($AB$3:AB50)))) ->  | AX50: 119 | AY50: 0 | AZ50: 0 | BA50: =IF(Wycena!$C$16=78,Mapping!AY50,AZ50) -> 0 | BD50: 227 | BE50: 0 | BF50: 0 | BG50: =IF(Wycena!$C$16=78,Mapping!BE50,BF50) -> 0 | GM50: Pochwyt Palermo w zestawie | GN50: Inox błysk
A51: DB 78 | B51: 20 | C51: 20 | D51: 20 | E51: 20 | F51: 34 | G51: 34 | H51: 36 | I51: 36 | Y51: RAL 1037 | Z51: 500 | AA51: RAL 1037 | AB51: =IF((VLOOKUP(Wycena!$C$7,Mapping!$Q$15:$R$20,2,0))="tak","",AA51) -> RAL 1037 | AC51: =IF(ROWS($AB$3:AB51)>(ROWS($AB$3:$AB$229)-COUNTBLANK($AB$3:$AB$229)),"",INDEX($AB$3:$AB$229,SMALL(IF($AB$3:$AB$229<>"",ROW($AB$3:$AB$229)-2),ROWS($AB$3:AB51)))) ->  | AX51: 120 | AY51: 0 | AZ51: 0 | BA51: =IF(Wycena!$C$16=78,Mapping!AY51,AZ51) -> 0 | BD51: 228 | BE51: 0 | BF51: 0 | BG51: =IF(Wycena!$C$16=78,Mapping!BE51,BF51) -> 0 | CO51: =VLOOKUP(Wycena!C26,Mapping!$CO$52:$CS$61,IF(AND(Wycena!C20="-",Wycena!C21="-"),2,IF(AND(Wycena!C20<>"-",Wycena!C21="-"),3,IF(AND(Wycena!C20="-",Wycena!C21<>"-"),4,5))),0) -> 0 | GM51: Pochwyt Palermo w zestawie | GN51: Złoty błysk
A52: DB 79 | B52: 20 | C52: 20 | D52: 20 | E52: 20 | F52: 34 | G52: 34 | H52: 36 | I52: 36 | Y52: RAL 2000 | Z52: 500 | AA52: RAL 2000 | AB52: =IF((VLOOKUP(Wycena!$C$7,Mapping!$Q$15:$R$20,2,0))="tak","",AA52) -> RAL 2000 | AC52: =IF(ROWS($AB$3:AB52)>(ROWS($AB$3:$AB$229)-COUNTBLANK($AB$3:$AB$229)),"",INDEX($AB$3:$AB$229,SMALL(IF($AB$3:$AB$229<>"",ROW($AB$3:$AB$229)-2),ROWS($AB$3:AB52)))) ->  | AX52: 121 | AY52: 0 | AZ52: 0 | BA52: =IF(Wycena!$C$16=78,Mapping!AY52,AZ52) -> 0 | BD52: 229 | BE52: 0 | BF52: 0 | BG52: =IF(Wycena!$C$16=78,Mapping!BE52,BF52) -> 0 | CO52: Dla dostawki od zamka | CP52: SOLO | CQ52: DOSTAWKA OD ZAWIAS | CR52: DOSTAWKA OD ZAMKA | CS52: 2 DOSTAWKI | GM52: Pochwyt Palermo w zestawie | GN52: Stare złoto
A53: DB 80 | B53: 20 | C53: 20 | D53: 20 | E53: 20 | F53: 34 | G53: 34 | H53: 36 | I53: 36 | Y53: RAL 2001 | Z53: 500 | AA53: RAL 2001 | AB53: =IF((VLOOKUP(Wycena!$C$7,Mapping!$Q$15:$R$20,2,0))="tak","",AA53) -> RAL 2001 | AC53: =IF(ROWS($AB$3:AB53)>(ROWS($AB$3:$AB$229)-COUNTBLANK($AB$3:$AB$229)),"",INDEX($AB$3:$AB$229,SMALL(IF($AB$3:$AB$229<>"",ROW($AB$3:$AB$229)-2),ROWS($AB$3:AB53)))) ->  | AX53: 122 | AY53: 0 | AZ53: 0 | BA53: =IF(Wycena!$C$16=78,Mapping!AY53,AZ53) -> 0 | BD53: 230 | BE53: 0 | BF53: 0 | BG53: =IF(Wycena!$C$16=78,Mapping!BE53,BF53) -> 0 | CO53: - | CP53: 0 | CQ53: 0 | CR53: 0 | CS53: 0 | GM53: Pochwyt Palermo w zestawie | GN53: Srebro antyczne
A54: DB 81 | B54: 20 | C54: 20 | D54: 20 | E54: 20 | F54: 34 | G54: 34 | H54: 36 | I54: 36 | Y54: RAL 2002 | Z54: 500 | AA54: RAL 2002 | AB54: =IF((VLOOKUP(Wycena!$C$7,Mapping!$Q$15:$R$20,2,0))="tak","",AA54) -> RAL 2002 | AC54: =IF(ROWS($AB$3:AB54)>(ROWS($AB$3:$AB$229)-COUNTBLANK($AB$3:$AB$229)),"",INDEX($AB$3:$AB$229,SMALL(IF($AB$3:$AB$229<>"",ROW($AB$3:$AB$229)-2),ROWS($AB$3:AB54)))) ->  | AX54: 123 | AY54: 0 | AZ54: 0 | BA54: =IF(Wycena!$C$16=78,Mapping!AY54,AZ54) -> 0 | BD54: 231 | BE54: 0 | BF54: 0 | BG54: =IF(Wycena!$C$16=78,Mapping!BE54,BF54) -> 0 | CO54: Przy skrzydle od zewnątrz | CQ54: 0 | CR54: =-IF(Wycena!$C$14="Przylgowe",8,IF(Wycena!$C$14="Bezprzylgowe",6,0)) -> -8 | CS54: =-IF(Wycena!$C$14="Przylgowe",8,IF(Wycena!$C$14="Bezprzylgowe",6,0)) -> -8 | GM54: Pochwyt Eva | GN54: Inox
A55: DB 83 | B55: 20 | C55: 20 | D55: 20 | E55: 20 | F55: 34 | G55: 34 | H55: 36 | I55: 36 | Y55: RAL 2003 | Z55: 500 | AA55: RAL 2003 | AB55: =IF((VLOOKUP(Wycena!$C$7,Mapping!$Q$15:$R$20,2,0))="tak","",AA55) -> RAL 2003 | AC55: =IF(ROWS($AB$3:AB55)>(ROWS($AB$3:$AB$229)-COUNTBLANK($AB$3:$AB$229)),"",INDEX($AB$3:$AB$229,SMALL(IF($AB$3:$AB$229<>"",ROW($AB$3:$AB$229)-2),ROWS($AB$3:AB55)))) ->  | AX55: 124 | AY55: 0 | AZ55: 0 | BA55: =IF(Wycena!$C$16=78,Mapping!AY55,AZ55) -> 0 | BD55: 232 | BE55: 0 | BF55: 0 | BG55: =IF(Wycena!$C$16=78,Mapping!BE55,BF55) -> 0 | CO55: Przy skrzydle z dwóch stron | CQ55: 0 | CR55: =-IF(Wycena!$C$14="Przylgowe",8,IF(Wycena!$C$14="Bezprzylgowe",6,0)) -> -8 | CS55: =-IF(Wycena!$C$14="Przylgowe",8,IF(Wycena!$C$14="Bezprzylgowe",6,0)) -> -8 | GM55: Pochwyt Eva | GN55: Stare złoto
A56: DB 85 | B56: 20 | C56: 20 | D56: 34 | E56: 34 | F56: 44 | G56: 44 | H56: 46 | I56: 46 | Y56: RAL 2004 | Z56: 500 | AA56: RAL 2004 | AB56: =IF((VLOOKUP(Wycena!$C$7,Mapping!$Q$15:$R$20,2,0))="tak","",AA56) -> RAL 2004 | AC56: =IF(ROWS($AB$3:AB56)>(ROWS($AB$3:$AB$229)-COUNTBLANK($AB$3:$AB$229)),"",INDEX($AB$3:$AB$229,SMALL(IF($AB$3:$AB$229<>"",ROW($AB$3:$AB$229)-2),ROWS($AB$3:AB56)))) ->  | AX56: 125 | AY56: 0 | AZ56: 0 | BA56: =IF(Wycena!$C$16=78,Mapping!AY56,AZ56) -> 0 | BD56: 233 | BE56: 0 | BF56: 0 | BG56: =IF(Wycena!$C$16=78,Mapping!BE56,BF56) -> 0 | CO56: Przy skrzydle i ościeżnicy od zewnątrz | CQ56: 0 | CR56: =-IF(Wycena!$C$14="Przylgowe",8,IF(Wycena!$C$14="Bezprzylgowe",6,0)) -> -8 | CS56: =-IF(Wycena!$C$14="Przylgowe",8,IF(Wycena!$C$14="Bezprzylgowe",6,0)) -> -8 | GM56: Pochwyt Eva | GN56: Czarny mat
A57: DB 87a | B57: 20 | C57: 20 | D57: 34 | E57: 34 | F57: 44 | G57: 44 | H57: =F57+2 -> 46 | I57: =G57+2 -> 46 | Y57: RAL 2005 | Z57: 500 | AA57: RAL 2005 | AB57: =IF((VLOOKUP(Wycena!$C$7,Mapping!$Q$15:$R$20,2,0))="tak","",AA57) -> RAL 2005 | AC57: =IF(ROWS($AB$3:AB57)>(ROWS($AB$3:$AB$229)-COUNTBLANK($AB$3:$AB$229)),"",INDEX($AB$3:$AB$229,SMALL(IF($AB$3:$AB$229<>"",ROW($AB$3:$AB$229)-2),ROWS($AB$3:AB57)))) ->  | AX57: 126 | AY57: 0 | AZ57: 0 | BA57: =IF(Wycena!$C$16=78,Mapping!AY57,AZ57) -> 0 | BD57: 234 | BE57: 0 | BF57: 0 | BG57: =IF(Wycena!$C$16=78,Mapping!BE57,BF57) -> 0 | CO57: Przy skrzydle i ościeżnicy z dwóch stron | CQ57: 0 | CR57: =-IF(Wycena!$C$14="Przylgowe",8,IF(Wycena!$C$14="Bezprzylgowe",6,0)) -> -8 | CS57: =-IF(Wycena!$C$14="Przylgowe",8,IF(Wycena!$C$14="Bezprzylgowe",6,0)) -> -8 | GM57: Pochwyt Maddalena | GN57: Inox
A58: DB 94 | B58: 20 | C58: 20 | D58: 34 | E58: 34 | F58: 44 | G58: 44 | H58: 46 | I58: 46 | Y58: RAL 2007 | Z58: 500 | AA58: RAL 2007 | AB58: =IF((VLOOKUP(Wycena!$C$7,Mapping!$Q$15:$R$20,2,0))="tak","",AA58) -> RAL 2007 | AC58: =IF(ROWS($AB$3:AB58)>(ROWS($AB$3:$AB$229)-COUNTBLANK($AB$3:$AB$229)),"",INDEX($AB$3:$AB$229,SMALL(IF($AB$3:$AB$229<>"",ROW($AB$3:$AB$229)-2),ROWS($AB$3:AB58)))) ->  | AX58: 127 | AY58: 0 | AZ58: 0 | BA58: =IF(Wycena!$C$16=78,Mapping!AY58,AZ58) -> 0 | BD58: 235 | BE58: 0 | BF58: 0 | BG58: =IF(Wycena!$C$16=78,Mapping!BE58,BF58) -> 0 | CO58: Przy skrzydle i naświetlu od zewnątrz | CQ58: 0 | CR58: =-IF(Wycena!$C$14="Przylgowe",8,IF(Wycena!$C$14="Bezprzylgowe",6,0)) -> -8 | CS58: =-IF(Wycena!$C$14="Przylgowe",8,IF(Wycena!$C$14="Bezprzylgowe",6,0)) -> -8 | GM58: Pochwyt Maddalena | GN58: Stare złoto
A59: DB 106 | B59: 20 | C59: 20 | D59: 34 | E59: 34 | F59: 44 | G59: 44 | H59: 46 | I59: 46 | Y59: RAL 2008 | Z59: 500 | AA59: RAL 2008 | AB59: =IF((VLOOKUP(Wycena!$C$7,Mapping!$Q$15:$R$20,2,0))="tak","",AA59) -> RAL 2008 | AC59: =IF(ROWS($AB$3:AB59)>(ROWS($AB$3:$AB$229)-COUNTBLANK($AB$3:$AB$229)),"",INDEX($AB$3:$AB$229,SMALL(IF($AB$3:$AB$229<>"",ROW($AB$3:$AB$229)-2),ROWS($AB$3:AB59)))) ->  | AX59: 128 | AY59: 0 | AZ59: 0 | BA59: =IF(Wycena!$C$16=78,Mapping!AY59,AZ59) -> 0 | BD59: 236 | BE59: 0 | BF59: 0 | BG59: =IF(Wycena!$C$16=78,Mapping!BE59,BF59) -> 0 | CO59: Przy skrzydle i naświetlu z dwóch stron | CQ59: 0 | CR59: =-IF(Wycena!$C$14="Przylgowe",8,IF(Wycena!$C$14="Bezprzylgowe",6,0)) -> -8 | CS59: =-IF(Wycena!$C$14="Przylgowe",8,IF(Wycena!$C$14="Bezprzylgowe",6,0)) -> -8 | GM59: Pochwyt Maddalena | GN59: Czarny mat
A60: DB 106a | B60: 20 | C60: 20 | D60: 34 | E60: 34 | F60: 44 | G60: 44 | H60: 46 | I60: 46 | Y60: RAL 2009 | Z60: 500 | AA60: RAL 2009 | AB60: =IF((VLOOKUP(Wycena!$C$7,Mapping!$Q$15:$R$20,2,0))="tak","",AA60) -> RAL 2009 | AC60: =IF(ROWS($AB$3:AB60)>(ROWS($AB$3:$AB$229)-COUNTBLANK($AB$3:$AB$229)),"",INDEX($AB$3:$AB$229,SMALL(IF($AB$3:$AB$229<>"",ROW($AB$3:$AB$229)-2),ROWS($AB$3:AB60)))) ->  | AX60: 129 | AY60: 0 | AZ60: 0 | BA60: =IF(Wycena!$C$16=78,Mapping!AY60,AZ60) -> 0 | BD60: 237 | BE60: 0 | BF60: 0 | BG60: =IF(Wycena!$C$16=78,Mapping!BE60,BF60) -> 0 | CO60: Przy skrzydle, naświetlu i ościeżnicy od zewnątrz | CQ60: 0 | CR60: =-IF(Wycena!$C$14="Przylgowe",8,IF(Wycena!$C$14="Bezprzylgowe",6,0)) -> -8 | CS60: =-IF(Wycena!$C$14="Przylgowe",8,IF(Wycena!$C$14="Bezprzylgowe",6,0)) -> -8 | GM60: Antaba Medos Lisbon prostokątna prosta + klamka Warszawa | GN60: Inox
A61: DB 107 | B61: 20 | C61: 20 | D61: 34 | E61: 34 | F61: 44 | G61: 44 | H61: 46 | I61: 46 | Y61: RAL 2010 | Z61: 500 | AA61: RAL 2010 | AB61: =IF((VLOOKUP(Wycena!$C$7,Mapping!$Q$15:$R$20,2,0))="tak","",AA61) -> RAL 2010 | AC61: =IF(ROWS($AB$3:AB61)>(ROWS($AB$3:$AB$229)-COUNTBLANK($AB$3:$AB$229)),"",INDEX($AB$3:$AB$229,SMALL(IF($AB$3:$AB$229<>"",ROW($AB$3:$AB$229)-2),ROWS($AB$3:AB61)))) ->  | AX61: 130 | AY61: 0 | AZ61: 0 | BA61: =IF(Wycena!$C$16=78,Mapping!AY61,AZ61) -> 0 | BD61: 238 | BE61: 0 | BF61: 0 | BG61: =IF(Wycena!$C$16=78,Mapping!BE61,BF61) -> 0 | CO61: Przy skrzydle, naświetlu i ościeżnicy z dwóch stron | CQ61: 0 | CR61: =-IF(Wycena!$C$14="Przylgowe",8,IF(Wycena!$C$14="Bezprzylgowe",6,0)) -> -8 | CS61: =-IF(Wycena!$C$14="Przylgowe",8,IF(Wycena!$C$14="Bezprzylgowe",6,0)) -> -8 | GM61: Antaba Medos Lisbon prostokątna prosta + klamka Warszawa | GN61: Stare złoto
A62: DB 108 | B62: 20 | C62: 20 | D62: 34 | E62: 34 | F62: 44 | G62: 44 | H62: 46 | I62: 46 | Y62: RAL 2011 | Z62: 500 | AA62: RAL 2011 | AB62: =IF((VLOOKUP(Wycena!$C$7,Mapping!$Q$15:$R$20,2,0))="tak","",AA62) -> RAL 2011 | AC62: =IF(ROWS($AB$3:AB62)>(ROWS($AB$3:$AB$229)-COUNTBLANK($AB$3:$AB$229)),"",INDEX($AB$3:$AB$229,SMALL(IF($AB$3:$AB$229<>"",ROW($AB$3:$AB$229)-2),ROWS($AB$3:AB62)))) ->  | AX62: 131 | AY62: 1 | AZ62: 0 | BA62: =IF(Wycena!$C$16=78,Mapping!AY62,AZ62) -> 0 | BD62: 239 | BE62: 0 | BF62: 0 | BG62: =IF(Wycena!$C$16=78,Mapping!BE62,BF62) -> 0 | GM62: Antaba Medos Lisbon prostokątna prosta + klamka Warszawa | GN62: Czarny
A63: DB 151 | B63: 20 | C63: 20 | D63: 34 | E63: 34 | F63: 44 | G63: 44 | H63: 46 | I63: 46 | Y63: RAL 2012 | Z63: 500 | AA63: RAL 2012 | AB63: =IF((VLOOKUP(Wycena!$C$7,Mapping!$Q$15:$R$20,2,0))="tak","",AA63) -> RAL 2012 | AC63: =IF(ROWS($AB$3:AB63)>(ROWS($AB$3:$AB$229)-COUNTBLANK($AB$3:$AB$229)),"",INDEX($AB$3:$AB$229,SMALL(IF($AB$3:$AB$229<>"",ROW($AB$3:$AB$229)-2),ROWS($AB$3:AB63)))) ->  | AX63: 132 | AY63: 1 | AZ63: 0 | BA63: =IF(Wycena!$C$16=78,Mapping!AY63,AZ63) -> 0 | BD63: 240 | BE63: 0 | BF63: 0 | BG63: =IF(Wycena!$C$16=78,Mapping!BE63,BF63) -> 0 | GM63: Antaba Medos Lisbon prostokątna skośna + klamka Warszawa | GN63: Inox
A64: DB 152 | B64: 20 | C64: 20 | D64: 34 | E64: 34 | F64: 44 | G64: 44 | H64: 46 | I64: 46 | Y64: RAL 2013 | Z64: 500 | AA64: RAL 2013 | AB64: =IF((VLOOKUP(Wycena!$C$7,Mapping!$Q$15:$R$20,2,0))="tak","",AA64) -> RAL 2013 | AC64: =IF(ROWS($AB$3:AB64)>(ROWS($AB$3:$AB$229)-COUNTBLANK($AB$3:$AB$229)),"",INDEX($AB$3:$AB$229,SMALL(IF($AB$3:$AB$229<>"",ROW($AB$3:$AB$229)-2),ROWS($AB$3:AB64)))) ->  | AX64: 133 | AY64: 1 | AZ64: 0 | BA64: =IF(Wycena!$C$16=78,Mapping!AY64,AZ64) -> 0 | BD64: 241 | BE64: 0 | BF64: 0 | BG64: =IF(Wycena!$C$16=78,Mapping!BE64,BF64) -> 0 | GM64: Antaba Medos Lisbon prostokątna skośna + klamka Warszawa | GN64: Stare złoto
A65: DB 153a | B65: 20 | C65: 20 | D65: 34 | E65: 34 | F65: 44 | G65: 44 | H65: 46 | I65: 46 | Y65: RAL 3000 | Z65: 500 | AA65: RAL 3000 | AB65: =IF((VLOOKUP(Wycena!$C$7,Mapping!$Q$15:$R$20,2,0))="tak","",AA65) -> RAL 3000 | AC65: =IF(ROWS($AB$3:AB65)>(ROWS($AB$3:$AB$229)-COUNTBLANK($AB$3:$AB$229)),"",INDEX($AB$3:$AB$229,SMALL(IF($AB$3:$AB$229<>"",ROW($AB$3:$AB$229)-2),ROWS($AB$3:AB65)))) ->  | AX65: 134 | AY65: 1 | AZ65: 0 | BA65: =IF(Wycena!$C$16=78,Mapping!AY65,AZ65) -> 0 | BD65: 242 | BE65: 0 | BF65: 0 | BG65: =IF(Wycena!$C$16=78,Mapping!BE65,BF65) -> 0 | GM65: Antaba Medos Lisbon prostokątna skośna + klamka Warszawa | GN65: Czarny
A66: DB 154 | B66: 20 | C66: 20 | D66: 34 | E66: 34 | F66: 44 | G66: 44 | H66: 46 | I66: 46 | Y66: RAL 3001 | Z66: 500 | AA66: RAL 3001 | AB66: =IF((VLOOKUP(Wycena!$C$7,Mapping!$Q$15:$R$20,2,0))="tak","",AA66) -> RAL 3001 | AC66: =IF(ROWS($AB$3:AB66)>(ROWS($AB$3:$AB$229)-COUNTBLANK($AB$3:$AB$229)),"",INDEX($AB$3:$AB$229,SMALL(IF($AB$3:$AB$229<>"",ROW($AB$3:$AB$229)-2),ROWS($AB$3:AB66)))) ->  | AX66: 135 | AY66: 1 | AZ66: 1 | BA66: =IF(Wycena!$C$16=78,Mapping!AY66,AZ66) -> 1 | BD66: 243 | BE66: 0 | BF66: 0 | BG66: =IF(Wycena!$C$16=78,Mapping!BE66,BF66) -> 0 | GM66: Antaba Medos Madrid kwadratowa prosta + klamka Warszawa | GN66: Inox
A67: DB 157 | B67: 20 | C67: 20 | D67: 34 | E67: 34 | F67: 44 | G67: 44 | H67: 46 | I67: 46 | Y67: RAL 3002 | Z67: 500 | AA67: RAL 3002 | AB67: =IF((VLOOKUP(Wycena!$C$7,Mapping!$Q$15:$R$20,2,0))="tak","",AA67) -> RAL 3002 | AC67: =IF(ROWS($AB$3:AB67)>(ROWS($AB$3:$AB$229)-COUNTBLANK($AB$3:$AB$229)),"",INDEX($AB$3:$AB$229,SMALL(IF($AB$3:$AB$229<>"",ROW($AB$3:$AB$229)-2),ROWS($AB$3:AB67)))) ->  | AX67: 136 | AY67: 1 | AZ67: 1 | BA67: =IF(Wycena!$C$16=78,Mapping!AY67,AZ67) -> 1 | BD67: 244 | BE67: 0 | BF67: 0 | BG67: =IF(Wycena!$C$16=78,Mapping!BE67,BF67) -> 0 | GM67: Antaba Medos Madrid kwadratowa prosta + klamka Warszawa | GN67: Stare złoto
A68: DB 158 | B68: 20 | C68: 20 | D68: 34 | E68: 34 | F68: 44 | G68: 44 | H68: 46 | I68: 46 | Y68: RAL 3003 | Z68: 500 | AA68: RAL 3003 | AB68: =IF((VLOOKUP(Wycena!$C$7,Mapping!$Q$15:$R$20,2,0))="tak","",AA68) -> RAL 3003 | AC68: =IF(ROWS($AB$3:AB68)>(ROWS($AB$3:$AB$229)-COUNTBLANK($AB$3:$AB$229)),"",INDEX($AB$3:$AB$229,SMALL(IF($AB$3:$AB$229<>"",ROW($AB$3:$AB$229)-2),ROWS($AB$3:AB68)))) ->  | AX68: 137 | AY68: 1 | AZ68: 1 | BA68: =IF(Wycena!$C$16=78,Mapping!AY68,AZ68) -> 1 | BD68: 245 | BE68: 0 | BF68: 0 | BG68: =IF(Wycena!$C$16=78,Mapping!BE68,BF68) -> 0 | GM68: Antaba Medos Madrid kwadratowa prosta + klamka Warszawa | GN68: Czarny
A69: DB 159 | B69: 20 | C69: 20 | D69: 34 | E69: 34 | F69: 44 | G69: 44 | H69: 46 | I69: 46 | Y69: RAL 3004 | Z69: 500 | AA69: =Y69 -> RAL 3004 | AB69: =IF((VLOOKUP(Wycena!$C$7,Mapping!$Q$15:$R$20,2,0))="tak","",AA69) -> RAL 3004 | AC69: =IF(ROWS($AB$3:AB69)>(ROWS($AB$3:$AB$229)-COUNTBLANK($AB$3:$AB$229)),"",INDEX($AB$3:$AB$229,SMALL(IF($AB$3:$AB$229<>"",ROW($AB$3:$AB$229)-2),ROWS($AB$3:AB69)))) ->  | AX69: 138 | AY69: 1 | AZ69: 1 | BA69: =IF(Wycena!$C$16=78,Mapping!AY69,AZ69) -> 1 | BD69: 246 | BE69: 0 | BF69: 0 | BG69: =IF(Wycena!$C$16=78,Mapping!BE69,BF69) -> 0 | GM69: Antaba Medos Madrid kwadratowa skośna + klamka Warszawa | GN69: Inox
A70: DB 200 | B70: 20 | C70: 20 | D70: x | E70: x | F70: 20 | G70: 28 | H70: 36 | I70: 36 | Y70: RAL 3005 | Z70: 500 | AA70: RAL 3005 | AB70: =IF((VLOOKUP(Wycena!$C$7,Mapping!$Q$15:$R$20,2,0))="tak","",AA70) -> RAL 3005 | AC70: =IF(ROWS($AB$3:AB70)>(ROWS($AB$3:$AB$229)-COUNTBLANK($AB$3:$AB$229)),"",INDEX($AB$3:$AB$229,SMALL(IF($AB$3:$AB$229<>"",ROW($AB$3:$AB$229)-2),ROWS($AB$3:AB70)))) ->  | AX70: 139 | AY70: 1 | AZ70: 1 | BA70: =IF(Wycena!$C$16=78,Mapping!AY70,AZ70) -> 1 | BD70: 247 | BE70: 0 | BF70: 0 | BG70: =IF(Wycena!$C$16=78,Mapping!BE70,BF70) -> 0 | GM70: Antaba Medos Madrid kwadratowa skośna + klamka Warszawa | GN70: Stare złoto
A71: DB 200a | B71: 20 | C71: 20 | D71: x | E71: x | F71: 20 | G71: 28 | H71: 36 | I71: 36 | Y71: RAL 3007 | Z71: 500 | AA71: RAL 3007 | AB71: =IF((VLOOKUP(Wycena!$C$7,Mapping!$Q$15:$R$20,2,0))="tak","",AA71) -> RAL 3007 | AC71: =IF(ROWS($AB$3:AB71)>(ROWS($AB$3:$AB$229)-COUNTBLANK($AB$3:$AB$229)),"",INDEX($AB$3:$AB$229,SMALL(IF($AB$3:$AB$229<>"",ROW($AB$3:$AB$229)-2),ROWS($AB$3:AB71)))) ->  | AX71: 140 | AY71: 1 | AZ71: 1 | BA71: =IF(Wycena!$C$16=78,Mapping!AY71,AZ71) -> 1 | BD71: 248 | BE71: 0 | BF71: 0 | BG71: =IF(Wycena!$C$16=78,Mapping!BE71,BF71) -> 0 | GM71: Antaba Medos Madrid kwadratowa skośna + klamka Warszawa | GN71: Czarny
A72: DB 202a | B72: 20 | C72: 20 | D72: x | E72: x | F72: 20 | G72: 48 | H72: 48 | I72: 48 | Y72: RAL 3009 | Z72: 500 | AA72: RAL 3009 | AB72: =IF((VLOOKUP(Wycena!$C$7,Mapping!$Q$15:$R$20,2,0))="tak","",AA72) -> RAL 3009 | AC72: =IF(ROWS($AB$3:AB72)>(ROWS($AB$3:$AB$229)-COUNTBLANK($AB$3:$AB$229)),"",INDEX($AB$3:$AB$229,SMALL(IF($AB$3:$AB$229<>"",ROW($AB$3:$AB$229)-2),ROWS($AB$3:AB72)))) ->  | AX72: 141 | AY72: 1 | AZ72: 1 | BA72: =IF(Wycena!$C$16=78,Mapping!AY72,AZ72) -> 1 | BD72: 249 | BE72: 0 | BF72: 0 | BG72: =IF(Wycena!$C$16=78,Mapping!BE72,BF72) -> 0 | GM72: Antaba Medos Paris okrągła prosta + klamka Warszawa | GN72: Inox
A73: DB 203a | B73: 20 | C73: 20 | D73: x | E73: x | F73: 20 | G73: 28 | H73: 36 | I73: 36 | Y73: RAL 3011 | Z73: 500 | AA73: RAL 3011 | AB73: =IF((VLOOKUP(Wycena!$C$7,Mapping!$Q$15:$R$20,2,0))="tak","",AA73) -> RAL 3011 | AC73: =IF(ROWS($AB$3:AB73)>(ROWS($AB$3:$AB$229)-COUNTBLANK($AB$3:$AB$229)),"",INDEX($AB$3:$AB$229,SMALL(IF($AB$3:$AB$229<>"",ROW($AB$3:$AB$229)-2),ROWS($AB$3:AB73)))) ->  | AX73: 142 | AY73: 1 | AZ73: 1 | BA73: =IF(Wycena!$C$16=78,Mapping!AY73,AZ73) -> 1 | BD73: 250 | BE73: 0 | BF73: 0 | BG73: =IF(Wycena!$C$16=78,Mapping!BE73,BF73) -> 0 | GM73: Antaba Medos Paris okrągła prosta + klamka Warszawa | GN73: Stare złoto
A74: DB 204 | B74: 20 | C74: 20 | D74: x | E74: x | F74: 20 | G74: 48 | H74: 48 | I74: 48 | Y74: RAL 3012 | Z74: 500 | AA74: RAL 3012 | AB74: =IF((VLOOKUP(Wycena!$C$7,Mapping!$Q$15:$R$20,2,0))="tak","",AA74) -> RAL 3012 | AC74: =IF(ROWS($AB$3:AB74)>(ROWS($AB$3:$AB$229)-COUNTBLANK($AB$3:$AB$229)),"",INDEX($AB$3:$AB$229,SMALL(IF($AB$3:$AB$229<>"",ROW($AB$3:$AB$229)-2),ROWS($AB$3:AB74)))) ->  | AX74: 143 | AY74: 1 | AZ74: 1 | BA74: =IF(Wycena!$C$16=78,Mapping!AY74,AZ74) -> 1 | BD74: 251 | BE74: 1 | BF74: 0 | BG74: =IF(Wycena!$C$16=78,Mapping!BE74,BF74) -> 0 | GM74: Antaba Medos Paris okrągła prosta + klamka Warszawa | GN74: Czarny
A75: DB 204a | B75: 20 | C75: 20 | D75: x | E75: x | F75: 20 | G75: 48 | H75: 48 | I75: 48 | Y75: RAL 3013 | Z75: 500 | AA75: RAL 3013 | AB75: =IF((VLOOKUP(Wycena!$C$7,Mapping!$Q$15:$R$20,2,0))="tak","",AA75) -> RAL 3013 | AC75: =IF(ROWS($AB$3:AB75)>(ROWS($AB$3:$AB$229)-COUNTBLANK($AB$3:$AB$229)),"",INDEX($AB$3:$AB$229,SMALL(IF($AB$3:$AB$229<>"",ROW($AB$3:$AB$229)-2),ROWS($AB$3:AB75)))) ->  | AX75: 144 | AY75: 1 | AZ75: 1 | BA75: =IF(Wycena!$C$16=78,Mapping!AY75,AZ75) -> 1 | BD75: 252 | BE75: 1 | BF75: 0 | BG75: =IF(Wycena!$C$16=78,Mapping!BE75,BF75) -> 0 | GM75: Antaba Medos Paris okrągła prosta + klamka Warszawa | GN75: Inox
A76: DB 205a | B76: 20 | C76: 20 | D76: x | E76: x | F76: 20 | G76: 28 | H76: 36 | I76: 36 | Y76: RAL 3014 | Z76: 500 | AA76: RAL 3014 | AB76: =IF((VLOOKUP(Wycena!$C$7,Mapping!$Q$15:$R$20,2,0))="tak","",AA76) -> RAL 3014 | AC76: =IF(ROWS($AB$3:AB76)>(ROWS($AB$3:$AB$229)-COUNTBLANK($AB$3:$AB$229)),"",INDEX($AB$3:$AB$229,SMALL(IF($AB$3:$AB$229<>"",ROW($AB$3:$AB$229)-2),ROWS($AB$3:AB76)))) ->  | AX76: 145 | AY76: 1 | AZ76: 1 | BA76: =IF(Wycena!$C$16=78,Mapping!AY76,AZ76) -> 1 | BD76: 253 | BE76: 1 | BF76: 1 | BG76: =IF(Wycena!$C$16=78,Mapping!BE76,BF76) -> 1 | GM76: Antaba Medos Paris okrągła prosta + klamka Warszawa | GN76: Stare złoto
A77: DB 206a | B77: 20 | C77: 20 | D77: x | E77: x | F77: 20 | G77: 28 | H77: 36 | I77: 36 | Y77: RAL 3015 | Z77: 500 | AA77: RAL 3015 | AB77: =IF((VLOOKUP(Wycena!$C$7,Mapping!$Q$15:$R$20,2,0))="tak","",AA77) -> RAL 3015 | AC77: =IF(ROWS($AB$3:AB77)>(ROWS($AB$3:$AB$229)-COUNTBLANK($AB$3:$AB$229)),"",INDEX($AB$3:$AB$229,SMALL(IF($AB$3:$AB$229<>"",ROW($AB$3:$AB$229)-2),ROWS($AB$3:AB77)))) ->  | AX77: 146 | AY77: 1 | AZ77: 1 | BA77: =IF(Wycena!$C$16=78,Mapping!AY77,AZ77) -> 1 | BD77: 254 | BE77: 1 | BF77: 1 | BG77: =IF(Wycena!$C$16=78,Mapping!BE77,BF77) -> 1 | GM77: Antaba Medos Paris okrągła prosta + klamka Warszawa | GN77: Czarny
A78: DB 207 | B78: 20 | C78: 20 | D78: x | E78: x | F78: 20 | G78: 28 | H78: 36 | I78: 36 | Y78: RAL 3016 | Z78: 500 | AA78: RAL 3016 | AB78: =IF((VLOOKUP(Wycena!$C$7,Mapping!$Q$15:$R$20,2,0))="tak","",AA78) -> RAL 3016 | AC78: =IF(ROWS($AB$3:AB78)>(ROWS($AB$3:$AB$229)-COUNTBLANK($AB$3:$AB$229)),"",INDEX($AB$3:$AB$229,SMALL(IF($AB$3:$AB$229<>"",ROW($AB$3:$AB$229)-2),ROWS($AB$3:AB78)))) ->  | AX78: 147 | AY78: 1 | AZ78: 1 | BA78: =IF(Wycena!$C$16=78,Mapping!AY78,AZ78) -> 1 | BD78: 255 | BE78: 1 | BF78: 1 | BG78: =IF(Wycena!$C$16=78,Mapping!BE78,BF78) -> 1 | GM78: Antaba Medos Paris okrągła skośna + klamka Warszawa | GN78: Inox
A79: DB 207a | B79: 20 | C79: 20 | D79: x | E79: x | F79: 20 | G79: 48 | H79: 48 | I79: 48 | Y79: RAL 3017 | Z79: 500 | AA79: RAL 3017 | AB79: =IF((VLOOKUP(Wycena!$C$7,Mapping!$Q$15:$R$20,2,0))="tak","",AA79) -> RAL 3017 | AC79: =IF(ROWS($AB$3:AB79)>(ROWS($AB$3:$AB$229)-COUNTBLANK($AB$3:$AB$229)),"",INDEX($AB$3:$AB$229,SMALL(IF($AB$3:$AB$229<>"",ROW($AB$3:$AB$229)-2),ROWS($AB$3:AB79)))) ->  | AX79: 148 | AY79: 1 | AZ79: 1 | BA79: =IF(Wycena!$C$16=78,Mapping!AY79,AZ79) -> 1 | BD79: 256 | BE79: 1 | BF79: 1 | BG79: =IF(Wycena!$C$16=78,Mapping!BE79,BF79) -> 1 | GM79: Antaba Medos Paris okrągła skośna + klamka Warszawa | GN79: Stare złoto
A80: DB 208a | B80: 20 | C80: 20 | D80: x | E80: x | F80: 20 | G80: 48 | H80: 48 | I80: 48 | Y80: RAL 3018 | Z80: 500 | AA80: RAL 3018 | AB80: =IF((VLOOKUP(Wycena!$C$7,Mapping!$Q$15:$R$20,2,0))="tak","",AA80) -> RAL 3018 | AC80: =IF(ROWS($AB$3:AB80)>(ROWS($AB$3:$AB$229)-COUNTBLANK($AB$3:$AB$229)),"",INDEX($AB$3:$AB$229,SMALL(IF($AB$3:$AB$229<>"",ROW($AB$3:$AB$229)-2),ROWS($AB$3:AB80)))) ->  | AX80: 149 | AY80: 1 | AZ80: 1 | BA80: =IF(Wycena!$C$16=78,Mapping!AY80,AZ80) -> 1 | BD80: 257 | BE80: 1 | BF80: 1 | BG80: =IF(Wycena!$C$16=78,Mapping!BE80,BF80) -> 1 | GM80: Antaba Medos Paris okrągła skośna + klamka Warszawa | GN80: Czarny
A81: DB 209a | B81: 20 | C81: 20 | D81: x | E81: x | F81: 20 | G81: 42 | H81: 42 | I81: 42 | Y81: RAL 3020 | Z81: 500 | AA81: RAL 3020 | AB81: =IF((VLOOKUP(Wycena!$C$7,Mapping!$Q$15:$R$20,2,0))="tak","",AA81) -> RAL 3020 | AC81: =IF(ROWS($AB$3:AB81)>(ROWS($AB$3:$AB$229)-COUNTBLANK($AB$3:$AB$229)),"",INDEX($AB$3:$AB$229,SMALL(IF($AB$3:$AB$229<>"",ROW($AB$3:$AB$229)-2),ROWS($AB$3:AB81)))) ->  | AX81: 150 | AY81: 1 | AZ81: 1 | BA81: =IF(Wycena!$C$16=78,Mapping!AY81,AZ81) -> 1 | BD81: 258 | BE81: 1 | BF81: 1 | BG81: =IF(Wycena!$C$16=78,Mapping!BE81,BF81) -> 1 | GM81: Antaba łukowa okrągła prosta + klamka Warszawa | GN81: Stal nierdzewna
A82: DB 210a | B82: 20 | C82: 20 | D82: x | E82: x | F82: 20 | G82: 28 | H82: 36 | I82: 36 | Y82: RAL 3022 | Z82: 500 | AA82: RAL 3022 | AB82: =IF((VLOOKUP(Wycena!$C$7,Mapping!$Q$15:$R$20,2,0))="tak","",AA82) -> RAL 3022 | AC82: =IF(ROWS($AB$3:AB82)>(ROWS($AB$3:$AB$229)-COUNTBLANK($AB$3:$AB$229)),"",INDEX($AB$3:$AB$229,SMALL(IF($AB$3:$AB$229<>"",ROW($AB$3:$AB$229)-2),ROWS($AB$3:AB82)))) ->  | AX82: 151 | AY82: 1 | AZ82: 1 | BA82: =IF(Wycena!$C$16=78,Mapping!AY82,AZ82) -> 1 | BD82: 259 | BE82: 1 | BF82: 1 | BG82: =IF(Wycena!$C$16=78,Mapping!BE82,BF82) -> 1 | GM82: Antaba łukowa prostokątna prosta + klamka Warszawa | GN82: Stal nierdzewna
A83: DB 211 | B83: 20 | C83: 20 | D83: x | E83: x | F83: 20 | G83: 50 | H83: 50 | I83: 50 | Y83: RAL 3024 | Z83: 500 | AA83: RAL 3024 | AB83: =IF((VLOOKUP(Wycena!$C$7,Mapping!$Q$15:$R$20,2,0))="tak","",AA83) -> RAL 3024 | AC83: =IF(ROWS($AB$3:AB83)>(ROWS($AB$3:$AB$229)-COUNTBLANK($AB$3:$AB$229)),"",INDEX($AB$3:$AB$229,SMALL(IF($AB$3:$AB$229<>"",ROW($AB$3:$AB$229)-2),ROWS($AB$3:AB83)))) ->  | AX83: 152 | AY83: 1 | AZ83: 1 | BA83: =IF(Wycena!$C$16=78,Mapping!AY83,AZ83) -> 1 | BD83: 260 | BE83: 1 | BF83: 1 | BG83: =IF(Wycena!$C$16=78,Mapping!BE83,BF83) -> 1 | GM83: Antaba AXA Amsterdam prostokątna prosta + klamka Gaja | GN83: Inox
A84: DB 211a | B84: 20 | C84: 20 | D84: x | E84: x | F84: 20 | G84: 42 | H84: 42 | I84: 42 | Y84: RAL 3026 | Z84: 500 | AA84: RAL 3026 | AB84: =IF((VLOOKUP(Wycena!$C$7,Mapping!$Q$15:$R$20,2,0))="tak","",AA84) -> RAL 3026 | AC84: =IF(ROWS($AB$3:AB84)>(ROWS($AB$3:$AB$229)-COUNTBLANK($AB$3:$AB$229)),"",INDEX($AB$3:$AB$229,SMALL(IF($AB$3:$AB$229<>"",ROW($AB$3:$AB$229)-2),ROWS($AB$3:AB84)))) ->  | AX84: 153 | AY84: 1 | AZ84: 1 | BA84: =IF(Wycena!$C$16=78,Mapping!AY84,AZ84) -> 1 | BD84: 261 | BE84: 1 | BF84: 1 | BG84: =IF(Wycena!$C$16=78,Mapping!BE84,BF84) -> 1 | GM84: Antaba AXA Amsterdam prostokątna prosta + klamka Gaja | GN84: Tytan
A85: DB 212a | B85: 20 | C85: 20 | D85: x | E85: x | F85: 20 | G85: 28 | H85: 36 | I85: 36 | Y85: RAL 3027 | Z85: 500 | AA85: RAL 3027 | AB85: =IF((VLOOKUP(Wycena!$C$7,Mapping!$Q$15:$R$20,2,0))="tak","",AA85) -> RAL 3027 | AC85: =IF(ROWS($AB$3:AB85)>(ROWS($AB$3:$AB$229)-COUNTBLANK($AB$3:$AB$229)),"",INDEX($AB$3:$AB$229,SMALL(IF($AB$3:$AB$229<>"",ROW($AB$3:$AB$229)-2),ROWS($AB$3:AB85)))) ->  | AX85: 154 | AY85: 1 | AZ85: 1 | BA85: =IF(Wycena!$C$16=78,Mapping!AY85,AZ85) -> 1 | BD85: 262 | BE85: 1 | BF85: 1 | BG85: =IF(Wycena!$C$16=78,Mapping!BE85,BF85) -> 1 | GM85: Antaba AXA Amsterdam prostokątna prosta + klamka Gaja | GN85: Stare złoto
A86: DB 213a | B86: 20 | C86: 20 | D86: x | E86: x | F86: 20 | G86: 42 | H86: 42 | I86: 42 | Y86: RAL 3028 | Z86: 500 | AA86: RAL 3028 | AB86: =IF((VLOOKUP(Wycena!$C$7,Mapping!$Q$15:$R$20,2,0))="tak","",AA86) -> RAL 3028 | AC86: =IF(ROWS($AB$3:AB86)>(ROWS($AB$3:$AB$229)-COUNTBLANK($AB$3:$AB$229)),"",INDEX($AB$3:$AB$229,SMALL(IF($AB$3:$AB$229<>"",ROW($AB$3:$AB$229)-2),ROWS($AB$3:AB86)))) ->  | AX86: 155 | AY86: 1 | AZ86: 1 | BA86: =IF(Wycena!$C$16=78,Mapping!AY86,AZ86) -> 1 | BD86: 263 | BE86: 1 | BF86: 1 | BG86: =IF(Wycena!$C$16=78,Mapping!BE86,BF86) -> 1 | GM86: Antaba AXA Amsterdam prostokątna prosta + klamka Gaja | GN86: Czarny
A87: DB 214 | B87: 20 | C87: 20 | D87: x | E87: x | F87: 20 | G87: 28 | H87: 36 | I87: 36 | Y87: RAL 3031 | Z87: 500 | AA87: RAL 3031 | AB87: =IF((VLOOKUP(Wycena!$C$7,Mapping!$Q$15:$R$20,2,0))="tak","",AA87) -> RAL 3031 | AC87: =IF(ROWS($AB$3:AB87)>(ROWS($AB$3:$AB$229)-COUNTBLANK($AB$3:$AB$229)),"",INDEX($AB$3:$AB$229,SMALL(IF($AB$3:$AB$229<>"",ROW($AB$3:$AB$229)-2),ROWS($AB$3:AB87)))) ->  | AX87: 156 | AY87: 1 | AZ87: 1 | BA87: =IF(Wycena!$C$16=78,Mapping!AY87,AZ87) -> 1 | BD87: 264 | BE87: 1 | BF87: 1 | BG87: =IF(Wycena!$C$16=78,Mapping!BE87,BF87) -> 1 | GM87: Antaba AXA Amsterdam prostokątna skośna + klamka Gaja | GN87: Inox
A88: DB 215 | B88: 20 | C88: 20 | D88: x | E88: x | F88: 20 | G88: 28 | H88: 36 | I88: 36 | Y88: RAL 3032 | Z88: 500 | AA88: RAL 3032 | AB88: =IF((VLOOKUP(Wycena!$C$7,Mapping!$Q$15:$R$20,2,0))="tak","",AA88) -> RAL 3032 | AC88: =IF(ROWS($AB$3:AB88)>(ROWS($AB$3:$AB$229)-COUNTBLANK($AB$3:$AB$229)),"",INDEX($AB$3:$AB$229,SMALL(IF($AB$3:$AB$229<>"",ROW($AB$3:$AB$229)-2),ROWS($AB$3:AB88)))) ->  | AX88: 157 | AY88: 1 | AZ88: 1 | BA88: =IF(Wycena!$C$16=78,Mapping!AY88,AZ88) -> 1 | BD88: 265 | BE88: 1 | BF88: 1 | BG88: =IF(Wycena!$C$16=78,Mapping!BE88,BF88) -> 1 | GM88: Antaba AXA Amsterdam prostokątna skośna + klamka Gaja | GN88: Tytan
A89: DB 216 | B89: 20 | C89: 20 | D89: x | E89: x | F89: 20 | G89: 28 | H89: 36 | I89: 36 | Y89: RAL 3033 | Z89: 500 | AA89: RAL 3033 | AB89: =IF((VLOOKUP(Wycena!$C$7,Mapping!$Q$15:$R$20,2,0))="tak","",AA89) -> RAL 3033 | AC89: =IF(ROWS($AB$3:AB89)>(ROWS($AB$3:$AB$229)-COUNTBLANK($AB$3:$AB$229)),"",INDEX($AB$3:$AB$229,SMALL(IF($AB$3:$AB$229<>"",ROW($AB$3:$AB$229)-2),ROWS($AB$3:AB89)))) ->  | AX89: 158 | AY89: 1 | AZ89: 1 | BA89: =IF(Wycena!$C$16=78,Mapping!AY89,AZ89) -> 1 | BD89: 266 | BE89: 1 | BF89: 1 | BG89: =IF(Wycena!$C$16=78,Mapping!BE89,BF89) -> 1 | GM89: Antaba AXA Amsterdam prostokątna skośna + klamka Gaja | GN89: Stare złoto
A90: DB 217 | B90: 20 | C90: 20 | D90: x | E90: x | F90: 20 | G90: 28 | H90: 36 | I90: 36 | Y90: RAL 4001 | Z90: 500 | AA90: RAL 4001 | AB90: =IF((VLOOKUP(Wycena!$C$7,Mapping!$Q$15:$R$20,2,0))="tak","",AA90) -> RAL 4001 | AC90: =IF(ROWS($AB$3:AB90)>(ROWS($AB$3:$AB$229)-COUNTBLANK($AB$3:$AB$229)),"",INDEX($AB$3:$AB$229,SMALL(IF($AB$3:$AB$229<>"",ROW($AB$3:$AB$229)-2),ROWS($AB$3:AB90)))) ->  | AX90: 159 | AY90: 1 | AZ90: 1 | BA90: =IF(Wycena!$C$16=78,Mapping!AY90,AZ90) -> 1 | BD90: 267 | BE90: 1 | BF90: 1 | BG90: =IF(Wycena!$C$16=78,Mapping!BE90,BF90) -> 1 | GM90: Antaba AXA Amsterdam prostokątna skośna + klamka Gaja | GN90: Czarny
A91: DB 218 | B91: 20 | C91: 20 | D91: x | E91: x | F91: 20 | G91: 28 | H91: 36 | I91: 36 | Y91: RAL 4002 | Z91: 500 | AA91: RAL 4002 | AB91: =IF((VLOOKUP(Wycena!$C$7,Mapping!$Q$15:$R$20,2,0))="tak","",AA91) -> RAL 4002 | AC91: =IF(ROWS($AB$3:AB91)>(ROWS($AB$3:$AB$229)-COUNTBLANK($AB$3:$AB$229)),"",INDEX($AB$3:$AB$229,SMALL(IF($AB$3:$AB$229<>"",ROW($AB$3:$AB$229)-2),ROWS($AB$3:AB91)))) ->  | AX91: 160 | AY91: 1 | AZ91: 1 | BA91: =IF(Wycena!$C$16=78,Mapping!AY91,AZ91) -> 1 | BD91: 268 | BE91: 1 | BF91: 1 | BG91: =IF(Wycena!$C$16=78,Mapping!BE91,BF91) -> 1 | GM91: Antaba AXA Montreal okrągła prosta + klamka Gaja | GN91: Inox
A92: DB 219 | B92: 20 | C92: 20 | D92: x | E92: x | F92: 20 | G92: 28 | H92: 36 | I92: 36 | Y92: RAL 4003 | Z92: 500 | AA92: RAL 4003 | AB92: =IF((VLOOKUP(Wycena!$C$7,Mapping!$Q$15:$R$20,2,0))="tak","",AA92) -> RAL 4003 | AC92: =IF(ROWS($AB$3:AB92)>(ROWS($AB$3:$AB$229)-COUNTBLANK($AB$3:$AB$229)),"",INDEX($AB$3:$AB$229,SMALL(IF($AB$3:$AB$229<>"",ROW($AB$3:$AB$229)-2),ROWS($AB$3:AB92)))) ->  | AX92: 161 | AY92: 1 | AZ92: 1 | BA92: =IF(Wycena!$C$16=78,Mapping!AY92,AZ92) -> 1 | BD92: 269 | BE92: 1 | BF92: 1 | BG92: =IF(Wycena!$C$16=78,Mapping!BE92,BF92) -> 1 | GM92: Antaba AXA Montreal okrągła prosta + klamka Gaja | GN92: Tytan
A93: DB 221 | B93: 20 | C93: 20 | D93: x | E93: x | F93: 20 | G93: 28 | H93: 36 | I93: 36 | Y93: RAL 4004 | Z93: 500 | AA93: RAL 4004 | AB93: =IF((VLOOKUP(Wycena!$C$7,Mapping!$Q$15:$R$20,2,0))="tak","",AA93) -> RAL 4004 | AC93: =IF(ROWS($AB$3:AB93)>(ROWS($AB$3:$AB$229)-COUNTBLANK($AB$3:$AB$229)),"",INDEX($AB$3:$AB$229,SMALL(IF($AB$3:$AB$229<>"",ROW($AB$3:$AB$229)-2),ROWS($AB$3:AB93)))) ->  | AX93: 162 | AY93: 1 | AZ93: 1 | BA93: =IF(Wycena!$C$16=78,Mapping!AY93,AZ93) -> 1 | BD93: 270 | BE93: 1 | BF93: 1 | BG93: =IF(Wycena!$C$16=78,Mapping!BE93,BF93) -> 1 | GM93: Antaba AXA Montreal okrągła prosta + klamka Gaja | GN93: Stare złoto
A94: DB 223 | B94: 20 | C94: 20 | D94: x | E94: x | F94: 20 | G94: 42 | H94: 42 | I94: 42 | Y94: RAL 4005 | Z94: 500 | AA94: RAL 4005 | AB94: =IF((VLOOKUP(Wycena!$C$7,Mapping!$Q$15:$R$20,2,0))="tak","",AA94) -> RAL 4005 | AC94: =IF(ROWS($AB$3:AB94)>(ROWS($AB$3:$AB$229)-COUNTBLANK($AB$3:$AB$229)),"",INDEX($AB$3:$AB$229,SMALL(IF($AB$3:$AB$229<>"",ROW($AB$3:$AB$229)-2),ROWS($AB$3:AB94)))) ->  | AX94: 163 | AY94: 1 | AZ94: 1 | BA94: =IF(Wycena!$C$16=78,Mapping!AY94,AZ94) -> 1 | BD94: 271 | BE94: 1 | BF94: 1 | BG94: =IF(Wycena!$C$16=78,Mapping!BE94,BF94) -> 1 | GM94: Antaba AXA Montreal okrągła prosta + klamka Gaja | GN94: Czarny
A95: DB 224 | B95: 20 | C95: 20 | D95: x | E95: x | F95: 20 | G95: 28 | H95: 36 | I95: 36 | Y95: RAL 4006 | Z95: 500 | AA95: RAL 4006 | AB95: =IF((VLOOKUP(Wycena!$C$7,Mapping!$Q$15:$R$20,2,0))="tak","",AA95) -> RAL 4006 | AC95: =IF(ROWS($AB$3:AB95)>(ROWS($AB$3:$AB$229)-COUNTBLANK($AB$3:$AB$229)),"",INDEX($AB$3:$AB$229,SMALL(IF($AB$3:$AB$229<>"",ROW($AB$3:$AB$229)-2),ROWS($AB$3:AB95)))) ->  | AX95: 164 | AY95: 1 | AZ95: 1 | BA95: =IF(Wycena!$C$16=78,Mapping!AY95,AZ95) -> 1 | BD95: 272 | BE95: 1 | BF95: 1 | BG95: =IF(Wycena!$C$16=78,Mapping!BE95,BF95) -> 1 | GM95: Antaba AXA Montreal okrągła skośna + klamka Gaja | GN95: Inox
A96: DB 225 | B96: 20 | C96: 20 | D96: x | E96: x | F96: 20 | G96: 28 | H96: 36 | I96: 36 | Y96: RAL 4007 | Z96: 500 | AA96: RAL 4007 | AB96: =IF((VLOOKUP(Wycena!$C$7,Mapping!$Q$15:$R$20,2,0))="tak","",AA96) -> RAL 4007 | AC96: =IF(ROWS($AB$3:AB96)>(ROWS($AB$3:$AB$229)-COUNTBLANK($AB$3:$AB$229)),"",INDEX($AB$3:$AB$229,SMALL(IF($AB$3:$AB$229<>"",ROW($AB$3:$AB$229)-2),ROWS($AB$3:AB96)))) ->  | AX96: 165 | AY96: 1 | AZ96: 1 | BA96: =IF(Wycena!$C$16=78,Mapping!AY96,AZ96) -> 1 | BD96: 273 | BE96: 1 | BF96: 1 | BG96: =IF(Wycena!$C$16=78,Mapping!BE96,BF96) -> 1 | GM96: Antaba AXA Montreal okrągła skośna + klamka Gaja | GN96: Tytan
A97: DB 226 | B97: 20 | C97: 20 | D97: x | E97: x | F97: 20 | G97: 28 | H97: 36 | I97: 36 | Y97: RAL 4008 | Z97: 500 | AA97: RAL 4008 | AB97: =IF((VLOOKUP(Wycena!$C$7,Mapping!$Q$15:$R$20,2,0))="tak","",AA97) -> RAL 4008 | AC97: =IF(ROWS($AB$3:AB97)>(ROWS($AB$3:$AB$229)-COUNTBLANK($AB$3:$AB$229)),"",INDEX($AB$3:$AB$229,SMALL(IF($AB$3:$AB$229<>"",ROW($AB$3:$AB$229)-2),ROWS($AB$3:AB97)))) ->  | AX97: 166 | AY97: 1 | AZ97: 1 | BA97: =IF(Wycena!$C$16=78,Mapping!AY97,AZ97) -> 1 | BD97: 274 | BE97: 1 | BF97: 1 | BG97: =IF(Wycena!$C$16=78,Mapping!BE97,BF97) -> 1 | GM97: Antaba AXA Montreal okrągła skośna + klamka Gaja | GN97: Stare złoto
A98: DB 249 | B98: 20 | C98: 20 | D98: x | E98: x | F98: 20 | G98: 28 | H98: 36 | I98: 36 | Y98: RAL 4009 | Z98: 500 | AA98: RAL 4009 | AB98: =IF((VLOOKUP(Wycena!$C$7,Mapping!$Q$15:$R$20,2,0))="tak","",AA98) -> RAL 4009 | AC98: =IF(ROWS($AB$3:AB98)>(ROWS($AB$3:$AB$229)-COUNTBLANK($AB$3:$AB$229)),"",INDEX($AB$3:$AB$229,SMALL(IF($AB$3:$AB$229<>"",ROW($AB$3:$AB$229)-2),ROWS($AB$3:AB98)))) ->  | AX98: 167 | AY98: 1 | AZ98: 1 | BA98: =IF(Wycena!$C$16=78,Mapping!AY98,AZ98) -> 1 | BD98: 275 | BE98: 1 | BF98: 1 | BG98: =IF(Wycena!$C$16=78,Mapping!BE98,BF98) -> 1 | GM98: Antaba AXA Montreal okrągła skośna + klamka Gaja | GN98: Czarny
A99: DB 250 | B99: 20 | C99: 20 | D99: x | E99: x | F99: 20 | G99: 28 | H99: 36 | I99: 36 | Y99: RAL 4010 | Z99: 500 | AA99: RAL 4010 | AB99: =IF((VLOOKUP(Wycena!$C$7,Mapping!$Q$15:$R$20,2,0))="tak","",AA99) -> RAL 4010 | AC99: =IF(ROWS($AB$3:AB99)>(ROWS($AB$3:$AB$229)-COUNTBLANK($AB$3:$AB$229)),"",INDEX($AB$3:$AB$229,SMALL(IF($AB$3:$AB$229<>"",ROW($AB$3:$AB$229)-2),ROWS($AB$3:AB99)))) ->  | AX99: 168 | AY99: 1 | AZ99: 1 | BA99: =IF(Wycena!$C$16=78,Mapping!AY99,AZ99) -> 1 | BD99: 276 | BE99: 1 | BF99: 1 | BG99: =IF(Wycena!$C$16=78,Mapping!BE99,BF99) -> 1 | GM99: Antaba Vegas prostokątna polerowana + klamka Warszawa | GN99: Inox
A100: DB 251 | B100: 20 | C100: 20 | D100: x | E100: x | F100: 20 | G100: 28 | H100: 36 | I100: 36 | Y100: RAL 4011 | Z100: 500 | AA100: RAL 4011 | AB100: =IF((VLOOKUP(Wycena!$C$7,Mapping!$Q$15:$R$20,2,0))="tak","",AA100) -> RAL 4011 | AC100: =IF(ROWS($AB$3:AB100)>(ROWS($AB$3:$AB$229)-COUNTBLANK($AB$3:$AB$229)),"",INDEX($AB$3:$AB$229,SMALL(IF($AB$3:$AB$229<>"",ROW($AB$3:$AB$229)-2),ROWS($AB$3:AB100)))) ->  | AX100: 169 | AY100: 1 | AZ100: 1 | BA100: =IF(Wycena!$C$16=78,Mapping!AY100,AZ100) -> 1 | BD100: 277 | BE100: 1 | BF100: 1 | BG100: =IF(Wycena!$C$16=78,Mapping!BE100,BF100) -> 1
A101: DB 252 | B101: 20 | C101: 20 | D101: x | E101: x | F101: 20 | G101: 28 | H101: 36 | I101: 36 | Y101: RAL 4012 | Z101: 500 | AA101: RAL 4012 | AB101: =IF((VLOOKUP(Wycena!$C$7,Mapping!$Q$15:$R$20,2,0))="tak","",AA101) -> RAL 4012 | AC101: =IF(ROWS($AB$3:AB101)>(ROWS($AB$3:$AB$229)-COUNTBLANK($AB$3:$AB$229)),"",INDEX($AB$3:$AB$229,SMALL(IF($AB$3:$AB$229<>"",ROW($AB$3:$AB$229)-2),ROWS($AB$3:AB101)))) ->  | AX101: 170 | AY101: 1 | AZ101: 1 | BA101: =IF(Wycena!$C$16=78,Mapping!AY101,AZ101) -> 1 | BD101: 278 | BE101: 1 | BF101: 1 | BG101: =IF(Wycena!$C$16=78,Mapping!BE101,BF101) -> 1
A102: DB 253 | B102: 20 | C102: 20 | D102: x | E102: x | F102: 20 | G102: 28 | H102: 36 | I102: 36 | Y102: RAL 5000 | Z102: 500 | AA102: RAL 5000 | AB102: =IF((VLOOKUP(Wycena!$C$7,Mapping!$Q$15:$R$20,2,0))="tak","",AA102) -> RAL 5000 | AC102: =IF(ROWS($AB$3:AB102)>(ROWS($AB$3:$AB$229)-COUNTBLANK($AB$3:$AB$229)),"",INDEX($AB$3:$AB$229,SMALL(IF($AB$3:$AB$229<>"",ROW($AB$3:$AB$229)-2),ROWS($AB$3:AB102)))) ->  | AX102: 171 | AY102: 1 | AZ102: 1 | BA102: =IF(Wycena!$C$16=78,Mapping!AY102,AZ102) -> 1 | BD102: 279 | BE102: 1 | BF102: 1 | BG102: =IF(Wycena!$C$16=78,Mapping!BE102,BF102) -> 1
A103: DB 253a | B103: 20 | C103: 20 | D103: x | E103: x | F103: 20 | G103: 28 | H103: 36 | I103: 36 | Y103: RAL 5001 | Z103: 500 | AA103: RAL 5001 | AB103: =IF((VLOOKUP(Wycena!$C$7,Mapping!$Q$15:$R$20,2,0))="tak","",AA103) -> RAL 5001 | AC103: =IF(ROWS($AB$3:AB103)>(ROWS($AB$3:$AB$229)-COUNTBLANK($AB$3:$AB$229)),"",INDEX($AB$3:$AB$229,SMALL(IF($AB$3:$AB$229<>"",ROW($AB$3:$AB$229)-2),ROWS($AB$3:AB103)))) ->  | AX103: 172 | AY103: 1 | AZ103: 1 | BA103: =IF(Wycena!$C$16=78,Mapping!AY103,AZ103) -> 1 | BD103: 280 | BE103: 1 | BF103: 1 | BG103: =IF(Wycena!$C$16=78,Mapping!BE103,BF103) -> 1
A104: DB 253b | B104: 20 | C104: 20 | D104: x | E104: x | F104: 20 | G104: 28 | H104: 36 | I104: 36 | Y104: RAL 5002 | Z104: 500 | AA104: RAL 5002 | AB104: =IF((VLOOKUP(Wycena!$C$7,Mapping!$Q$15:$R$20,2,0))="tak","",AA104) -> RAL 5002 | AC104: =IF(ROWS($AB$3:AB104)>(ROWS($AB$3:$AB$229)-COUNTBLANK($AB$3:$AB$229)),"",INDEX($AB$3:$AB$229,SMALL(IF($AB$3:$AB$229<>"",ROW($AB$3:$AB$229)-2),ROWS($AB$3:AB104)))) ->  | AX104: 173 | AY104: 1 | AZ104: 1 | BA104: =IF(Wycena!$C$16=78,Mapping!AY104,AZ104) -> 1 | BD104: 281 | BE104: 1 | BF104: 1 | BG104: =IF(Wycena!$C$16=78,Mapping!BE104,BF104) -> 1
A105: DB 265 | B105: 20 | C105: 20 | D105: x | E105: x | F105: 20 | G105: 28 | H105: 36 | I105: 36 | Y105: RAL 5003 | Z105: 500 | AA105: RAL 5003 | AB105: =IF((VLOOKUP(Wycena!$C$7,Mapping!$Q$15:$R$20,2,0))="tak","",AA105) -> RAL 5003 | AC105: =IF(ROWS($AB$3:AB105)>(ROWS($AB$3:$AB$229)-COUNTBLANK($AB$3:$AB$229)),"",INDEX($AB$3:$AB$229,SMALL(IF($AB$3:$AB$229<>"",ROW($AB$3:$AB$229)-2),ROWS($AB$3:AB105)))) ->  | AX105: 174 | AY105: 1 | AZ105: 1 | BA105: =IF(Wycena!$C$16=78,Mapping!AY105,AZ105) -> 1 | BD105: 282 | BE105: 1 | BF105: 1 | BG105: =IF(Wycena!$C$16=78,Mapping!BE105,BF105) -> 1
A106: DB 266 | B106: 20 | C106: 20 | D106: x | E106: x | F106: 20 | G106: 48 | H106: 58 | I106: 58 | Y106: RAL 5004 | Z106: 500 | AA106: RAL 5004 | AB106: =IF((VLOOKUP(Wycena!$C$7,Mapping!$Q$15:$R$20,2,0))="tak","",AA106) -> RAL 5004 | AC106: =IF(ROWS($AB$3:AB106)>(ROWS($AB$3:$AB$229)-COUNTBLANK($AB$3:$AB$229)),"",INDEX($AB$3:$AB$229,SMALL(IF($AB$3:$AB$229<>"",ROW($AB$3:$AB$229)-2),ROWS($AB$3:AB106)))) ->  | AX106: 175 | AY106: 1 | AZ106: 1 | BA106: =IF(Wycena!$C$16=78,Mapping!AY106,AZ106) -> 1 | BD106: 283 | BE106: 1 | BF106: 1 | BG106: =IF(Wycena!$C$16=78,Mapping!BE106,BF106) -> 1
A107: DB 273 | B107: 20 | C107: 20 | D107: x | E107: x | F107: 20 | G107: 28 | H107: 36 | I107: 36 | Y107: RAL 5005 | Z107: 500 | AA107: RAL 5005 | AB107: =IF((VLOOKUP(Wycena!$C$7,Mapping!$Q$15:$R$20,2,0))="tak","",AA107) -> RAL 5005 | AC107: =IF(ROWS($AB$3:AB107)>(ROWS($AB$3:$AB$229)-COUNTBLANK($AB$3:$AB$229)),"",INDEX($AB$3:$AB$229,SMALL(IF($AB$3:$AB$229<>"",ROW($AB$3:$AB$229)-2),ROWS($AB$3:AB107)))) ->  | AX107: 176 | AY107: 1 | AZ107: 1 | BA107: =IF(Wycena!$C$16=78,Mapping!AY107,AZ107) -> 1 | BD107: 284 | BE107: 1 | BF107: 1 | BG107: =IF(Wycena!$C$16=78,Mapping!BE107,BF107) -> 1
A108: DB 274 | B108: 20 | C108: 20 | D108: x | E108: x | F108: 20 | G108: 28 | H108: 36 | I108: 36 | Y108: RAL 5007 | Z108: 500 | AA108: RAL 5007 | AB108: =IF((VLOOKUP(Wycena!$C$7,Mapping!$Q$15:$R$20,2,0))="tak","",AA108) -> RAL 5007 | AC108: =IF(ROWS($AB$3:AB108)>(ROWS($AB$3:$AB$229)-COUNTBLANK($AB$3:$AB$229)),"",INDEX($AB$3:$AB$229,SMALL(IF($AB$3:$AB$229<>"",ROW($AB$3:$AB$229)-2),ROWS($AB$3:AB108)))) ->  | AX108: 177 | AY108: 1 | AZ108: 1 | BA108: =IF(Wycena!$C$16=78,Mapping!AY108,AZ108) -> 1 | BD108: 285 | BE108: 1 | BF108: 1 | BG108: =IF(Wycena!$C$16=78,Mapping!BE108,BF108) -> 1
A109: DB 278 | B109: 20 | C109: 20 | D109: x | E109: x | F109: 20 | G109: 28 | H109: 36 | I109: 36 | Y109: RAL 5008 | Z109: 500 | AA109: RAL 5008 | AB109: =IF((VLOOKUP(Wycena!$C$7,Mapping!$Q$15:$R$20,2,0))="tak","",AA109) -> RAL 5008 | AC109: =IF(ROWS($AB$3:AB109)>(ROWS($AB$3:$AB$229)-COUNTBLANK($AB$3:$AB$229)),"",INDEX($AB$3:$AB$229,SMALL(IF($AB$3:$AB$229<>"",ROW($AB$3:$AB$229)-2),ROWS($AB$3:AB109)))) ->  | AX109: 178 | AY109: 1 | AZ109: 1 | BA109: =IF(Wycena!$C$16=78,Mapping!AY109,AZ109) -> 1 | BD109: 286 | BE109: 1 | BF109: 1 | BG109: =IF(Wycena!$C$16=78,Mapping!BE109,BF109) -> 1
A110: DB 279 | B110: 20 | C110: 20 | D110: x | E110: x | F110: 20 | G110: 28 | H110: 36 | I110: 36 | Y110: RAL 5009 | Z110: 500 | AA110: RAL 5009 | AB110: =IF((VLOOKUP(Wycena!$C$7,Mapping!$Q$15:$R$20,2,0))="tak","",AA110) -> RAL 5009 | AC110: =IF(ROWS($AB$3:AB110)>(ROWS($AB$3:$AB$229)-COUNTBLANK($AB$3:$AB$229)),"",INDEX($AB$3:$AB$229,SMALL(IF($AB$3:$AB$229<>"",ROW($AB$3:$AB$229)-2),ROWS($AB$3:AB110)))) ->  | AX110: 179 | AY110: 1 | AZ110: 1 | BA110: =IF(Wycena!$C$16=78,Mapping!AY110,AZ110) -> 1 | BD110: 287 | BE110: 1 | BF110: 1 | BG110: =IF(Wycena!$C$16=78,Mapping!BE110,BF110) -> 1
A111: DB 279a | B111: 20 | C111: 20 | D111: x | E111: x | F111: 20 | G111: 38 | H111: 46 | I111: 46 | Y111: RAL 5010 | Z111: 500 | AA111: RAL 5010 | AB111: =IF((VLOOKUP(Wycena!$C$7,Mapping!$Q$15:$R$20,2,0))="tak","",AA111) -> RAL 5010 | AC111: =IF(ROWS($AB$3:AB111)>(ROWS($AB$3:$AB$229)-COUNTBLANK($AB$3:$AB$229)),"",INDEX($AB$3:$AB$229,SMALL(IF($AB$3:$AB$229<>"",ROW($AB$3:$AB$229)-2),ROWS($AB$3:AB111)))) ->  | AX111: 180 | AY111: 1 | AZ111: 1 | BA111: =IF(Wycena!$C$16=78,Mapping!AY111,AZ111) -> 1 | BD111: 288 | BE111: 1 | BF111: 1 | BG111: =IF(Wycena!$C$16=78,Mapping!BE111,BF111) -> 1
A112: DB 285 | B112: 20 | C112: 20 | D112: x | E112: x | F112: 20 | G112: 48 | H112: 58 | I112: 58 | Y112: RAL 5011 | Z112: 500 | AA112: RAL 5011 | AB112: =IF((VLOOKUP(Wycena!$C$7,Mapping!$Q$15:$R$20,2,0))="tak","",AA112) -> RAL 5011 | AC112: =IF(ROWS($AB$3:AB112)>(ROWS($AB$3:$AB$229)-COUNTBLANK($AB$3:$AB$229)),"",INDEX($AB$3:$AB$229,SMALL(IF($AB$3:$AB$229<>"",ROW($AB$3:$AB$229)-2),ROWS($AB$3:AB112)))) ->  | AX112: 181 | AY112: 1 | AZ112: 1 | BA112: =IF(Wycena!$C$16=78,Mapping!AY112,AZ112) -> 1 | BD112: 289 | BE112: 1 | BF112: 1 | BG112: =IF(Wycena!$C$16=78,Mapping!BE112,BF112) -> 1
A113: DB 286 | B113: 20 | C113: 20 | D113: x | E113: x | F113: 20 | G113: 28 | H113: 36 | I113: 36 | Y113: RAL 5012 | Z113: 500 | AA113: RAL 5012 | AB113: =IF((VLOOKUP(Wycena!$C$7,Mapping!$Q$15:$R$20,2,0))="tak","",AA113) -> RAL 5012 | AC113: =IF(ROWS($AB$3:AB113)>(ROWS($AB$3:$AB$229)-COUNTBLANK($AB$3:$AB$229)),"",INDEX($AB$3:$AB$229,SMALL(IF($AB$3:$AB$229<>"",ROW($AB$3:$AB$229)-2),ROWS($AB$3:AB113)))) ->  | AX113: 182 | AY113: 1 | AZ113: 1 | BA113: =IF(Wycena!$C$16=78,Mapping!AY113,AZ113) -> 1 | BD113: 290 | BE113: 1 | BF113: 1 | BG113: =IF(Wycena!$C$16=78,Mapping!BE113,BF113) -> 1
A114: DB 289 | B114: 20 | C114: 20 | D114: x | E114: x | F114: 20 | G114: 28 | H114: 36 | I114: 36 | Y114: RAL 5013 | Z114: 500 | AA114: RAL 5013 | AB114: =IF((VLOOKUP(Wycena!$C$7,Mapping!$Q$15:$R$20,2,0))="tak","",AA114) -> RAL 5013 | AC114: =IF(ROWS($AB$3:AB114)>(ROWS($AB$3:$AB$229)-COUNTBLANK($AB$3:$AB$229)),"",INDEX($AB$3:$AB$229,SMALL(IF($AB$3:$AB$229<>"",ROW($AB$3:$AB$229)-2),ROWS($AB$3:AB114)))) ->  | AX114: 183 | AY114: 1 | AZ114: 1 | BA114: =IF(Wycena!$C$16=78,Mapping!AY114,AZ114) -> 1 | BD114: 291 | BE114: 1 | BF114: 1 | BG114: =IF(Wycena!$C$16=78,Mapping!BE114,BF114) -> 1
A115: DB 290 | B115: 20 | C115: 20 | D115: x | E115: x | F115: 20 | G115: 28 | H115: 36 | I115: 36 | Y115: RAL 5014 | Z115: 500 | AA115: RAL 5014 | AB115: =IF((VLOOKUP(Wycena!$C$7,Mapping!$Q$15:$R$20,2,0))="tak","",AA115) -> RAL 5014 | AC115: =IF(ROWS($AB$3:AB115)>(ROWS($AB$3:$AB$229)-COUNTBLANK($AB$3:$AB$229)),"",INDEX($AB$3:$AB$229,SMALL(IF($AB$3:$AB$229<>"",ROW($AB$3:$AB$229)-2),ROWS($AB$3:AB115)))) ->  | AX115: 184 | AY115: 1 | AZ115: 1 | BA115: =IF(Wycena!$C$16=78,Mapping!AY115,AZ115) -> 1 | BD115: 292 | BE115: 1 | BF115: 1 | BG115: =IF(Wycena!$C$16=78,Mapping!BE115,BF115) -> 1
A116: DB 291 | B116: 20 | C116: 20 | D116: x | E116: x | F116: 20 | G116: 28 | H116: 36 | I116: 36 | Y116: RAL 5015 | Z116: 500 | AA116: RAL 5015 | AB116: =IF((VLOOKUP(Wycena!$C$7,Mapping!$Q$15:$R$20,2,0))="tak","",AA116) -> RAL 5015 | AC116: =IF(ROWS($AB$3:AB116)>(ROWS($AB$3:$AB$229)-COUNTBLANK($AB$3:$AB$229)),"",INDEX($AB$3:$AB$229,SMALL(IF($AB$3:$AB$229<>"",ROW($AB$3:$AB$229)-2),ROWS($AB$3:AB116)))) ->  | AX116: 185 | AY116: 1 | AZ116: 1 | BA116: =IF(Wycena!$C$16=78,Mapping!AY116,AZ116) -> 1 | BD116: 293 | BE116: 1 | BF116: 1 | BG116: =IF(Wycena!$C$16=78,Mapping!BE116,BF116) -> 1
A117: DB 292 | B117: 20 | C117: 20 | D117: x | E117: x | F117: 20 | G117: 28 | H117: 36 | I117: 36 | Y117: RAL 5017 | Z117: 500 | AA117: RAL 5017 | AB117: =IF((VLOOKUP(Wycena!$C$7,Mapping!$Q$15:$R$20,2,0))="tak","",AA117) -> RAL 5017 | AC117: =IF(ROWS($AB$3:AB117)>(ROWS($AB$3:$AB$229)-COUNTBLANK($AB$3:$AB$229)),"",INDEX($AB$3:$AB$229,SMALL(IF($AB$3:$AB$229<>"",ROW($AB$3:$AB$229)-2),ROWS($AB$3:AB117)))) ->  | AX117: 186 | AY117: 1 | AZ117: 1 | BA117: =IF(Wycena!$C$16=78,Mapping!AY117,AZ117) -> 1 | BD117: 294 | BE117: 1 | BF117: 1 | BG117: =IF(Wycena!$C$16=78,Mapping!BE117,BF117) -> 1
A118: DB 293 | B118: 20 | C118: 20 | D118: x | E118: x | F118: 20 | G118: 28 | H118: 36 | I118: 36 | Y118: RAL 5018 | Z118: 500 | AA118: RAL 5018 | AB118: =IF((VLOOKUP(Wycena!$C$7,Mapping!$Q$15:$R$20,2,0))="tak","",AA118) -> RAL 5018 | AC118: =IF(ROWS($AB$3:AB118)>(ROWS($AB$3:$AB$229)-COUNTBLANK($AB$3:$AB$229)),"",INDEX($AB$3:$AB$229,SMALL(IF($AB$3:$AB$229<>"",ROW($AB$3:$AB$229)-2),ROWS($AB$3:AB118)))) ->  | AX118: 187 | AY118: 1 | AZ118: 1 | BA118: =IF(Wycena!$C$16=78,Mapping!AY118,AZ118) -> 1 | BD118: 295 | BE118: 1 | BF118: 1 | BG118: =IF(Wycena!$C$16=78,Mapping!BE118,BF118) -> 1
A119: DB 296 | B119: 20 | C119: 20 | D119: x | E119: x | F119: 20 | G119: 28 | H119: 36 | I119: 36 | Y119: RAL 5019 | Z119: 500 | AA119: RAL 5019 | AB119: =IF((VLOOKUP(Wycena!$C$7,Mapping!$Q$15:$R$20,2,0))="tak","",AA119) -> RAL 5019 | AC119: =IF(ROWS($AB$3:AB119)>(ROWS($AB$3:$AB$229)-COUNTBLANK($AB$3:$AB$229)),"",INDEX($AB$3:$AB$229,SMALL(IF($AB$3:$AB$229<>"",ROW($AB$3:$AB$229)-2),ROWS($AB$3:AB119)))) ->  | AX119: 188 | AY119: 1 | AZ119: 1 | BA119: =IF(Wycena!$C$16=78,Mapping!AY119,AZ119) -> 1 | BD119: 296 | BE119: 1 | BF119: 1 | BG119: =IF(Wycena!$C$16=78,Mapping!BE119,BF119) -> 1
A120: DB 297 | B120: 20 | C120: 20 | D120: x | E120: x | F120: 20 | G120: 28 | H120: 36 | I120: 36 | Y120: RAL 5020 | Z120: 500 | AA120: RAL 5020 | AB120: =IF((VLOOKUP(Wycena!$C$7,Mapping!$Q$15:$R$20,2,0))="tak","",AA120) -> RAL 5020 | AC120: =IF(ROWS($AB$3:AB120)>(ROWS($AB$3:$AB$229)-COUNTBLANK($AB$3:$AB$229)),"",INDEX($AB$3:$AB$229,SMALL(IF($AB$3:$AB$229<>"",ROW($AB$3:$AB$229)-2),ROWS($AB$3:AB120)))) ->  | AX120: 189 | AY120: 1 | AZ120: 1 | BA120: =IF(Wycena!$C$16=78,Mapping!AY120,AZ120) -> 1 | BD120: 297 | BE120: 1 | BF120: 1 | BG120: =IF(Wycena!$C$16=78,Mapping!BE120,BF120) -> 1
A121: DB 298 | B121: 20 | C121: 20 | D121: x | E121: x | F121: 20 | G121: 28 | H121: 36 | I121: 36 | Y121: RAL 5021 | Z121: 500 | AA121: RAL 5021 | AB121: =IF((VLOOKUP(Wycena!$C$7,Mapping!$Q$15:$R$20,2,0))="tak","",AA121) -> RAL 5021 | AC121: =IF(ROWS($AB$3:AB121)>(ROWS($AB$3:$AB$229)-COUNTBLANK($AB$3:$AB$229)),"",INDEX($AB$3:$AB$229,SMALL(IF($AB$3:$AB$229<>"",ROW($AB$3:$AB$229)-2),ROWS($AB$3:AB121)))) ->  | AX121: 190 | AY121: 1 | AZ121: 1 | BA121: =IF(Wycena!$C$16=78,Mapping!AY121,AZ121) -> 1 | BD121: 298 | BE121: 1 | BF121: 1 | BG121: =IF(Wycena!$C$16=78,Mapping!BE121,BF121) -> 1
A122: DB 299 | B122: 20 | C122: 20 | D122: x | E122: x | F122: 20 | G122: 28 | H122: 36 | I122: 36 | Y122: RAL 5022 | Z122: 500 | AA122: RAL 5022 | AB122: =IF((VLOOKUP(Wycena!$C$7,Mapping!$Q$15:$R$20,2,0))="tak","",AA122) -> RAL 5022 | AC122: =IF(ROWS($AB$3:AB122)>(ROWS($AB$3:$AB$229)-COUNTBLANK($AB$3:$AB$229)),"",INDEX($AB$3:$AB$229,SMALL(IF($AB$3:$AB$229<>"",ROW($AB$3:$AB$229)-2),ROWS($AB$3:AB122)))) ->  | AX122: 191 | AY122: 1 | AZ122: 1 | BA122: =IF(Wycena!$C$16=78,Mapping!AY122,AZ122) -> 1 | BD122: 299 | BE122: 1 | BF122: 1 | BG122: =IF(Wycena!$C$16=78,Mapping!BE122,BF122) -> 1
A123: DB 325a | B123: 20 | C123: 20 | D123: x | E123: x | F123: 20 | G123: 36 | H123: 36 | I123: 36 | Y123: RAL 5023 | Z123: 500 | AA123: RAL 5023 | AB123: =IF((VLOOKUP(Wycena!$C$7,Mapping!$Q$15:$R$20,2,0))="tak","",AA123) -> RAL 5023 | AC123: =IF(ROWS($AB$3:AB123)>(ROWS($AB$3:$AB$229)-COUNTBLANK($AB$3:$AB$229)),"",INDEX($AB$3:$AB$229,SMALL(IF($AB$3:$AB$229<>"",ROW($AB$3:$AB$229)-2),ROWS($AB$3:AB123)))) ->  | AX123: 192 | AY123: 1 | AZ123: 1 | BA123: =IF(Wycena!$C$16=78,Mapping!AY123,AZ123) -> 1 | BD123: 300 | BE123: 1 | BF123: 1 | BG123: =IF(Wycena!$C$16=78,Mapping!BE123,BF123) -> 1
A124: DB 326 | B124: 20 | C124: 20 | D124: x | E124: x | F124: 20 | G124: 28 | H124: 36 | I124: 36 | Y124: RAL 5024 | Z124: 500 | AA124: RAL 5024 | AB124: =IF((VLOOKUP(Wycena!$C$7,Mapping!$Q$15:$R$20,2,0))="tak","",AA124) -> RAL 5024 | AC124: =IF(ROWS($AB$3:AB124)>(ROWS($AB$3:$AB$229)-COUNTBLANK($AB$3:$AB$229)),"",INDEX($AB$3:$AB$229,SMALL(IF($AB$3:$AB$229<>"",ROW($AB$3:$AB$229)-2),ROWS($AB$3:AB124)))) ->  | AX124: 193 | AY124: 1 | AZ124: 1 | BA124: =IF(Wycena!$C$16=78,Mapping!AY124,AZ124) -> 1 | BD124: 301 | BE124: 1 | BF124: 1 | BG124: =IF(Wycena!$C$16=78,Mapping!BE124,BF124) -> 1
A125: DB 327 | B125: 20 | C125: 20 | D125: x | E125: x | F125: 20 | G125: 28 | H125: 36 | I125: 36 | Y125: RAL 5025 | Z125: 500 | AA125: RAL 5025 | AB125: =IF((VLOOKUP(Wycena!$C$7,Mapping!$Q$15:$R$20,2,0))="tak","",AA125) -> RAL 5025 | AC125: =IF(ROWS($AB$3:AB125)>(ROWS($AB$3:$AB$229)-COUNTBLANK($AB$3:$AB$229)),"",INDEX($AB$3:$AB$229,SMALL(IF($AB$3:$AB$229<>"",ROW($AB$3:$AB$229)-2),ROWS($AB$3:AB125)))) ->  | AX125: 194 | AY125: 1 | AZ125: 1 | BA125: =IF(Wycena!$C$16=78,Mapping!AY125,AZ125) -> 1 | BD125: 302 | BE125: 1 | BF125: 1 | BG125: =IF(Wycena!$C$16=78,Mapping!BE125,BF125) -> 1
A126: DB 328 | B126: 20 | C126: 20 | D126: x | E126: x | F126: 20 | G126: 28 | H126: 36 | I126: 36 | Y126: RAL 5026 | Z126: 500 | AA126: RAL 5026 | AB126: =IF((VLOOKUP(Wycena!$C$7,Mapping!$Q$15:$R$20,2,0))="tak","",AA126) -> RAL 5026 | AC126: =IF(ROWS($AB$3:AB126)>(ROWS($AB$3:$AB$229)-COUNTBLANK($AB$3:$AB$229)),"",INDEX($AB$3:$AB$229,SMALL(IF($AB$3:$AB$229<>"",ROW($AB$3:$AB$229)-2),ROWS($AB$3:AB126)))) ->  | AX126: 195 | AY126: 1 | AZ126: 1 | BA126: =IF(Wycena!$C$16=78,Mapping!AY126,AZ126) -> 1 | BD126: 303 | BE126: 1 | BF126: 1 | BG126: =IF(Wycena!$C$16=78,Mapping!BE126,BF126) -> 1
A127: DB 329 | B127: 20 | C127: 20 | D127: x | E127: x | F127: 20 | G127: 28 | H127: 36 | I127: 36 | Y127: RAL 6000 | Z127: 500 | AA127: RAL 6000 | AB127: =IF((VLOOKUP(Wycena!$C$7,Mapping!$Q$15:$R$20,2,0))="tak","",AA127) -> RAL 6000 | AC127: =IF(ROWS($AB$3:AB127)>(ROWS($AB$3:$AB$229)-COUNTBLANK($AB$3:$AB$229)),"",INDEX($AB$3:$AB$229,SMALL(IF($AB$3:$AB$229<>"",ROW($AB$3:$AB$229)-2),ROWS($AB$3:AB127)))) ->  | AX127: 196 | AY127: 1 | AZ127: 1 | BA127: =IF(Wycena!$C$16=78,Mapping!AY127,AZ127) -> 1 | BD127: 304 | BE127: 1 | BF127: 1 | BG127: =IF(Wycena!$C$16=78,Mapping!BE127,BF127) -> 1
A128: DB 330 | B128: 20 | C128: 20 | D128: x | E128: x | F128: 20 | G128: 28 | H128: 36 | I128: 36 | Y128: RAL 6001 | Z128: 500 | AA128: RAL 6001 | AB128: =IF((VLOOKUP(Wycena!$C$7,Mapping!$Q$15:$R$20,2,0))="tak","",AA128) -> RAL 6001 | AC128: =IF(ROWS($AB$3:AB128)>(ROWS($AB$3:$AB$229)-COUNTBLANK($AB$3:$AB$229)),"",INDEX($AB$3:$AB$229,SMALL(IF($AB$3:$AB$229<>"",ROW($AB$3:$AB$229)-2),ROWS($AB$3:AB128)))) ->  | AX128: 197 | AY128: 1 | AZ128: 1 | BA128: =IF(Wycena!$C$16=78,Mapping!AY128,AZ128) -> 1 | BD128: 305 | BE128: 1 | BF128: 1 | BG128: =IF(Wycena!$C$16=78,Mapping!BE128,BF128) -> 1
A129: DB 331 | B129: 20 | C129: 20 | D129: x | E129: x | F129: 20 | G129: 36 | H129: 36 | I129: 36 | Y129: RAL 6002 | Z129: 500 | AA129: RAL 6002 | AB129: =IF((VLOOKUP(Wycena!$C$7,Mapping!$Q$15:$R$20,2,0))="tak","",AA129) -> RAL 6002 | AC129: =IF(ROWS($AB$3:AB129)>(ROWS($AB$3:$AB$229)-COUNTBLANK($AB$3:$AB$229)),"",INDEX($AB$3:$AB$229,SMALL(IF($AB$3:$AB$229<>"",ROW($AB$3:$AB$229)-2),ROWS($AB$3:AB129)))) ->  | AX129: 198 | AY129: 1 | AZ129: 1 | BA129: =IF(Wycena!$C$16=78,Mapping!AY129,AZ129) -> 1 | BD129: 306 | BE129: 1 | BF129: 1 | BG129: =IF(Wycena!$C$16=78,Mapping!BE129,BF129) -> 1
A130: DB 332 | B130: 20 | C130: 20 | D130: x | E130: x | F130: 20 | G130: 36 | H130: 36 | I130: 36 | Y130: RAL 6003 | Z130: 500 | AA130: RAL 6003 | AB130: =IF((VLOOKUP(Wycena!$C$7,Mapping!$Q$15:$R$20,2,0))="tak","",AA130) -> RAL 6003 | AC130: =IF(ROWS($AB$3:AB130)>(ROWS($AB$3:$AB$229)-COUNTBLANK($AB$3:$AB$229)),"",INDEX($AB$3:$AB$229,SMALL(IF($AB$3:$AB$229<>"",ROW($AB$3:$AB$229)-2),ROWS($AB$3:AB130)))) ->  | AX130: 199 | AY130: 1 | AZ130: 1 | BA130: =IF(Wycena!$C$16=78,Mapping!AY130,AZ130) -> 1 | BD130: 307 | BE130: 1 | BF130: 1 | BG130: =IF(Wycena!$C$16=78,Mapping!BE130,BF130) -> 1
A131: DB 333 | B131: 20 | C131: 20 | D131: x | E131: x | F131: 20 | G131: 28 | H131: 36 | I131: 36 | Y131: RAL 6004 | Z131: 500 | AA131: RAL 6004 | AB131: =IF((VLOOKUP(Wycena!$C$7,Mapping!$Q$15:$R$20,2,0))="tak","",AA131) -> RAL 6004 | AC131: =IF(ROWS($AB$3:AB131)>(ROWS($AB$3:$AB$229)-COUNTBLANK($AB$3:$AB$229)),"",INDEX($AB$3:$AB$229,SMALL(IF($AB$3:$AB$229<>"",ROW($AB$3:$AB$229)-2),ROWS($AB$3:AB131)))) ->  | AX131: 200 | AY131: 1 | AZ131: 1 | BA131: =IF(Wycena!$C$16=78,Mapping!AY131,AZ131) -> 1 | BD131: 308 | BE131: 1 | BF131: 1 | BG131: =IF(Wycena!$C$16=78,Mapping!BE131,BF131) -> 1
A132: DB 334 | B132: 20 | C132: 20 | D132: x | E132: x | F132: 20 | G132: 28 | H132: 36 | I132: 36 | Y132: RAL 6005 | Z132: 500 | AA132: RAL 6005 | AB132: =IF((VLOOKUP(Wycena!$C$7,Mapping!$Q$15:$R$20,2,0))="tak","",AA132) -> RAL 6005 | AC132: =IF(ROWS($AB$3:AB132)>(ROWS($AB$3:$AB$229)-COUNTBLANK($AB$3:$AB$229)),"",INDEX($AB$3:$AB$229,SMALL(IF($AB$3:$AB$229<>"",ROW($AB$3:$AB$229)-2),ROWS($AB$3:AB132)))) ->  | AX132: 201 | AY132: 1 | AZ132: 1 | BA132: =IF(Wycena!$C$16=78,Mapping!AY132,AZ132) -> 1 | BD132: 309 | BE132: 1 | BF132: 1 | BG132: =IF(Wycena!$C$16=78,Mapping!BE132,BF132) -> 1
A133: DB 338 | B133: 20 | C133: 20 | D133: x | E133: x | F133: 20 | G133: 36 | H133: 36 | I133: 36 | Y133: RAL 6006 | Z133: 500 | AA133: =Y133 -> RAL 6006 | AB133: =IF((VLOOKUP(Wycena!$C$7,Mapping!$Q$15:$R$20,2,0))="tak","",AA133) -> RAL 6006 | AC133: =IF(ROWS($AB$3:AB133)>(ROWS($AB$3:$AB$229)-COUNTBLANK($AB$3:$AB$229)),"",INDEX($AB$3:$AB$229,SMALL(IF($AB$3:$AB$229<>"",ROW($AB$3:$AB$229)-2),ROWS($AB$3:AB133)))) ->  | AX133: 202 | AY133: 1 | AZ133: 1 | BA133: =IF(Wycena!$C$16=78,Mapping!AY133,AZ133) -> 1 | BD133: 310 | BE133: 1 | BF133: 1 | BG133: =IF(Wycena!$C$16=78,Mapping!BE133,BF133) -> 1
A134: DB 345 | B134: 20 | C134: 20 | D134: x | E134: x | F134: 20 | G134: 28 | H134: 36 | I134: 36 | Y134: RAL 6007 | Z134: 500 | AA134: RAL 6007 | AB134: =IF((VLOOKUP(Wycena!$C$7,Mapping!$Q$15:$R$20,2,0))="tak","",AA134) -> RAL 6007 | AC134: =IF(ROWS($AB$3:AB134)>(ROWS($AB$3:$AB$229)-COUNTBLANK($AB$3:$AB$229)),"",INDEX($AB$3:$AB$229,SMALL(IF($AB$3:$AB$229<>"",ROW($AB$3:$AB$229)-2),ROWS($AB$3:AB134)))) ->  | AX134: 203 | AY134: 2 | AZ134: 1 | BA134: =IF(Wycena!$C$16=78,Mapping!AY134,AZ134) -> 1 | BD134: 311 | BE134: 1 | BF134: 1 | BG134: =IF(Wycena!$C$16=78,Mapping!BE134,BF134) -> 1
A135: DB 350 | B135: 20 | C135: 20 | D135: x | E135: x | F135: 20 | G135: 36 | H135: 36 | I135: 36 | Y135: RAL 6008 | Z135: 500 | AA135: RAL 6008 | AB135: =IF((VLOOKUP(Wycena!$C$7,Mapping!$Q$15:$R$20,2,0))="tak","",AA135) -> RAL 6008 | AC135: =IF(ROWS($AB$3:AB135)>(ROWS($AB$3:$AB$229)-COUNTBLANK($AB$3:$AB$229)),"",INDEX($AB$3:$AB$229,SMALL(IF($AB$3:$AB$229<>"",ROW($AB$3:$AB$229)-2),ROWS($AB$3:AB135)))) ->  | AX135: 204 | AY135: 2 | AZ135: 1 | BA135: =IF(Wycena!$C$16=78,Mapping!AY135,AZ135) -> 1 | BD135: 312 | BE135: 1 | BF135: 1 | BG135: =IF(Wycena!$C$16=78,Mapping!BE135,BF135) -> 1
A136: DB 359 | B136: 20 | C136: 20 | D136: x | E136: x | F136: 20 | G136: 28 | H136: 36 | I136: 36 | Y136: RAL 6009 | Z136: 500 | AA136: RAL 6009 | AB136: =IF((VLOOKUP(Wycena!$C$7,Mapping!$Q$15:$R$20,2,0))="tak","",AA136) -> RAL 6009 | AC136: =IF(ROWS($AB$3:AB136)>(ROWS($AB$3:$AB$229)-COUNTBLANK($AB$3:$AB$229)),"",INDEX($AB$3:$AB$229,SMALL(IF($AB$3:$AB$229<>"",ROW($AB$3:$AB$229)-2),ROWS($AB$3:AB136)))) ->  | AX136: 205 | AY136: 2 | AZ136: 1 | BA136: =IF(Wycena!$C$16=78,Mapping!AY136,AZ136) -> 1 | BD136: 313 | BE136: 1 | BF136: 1 | BG136: =IF(Wycena!$C$16=78,Mapping!BE136,BF136) -> 1
A137: DB 360 | B137: 20 | C137: 20 | D137: x | E137: x | F137: 20 | G137: 28 | H137: 36 | I137: 36 | Y137: RAL 6010 | Z137: 500 | AA137: RAL 6010 | AB137: =IF((VLOOKUP(Wycena!$C$7,Mapping!$Q$15:$R$20,2,0))="tak","",AA137) -> RAL 6010 | AC137: =IF(ROWS($AB$3:AB137)>(ROWS($AB$3:$AB$229)-COUNTBLANK($AB$3:$AB$229)),"",INDEX($AB$3:$AB$229,SMALL(IF($AB$3:$AB$229<>"",ROW($AB$3:$AB$229)-2),ROWS($AB$3:AB137)))) ->  | AX137: 206 | AY137: 2 | AZ137: 1 | BA137: =IF(Wycena!$C$16=78,Mapping!AY137,AZ137) -> 1 | BD137: 314 | BE137: 1 | BF137: 1 | BG137: =IF(Wycena!$C$16=78,Mapping!BE137,BF137) -> 1
A138: DB 361 | B138: 20 | C138: 20 | D138: x | E138: x | F138: 20 | G138: 28 | H138: 36 | I138: 36 | Y138: RAL 6011 | Z138: 500 | AA138: RAL 6011 | AB138: =IF((VLOOKUP(Wycena!$C$7,Mapping!$Q$15:$R$20,2,0))="tak","",AA138) -> RAL 6011 | AC138: =IF(ROWS($AB$3:AB138)>(ROWS($AB$3:$AB$229)-COUNTBLANK($AB$3:$AB$229)),"",INDEX($AB$3:$AB$229,SMALL(IF($AB$3:$AB$229<>"",ROW($AB$3:$AB$229)-2),ROWS($AB$3:AB138)))) ->  | AX138: 207 | AY138: 2 | AZ138: 2 | BA138: =IF(Wycena!$C$16=78,Mapping!AY138,AZ138) -> 2 | BD138: 315 | BE138: 1 | BF138: 1 | BG138: =IF(Wycena!$C$16=78,Mapping!BE138,BF138) -> 1
A139: DB 363 | B139: 20 | C139: 20 | D139: x | E139: x | F139: 20 | G139: 36 | H139: 36 | I139: 36 | Y139: RAL 6012 | Z139: 500 | AA139: RAL 6012 | AB139: =IF((VLOOKUP(Wycena!$C$7,Mapping!$Q$15:$R$20,2,0))="tak","",AA139) -> RAL 6012 | AC139: =IF(ROWS($AB$3:AB139)>(ROWS($AB$3:$AB$229)-COUNTBLANK($AB$3:$AB$229)),"",INDEX($AB$3:$AB$229,SMALL(IF($AB$3:$AB$229<>"",ROW($AB$3:$AB$229)-2),ROWS($AB$3:AB139)))) ->  | AX139: 208 | AY139: 2 | AZ139: 2 | BA139: =IF(Wycena!$C$16=78,Mapping!AY139,AZ139) -> 2 | BD139: 316 | BE139: 1 | BF139: 1 | BG139: =IF(Wycena!$C$16=78,Mapping!BE139,BF139) -> 1
A140: DB 364 | B140: 20 | C140: 20 | D140: x | E140: x | F140: 20 | G140: 36 | H140: 36 | I140: 36 | Y140: RAL 6013 | Z140: 500 | AA140: RAL 6013 | AB140: =IF((VLOOKUP(Wycena!$C$7,Mapping!$Q$15:$R$20,2,0))="tak","",AA140) -> RAL 6013 | AC140: =IF(ROWS($AB$3:AB140)>(ROWS($AB$3:$AB$229)-COUNTBLANK($AB$3:$AB$229)),"",INDEX($AB$3:$AB$229,SMALL(IF($AB$3:$AB$229<>"",ROW($AB$3:$AB$229)-2),ROWS($AB$3:AB140)))) ->  | AX140: 209 | AY140: 2 | AZ140: 2 | BA140: =IF(Wycena!$C$16=78,Mapping!AY140,AZ140) -> 2 | BD140: 317 | BE140: 1 | BF140: 1 | BG140: =IF(Wycena!$C$16=78,Mapping!BE140,BF140) -> 1
A141: DB 366 | B141: 20 | C141: 20 | D141: x | E141: x | F141: 20 | G141: 28 | H141: 36 | I141: 36 | Y141: RAL 6014 | Z141: 500 | AA141: RAL 6014 | AB141: =IF((VLOOKUP(Wycena!$C$7,Mapping!$Q$15:$R$20,2,0))="tak","",AA141) -> RAL 6014 | AC141: =IF(ROWS($AB$3:AB141)>(ROWS($AB$3:$AB$229)-COUNTBLANK($AB$3:$AB$229)),"",INDEX($AB$3:$AB$229,SMALL(IF($AB$3:$AB$229<>"",ROW($AB$3:$AB$229)-2),ROWS($AB$3:AB141)))) ->  | AX141: 210 | AY141: 2 | AZ141: 2 | BA141: =IF(Wycena!$C$16=78,Mapping!AY141,AZ141) -> 2 | BD141: 318 | BE141: 1 | BF141: 1 | BG141: =IF(Wycena!$C$16=78,Mapping!BE141,BF141) -> 1
A142: DB 400 | B142: 20 | C142: 20 | D142: x | E142: x | Y142: RAL 6015 | Z142: 500 | AA142: RAL 6015 | AB142: =IF((VLOOKUP(Wycena!$C$7,Mapping!$Q$15:$R$20,2,0))="tak","",AA142) -> RAL 6015 | AC142: =IF(ROWS($AB$3:AB142)>(ROWS($AB$3:$AB$229)-COUNTBLANK($AB$3:$AB$229)),"",INDEX($AB$3:$AB$229,SMALL(IF($AB$3:$AB$229<>"",ROW($AB$3:$AB$229)-2),ROWS($AB$3:AB142)))) ->  | AX142: 211 | AY142: 2 | AZ142: 2 | BA142: =IF(Wycena!$C$16=78,Mapping!AY142,AZ142) -> 2 | BD142: 319 | BE142: 1 | BF142: 1 | BG142: =IF(Wycena!$C$16=78,Mapping!BE142,BF142) -> 1
A143: DB 405 | B143: 20 | C143: 20 | D143: x | E143: x | Y143: RAL 6016 | Z143: 500 | AA143: RAL 6016 | AB143: =IF((VLOOKUP(Wycena!$C$7,Mapping!$Q$15:$R$20,2,0))="tak","",AA143) -> RAL 6016 | AC143: =IF(ROWS($AB$3:AB143)>(ROWS($AB$3:$AB$229)-COUNTBLANK($AB$3:$AB$229)),"",INDEX($AB$3:$AB$229,SMALL(IF($AB$3:$AB$229<>"",ROW($AB$3:$AB$229)-2),ROWS($AB$3:AB143)))) ->  | AX143: 212 | AY143: 2 | AZ143: 2 | BA143: =IF(Wycena!$C$16=78,Mapping!AY143,AZ143) -> 2 | BD143: 320 | BE143: 1 | BF143: 1 | BG143: =IF(Wycena!$C$16=78,Mapping!BE143,BF143) -> 1
A144: DB 411 | B144: 20 | C144: 20 | D144: x | E144: x | Y144: RAL 6017 | Z144: 500 | AA144: RAL 6017 | AB144: =IF((VLOOKUP(Wycena!$C$7,Mapping!$Q$15:$R$20,2,0))="tak","",AA144) -> RAL 6017 | AC144: =IF(ROWS($AB$3:AB144)>(ROWS($AB$3:$AB$229)-COUNTBLANK($AB$3:$AB$229)),"",INDEX($AB$3:$AB$229,SMALL(IF($AB$3:$AB$229<>"",ROW($AB$3:$AB$229)-2),ROWS($AB$3:AB144)))) ->  | AX144: 213 | AY144: 2 | AZ144: 2 | BA144: =IF(Wycena!$C$16=78,Mapping!AY144,AZ144) -> 2 | BD144: 321 | BE144: 1 | BF144: 1 | BG144: =IF(Wycena!$C$16=78,Mapping!BE144,BF144) -> 1
A145: DB 412 | B145: 20 | C145: 20 | D145: x | E145: x | Y145: RAL 6018 | Z145: 500 | AA145: RAL 6018 | AB145: =IF((VLOOKUP(Wycena!$C$7,Mapping!$Q$15:$R$20,2,0))="tak","",AA145) -> RAL 6018 | AC145: =IF(ROWS($AB$3:AB145)>(ROWS($AB$3:$AB$229)-COUNTBLANK($AB$3:$AB$229)),"",INDEX($AB$3:$AB$229,SMALL(IF($AB$3:$AB$229<>"",ROW($AB$3:$AB$229)-2),ROWS($AB$3:AB145)))) ->  | AX145: 214 | AY145: 2 | AZ145: 2 | BA145: =IF(Wycena!$C$16=78,Mapping!AY145,AZ145) -> 2 | BD145: 322 | BE145: 1 | BF145: 1 | BG145: =IF(Wycena!$C$16=78,Mapping!BE145,BF145) -> 1
A146: DB 413 | B146: 20 | C146: 20 | D146: x | E146: x | Y146: RAL 6019 | Z146: 500 | AA146: RAL 6019 | AB146: =IF((VLOOKUP(Wycena!$C$7,Mapping!$Q$15:$R$20,2,0))="tak","",AA146) -> RAL 6019 | AC146: =IF(ROWS($AB$3:AB146)>(ROWS($AB$3:$AB$229)-COUNTBLANK($AB$3:$AB$229)),"",INDEX($AB$3:$AB$229,SMALL(IF($AB$3:$AB$229<>"",ROW($AB$3:$AB$229)-2),ROWS($AB$3:AB146)))) ->  | AX146: 215 | AY146: 2 | AZ146: 2 | BA146: =IF(Wycena!$C$16=78,Mapping!AY146,AZ146) -> 2 | BD146: 323 | BE146: 1 | BF146: 1 | BG146: =IF(Wycena!$C$16=78,Mapping!BE146,BF146) -> 1
A147: DB 414 | B147: 20 | C147: 20 | D147: x | E147: x | Y147: RAL 6020 | Z147: 500 | AA147: RAL 6020 | AB147: =IF((VLOOKUP(Wycena!$C$7,Mapping!$Q$15:$R$20,2,0))="tak","",AA147) -> RAL 6020 | AC147: =IF(ROWS($AB$3:AB147)>(ROWS($AB$3:$AB$229)-COUNTBLANK($AB$3:$AB$229)),"",INDEX($AB$3:$AB$229,SMALL(IF($AB$3:$AB$229<>"",ROW($AB$3:$AB$229)-2),ROWS($AB$3:AB147)))) ->  | AX147: 216 | AY147: 2 | AZ147: 2 | BA147: =IF(Wycena!$C$16=78,Mapping!AY147,AZ147) -> 2 | BD147: 324 | BE147: 1 | BF147: 1 | BG147: =IF(Wycena!$C$16=78,Mapping!BE147,BF147) -> 1
A148: DB 415 | B148: 20 | C148: 20 | D148: x | E148: x | Y148: RAL 6021 | Z148: 500 | AA148: RAL 6021 | AB148: =IF((VLOOKUP(Wycena!$C$7,Mapping!$Q$15:$R$20,2,0))="tak","",AA148) -> RAL 6021 | AC148: =IF(ROWS($AB$3:AB148)>(ROWS($AB$3:$AB$229)-COUNTBLANK($AB$3:$AB$229)),"",INDEX($AB$3:$AB$229,SMALL(IF($AB$3:$AB$229<>"",ROW($AB$3:$AB$229)-2),ROWS($AB$3:AB148)))) ->  | AX148: 217 | AY148: 2 | AZ148: 2 | BA148: =IF(Wycena!$C$16=78,Mapping!AY148,AZ148) -> 2 | BD148: 325 | BE148: 1 | BF148: 1 | BG148: =IF(Wycena!$C$16=78,Mapping!BE148,BF148) -> 1
A149: DB 431 | B149: 20 | C149: 20 | D149: x | E149: x | Y149: RAL 6022 | Z149: 500 | AA149: RAL 6022 | AB149: =IF((VLOOKUP(Wycena!$C$7,Mapping!$Q$15:$R$20,2,0))="tak","",AA149) -> RAL 6022 | AC149: =IF(ROWS($AB$3:AB149)>(ROWS($AB$3:$AB$229)-COUNTBLANK($AB$3:$AB$229)),"",INDEX($AB$3:$AB$229,SMALL(IF($AB$3:$AB$229<>"",ROW($AB$3:$AB$229)-2),ROWS($AB$3:AB149)))) ->  | AX149: 218 | AY149: 2 | AZ149: 2 | BA149: =IF(Wycena!$C$16=78,Mapping!AY149,AZ149) -> 2 | BD149: 326 | BE149: 1 | BF149: 1 | BG149: =IF(Wycena!$C$16=78,Mapping!BE149,BF149) -> 1
A150: DB 432 | B150: 20 | C150: 20 | D150: x | E150: x | Y150: RAL 6024 | Z150: 500 | AA150: RAL 6024 | AB150: =IF((VLOOKUP(Wycena!$C$7,Mapping!$Q$15:$R$20,2,0))="tak","",AA150) -> RAL 6024 | AC150: =IF(ROWS($AB$3:AB150)>(ROWS($AB$3:$AB$229)-COUNTBLANK($AB$3:$AB$229)),"",INDEX($AB$3:$AB$229,SMALL(IF($AB$3:$AB$229<>"",ROW($AB$3:$AB$229)-2),ROWS($AB$3:AB150)))) ->  | AX150: 219 | AY150: 2 | AZ150: 2 | BA150: =IF(Wycena!$C$16=78,Mapping!AY150,AZ150) -> 2 | BD150: 327 | BE150: 1 | BF150: 1 | BG150: =IF(Wycena!$C$16=78,Mapping!BE150,BF150) -> 1
A151: DB 450 | B151: 20 | C151: 20 | D151: x | E151: x | Y151: RAL 6025 | Z151: 500 | AA151: RAL 6025 | AB151: =IF((VLOOKUP(Wycena!$C$7,Mapping!$Q$15:$R$20,2,0))="tak","",AA151) -> RAL 6025 | AC151: =IF(ROWS($AB$3:AB151)>(ROWS($AB$3:$AB$229)-COUNTBLANK($AB$3:$AB$229)),"",INDEX($AB$3:$AB$229,SMALL(IF($AB$3:$AB$229<>"",ROW($AB$3:$AB$229)-2),ROWS($AB$3:AB151)))) ->  | AX151: 220 | AY151: 2 | AZ151: 2 | BA151: =IF(Wycena!$C$16=78,Mapping!AY151,AZ151) -> 2 | BD151: 328 | BE151: 1 | BF151: 1 | BG151: =IF(Wycena!$C$16=78,Mapping!BE151,BF151) -> 1
A152: DB 502 | B152: 20 | C152: 20 | D152: x | E152: x | F152: 20 | G152: 32 | H152: 36 | I152: 36 | Y152: RAL 6026 | Z152: 500 | AA152: RAL 6026 | AB152: =IF((VLOOKUP(Wycena!$C$7,Mapping!$Q$15:$R$20,2,0))="tak","",AA152) -> RAL 6026 | AC152: =IF(ROWS($AB$3:AB152)>(ROWS($AB$3:$AB$229)-COUNTBLANK($AB$3:$AB$229)),"",INDEX($AB$3:$AB$229,SMALL(IF($AB$3:$AB$229<>"",ROW($AB$3:$AB$229)-2),ROWS($AB$3:AB152)))) ->  | AX152: 221 | AY152: 2 | AZ152: 2 | BA152: =IF(Wycena!$C$16=78,Mapping!AY152,AZ152) -> 2 | BD152: 329 | BE152: 1 | BF152: 1 | BG152: =IF(Wycena!$C$16=78,Mapping!BE152,BF152) -> 1
A153: DB 506 | B153: 20 | C153: 20 | D153: x | E153: x | F153: 20 | G153: 32 | H153: 36 | I153: 36 | Y153: RAL 6027 | Z153: 500 | AA153: RAL 6027 | AB153: =IF((VLOOKUP(Wycena!$C$7,Mapping!$Q$15:$R$20,2,0))="tak","",AA153) -> RAL 6027 | AC153: =IF(ROWS($AB$3:AB153)>(ROWS($AB$3:$AB$229)-COUNTBLANK($AB$3:$AB$229)),"",INDEX($AB$3:$AB$229,SMALL(IF($AB$3:$AB$229<>"",ROW($AB$3:$AB$229)-2),ROWS($AB$3:AB153)))) ->  | AX153: 222 | AY153: 2 | AZ153: 2 | BA153: =IF(Wycena!$C$16=78,Mapping!AY153,AZ153) -> 2 | BD153: 330 | BE153: 1 | BF153: 1 | BG153: =IF(Wycena!$C$16=78,Mapping!BE153,BF153) -> 1
A154: DB 510 | B154: 20 | C154: 20 | D154: x | E154: x | F154: 20 | G154: 32 | H154: 36 | I154: 36 | Y154: RAL 6028 | Z154: 500 | AA154: RAL 6028 | AB154: =IF((VLOOKUP(Wycena!$C$7,Mapping!$Q$15:$R$20,2,0))="tak","",AA154) -> RAL 6028 | AC154: =IF(ROWS($AB$3:AB154)>(ROWS($AB$3:$AB$229)-COUNTBLANK($AB$3:$AB$229)),"",INDEX($AB$3:$AB$229,SMALL(IF($AB$3:$AB$229<>"",ROW($AB$3:$AB$229)-2),ROWS($AB$3:AB154)))) ->  | AX154: 223 | AY154: 2 | AZ154: 2 | BA154: =IF(Wycena!$C$16=78,Mapping!AY154,AZ154) -> 2 | BD154: 331 | BE154: 1 | BF154: 1 | BG154: =IF(Wycena!$C$16=78,Mapping!BE154,BF154) -> 1
A155: DB 511 | B155: 20 | C155: 20 | D155: x | E155: x | F155: 20 | G155: 32 | H155: 36 | I155: 36 | Y155: RAL 6029 | Z155: 500 | AA155: RAL 6029 | AB155: =IF((VLOOKUP(Wycena!$C$7,Mapping!$Q$15:$R$20,2,0))="tak","",AA155) -> RAL 6029 | AC155: =IF(ROWS($AB$3:AB155)>(ROWS($AB$3:$AB$229)-COUNTBLANK($AB$3:$AB$229)),"",INDEX($AB$3:$AB$229,SMALL(IF($AB$3:$AB$229<>"",ROW($AB$3:$AB$229)-2),ROWS($AB$3:AB155)))) ->  | AX155: 224 | AY155: 2 | AZ155: 2 | BA155: =IF(Wycena!$C$16=78,Mapping!AY155,AZ155) -> 2 | BD155: 332 | BE155: 1 | BF155: 1 | BG155: =IF(Wycena!$C$16=78,Mapping!BE155,BF155) -> 1
A156: DB 512 | B156: 20 | C156: 20 | D156: x | E156: x | F156: 20 | G156: 32 | H156: 36 | I156: 36 | Y156: RAL 6032 | Z156: 500 | AA156: RAL 6032 | AB156: =IF((VLOOKUP(Wycena!$C$7,Mapping!$Q$15:$R$20,2,0))="tak","",AA156) -> RAL 6032 | AC156: =IF(ROWS($AB$3:AB156)>(ROWS($AB$3:$AB$229)-COUNTBLANK($AB$3:$AB$229)),"",INDEX($AB$3:$AB$229,SMALL(IF($AB$3:$AB$229<>"",ROW($AB$3:$AB$229)-2),ROWS($AB$3:AB156)))) ->  | AX156: 225 | AY156: 2 | AZ156: 2 | BA156: =IF(Wycena!$C$16=78,Mapping!AY156,AZ156) -> 2 | BD156: 333 | BE156: 1 | BF156: 1 | BG156: =IF(Wycena!$C$16=78,Mapping!BE156,BF156) -> 1
A157: DB 513 | B157: 20 | C157: 20 | D157: x | E157: x | F157: 20 | G157: 32 | H157: 36 | I157: 36 | Y157: RAL 6033 | Z157: 500 | AA157: RAL 6033 | AB157: =IF((VLOOKUP(Wycena!$C$7,Mapping!$Q$15:$R$20,2,0))="tak","",AA157) -> RAL 6033 | AC157: =IF(ROWS($AB$3:AB157)>(ROWS($AB$3:$AB$229)-COUNTBLANK($AB$3:$AB$229)),"",INDEX($AB$3:$AB$229,SMALL(IF($AB$3:$AB$229<>"",ROW($AB$3:$AB$229)-2),ROWS($AB$3:AB157)))) ->  | AX157: 226 | AY157: 2 | AZ157: 2 | BA157: =IF(Wycena!$C$16=78,Mapping!AY157,AZ157) -> 2 | BD157: 334 | BE157: 1 | BF157: 1 | BG157: =IF(Wycena!$C$16=78,Mapping!BE157,BF157) -> 1
A158: DB 514 | B158: 20 | C158: 20 | D158: x | E158: x | F158: 20 | G158: 32 | H158: 36 | I158: 36 | Y158: RAL 6034 | Z158: 500 | AA158: RAL 6034 | AB158: =IF((VLOOKUP(Wycena!$C$7,Mapping!$Q$15:$R$20,2,0))="tak","",AA158) -> RAL 6034 | AC158: =IF(ROWS($AB$3:AB158)>(ROWS($AB$3:$AB$229)-COUNTBLANK($AB$3:$AB$229)),"",INDEX($AB$3:$AB$229,SMALL(IF($AB$3:$AB$229<>"",ROW($AB$3:$AB$229)-2),ROWS($AB$3:AB158)))) ->  | AX158: 227 | AY158: 2 | AZ158: 2 | BA158: =IF(Wycena!$C$16=78,Mapping!AY158,AZ158) -> 2 | BD158: 335 | BE158: 1 | BF158: 1 | BG158: =IF(Wycena!$C$16=78,Mapping!BE158,BF158) -> 1
A159: DB 515 | B159: 20 | C159: 20 | D159: x | E159: x | F159: 20 | G159: 32 | H159: 36 | I159: 36 | Y159: RAL 6035 | Z159: 500 | AA159: RAL 6035 | AB159: =IF((VLOOKUP(Wycena!$C$7,Mapping!$Q$15:$R$20,2,0))="tak","",AA159) -> RAL 6035 | AC159: =IF(ROWS($AB$3:AB159)>(ROWS($AB$3:$AB$229)-COUNTBLANK($AB$3:$AB$229)),"",INDEX($AB$3:$AB$229,SMALL(IF($AB$3:$AB$229<>"",ROW($AB$3:$AB$229)-2),ROWS($AB$3:AB159)))) ->  | AX159: 228 | AY159: 2 | AZ159: 2 | BA159: =IF(Wycena!$C$16=78,Mapping!AY159,AZ159) -> 2 | BD159: 336 | BE159: 1 | BF159: 1 | BG159: =IF(Wycena!$C$16=78,Mapping!BE159,BF159) -> 1
A160: DB 517 | B160: 20 | C160: 20 | D160: x | E160: x | F160: 20 | G160: 32 | H160: 36 | I160: 36 | Y160: RAL 6036 | Z160: 500 | AA160: RAL 6036 | AB160: =IF((VLOOKUP(Wycena!$C$7,Mapping!$Q$15:$R$20,2,0))="tak","",AA160) -> RAL 6036 | AC160: =IF(ROWS($AB$3:AB160)>(ROWS($AB$3:$AB$229)-COUNTBLANK($AB$3:$AB$229)),"",INDEX($AB$3:$AB$229,SMALL(IF($AB$3:$AB$229<>"",ROW($AB$3:$AB$229)-2),ROWS($AB$3:AB160)))) ->  | AX160: 230 | AY160: 2 | AZ160: 2 | BA160: =IF(Wycena!$C$16=78,Mapping!AY160,AZ160) -> 2 | BD160: 338 | BE160: 1 | BF160: 1 | BG160: =IF(Wycena!$C$16=78,Mapping!BE160,BF160) -> 1
A161: DB 601 | B161: 20 | C161: 20 | D161: x | E161: x | F161: 20 | G161: 32 | H161: 36 | I161: 36 | Y161: RAL 6038 | Z161: 500 | AA161: RAL 6038 | AB161: =IF((VLOOKUP(Wycena!$C$7,Mapping!$Q$15:$R$20,2,0))="tak","",AA161) -> RAL 6038 | AC161: =IF(ROWS($AB$3:AB161)>(ROWS($AB$3:$AB$229)-COUNTBLANK($AB$3:$AB$229)),"",INDEX($AB$3:$AB$229,SMALL(IF($AB$3:$AB$229<>"",ROW($AB$3:$AB$229)-2),ROWS($AB$3:AB161)))) ->  | AX161: 231 | AY161: 2 | AZ161: 2 | BA161: =IF(Wycena!$C$16=78,Mapping!AY161,AZ161) -> 2 | BD161: 339 | BE161: 1 | BF161: 1 | BG161: =IF(Wycena!$C$16=78,Mapping!BE161,BF161) -> 1
A162: DB 602 | B162: 20 | C162: 20 | D162: x | E162: x | F162: 20 | G162: 32 | H162: 36 | I162: 36 | Y162: RAL 7000 | Z162: 500 | AA162: RAL 7000 | AB162: =IF((VLOOKUP(Wycena!$C$7,Mapping!$Q$15:$R$20,2,0))="tak","",AA162) -> RAL 7000 | AC162: =IF(ROWS($AB$3:AB162)>(ROWS($AB$3:$AB$229)-COUNTBLANK($AB$3:$AB$229)),"",INDEX($AB$3:$AB$229,SMALL(IF($AB$3:$AB$229<>"",ROW($AB$3:$AB$229)-2),ROWS($AB$3:AB162)))) ->  | AX162: 232 | AY162: 2 | AZ162: 2 | BA162: =IF(Wycena!$C$16=78,Mapping!AY162,AZ162) -> 2 | BD162: 340 | BE162: 1 | BF162: 1 | BG162: =IF(Wycena!$C$16=78,Mapping!BE162,BF162) -> 1
A163: DB 603 | B163: 20 | C163: 20 | D163: x | E163: x | F163: 20 | G163: 32 | H163: 36 | I163: 36 | Y163: RAL 7001 | Z163: 500 | AA163: RAL 7001 | AB163: =IF((VLOOKUP(Wycena!$C$7,Mapping!$Q$15:$R$20,2,0))="tak","",AA163) -> RAL 7001 | AC163: =IF(ROWS($AB$3:AB163)>(ROWS($AB$3:$AB$229)-COUNTBLANK($AB$3:$AB$229)),"",INDEX($AB$3:$AB$229,SMALL(IF($AB$3:$AB$229<>"",ROW($AB$3:$AB$229)-2),ROWS($AB$3:AB163)))) ->  | AX163: 233 | AY163: 2 | AZ163: 2 | BA163: =IF(Wycena!$C$16=78,Mapping!AY163,AZ163) -> 2 | BD163: 341 | BE163: 1 | BF163: 1 | BG163: =IF(Wycena!$C$16=78,Mapping!BE163,BF163) -> 1
A164: DB 604 | B164: 20 | C164: 20 | D164: x | E164: x | F164: 20 | G164: 32 | H164: 36 | I164: 36 | Y164: RAL 7002 | Z164: 500 | AA164: RAL 7002 | AB164: =IF((VLOOKUP(Wycena!$C$7,Mapping!$Q$15:$R$20,2,0))="tak","",AA164) -> RAL 7002 | AC164: =IF(ROWS($AB$3:AB164)>(ROWS($AB$3:$AB$229)-COUNTBLANK($AB$3:$AB$229)),"",INDEX($AB$3:$AB$229,SMALL(IF($AB$3:$AB$229<>"",ROW($AB$3:$AB$229)-2),ROWS($AB$3:AB164)))) ->  | AX164: 234 | AY164: 2 | AZ164: 2 | BA164: =IF(Wycena!$C$16=78,Mapping!AY164,AZ164) -> 2 | BD164: 342 | BE164: 1 | BF164: 1 | BG164: =IF(Wycena!$C$16=78,Mapping!BE164,BF164) -> 1
A165: DB 605 | B165: 20 | C165: 20 | D165: x | E165: x | F165: 20 | G165: 32 | H165: 36 | I165: 36 | Y165: RAL 7003 | Z165: 500 | AA165: RAL 7003 | AB165: =IF((VLOOKUP(Wycena!$C$7,Mapping!$Q$15:$R$20,2,0))="tak","",AA165) -> RAL 7003 | AC165: =IF(ROWS($AB$3:AB165)>(ROWS($AB$3:$AB$229)-COUNTBLANK($AB$3:$AB$229)),"",INDEX($AB$3:$AB$229,SMALL(IF($AB$3:$AB$229<>"",ROW($AB$3:$AB$229)-2),ROWS($AB$3:AB165)))) ->  | AX165: 235 | AY165: 2 | AZ165: 2 | BA165: =IF(Wycena!$C$16=78,Mapping!AY165,AZ165) -> 2 | BD165: 343 | BE165: 1 | BF165: 1 | BG165: =IF(Wycena!$C$16=78,Mapping!BE165,BF165) -> 1
A166: DB 606 | B166: 20 | C166: 20 | D166: x | E166: x | F166: 20 | G166: 32 | H166: 36 | I166: 36 | Y166: RAL 7004 | Z166: 500 | AA166: RAL 7004 | AB166: =IF((VLOOKUP(Wycena!$C$7,Mapping!$Q$15:$R$20,2,0))="tak","",AA166) -> RAL 7004 | AC166: =IF(ROWS($AB$3:AB166)>(ROWS($AB$3:$AB$229)-COUNTBLANK($AB$3:$AB$229)),"",INDEX($AB$3:$AB$229,SMALL(IF($AB$3:$AB$229<>"",ROW($AB$3:$AB$229)-2),ROWS($AB$3:AB166)))) ->  | AX166: 236 | AY166: 2 | AZ166: 2 | BA166: =IF(Wycena!$C$16=78,Mapping!AY166,AZ166) -> 2 | BD166: 344 | BE166: 1 | BF166: 1 | BG166: =IF(Wycena!$C$16=78,Mapping!BE166,BF166) -> 1
A167: DB 607 | B167: 20 | C167: 20 | D167: x | E167: x | F167: 20 | G167: 32 | H167: 36 | I167: 36 | Y167: RAL 7005 | Z167: 500 | AA167: RAL 7005 | AB167: =IF((VLOOKUP(Wycena!$C$7,Mapping!$Q$15:$R$20,2,0))="tak","",AA167) -> RAL 7005 | AC167: =IF(ROWS($AB$3:AB167)>(ROWS($AB$3:$AB$229)-COUNTBLANK($AB$3:$AB$229)),"",INDEX($AB$3:$AB$229,SMALL(IF($AB$3:$AB$229<>"",ROW($AB$3:$AB$229)-2),ROWS($AB$3:AB167)))) ->  | AX167: 237 | AY167: 2 | AZ167: 2 | BA167: =IF(Wycena!$C$16=78,Mapping!AY167,AZ167) -> 2 | BD167: 345 | BE167: 1 | BF167: 1 | BG167: =IF(Wycena!$C$16=78,Mapping!BE167,BF167) -> 1
A168: DB 609 | B168: 20 | C168: 20 | D168: x | E168: x | F168: 20 | G168: 32 | H168: 36 | I168: 36 | Y168: RAL 7006 | Z168: 500 | AA168: RAL 7006 | AB168: =IF((VLOOKUP(Wycena!$C$7,Mapping!$Q$15:$R$20,2,0))="tak","",AA168) -> RAL 7006 | AC168: =IF(ROWS($AB$3:AB168)>(ROWS($AB$3:$AB$229)-COUNTBLANK($AB$3:$AB$229)),"",INDEX($AB$3:$AB$229,SMALL(IF($AB$3:$AB$229<>"",ROW($AB$3:$AB$229)-2),ROWS($AB$3:AB168)))) ->  | AX168: 238 | AY168: 2 | AZ168: 2 | BA168: =IF(Wycena!$C$16=78,Mapping!AY168,AZ168) -> 2 | BD168: 346 | BE168: 1 | BF168: 1 | BG168: =IF(Wycena!$C$16=78,Mapping!BE168,BF168) -> 1
Y169: RAL 7008 | Z169: 500 | AA169: RAL 7008 | AB169: =IF((VLOOKUP(Wycena!$C$7,Mapping!$Q$15:$R$20,2,0))="tak","",AA169) -> RAL 7008 | AC169: =IF(ROWS($AB$3:AB169)>(ROWS($AB$3:$AB$229)-COUNTBLANK($AB$3:$AB$229)),"",INDEX($AB$3:$AB$229,SMALL(IF($AB$3:$AB$229<>"",ROW($AB$3:$AB$229)-2),ROWS($AB$3:AB169)))) ->  | AX169: 239 | AY169: 2 | AZ169: 2 | BA169: =IF(Wycena!$C$16=78,Mapping!AY169,AZ169) -> 2 | BD169: 347 | BE169: 1 | BF169: 1 | BG169: =IF(Wycena!$C$16=78,Mapping!BE169,BF169) -> 1
Y170: RAL 7009 | Z170: 500 | AA170: RAL 7009 | AB170: =IF((VLOOKUP(Wycena!$C$7,Mapping!$Q$15:$R$20,2,0))="tak","",AA170) -> RAL 7009 | AC170: =IF(ROWS($AB$3:AB170)>(ROWS($AB$3:$AB$229)-COUNTBLANK($AB$3:$AB$229)),"",INDEX($AB$3:$AB$229,SMALL(IF($AB$3:$AB$229<>"",ROW($AB$3:$AB$229)-2),ROWS($AB$3:AB170)))) ->  | AX170: 240 | AY170: 2 | AZ170: 2 | BA170: =IF(Wycena!$C$16=78,Mapping!AY170,AZ170) -> 2 | BD170: 348 | BE170: 1 | BF170: 1 | BG170: =IF(Wycena!$C$16=78,Mapping!BE170,BF170) -> 1
Y171: RAL 7010 | Z171: 500 | AA171: RAL 7010 | AB171: =IF((VLOOKUP(Wycena!$C$7,Mapping!$Q$15:$R$20,2,0))="tak","",AA171) -> RAL 7010 | AC171: =IF(ROWS($AB$3:AB171)>(ROWS($AB$3:$AB$229)-COUNTBLANK($AB$3:$AB$229)),"",INDEX($AB$3:$AB$229,SMALL(IF($AB$3:$AB$229<>"",ROW($AB$3:$AB$229)-2),ROWS($AB$3:AB171)))) ->  | AX171: 241 | AY171: 2 | AZ171: 2 | BA171: =IF(Wycena!$C$16=78,Mapping!AY171,AZ171) -> 2 | BD171: 349 | BE171: 1 | BF171: 1 | BG171: =IF(Wycena!$C$16=78,Mapping!BE171,BF171) -> 1
Y172: RAL 7011 | Z172: 500 | AA172: RAL 7011 | AB172: =IF((VLOOKUP(Wycena!$C$7,Mapping!$Q$15:$R$20,2,0))="tak","",AA172) -> RAL 7011 | AC172: =IF(ROWS($AB$3:AB172)>(ROWS($AB$3:$AB$229)-COUNTBLANK($AB$3:$AB$229)),"",INDEX($AB$3:$AB$229,SMALL(IF($AB$3:$AB$229<>"",ROW($AB$3:$AB$229)-2),ROWS($AB$3:AB172)))) ->  | AX172: 242 | AY172: 2 | AZ172: 2 | BA172: =IF(Wycena!$C$16=78,Mapping!AY172,AZ172) -> 2 | BD172: 350 | BE172: 1 | BF172: 1 | BG172: =IF(Wycena!$C$16=78,Mapping!BE172,BF172) -> 1
Y173: RAL 7012 | Z173: 500 | AA173: RAL 7012 | AB173: =IF((VLOOKUP(Wycena!$C$7,Mapping!$Q$15:$R$20,2,0))="tak","",AA173) -> RAL 7012 | AC173: =IF(ROWS($AB$3:AB173)>(ROWS($AB$3:$AB$229)-COUNTBLANK($AB$3:$AB$229)),"",INDEX($AB$3:$AB$229,SMALL(IF($AB$3:$AB$229<>"",ROW($AB$3:$AB$229)-2),ROWS($AB$3:AB173)))) ->  | AX173: 243 | AY173: 2 | AZ173: 2 | BA173: =IF(Wycena!$C$16=78,Mapping!AY173,AZ173) -> 2
Y174: RAL 7013 | Z174: 500 | AA174: RAL 7013 | AB174: =IF((VLOOKUP(Wycena!$C$7,Mapping!$Q$15:$R$20,2,0))="tak","",AA174) -> RAL 7013 | AC174: =IF(ROWS($AB$3:AB174)>(ROWS($AB$3:$AB$229)-COUNTBLANK($AB$3:$AB$229)),"",INDEX($AB$3:$AB$229,SMALL(IF($AB$3:$AB$229<>"",ROW($AB$3:$AB$229)-2),ROWS($AB$3:AB174)))) ->  | AX174: 244 | AY174: 2 | AZ174: 2 | BA174: =IF(Wycena!$C$16=78,Mapping!AY174,AZ174) -> 2
Y175: RAL 7015 | Z175: 500 | AA175: RAL 7015 | AB175: =IF((VLOOKUP(Wycena!$C$7,Mapping!$Q$15:$R$20,2,0))="tak","",AA175) -> RAL 7015 | AC175: =IF(ROWS($AB$3:AB175)>(ROWS($AB$3:$AB$229)-COUNTBLANK($AB$3:$AB$229)),"",INDEX($AB$3:$AB$229,SMALL(IF($AB$3:$AB$229<>"",ROW($AB$3:$AB$229)-2),ROWS($AB$3:AB175)))) ->  | AX175: 245 | AY175: 2 | AZ175: 2 | BA175: =IF(Wycena!$C$16=78,Mapping!AY175,AZ175) -> 2
Y176: RAL 7021 | Z176: 500 | AA176: RAL 7021 | AB176: =IF((VLOOKUP(Wycena!$C$7,Mapping!$Q$15:$R$20,2,0))="tak","",AA176) -> RAL 7021 | AC176: =IF(ROWS($AB$3:AB176)>(ROWS($AB$3:$AB$229)-COUNTBLANK($AB$3:$AB$229)),"",INDEX($AB$3:$AB$229,SMALL(IF($AB$3:$AB$229<>"",ROW($AB$3:$AB$229)-2),ROWS($AB$3:AB176)))) ->  | AX176: 246 | AY176: 2 | AZ176: 2 | BA176: =IF(Wycena!$C$16=78,Mapping!AY176,AZ176) -> 2
Y177: RAL 7022 | Z177: 500 | AA177: RAL 7022 | AB177: =IF((VLOOKUP(Wycena!$C$7,Mapping!$Q$15:$R$20,2,0))="tak","",AA177) -> RAL 7022 | AC177: =IF(ROWS($AB$3:AB177)>(ROWS($AB$3:$AB$229)-COUNTBLANK($AB$3:$AB$229)),"",INDEX($AB$3:$AB$229,SMALL(IF($AB$3:$AB$229<>"",ROW($AB$3:$AB$229)-2),ROWS($AB$3:AB177)))) ->  | AX177: 247 | AY177: 2 | AZ177: 2 | BA177: =IF(Wycena!$C$16=78,Mapping!AY177,AZ177) -> 2
Y178: RAL 7023 | Z178: 500 | AA178: RAL 7023 | AB178: =IF((VLOOKUP(Wycena!$C$7,Mapping!$Q$15:$R$20,2,0))="tak","",AA178) -> RAL 7023 | AC178: =IF(ROWS($AB$3:AB178)>(ROWS($AB$3:$AB$229)-COUNTBLANK($AB$3:$AB$229)),"",INDEX($AB$3:$AB$229,SMALL(IF($AB$3:$AB$229<>"",ROW($AB$3:$AB$229)-2),ROWS($AB$3:AB178)))) ->  | AX178: 248 | AY178: 2 | AZ178: 2 | BA178: =IF(Wycena!$C$16=78,Mapping!AY178,AZ178) -> 2
Y179: RAL 7024 | Z179: 500 | AA179: RAL 7024 | AB179: =IF((VLOOKUP(Wycena!$C$7,Mapping!$Q$15:$R$20,2,0))="tak","",AA179) -> RAL 7024 | AC179: =IF(ROWS($AB$3:AB179)>(ROWS($AB$3:$AB$229)-COUNTBLANK($AB$3:$AB$229)),"",INDEX($AB$3:$AB$229,SMALL(IF($AB$3:$AB$229<>"",ROW($AB$3:$AB$229)-2),ROWS($AB$3:AB179)))) ->  | AX179: 249 | AY179: 2 | AZ179: 2 | BA179: =IF(Wycena!$C$16=78,Mapping!AY179,AZ179) -> 2
Y180: RAL 7026 | Z180: 500 | AA180: RAL 7026 | AB180: =IF((VLOOKUP(Wycena!$C$7,Mapping!$Q$15:$R$20,2,0))="tak","",AA180) -> RAL 7026 | AC180: =IF(ROWS($AB$3:AB180)>(ROWS($AB$3:$AB$229)-COUNTBLANK($AB$3:$AB$229)),"",INDEX($AB$3:$AB$229,SMALL(IF($AB$3:$AB$229<>"",ROW($AB$3:$AB$229)-2),ROWS($AB$3:AB180)))) ->  | AX180: 250 | AY180: 2 | AZ180: 2 | BA180: =IF(Wycena!$C$16=78,Mapping!AY180,AZ180) -> 2
Y181: RAL 7030 | Z181: 500 | AA181: RAL 7030 | AB181: =IF((VLOOKUP(Wycena!$C$7,Mapping!$Q$15:$R$20,2,0))="tak","",AA181) -> RAL 7030 | AC181: =IF(ROWS($AB$3:AB181)>(ROWS($AB$3:$AB$229)-COUNTBLANK($AB$3:$AB$229)),"",INDEX($AB$3:$AB$229,SMALL(IF($AB$3:$AB$229<>"",ROW($AB$3:$AB$229)-2),ROWS($AB$3:AB181)))) ->  | AX181: 251 | AY181: 2 | AZ181: 2 | BA181: =IF(Wycena!$C$16=78,Mapping!AY181,AZ181) -> 2
Y182: RAL 7031 | Z182: 500 | AA182: RAL 7031 | AB182: =IF((VLOOKUP(Wycena!$C$7,Mapping!$Q$15:$R$20,2,0))="tak","",AA182) -> RAL 7031 | AC182: =IF(ROWS($AB$3:AB182)>(ROWS($AB$3:$AB$229)-COUNTBLANK($AB$3:$AB$229)),"",INDEX($AB$3:$AB$229,SMALL(IF($AB$3:$AB$229<>"",ROW($AB$3:$AB$229)-2),ROWS($AB$3:AB182)))) ->  | AX182: 252 | AY182: 2 | AZ182: 2 | BA182: =IF(Wycena!$C$16=78,Mapping!AY182,AZ182) -> 2
Y183: RAL 7032 | Z183: 500 | AA183: RAL 7032 | AB183: =IF((VLOOKUP(Wycena!$C$7,Mapping!$Q$15:$R$20,2,0))="tak","",AA183) -> RAL 7032 | AC183: =IF(ROWS($AB$3:AB183)>(ROWS($AB$3:$AB$229)-COUNTBLANK($AB$3:$AB$229)),"",INDEX($AB$3:$AB$229,SMALL(IF($AB$3:$AB$229<>"",ROW($AB$3:$AB$229)-2),ROWS($AB$3:AB183)))) ->  | AX183: 253 | AY183: 2 | AZ183: 2 | BA183: =IF(Wycena!$C$16=78,Mapping!AY183,AZ183) -> 2
Y184: RAL 7033 | Z184: 500 | AA184: RAL 7033 | AB184: =IF((VLOOKUP(Wycena!$C$7,Mapping!$Q$15:$R$20,2,0))="tak","",AA184) -> RAL 7033 | AC184: =IF(ROWS($AB$3:AB184)>(ROWS($AB$3:$AB$229)-COUNTBLANK($AB$3:$AB$229)),"",INDEX($AB$3:$AB$229,SMALL(IF($AB$3:$AB$229<>"",ROW($AB$3:$AB$229)-2),ROWS($AB$3:AB184)))) ->  | AX184: 254 | AY184: 2 | AZ184: 2 | BA184: =IF(Wycena!$C$16=78,Mapping!AY184,AZ184) -> 2
Y185: RAL 7034 | Z185: 500 | AA185: RAL 7034 | AB185: =IF((VLOOKUP(Wycena!$C$7,Mapping!$Q$15:$R$20,2,0))="tak","",AA185) -> RAL 7034 | AC185: =IF(ROWS($AB$3:AB185)>(ROWS($AB$3:$AB$229)-COUNTBLANK($AB$3:$AB$229)),"",INDEX($AB$3:$AB$229,SMALL(IF($AB$3:$AB$229<>"",ROW($AB$3:$AB$229)-2),ROWS($AB$3:AB185)))) ->  | AX185: 255 | AY185: 2 | AZ185: 2 | BA185: =IF(Wycena!$C$16=78,Mapping!AY185,AZ185) -> 2
Y186: RAL 7035 | Z186: 500 | AA186: RAL 7035 | AB186: =IF((VLOOKUP(Wycena!$C$7,Mapping!$Q$15:$R$20,2,0))="tak","",AA186) -> RAL 7035 | AC186: =IF(ROWS($AB$3:AB186)>(ROWS($AB$3:$AB$229)-COUNTBLANK($AB$3:$AB$229)),"",INDEX($AB$3:$AB$229,SMALL(IF($AB$3:$AB$229<>"",ROW($AB$3:$AB$229)-2),ROWS($AB$3:AB186)))) ->  | AX186: 256 | AY186: 2 | AZ186: 2 | BA186: =IF(Wycena!$C$16=78,Mapping!AY186,AZ186) -> 2
Y187: RAL 7036 | Z187: 500 | AA187: RAL 7036 | AB187: =IF((VLOOKUP(Wycena!$C$7,Mapping!$Q$15:$R$20,2,0))="tak","",AA187) -> RAL 7036 | AC187: =IF(ROWS($AB$3:AB187)>(ROWS($AB$3:$AB$229)-COUNTBLANK($AB$3:$AB$229)),"",INDEX($AB$3:$AB$229,SMALL(IF($AB$3:$AB$229<>"",ROW($AB$3:$AB$229)-2),ROWS($AB$3:AB187)))) ->  | AX187: 257 | AY187: 2 | AZ187: 2 | BA187: =IF(Wycena!$C$16=78,Mapping!AY187,AZ187) -> 2
Y188: RAL 7037 | Z188: 500 | AA188: RAL 7037 | AB188: =IF((VLOOKUP(Wycena!$C$7,Mapping!$Q$15:$R$20,2,0))="tak","",AA188) -> RAL 7037 | AC188: =IF(ROWS($AB$3:AB188)>(ROWS($AB$3:$AB$229)-COUNTBLANK($AB$3:$AB$229)),"",INDEX($AB$3:$AB$229,SMALL(IF($AB$3:$AB$229<>"",ROW($AB$3:$AB$229)-2),ROWS($AB$3:AB188)))) ->  | AX188: 258 | AY188: 2 | AZ188: 2 | BA188: =IF(Wycena!$C$16=78,Mapping!AY188,AZ188) -> 2
Y189: RAL 7038 | Z189: 500 | AA189: RAL 7038 | AB189: =IF((VLOOKUP(Wycena!$C$7,Mapping!$Q$15:$R$20,2,0))="tak","",AA189) -> RAL 7038 | AC189: =IF(ROWS($AB$3:AB189)>(ROWS($AB$3:$AB$229)-COUNTBLANK($AB$3:$AB$229)),"",INDEX($AB$3:$AB$229,SMALL(IF($AB$3:$AB$229<>"",ROW($AB$3:$AB$229)-2),ROWS($AB$3:AB189)))) ->  | AX189: 259 | AY189: 2 | AZ189: 2 | BA189: =IF(Wycena!$C$16=78,Mapping!AY189,AZ189) -> 2
Y190: RAL 7039 | Z190: 500 | AA190: RAL 7039 | AB190: =IF((VLOOKUP(Wycena!$C$7,Mapping!$Q$15:$R$20,2,0))="tak","",AA190) -> RAL 7039 | AC190: =IF(ROWS($AB$3:AB190)>(ROWS($AB$3:$AB$229)-COUNTBLANK($AB$3:$AB$229)),"",INDEX($AB$3:$AB$229,SMALL(IF($AB$3:$AB$229<>"",ROW($AB$3:$AB$229)-2),ROWS($AB$3:AB190)))) ->  | AX190: 260 | AY190: 2 | AZ190: 2 | BA190: =IF(Wycena!$C$16=78,Mapping!AY190,AZ190) -> 2
Y191: RAL 7042 | Z191: 500 | AA191: RAL 7042 | AB191: =IF((VLOOKUP(Wycena!$C$7,Mapping!$Q$15:$R$20,2,0))="tak","",AA191) -> RAL 7042 | AC191: =IF(ROWS($AB$3:AB191)>(ROWS($AB$3:$AB$229)-COUNTBLANK($AB$3:$AB$229)),"",INDEX($AB$3:$AB$229,SMALL(IF($AB$3:$AB$229<>"",ROW($AB$3:$AB$229)-2),ROWS($AB$3:AB191)))) ->  | AX191: 261 | AY191: 2 | AZ191: 2 | BA191: =IF(Wycena!$C$16=78,Mapping!AY191,AZ191) -> 2
Y192: RAL 7043 | Z192: 500 | AA192: RAL 7043 | AB192: =IF((VLOOKUP(Wycena!$C$7,Mapping!$Q$15:$R$20,2,0))="tak","",AA192) -> RAL 7043 | AC192: =IF(ROWS($AB$3:AB192)>(ROWS($AB$3:$AB$229)-COUNTBLANK($AB$3:$AB$229)),"",INDEX($AB$3:$AB$229,SMALL(IF($AB$3:$AB$229<>"",ROW($AB$3:$AB$229)-2),ROWS($AB$3:AB192)))) ->  | AX192: 262 | AY192: 2 | AZ192: 2 | BA192: =IF(Wycena!$C$16=78,Mapping!AY192,AZ192) -> 2
Y193: RAL 7044 | Z193: 500 | AA193: RAL 7044 | AB193: =IF((VLOOKUP(Wycena!$C$7,Mapping!$Q$15:$R$20,2,0))="tak","",AA193) -> RAL 7044 | AC193: =IF(ROWS($AB$3:AB193)>(ROWS($AB$3:$AB$229)-COUNTBLANK($AB$3:$AB$229)),"",INDEX($AB$3:$AB$229,SMALL(IF($AB$3:$AB$229<>"",ROW($AB$3:$AB$229)-2),ROWS($AB$3:AB193)))) ->  | AX193: 263 | AY193: 2 | AZ193: 2 | BA193: =IF(Wycena!$C$16=78,Mapping!AY193,AZ193) -> 2
Y194: RAL 7045 | Z194: 500 | AA194: RAL 7045 | AB194: =IF((VLOOKUP(Wycena!$C$7,Mapping!$Q$15:$R$20,2,0))="tak","",AA194) -> RAL 7045 | AC194: =IF(ROWS($AB$3:AB194)>(ROWS($AB$3:$AB$229)-COUNTBLANK($AB$3:$AB$229)),"",INDEX($AB$3:$AB$229,SMALL(IF($AB$3:$AB$229<>"",ROW($AB$3:$AB$229)-2),ROWS($AB$3:AB194)))) ->  | AX194: 264 | AY194: 2 | AZ194: 2 | BA194: =IF(Wycena!$C$16=78,Mapping!AY194,AZ194) -> 2
Y195: RAL 7046 | Z195: 500 | AA195: RAL 7046 | AB195: =IF((VLOOKUP(Wycena!$C$7,Mapping!$Q$15:$R$20,2,0))="tak","",AA195) -> RAL 7046 | AC195: =IF(ROWS($AB$3:AB195)>(ROWS($AB$3:$AB$229)-COUNTBLANK($AB$3:$AB$229)),"",INDEX($AB$3:$AB$229,SMALL(IF($AB$3:$AB$229<>"",ROW($AB$3:$AB$229)-2),ROWS($AB$3:AB195)))) ->  | AX195: 265 | AY195: 2 | AZ195: 2 | BA195: =IF(Wycena!$C$16=78,Mapping!AY195,AZ195) -> 2
Y196: RAL 7048 | Z196: 500 | AA196: RAL 7048 | AB196: =IF((VLOOKUP(Wycena!$C$7,Mapping!$Q$15:$R$20,2,0))="tak","",AA196) -> RAL 7048 | AC196: =IF(ROWS($AB$3:AB196)>(ROWS($AB$3:$AB$229)-COUNTBLANK($AB$3:$AB$229)),"",INDEX($AB$3:$AB$229,SMALL(IF($AB$3:$AB$229<>"",ROW($AB$3:$AB$229)-2),ROWS($AB$3:AB196)))) ->  | AX196: 266 | AY196: 2 | AZ196: 2 | BA196: =IF(Wycena!$C$16=78,Mapping!AY196,AZ196) -> 2
Y197: RAL 8000 | Z197: 500 | AA197: =Y197 -> RAL 8000 | AB197: =IF((VLOOKUP(Wycena!$C$7,Mapping!$Q$15:$R$20,2,0))="tak","",AA197) -> RAL 8000 | AC197: =IF(ROWS($AB$3:AB197)>(ROWS($AB$3:$AB$229)-COUNTBLANK($AB$3:$AB$229)),"",INDEX($AB$3:$AB$229,SMALL(IF($AB$3:$AB$229<>"",ROW($AB$3:$AB$229)-2),ROWS($AB$3:AB197)))) ->  | AX197: 267 | AY197: 2 | AZ197: 2 | BA197: =IF(Wycena!$C$16=78,Mapping!AY197,AZ197) -> 2
Y198: RAL 8001 | Z198: 500 | AA198: RAL 8001 | AB198: =IF((VLOOKUP(Wycena!$C$7,Mapping!$Q$15:$R$20,2,0))="tak","",AA198) -> RAL 8001 | AC198: =IF(ROWS($AB$3:AB198)>(ROWS($AB$3:$AB$229)-COUNTBLANK($AB$3:$AB$229)),"",INDEX($AB$3:$AB$229,SMALL(IF($AB$3:$AB$229<>"",ROW($AB$3:$AB$229)-2),ROWS($AB$3:AB198)))) ->  | AX198: 268 | AY198: 2 | AZ198: 2 | BA198: =IF(Wycena!$C$16=78,Mapping!AY198,AZ198) -> 2
Y199: RAL 8002 | Z199: 500 | AA199: RAL 8002 | AB199: =IF((VLOOKUP(Wycena!$C$7,Mapping!$Q$15:$R$20,2,0))="tak","",AA199) -> RAL 8002 | AC199: =IF(ROWS($AB$3:AB199)>(ROWS($AB$3:$AB$229)-COUNTBLANK($AB$3:$AB$229)),"",INDEX($AB$3:$AB$229,SMALL(IF($AB$3:$AB$229<>"",ROW($AB$3:$AB$229)-2),ROWS($AB$3:AB199)))) ->  | AX199: 269 | AY199: 2 | AZ199: 2 | BA199: =IF(Wycena!$C$16=78,Mapping!AY199,AZ199) -> 2
Y200: RAL 8003 | Z200: 500 | AA200: RAL 8003 | AB200: =IF((VLOOKUP(Wycena!$C$7,Mapping!$Q$15:$R$20,2,0))="tak","",AA200) -> RAL 8003 | AC200: =IF(ROWS($AB$3:AB200)>(ROWS($AB$3:$AB$229)-COUNTBLANK($AB$3:$AB$229)),"",INDEX($AB$3:$AB$229,SMALL(IF($AB$3:$AB$229<>"",ROW($AB$3:$AB$229)-2),ROWS($AB$3:AB200)))) ->  | AX200: 270 | AY200: 2 | AZ200: 2 | BA200: =IF(Wycena!$C$16=78,Mapping!AY200,AZ200) -> 2
... 32 more rows
